Workbook

Sheet Contents
C3: Summary | F3: Colour Codes | K3: File Name: | M3: =File_name() -> C:\Users\Edward\Documents\Data Center TCO 18 July.xlsm
G4: Colour of Input Cells | I4: 1234567890
C5: Contents | K5: Last Save Date | M5: =IFERROR(lastsaved(),"") -> 7/18/2026 10:02:45 PM
G6: Section Titles | I6: TITLE ROW
C7: InputC | G7: Column Letter of Title | I7: B | K7: Last Save By | M7: =IFERROR(last_save_by(),"") -> Edward Bodmer
D8: Senario
D9: Timing of Investment | G9: Colour for Sum Column | I9: 1000000000
D10: Operational Data | G10: Column Letter for Sum | I10: A
D11: Capital Expenditures
D12: Operating Cost | G12: True or 1 Colour | I12: TRUE
D13: Financing Targets | G13: False or 0 Colour | I13: FALSE
D14: Constants
G15: Links from Other Sheets | I15: 999999999
C16: InputC-Electricity Drill Down | G16: Start Column for Link Colour | I16: E
C18: FM Monthly
D19: Timeline
D20: Operations
D21: Inflation and Economic Statistics
D22: Capital Expendiure
D23: Operating Cost
D24: Financing
C26: FM Annual
D27: Time Periods
D28: Cash Flows
D29: Depreciation
D30: Income Statement
D31: Cash Flow Statement
D32: Balance Sheet
D33: Classic Statistics and Valuation
C35: Scenarios
C37: Data Center Details -->
C39: Data Center Size
C41: Efficiency for Data Centers
C43: Capital Expenditures
C45: Non Electricity Operating Cost
C47: Token per kW
C49: Facility Life and Construction
C51: Price per Token
C53: General
C55: Commodity Prices -->
D56: Use of Index
D57: Use of Time Lines
D58: Use of NA Trick
C60: Commodity Price Chart
C62: Monthly Prices
C64: Misc Forms

Sheet Notes
C3: What does TCO Mean
C5: TCO and Rate of Return use the same data and models
C7: How is TCO calculated in simple terms
C9: Could you compute the overall value of Data Centers in other ways
C11: Why is TCO measured as Dollars per Million Token
C13: What Drives the TCO
C15: The idea of a financial model as a database of everything that drives costs and prices
C17: What does the InputC mean for Modelling and why is it important
C19: If you want to add a scenario, how can you do it
C21: What are some of the essential trade-offs in measuring TCO
C23: Where does the data come from
C25: How did you make the calculations

Sheet Summary
K2: IRR Result | N2: =IRR -> 0.215559727
K3: Target IRR | N3: =InputC!G72 -> 0.09 | Q3: Source Data on Size
K4: TCO in Cost/MM Token | N4: =InputC!G81 -> 4.192449849 | Q4: Source Data on Efficiency
Q5: Source Data on Cap Exp
K6: Electricity Price (USD/MWH) | N6: =InputC!G61 -> 180 | Q6: Source Data on Op Exp
K7: MWit Size | N7: =InputC!G14 -> 150 | Q7: Source Data on Tokens
K8: PUE - Electric Efficiency | N8: =InputC!G27 -> 1.1 | Q8: Source Data on Life
K10: Total Cost of Data Center/kW | N10: =InputC!G51 -> 505000
K11: Electric Equipment Cost/kW | N11: =InputC!G48 -> 132900
K12: IT Equipment Cost/kW | N12: =InputC!G46 -> 370000
K14: Lifetime of Data Center (Years) | N14: =InputC!G9 -> 6
K15: Replacement Months of IT Equipment (Months) | N15: =InputC!G54 -> 24
K16: Percent of Electrical Equipment Replaced | N16: =InputC!G56 -> 0.72
K18: Annual Degradation in PUE p.a | N18: =InputC!G33 -> 0.007
K20: Token Capacity in MM Tokens/kW-month | N20: =InputC!G35 -> 6500
B21: Area (m2) | C21: =InputC!G18 -> 9.444444444 | E21: Area/MW | G21: =InputC!G23 -> 0.06296296296 | K21: Effective Utilization Factor | N21: =InputC!G38 -> 0.66
B22: Racks | C22: =InputC!G19 -> 600 | E22: Racks//m2 | G22: =InputC!G22 -> 63.52941176 | K22: Token Sales in MM Tokens | N22: ='FM Monthly'!F31 -> 643500000
K24: AI model Tokens for Software | N24: 30000000
K25: AI model Tokens for FM High | N25: ='Price per Token'!O10 -> 6500
B27: Data Center Size in MWit | G27: =InputC!G14 -> 150 | K27: Cost of Tokens - High | N27: =N24/1000000*N4 -> 125.7734955
B28: Total Data Center Capital Expenditure (USD) | G28: =G27*1000*N10 -> 75750000000 | K28: Cost of Tokens - Low | N28: =N25/1000000*N4 -> 0.02725092402
B30: Monthly Water Use in Litres | G30: ='FM Monthly'!H112 -> 8558121.512
D38: Comment | E38: TRUE

Sheet Scenarios
D3: ='InputC-Electricity Drill Down'!J2 -> Legacy Data Centers - High Cost | E3: ='InputC-Electricity Drill Down'!K2 -> Legacy Data Centers - Low Cost | F3: ='InputC-Electricity Drill Down'!L2 -> Legacy Data Centers - Computer Room Air Conditioning | G3: ='InputC-Electricity Drill Down'!M2 -> Legacy Data Centers - Hot/Cold Aisle Containment | H3: ='InputC-Electricity Drill Down'!N2 -> Legacy Data Centers - Chilled Water Central Loops
C4: =INDEX(C5:C8,$G$101) -> Legacy TOC - USD/MM Token | D4: =INDEX(D5:D8,$G$101) -> 108153.0465 | E4: =INDEX(E5:E8,$G$101) -> 48567.61033 | F4: =INDEX(F5:F8,$G$101) -> 85963.16206 | G4: =INDEX(G5:G8,$G$101) -> 25355.29177 | H4: =INDEX(H5:H8,$G$101) -> 18354.32452
C5: Legacy TOC - USD/MM Token | D5: =InputC!J81:N81 -> 108153.0465 | E5: 48567.61033 | F5: 85963.16206 | G5: 25355.29177 | H5: 18354.32452
C6: Legacy IRR | D6: =InputC!J83 -> FALSE | E6: =InputC!K83 -> 0.0900000006 | F6: =InputC!L83 -> 2.980232239e-09 | G6: =InputC!M83 -> 0.4021483958 | H6: =InputC!N83 -> 0.5358553827
C7: Legacy Data Center Price per kW-month | D7: =InputC!J85 -> 371.9372895 | E7: =InputC!K85 -> 394.2957824 | F7: =InputC!L85 -> 349.5219573 | G7: =InputC!M85 -> 309.790881 | H7: =InputC!N85 -> 314.5618228
C8: Legacy Data Center Price per GPU | D8: =InputC!J86 -> 546.9666022 | E8: =InputC!K86 -> 398.2785681 | F8: =InputC!L86 -> 442.4328574 | G8: =InputC!M86 -> 348.0796416 | H8: =InputC!N86 -> 331.1177082
D15: ='InputC-Electricity Drill Down'!O2 -> Early AI Date Centers - High Cost | E15: ='InputC-Electricity Drill Down'!P2 -> Early AI Date Centers - Low Cost | F15: ='InputC-Electricity Drill Down'!Q2 -> Early AI Date Centers - Single Phase Direct to Liquid Cooling | G15: ='InputC-Electricity Drill Down'!R2 -> Early AI Date Centers - Coolant Distribution Units | H15: ='InputC-Electricity Drill Down'!S2 -> Early AI Date Centers - Hybrid Air-Liquid Infrastructure
C16: =INDEX(C17:C20,$G$101) -> Early AI TOC - USD/MM Token | D16: =INDEX(D17:D20,$G$101) -> 1387.786073 | E16: =INDEX(E17:E20,$G$101) -> 614.8449452 | F16: =INDEX(F17:F20,$G$101) -> 269.0321035 | G16: =INDEX(G17:G20,$G$101) -> 248.755125 | H16: =INDEX(H17:H20,$G$101) -> 304.5429738
C17: Early AI TOC - USD/MM Token | D17: =InputC!O81 -> 1387.786073 | E17: =InputC!P81 -> 614.8449452 | F17: =InputC!Q81 -> 269.0321035 | G17: =InputC!R81 -> 248.755125 | H17: =InputC!S81 -> 304.5429738
C18: Early AI IRR | D18: =InputC!O83 -> 2.980232239e-09 | E18: =InputC!P83 -> 0.0900000006 | F18: =InputC!Q83 -> 0.4844479382 | G18: =InputC!R83 -> 0.6138531506 | H18: =InputC!S83 -> 0.3571908772
C19: Early AI Data Center Price per kW-month | D19: =InputC!O85 -> 806.0011971 | E19: =InputC!P85 -> 808.4645968 | F19: =InputC!Q85 -> 620.8840975 | G19: =InputC!R85 -> 648.9983578 | H19: =InputC!S85 -> 601.4609783
C20: Early AI Data Center Price per GPU | D20: =InputC!O86 -> 876.0882577 | E20: =InputC!P86 -> 734.9678153 | F20: =InputC!Q86 -> 521.7513424 | G20: =InputC!R86 -> 569.2968051 | H20: =InputC!S86 -> 567.4160172
D29: ='InputC-Electricity Drill Down'!T2 -> Modern AI Factories - High Cost | E29: ='InputC-Electricity Drill Down'!U2 -> Modern AI Factories - Low Cost | F29: ='InputC-Electricity Drill Down'!V2 -> Modern AI Factories - Single Phase Direct-to-Chip Liquid Cooling | G29: ='InputC-Electricity Drill Down'!W2 -> Modern AI Factories - Coolant Distribution Units (CDUs) | H29: ='InputC-Electricity Drill Down'!X2 -> Modern AI Factories - Hybrid Air-Liquid Infrastructure
C30: =INDEX(C31:C34,$G$101) -> Modern AI TCO - USD/MM Tokens | D30: =INDEX(D31:D34,$G$101) -> 225.7083149 | E30: =INDEX(E31:E34,$G$101) -> 108.5091455 | F30: =INDEX(F31:F34,$G$101) -> 52.25852566 | G30: =INDEX(G31:G34,$G$101) -> 51.07739818 | H30: =INDEX(H31:H34,$G$101) -> 69.40268871
C31: Modern AI TCO - USD/MM Tokens | D31: =InputC!T81 -> 225.7083149 | E31: =InputC!U81 -> 108.5091455 | F31: =InputC!V81 -> 52.25852566 | G31: =InputC!W81 -> 51.07739818 | H31: =InputC!X81 -> 69.40268871
C32: Modern AI IRR | D32: =InputC!T83:X83 -> 2.980232239e-09 | E32: 0.0900000006 | F32: 0.4497185767 | G32: 0.4985700428 | H32: 0.2868170321
C33: Modern AI Data Center Price per kW-month | D33: =InputC!T85 -> 1921.402917 | E33: =InputC!U85 -> 1908.683159 | F33: =InputC!V85 -> 1505.070745 | G33: =InputC!W85 -> 1555.018037 | H33: =InputC!X85 -> 1625.26021
C34: Modern AI Data Center Price per GPU | D34: =InputC!T86 -> 1883.72835 | E34: =InputC!U86 -> 1577.424098 | F34: =InputC!V86 -> 1213.76673 | G34: =InputC!W86 -> 1264.242306 | H34: =InputC!X86 -> 1425.666851
D40: ='InputC-Electricity Drill Down'!Y2 -> Next-Gen Superclusters - High Cost | E40: ='InputC-Electricity Drill Down'!Z2 -> Next-Gen Superclusters - Low Cost | F40: ='InputC-Electricity Drill Down'!AA2 -> Next-Gen Superclusters - Chiller-Less Dry Cooling | G40: ='InputC-Electricity Drill Down'!AB2 -> Next-Gen Superclusters - High -Impedance Dielectric Coolants | H40: ='InputC-Electricity Drill Down'!AC2 -> Next-Gen Superclusters - AI-Driven Grid Balance Cooling
C41: =INDEX(C42:C45,$G$101) -> Next-Gen TCO USD/MM Token | D41: =INDEX(D42:D45,$G$101) -> 53.12401721 | E41: =INDEX(E42:E45,$G$101) -> 28.29973046 | F41: =INDEX(F42:F45,$G$101) -> 17.34228541 | G41: =INDEX(G42:G45,$G$101) -> 14.17795177 | H41: =INDEX(H42:H45,$G$101) -> 18.97453193
C42: Next-Gen TCO USD/MM Token | D42: =InputC!Y81 -> 53.12401721 | E42: =InputC!Z81 -> 28.29973046 | F42: =InputC!AA81 -> 17.34228541 | G42: =InputC!AB81 -> 14.17795177 | H42: =InputC!AC81 -> 18.97453193
C43: Next Gen IRR | D43: =InputC!Y83 -> 2.980232239e-09 | E43: =InputC!Z83 -> 0.0900000006 | F43: =InputC!AA83 -> 0.2836220086 | G43: =InputC!AB83 -> 0.3345432103 | H43: =InputC!AC83 -> 0.2658551037
C44: Next Gen Data Center Price per kW-month | D44: =InputC!Y85 -> 3540.59006 | E44: =InputC!Z85 -> 3565.454525 | F44: =InputC!AA85 -> 2488.398094 | G44: =InputC!AB85 -> 2381.261975 | H44: =InputC!AC85 -> 3404.385573
C45: Next Gen AI Data Center Price per GPU | D45: =InputC!Y86 -> 5284.462776 | E45: =InputC!Z86 -> 4691.387533 | F45: =InputC!AA86 -> 3231.685837 | G45: =InputC!AB86 -> 3014.255664 | H45: =InputC!AC86 -> 4309.348827
D51: ='InputC-Electricity Drill Down'!AD2 -> Specialized Inference Farms - High Cost | E51: ='InputC-Electricity Drill Down'!AE2 -> Specialized Inference Farms - Low Cost | F51: ='InputC-Electricity Drill Down'!AF2 -> Specialized Inference Farms - Chassis-Level Immersion Cooling | G51: ='InputC-Electricity Drill Down'!AG2 -> Specialized Inference Farms - Open-Tank-Phase Immersion | H51: ='InputC-Electricity Drill Down'!AH2 -> Specialized Inference Farms - Liquid-to-Air (L2A) Sidecars
C52: =INDEX(C53:C56,$G$101) -> Specialized TCO - USD/MM Tons | D52: =INDEX(D53:D56,$G$101) -> 13.16034945 | E52: =INDEX(E53:E56,$G$101) -> 7.205586664 | F52: =INDEX(F53:F56,$G$101) -> 3.782151721 | G52: =INDEX(G53:G56,$G$101) -> 3.370619027 | H52: =INDEX(H53:H56,$G$101) -> 5.171767951
C53: Specialized TCO - USD/MM Tons | D53: =InputC!AD81 -> 13.16034945 | E53: =InputC!AE81 -> 7.205586664 | F53: =InputC!AF81 -> 3.782151721 | G53: =InputC!AG81 -> 3.370619027 | H53: =InputC!AH81 -> 5.171767951
C54: Specialized Inference IRR | D54: =InputC!AD83 -> 2.980232239e-09 | E54: =InputC!AE83 -> 0.0900000006 | F54: =InputC!AF83 -> 0.405318886 | G54: =InputC!AG83 -> 0.4112863243 | H54: =InputC!AH83 -> 0.2788500249
C55: Specialized Inference Data Center Price per kW-month | D55: =InputC!AD85 -> 1337.733218 | E55: =InputC!AE85 -> 1498.793445 | F55: =InputC!AF85 -> 1058.395127 | G55: =InputC!AG85 -> 1094.573818 | H55: =InputC!AH85 -> 1264.520747
C56: Specialized Inference Data Center Price per GPU | D56: =InputC!AD86 -> 1611.726769 | E56: =InputC!AE86 -> 1577.677311 | F56: =InputC!AF86 -> 1091.128997 | G56: =InputC!AG86 -> 1116.912059 | H56: =InputC!AH86 -> 1359.699728
D64: ='InputC-Electricity Drill Down'!AI2 -> NVIDIA Hopper (H200) - High Cost | E64: ='InputC-Electricity Drill Down'!AJ2 -> NVIDIA Hopper (H200) - Low Cost | F64: ='InputC-Electricity Drill Down'!AK2 -> NVIDIA Hopper (H200) - Hyrid Air | G64: ='InputC-Electricity Drill Down'!AL2 -> NVIDIA Hopper (H200) - Fluid-Assisted | H64: ='InputC-Electricity Drill Down'!AM2 -> NVIDIA Hopper (H200) - Single Phase Direct-to-Chip Liquid Cooling
C65: =INDEX(C66:C69,$G$101) -> NVIDIA TCO in USD/MM Token | D65: =INDEX(D66:D69,$G$101) -> 35.52939036 | E65: =INDEX(E66:E69,$G$101) -> 20.72483727 | F65: =INDEX(F66:F69,$G$101) -> 39.40254681 | G65: =INDEX(G66:G69,$G$101) -> 24.19632183 | H65: =INDEX(H66:H69,$G$101) -> 15.60571003
C66: NVIDIA TCO in USD/MM Token | D66: =InputC!AI81 -> 35.52939036 | E66: =InputC!AJ81 -> 20.72483727 | F66: =InputC!AK81 -> 39.40254681 | G66: =InputC!AL81 -> 24.19632183 | H66: =InputC!AM81 -> 15.60571003
C67: NVIDIA Hopper IRR | D67: =InputC!AI83 -> -0.07842144221 | E67: =InputC!AJ83 -> 0.0900000006 | F67: =InputC!AK83 -> 2.980232239e-09 | G67: =InputC!AL83 -> 0.01800938547 | H67: =InputC!AM83 -> 0.08644265831
C68: NVIDIA Hopper Data Center Price per kW-month | D68: =InputC!AI85 -> 1140.529115 | E68: =InputC!AJ85 -> 1266.746217 | F68: =InputC!AK85 -> 1623.030356 | G68: =InputC!AL85 -> 1352.558253 | H68: =InputC!AM85 -> 1196.259486
C69: NVIDIA Hopper Data Center Price per GPU | D69: =InputC!AI86 -> 1152.049611 | E69: =InputC!AJ86 -> 1064.49262 | F69: =InputC!AK86 -> 1531.160713 | G69: =InputC!AL86 -> 1186.454608 | H69: =InputC!AM86 -> 964.7253921
D75: ='InputC-Electricity Drill Down'!AO2 -> NVIDIA Blackwell (GB300 / B300) - High Cost | E75: ='InputC-Electricity Drill Down'!AP2 -> NVIDIA Blackwell (GB300 / B300) - Low Cost | F75: ='InputC-Electricity Drill Down'!AQ2 -> NVIDIA Blackwell (GB300 / B300) - 90% Direct-to-Chip Liquid | G75: ='InputC-Electricity Drill Down'!AR2 -> NVIDIA Blackwell (GB300 / B300) - Single Phase Direct-to-Chip Liquid Cooling | H75: ='InputC-Electricity Drill Down'!AS2 -> NVIDIA Blackwell (GB300 / B300) - Double Phase Direct-to-Chip Liquid Cooling
C76: =INDEX(C77:C80,$G$101) -> NVIDIA Blackwell TCO in USD/MM Tokens | D76: =INDEX(D77:D80,$G$101) -> 19.30341891 | E76: =INDEX(E77:E80,$G$101) -> 8.434466084 | F76: =INDEX(F77:F80,$G$101) -> 7.093225836 | G76: =INDEX(G77:G80,$G$101) -> 5.905614235 | H76: =INDEX(H77:H80,$G$101) -> 5.352690012
C77: NVIDIA Blackwell TCO in USD/MM Tokens | D77: =InputC!AO81 -> 19.30341891 | E77: =InputC!AP81 -> 8.434466084 | F77: =InputC!AQ81 -> 7.093225836 | G77: =InputC!AR81 -> 5.905614235 | H77: =InputC!AS81 -> 5.352690012
C78: NVIDIA Blackwell IRR | D78: =InputC!AO83 -> 2.980232239e-09 | E78: =InputC!AP83 -> 0.0900000006 | F78: =InputC!AQ83 -> 0.1991962969 | G78: =InputC!AR83 -> 0.2998542607 | H78: =InputC!AS83 -> 0.3627407491
C79: NVIDIA Blackwell Date Center Price per kW-month | D79: =InputC!AO85 -> 4913.736871 | E79: =InputC!AP85 -> 4153.523351 | F79: =InputC!AQ85 -> 4214.970082 | G79: =InputC!AR85 -> 3857.759699 | H79: =InputC!AS85 -> 4009.290261
C80: NVIDIA Blackwell IRR Data Center Price per GPU | D80: =InputC!AO86 -> 7925.382051 | E80: =InputC!AP86 -> 5612.869393 | F80: =InputC!AQ86 -> 5546.013265 | G80: =InputC!AR86 -> 5010.077531 | H80: =InputC!AS86 -> 5075.050963
D86: ='InputC-Electricity Drill Down'!AT2 -> NVIDIA Vera Rubin NVL72 - High Cost | E86: ='InputC-Electricity Drill Down'!AU2 -> NVIDIA Vera Rubin NVL72 - Low Cost | F86: ='InputC-Electricity Drill Down'!AV2 -> NVIDIA Vera Rubin NVL72 - 45 C Warm-Water Closed-Loop Liquid | G86: ='InputC-Electricity Drill Down'!AW2 -> NVIDIA Vera Rubin NVL72 - Single Phase Direct-to-Chip Liquid Cooling | H86: ='InputC-Electricity Drill Down'!AX2 -> NVIDIA Vera Rubin NVL72 - Double Phase Direct-to-Chip Liquid Cooling
C87: =INDEX(C88:C91,$G$101) -> NVIDIA TCO in USD/MM Token | D87: =INDEX(D88:D91,$G$101) -> 8.825579236 | E87: =INDEX(E88:E91,$G$101) -> 4.926779434 | F87: =INDEX(F88:F91,$G$101) -> 3.130436632 | G87: =INDEX(G88:G91,$G$101) -> 3.305020341 | H87: =INDEX(H88:H91,$G$101) -> 4.192449849
C88: NVIDIA TCO in USD/MM Token | D88: =InputC!AT81 -> 8.825579236 | E88: =InputC!AU81 -> 4.926779434 | F88: =InputC!AV81 -> 3.130436632 | G88: =InputC!AW81 -> 3.305020341 | H88: =InputC!AX81 -> 4.192449849
C89: NVIDIA Vera IRR | D89: =InputC!AT83 -> 2.980232239e-09 | E89: =InputC!AU83 -> 0.0900000006 | F89: =InputC!AV83 -> 0.3442245901 | G89: =InputC!AW83 -> 0.3408171833 | H89: =InputC!AX83 -> 0.215559727
C90: NVIDIA Vera Price per kW-Month | D90: =InputC!AT85 -> 14212.32746 | E90: =InputC!AU85 -> 15106.53889 | F90: =InputC!AV85 -> 10659.47451 | G90: =InputC!AW85 -> 12798.6108 | H90: =InputC!AX85 -> 18254.7251
C91: NVIDIA Vera Price per GPU | D91: =InputC!AT86 -> 33051.92433 | E91: =InputC!AU86 -> 29620.66448 | F91: =InputC!AV86 -> 20498.98945 | G91: =InputC!AW86 -> 24148.32227 | H91: =InputC!AX86 -> 33805.04648
C101: USD/MM Token | G101: 1
C102: Data Center IRR
C103: Price per kW-month
C104: Price per GPU

Sheet InputC
J1: TCO | K1: ='FM Monthly'!F41 -> 4.926779434 | L1: IRR | M1: ='FM Monthly'!F127 -> 0.215559727
B2: Senario | E2: 41 | J2: =_xlfn.SEQUENCE(,50) -> 1 | K2: 2 | L2: 3 | M2: 4 | N2: 5 | O2: 6 | P2: 7 | Q2: 8 | R2: 9 | S2: 10 | T2: 11 | U2: 12 | V2: 13 | W2: 14 | X2: 15 | Y2: 16 | Z2: 17 | AA2: 18 | AB2: 19 | AC2: 20 | AD2: 21 | AE2: 22 | AF2: 23 | AG2: 24 | AH2: 25 | AI2: 26 | AJ2: 27 | AK2: 28 | AL2: 29 | AM2: 30 | AN2: 31 | AO2: 32 | AP2: 33 | AQ2: 34 | AR2: 35 | AS2: 36 | AT2: 37 | AU2: 38 | AV2: 39 | AW2: 40 | AX2: 41 | AY2: 42 | AZ2: 43 | BA2: 44 | BB2: 45 | BC2: 46 | BD2: 47 | BE2: 48 | BF2: 49 | BG2: 50
F3: Units | G3: =INDEX(J3:SS3,$E$2) -> NVIDIA Vera Rubin NVL72 - Double Phase Direct-to-Chip Liquid Cooling | J3: Legacy Data Centers - High Cost | K3: Legacy Data Centers - Low Cost | L3: Legacy Data Centers - Computer Room Air Conditioning | M3: Legacy Data Centers - Hot/Cold Aisle Containment | N3: Legacy Data Centers - Chilled Water Central Loops | O3: Early AI Date Centers - High Cost | P3: Early AI Date Centers - Low Cost | Q3: Early AI Date Centers - Single Phase Direct to Liquid Cooling | R3: Early AI Date Centers - Coolant Distribution Units | S3: Early AI Date Centers - Hybrid Air-Liquid Infrastructure | T3: Modern AI Factories - High Cost | U3: Modern AI Factories - Low Cost | V3: Modern AI Factories - Single Phase Direct-to-Chip Liquid Cooling | W3: Modern AI Factories - Coolant Distribution Units (CDUs) | X3: Modern AI Factories - Hybrid Air-Liquid Infrastructure | Y3: Next-Gen Superclusters - High Cost | Z3: Next-Gen Superclusters - Low Cost | AA3: Next-Gen Superclusters - Chiller-Less Dry Cooling | AB3: Next-Gen Superclusters - High -Impedance Dielectric Coolants | AC3: Next-Gen Superclusters - AI-Driven Grid Balance Cooling | AD3: Specialized Inference Farms - High Cost | AE3: Specialized Inference Farms - Low Cost | AF3: Specialized Inference Farms - Chassis-Level Immersion Cooling | AG3: Specialized Inference Farms - Open-Tank-Phase Immersion | AH3: Specialized Inference Farms - Liquid-to-Air (L2A) Sidecars | AI3: NVIDIA Hopper (H200) - High Cost | AJ3: NVIDIA Hopper (H200) - Low Cost | AK3: NVIDIA Hopper (H200) - Hyrid Air | AL3: NVIDIA Hopper (H200) - Fluid-Assisted | AM3: NVIDIA Hopper (H200) - Single Phase Direct-to-Chip Liquid Cooling | AN3: NVIDIA Hopper (H200) - Double Phase Direct-to-Chip Liquid Cooling | AO3: NVIDIA Blackwell (GB300 / B300) - High Cost | AP3: NVIDIA Blackwell (GB300 / B300) - Low Cost | AQ3: NVIDIA Blackwell (GB300 / B300) - 90% Direct-to-Chip Liquid | AR3: NVIDIA Blackwell (GB300 / B300) - Single Phase Direct-to-Chip Liquid Cooling | AS3: NVIDIA Blackwell (GB300 / B300) - Double Phase Direct-to-Chip Liquid Cooling | AT3: NVIDIA Vera Rubin NVL72 - High Cost | AU3: NVIDIA Vera Rubin NVL72 - Low Cost | AV3: NVIDIA Vera Rubin NVL72 - 45 C Warm-Water Closed-Loop Liquid | AW3: NVIDIA Vera Rubin NVL72 - Single Phase Direct-to-Chip Liquid Cooling | AX3: NVIDIA Vera Rubin NVL72 - Double Phase Direct-to-Chip Liquid Cooling | AY3: NVIDA Vera Alternative Scenario (Full Description Copied from ___) | AZ3: NVIDA Blackwell Alternative Scenario (Full Description Copied from ___) | BA3: NVIDA Blackwell Alternative Scenario (Full Description Copied from ___) | BB3: NVIDA Hopper Added Scenario (Full Description Copied from ___) | BC3: Added Scenario (Full Description Copied from ___) | BD3: Added Scenario (Full Description Copied from ___) | BE3: Added Scenario (Full Description Copied from ___) | BF3: Added Scenario (Full Description Copied from ___) | BG3: Added Scenario (Full Description Copied from ___) | BH3: Added Scenario (Full Description Copied from ___) | BI3: Added Scenario (Full Description Copied from ___)
B4: Timing of Investment
C6: Start of Investment | F6: Date | G6: =INDEX(J6:SS6,$E$2) -> 2027-01-01 | J6: 2027-01-01 | K6: 2027-01-01 | L6: 2027-01-01 | M6: 2027-01-01 | N6: 2027-01-01 | O6: 2027-01-01 | P6: 2027-01-01 | Q6: 2027-01-01 | R6: 2027-01-01 | S6: 2027-01-01 | T6: 2027-01-01 | U6: 2027-01-01 | V6: 2027-01-01 | W6: 2027-01-01 | X6: 2027-01-01 | Y6: 2027-01-01 | Z6: 2027-01-01 | AA6: 2027-01-01 | AB6: 2027-01-01 | AC6: 2027-01-01 | AD6: 2027-01-01 | AE6: 2027-01-01 | AF6: 2027-01-01 | AG6: 2027-01-01 | AH6: 2027-01-01 | AI6: 2027-01-01 | AJ6: 2027-01-01 | AK6: 2027-01-01 | AL6: 2027-01-01 | AM6: 2027-01-01 | AN6: 2027-01-01 | AO6: 2027-01-01 | AP6: 2027-01-01 | AQ6: 2027-01-01 | AR6: 2027-01-01 | AS6: 2027-01-01 | AT6: 2027-01-01 | AU6: 2027-01-01 | AV6: 2027-01-01 | AW6: 2027-01-01 | AX6: 2027-01-01
C7: Construction | F7: Months | G7: =INDEX(J7:SS7,$E$2) -> 8 | J7: =TRANSPOSE('Facility Life and Construction'!AR4:AR44) -> 24 | K7: 14 | L7: 15 | M7: 16 | N7: 22 | O7: 20 | P7: 12 | Q7: 16 | R7: 15 | S7: 18 | T7: 18 | U7: 14 | V7: 15 | W7: 14 | X7: 16 | Y7: 36 | Z7: 18 | AA7: 20 | AB7: 22 | AC7: 26 | AD7: 15 | AE7: 9 | AF7: 12 | AG7: 14 | AH7: 8 | AI7: 7 | AJ7: 3 | AK7: 3 | AL7: 4 | AM7: 5 | AN7: 6 | AO7: 8 | AP7: 4 | AQ7: 6 | AR7: 5 | AS7: 7 | AT7: 9 | AU7: 5 | AV7: 6 | AW7: 6 | AX7: 8
C8: Start of Operation | F8: Date | G8: =INDEX(J8:SS8,$E$2) -> 2027-09-01 | J8: =EDATE(J6,J7) -> 2029-01-01 | K8: 2028-03-01 | L8: 2028-04-01 | M8: 2028-05-01 | N8: 2028-11-01 | O8: 2028-09-01 | P8: 2028-01-01 | Q8: 2028-05-01 | R8: 2028-04-01 | S8: 2028-07-01 | T8: 2028-07-01 | U8: 2028-03-01 | V8: 2028-04-01 | W8: 2028-03-01 | X8: 2028-05-01 | Y8: 2030-01-01 | Z8: 2028-07-01 | AA8: 2028-09-01 | AB8: 2028-11-01 | AC8: 2029-03-01 | AD8: 2028-04-01 | AE8: 2027-10-01 | AF8: 2028-01-01 | AG8: 2028-03-01 | AH8: 2027-09-01 | AI8: 2027-08-01 | AJ8: 2027-04-01 | AK8: 2027-04-01 | AL8: 2027-05-01 | AM8: 2027-06-01 | AN8: 2027-07-01 | AO8: 2027-09-01 | AP8: 2027-05-01 | AQ8: 2027-07-01 | AR8: 2027-06-01 | AS8: 2027-08-01 | AT8: =EDATE(AT6,AT7) -> 2027-10-01 | AU8: 2027-06-01 | AV8: 2027-07-01 | AW8: 2027-07-01 | AX8: 2027-09-01
C9: Facility Operating Life | F9: Years | G9: =INDEX(J9:SS9,$E$2) -> 6 | J9: =TRANSPOSE('Facility Life and Construction'!AS4:AS44) -> 25 | K9: 15 | L9: 20 | M9: 18 | N9: 25 | O9: 15 | P9: 10 | Q9: 14 | R9: 12 | S9: 15 | T9: 20 | U9: 12 | V9: 15 | W9: 12 | X9: 15 | Y9: 30 | Z9: 14 | AA9: 20 | AB9: 16 | AC9: 25 | AD9: 20 | AE9: 12 | AF9: 14 | AG9: 16 | AH9: 9 | AI9: 7 | AJ9: 5 | AK9: 6 | AL9: 5 | AM9: 6 | AN9: 5 | AO9: 8 | AP9: 5 | AQ9: 7 | AR9: 6 | AS9: 6 | AT9: 6 | AU9: 8 | AV9: 7 | AW9: 6 | AX9: 6
C10: End-of-life | F10: Date | G10: =INDEX(J10:SS10,$E$2) -> 2033-09-30 | J10: =EOMONTH(J8,J9*Months) -> 2054-01-31 | K10: 2043-03-31 | L10: 2048-04-30 | M10: 2046-05-31 | N10: 2053-11-30 | O10: 2043-09-30 | P10: 2038-01-31 | Q10: 2042-05-31 | R10: 2040-04-30 | S10: =EOMONTH(S8,S9*Months) -> 2043-07-31 | T10: 2048-07-31 | U10: 2040-03-31 | V10: 2043-04-30 | W10: 2040-03-31 | X10: 2043-05-31 | Y10: 2060-01-31 | Z10: 2042-07-31 | AA10: 2048-09-30 | AB10: 2044-11-30 | AC10: 2054-03-31 | AD10: 2048-04-30 | AE10: 2039-10-31 | AF10: 2042-01-31 | AG10: 2044-03-31 | AH10: 2036-09-30 | AI10: 2034-08-31 | AJ10: 2032-04-30 | AK10: 2033-04-30 | AL10: 2032-05-31 | AM10: 2033-06-30 | AN10: 2032-07-31 | AO10: 2035-09-30 | AP10: 2032-05-31 | AQ10: 2034-07-31 | AR10: 2033-06-30 | AS10: 2033-08-31 | AT10: =EOMONTH(AT8,AT9*Months) -> 2033-10-31 | AU10: 2035-06-30 | AV10: 2034-07-31 | AW10: 2033-07-31 | AX10: 2033-09-30
B12: Operational Data
C14: Data Center Capacity MW | F14: MW of IT | G14: =INDEX(J14:SS14,$E$2) -> 150 | J14: =TRANSPOSE('Data Center Size'!AS4:AS44) -> 40 | K14: 10 | L14: 5 | M14: 20 | N14: 50 | O14: 80 | P14: 25 | Q14: 40 | R14: 50 | S14: 60 | T14: 300 | U14: 70 | V14: 150 | W14: 200 | X14: 120 | Y14: 1000 | Z14: 300 | AA14: 500 | AB14: 300 | AC14: 1000 | AD14: 50 | AE14: 15 | AF14: 30 | AG14: 40 | AH14: 8 | AI14: 50 | AJ14: 10 | AK14: 6 | AL14: 15 | AM14: 40 | AN14: 50 | AO14: 120 | AP14: 30 | AQ14: 100 | AR14: 80 | AS14: 120 | AT14: 300 | AU14: 45 | AV14: 120 | AW14: 90 | AX14: 150
C15: Data Center Capacity kW | F15: kW of IT | G15: =INDEX(J15:SS15,$E$2) -> 150000 | J15: =J14*1000 -> 40000 | K15: =K14*1000 -> 10000 | L15: 5000 | M15: 20000 | N15: 50000 | O15: 80000 | P15: 25000 | Q15: 40000 | R15: 50000 | S15: 60000 | T15: 300000 | U15: 70000 | V15: 150000 | W15: 200000 | X15: 120000 | Y15: 1000000 | Z15: 300000 | AA15: 500000 | AB15: 300000 | AC15: 1000000 | AD15: 50000 | AE15: 15000 | AF15: 30000 | AG15: 40000 | AH15: 8000 | AI15: 50000 | AJ15: 10000 | AK15: 6000 | AL15: 15000 | AM15: 40000 | AN15: 50000 | AO15: 120000 | AP15: 30000 | AQ15: 100000 | AR15: 80000 | AS15: 120000 | AT15: 300000 | AU15: 45000 | AV15: 120000 | AW15: 90000 | AX15: 150000
C17: Size in Sqare Feet | F17: Sq Feet 000's | G17: =INDEX(J17:SS17,$E$2) -> 85 | J17: =TRANSPOSE('Data Center Size'!AT4:AT44) -> 400 | K17: 100 | L17: 40 | M17: 20 | N17: 450 | O17: 200 | P17: 76 | Q17: 100 | R17: 120 | S17: 160 | T17: 600 | U17: 180 | V17: 250 | W17: 350 | X17: 220 | Y17: 2500 | Z17: 700 | AA17: 900 | AB17: 400 | AC17: 2000 | AD17: 90 | AE17: 35 | AF17: 45 | AG17: 60 | AH17: 25 | AI17: 80 | AJ17: 25 | AK17: 20 | AL17: 30 | AM17: 60 | AN17: 70 | AO17: 100 | AP17: 30 | AQ17: 80 | AR17: 65 | AS17: 95 | AT17: 140 | AU17: 35 | AV17: 50 | AW17: 60 | AX17: 85
C18: Size in Sqare Meters | F18: M2 | G18: =INDEX(J18:SS18,$E$2) -> 9.444444444 | J18: =J17/feet_meters -> 44.44444444 | K18: 11.11111111 | L18: 4.444444444 | M18: 2.222222222 | N18: 50 | O18: 22.22222222 | P18: 8.444444444 | Q18: 11.11111111 | R18: 13.33333333 | S18: 17.77777778 | T18: 66.66666667 | U18: 20 | V18: 27.77777778 | W18: 38.88888889 | X18: 24.44444444 | Y18: 277.7777778 | Z18: 77.77777778 | AA18: 100 | AB18: 44.44444444 | AC18: 222.2222222 | AD18: 10 | AE18: 3.888888889 | AF18: 5 | AG18: 6.666666667 | AH18: 2.777777778 | AI18: 8.888888889 | AJ18: 2.777777778 | AK18: 2.222222222 | AL18: 3.333333333 | AM18: 6.666666667 | AN18: 7.777777778 | AO18: 11.11111111 | AP18: 3.333333333 | AQ18: 8.888888889 | AR18: 7.222222222 | AS18: 10.55555556 | AT18: 15.55555556 | AU18: 3.888888889 | AV18: 5.555555556 | AW18: 6.666666667 | AX18: 9.444444444
C19: Racks | F19: Racks | G19: =INDEX(J19:SS19,$E$2) -> 600 | J19: =TRANSPOSE('Data Center Size'!AU4:AU44) -> 8000 | K19: 2000 | L19: 1000 | M19: 3000 | N19: 9000 | O19: 3000 | P19: 1000 | Q19: 1200 | R19: 1500 | S19: 2000 | T19: 6000 | U19: 1800 | V19: 3500 | W19: 4500 | X19: 3000 | Y19: 10000 | Z19: 3000 | AA19: 5000 | AB19: 3000 | AC19: 10000 | AD19: 2500 | AE19: 750 | AF19: 900 | AG19: 1000 | AH19: 200 | AI19: 1200 | AJ19: 250 | AK19: 150 | AL19: 350 | AM19: 800 | AN19: 900 | AO19: 900 | AP19: 230 | AQ19: 750 | AR19: 600 | AS19: 900 | AT19: 1000 | AU19: 180 | AV19: 480 | AW19: 360 | AX19: 600
C21: Racks per kW | F21: Racks/MW | J21: =J14 -> 40 | K21: =K14 -> 10 | L21: 5 | M21: 20 | N21: 50 | O21: 80 | P21: 25 | Q21: 40 | R21: 50 | S21: 60 | T21: 300 | U21: 70 | V21: 150 | W21: 200 | X21: 120 | Y21: 1000 | Z21: 300 | AA21: 500 | AB21: 300 | AC21: 1000 | AD21: 50 | AE21: 15 | AF21: 30 | AG21: 40 | AH21: 8 | AI21: 50 | AJ21: 10 | AK21: 6 | AL21: 15 | AM21: 40 | AN21: 50 | AO21: 120 | AP21: 30 | AQ21: 100 | AR21: 80 | AS21: 120 | AT21: 300 | AU21: 45 | AV21: 120 | AW21: 90 | AX21: 150
C22: Rack per m2 | F22: Rack/m2 | G22: =INDEX(J22:SS22,$E$2) -> 63.52941176 | J22: =J19/J18 -> 180 | K22: =K19/K18 -> 180 | L22: 225 | M22: 1350 | N22: 180 | O22: 135 | P22: 118.4210526 | Q22: 108 | R22: 112.5 | S22: 112.5 | T22: 90 | U22: 90 | V22: 126 | W22: 115.7142857 | X22: 122.7272727 | Y22: 36 | Z22: 38.57142857 | AA22: 50 | AB22: 67.5 | AC22: 45 | AD22: 250 | AE22: 192.8571429 | AF22: 180 | AG22: 150 | AH22: 72 | AI22: 135 | AJ22: 90 | AK22: 67.5 | AL22: 105 | AM22: 120 | AN22: 115.7142857 | AO22: 81 | AP22: 69 | AQ22: 84.375 | AR22: 83.07692308 | AS22: 85.26315789 | AT22: 64.28571429 | AU22: 46.28571429 | AV22: 86.4 | AW22: 54 | AX22: 63.52941176
C23: Area in m2/kW | F23: m2/MW | G23: =INDEX(J23:SS23,$E$2) -> 0.06296296296 | J23: =J18/J14 -> 1.111111111 | K23: =K18/K14 -> 1.111111111 | L23: 0.8888888889 | M23: 0.1111111111 | N23: 1 | O23: 0.2777777778 | P23: 0.3377777778 | Q23: 0.2777777778 | R23: 0.2666666667 | S23: 0.2962962963 | T23: 0.2222222222 | U23: 0.2857142857 | V23: 0.1851851852 | W23: 0.1944444444 | X23: 0.2037037037 | Y23: 0.2777777778 | Z23: 0.2592592593 | AA23: 0.2 | AB23: 0.1481481481 | AC23: 0.2222222222 | AD23: 0.2 | AE23: 0.2592592593 | AF23: 0.1666666667 | AG23: 0.1666666667 | AH23: 0.3472222222 | AI23: 0.1777777778 | AJ23: 0.2777777778 | AK23: 0.3703703704 | AL23: 0.2222222222 | AM23: 0.1666666667 | AN23: 0.1555555556 | AO23: 0.09259259259 | AP23: 0.1111111111 | AQ23: 0.08888888889 | AR23: 0.09027777778 | AS23: 0.08796296296 | AT23: 0.05185185185 | AU23: 0.08641975309 | AV23: 0.0462962963 | AW23: 0.07407407407 | AX23: 0.06296296296
C25: Load factor (percent of time Cooled) | F25: % | G25: =H25/100 -> 0.9 | H25: 90 | J25: =$G$25 -> 0.9 | K25: =$G$25 -> 0.9 | L25: 0.9 | M25: 0.9 | N25: 0.9 | O25: 0.9 | P25: 0.9 | Q25: 0.9 | R25: 0.9 | S25: 0.9 | T25: 0.9 | U25: 0.9 | V25: 0.9 | W25: 0.9 | X25: 0.9 | Y25: 0.9 | Z25: 0.9 | AA25: 0.9 | AB25: 0.9 | AC25: 0.9 | AD25: 0.9 | AE25: 0.9 | AF25: 0.9 | AG25: 0.9 | AH25: 0.9 | AI25: 0.9 | AJ25: 0.9 | AK25: 0.9 | AL25: 0.9 | AM25: 0.9 | AN25: 0.9 | AO25: 0.9 | AP25: 0.9 | AQ25: 0.9 | AR25: 0.9 | AS25: 0.9 | AT25: 0.9 | AU25: 0.9 | AV25: 0.9 | AW25: 0.9 | AX25: 0.9
C27: Cooling Efficiency Input from Drill Down (PUE) | F27: x | G27: =INDEX(J27:SS27,$E$2) -> 1.1 | J27: ='InputC-Electricity Drill Down'!J5 -> 1.9 | K27: ='InputC-Electricity Drill Down'!K5 -> 2.2 | L27: ='InputC-Electricity Drill Down'!L5 -> 2 | M27: ='InputC-Electricity Drill Down'!M5 -> 1.6 | N27: ='InputC-Electricity Drill Down'!N5 -> 1.5 | O27: ='InputC-Electricity Drill Down'!O5 -> 1.45 | P27: ='InputC-Electricity Drill Down'!P5 -> 1.65 | Q27: ='InputC-Electricity Drill Down'!Q5 -> 1.3 | R27: ='InputC-Electricity Drill Down'!R5 -> 1.32 | S27: ='InputC-Electricity Drill Down'!S5 -> 1.4 | T27: ='InputC-Electricity Drill Down'!T5 -> 1.18 | U27: ='InputC-Electricity Drill Down'!U5 -> 1.35 | V27: ='InputC-Electricity Drill Down'!V5 -> 1.15 | W27: ='InputC-Electricity Drill Down'!W5 -> 1.16 | X27: ='InputC-Electricity Drill Down'!X5 -> 1.25 | Y27: ='InputC-Electricity Drill Down'!Y5 -> 1.1 | Z27: ='InputC-Electricity Drill Down'!Z5 -> 1.25 | AA27: ='InputC-Electricity Drill Down'!AA5 -> 1.12 | AB27: ='InputC-Electricity Drill Down'!AB5 -> 1.07 | AC27: ='InputC-Electricity Drill Down'!AC5 -> 1.12 | AD27: ='InputC-Electricity Drill Down'!AD5 -> 1.35 | AE27: ='InputC-Electricity Drill Down'!AE5 -> 1.55 | AF27: ='InputC-Electricity Drill Down'!AF5 -> 1.18 | AG27: ='InputC-Electricity Drill Down'!AG5 -> 1.08 | AH27: ='InputC-Electricity Drill Down'!AH5 -> 1.35 | AI27: ='InputC-Electricity Drill Down'!AI5 -> 1.22 | AJ27: ='InputC-Electricity Drill Down'!AJ5 -> 1.45 | AK27: ='InputC-Electricity Drill Down'!AK5 -> 1.5 | AL27: ='InputC-Electricity Drill Down'!AL5 -> 1.35 | AM27: ='InputC-Electricity Drill Down'!AM5 -> 1.18 | AN27: ='InputC-Electricity Drill Down'!AN5 -> 1.14 | AO27: ='InputC-Electricity Drill Down'!AO5 -> 1.14 | AP27: ='InputC-Electricity Drill Down'!AP5 -> 1.3 | AQ27: ='InputC-Electricity Drill Down'!AQ5 -> 1.13 | AR27: ='InputC-Electricity Drill Down'!AR5 -> 1.15 | AS27: ='InputC-Electricity Drill Down'!AS5 -> 1.11 | AT27: ='InputC-Electricity Drill Down'!AT5 -> 1.12 | AU27: ='InputC-Electricity Drill Down'!AU5 -> 1.25 | AV27: ='InputC-Electricity Drill Down'!AV5 -> 1.07 | AW27: ='InputC-Electricity Drill Down'!AW5 -> 1.14 | AX27: ='InputC-Electricity Drill Down'!AX5 -> 1.1
C28: Cooling Efficiency from Losses Drill Down (PUE) | F28: x | G28: =INDEX(J28:SS28,$E$2) -> 1.1368804 | J28: ='InputC-Electricity Drill Down'!J29 -> 2.398081535 | K28: ='InputC-Electricity Drill Down'!K29 -> 3.636363636 | L28: ='InputC-Electricity Drill Down'!L29 -> 2.652519894 | M28: ='InputC-Electricity Drill Down'!M29 -> 1.814882033 | N28: ='InputC-Electricity Drill Down'!N29 -> 1.694915254 | O28: ='InputC-Electricity Drill Down'!O29 -> 1.572327044 | P28: ='InputC-Electricity Drill Down'!P29 -> 1.953125 | Q28: ='InputC-Electricity Drill Down'!Q29 -> 1.396648045 | R28: ='InputC-Electricity Drill Down'!R29 -> 1.436781609 | S28: ='InputC-Electricity Drill Down'!S29 -> 1.526717557 | T28: ='InputC-Electricity Drill Down'!T29 -> 1.23685838 | U28: ='InputC-Electricity Drill Down'!U29 -> 1.524390244 | V28: ='InputC-Electricity Drill Down'!V29 -> 1.221747098 | W28: ='InputC-Electricity Drill Down'!W29 -> 1.23685838 | X28: ='InputC-Electricity Drill Down'!X29 -> 1.337792642 | Y28: ='InputC-Electricity Drill Down'!Y29 -> 1.150086256 | Z28: ='InputC-Electricity Drill Down'!Z29 -> 1.318391562 | AA28: ='InputC-Electricity Drill Down'!AA29 -> 1.163602513 | AB28: ='InputC-Electricity Drill Down'!AB29 -> 1.099384345 | AC28: ='InputC-Electricity Drill Down'!AC29 -> 1.191185229 | AD28: ='InputC-Electricity Drill Down'!AD29 -> 1.287830006 | AE28: ='InputC-Electricity Drill Down'!AE29 -> 1.683501684 | AF28: ='InputC-Electricity Drill Down'!AF29 -> 1.207729469 | AG28: ='InputC-Electricity Drill Down'!AG29 -> 1.100715465 | AH28: ='InputC-Electricity Drill Down'!AH29 -> 1.437814522 | AI28: ='InputC-Electricity Drill Down'!AI29 -> 1.302083333 | AJ28: ='InputC-Electricity Drill Down'!AJ29 -> 1.577287066 | AK28: ='InputC-Electricity Drill Down'!AK29 -> 1.679261125 | AL28: ='InputC-Electricity Drill Down'!AL29 -> 1.455604076 | AM28: ='InputC-Electricity Drill Down'!AM29 -> 1.269035533 | AN28: ='InputC-Electricity Drill Down'!AN29 -> 1.207437817 | AO28: ='InputC-Electricity Drill Down'!AO29 -> 1.191611058 | AP28: ='InputC-Electricity Drill Down'!AP29 -> 1.413427562 | AQ28: ='InputC-Electricity Drill Down'!AQ29 -> 1.177440245 | AR28: ='InputC-Electricity Drill Down'!AR29 -> 1.21344497 | AS28: ='InputC-Electricity Drill Down'!AS29 -> 1.156871819 | AT28: ='InputC-Electricity Drill Down'!AT29 -> 1.149954002 | AU28: ='InputC-Electricity Drill Down'!AU29 -> 1.336005344 | AV28: ='InputC-Electricity Drill Down'!AV29 -> 1.117942985 | AW28: ='InputC-Electricity Drill Down'!AW29 -> 1.177301625 | AX28: ='InputC-Electricity Drill Down'!AX29 -> 1.1368804
C30: Average Ambient Temperature | F30: Degrees C | G30: 25 | J30: =$G$30 -> 25 | K30: =$G$30 -> 25 | L30: 25 | M30: 25 | N30: 25 | O30: 25 | P30: 25 | Q30: 25 | R30: 25 | S30: 25 | T30: 25 | U30: 25 | V30: 25 | W30: 25 | X30: 25 | Y30: 25 | Z30: 25 | AA30: 25 | AB30: 25 | AC30: 25 | AD30: 25 | AE30: 25 | AF30: 25 | AG30: 25 | AH30: 25 | AI30: 25 | AJ30: 25 | AK30: 25 | AL30: 25 | AM30: 25 | AN30: 25 | AO30: 25 | AP30: 25 | AQ30: 25 | AR30: 25 | AS30: 25 | AT30: 25 | AU30: 25 | AV30: 25 | AW30: 25 | AX30: 25
C31: PUE with Temperature Adjustment Drill Down | F31: x | G31: =INDEX(J31:SS31,$E$2) -> 1.0775 | J31: ='InputC-Electricity Drill Down'!J44 -> 1.7625 | K31: ='InputC-Electricity Drill Down'!K44 -> 2.05 | L31: ='InputC-Electricity Drill Down'!L44 -> 1.9375 | M31: ='InputC-Electricity Drill Down'!M44 -> 1.5675 | N31: ='InputC-Electricity Drill Down'!N44 -> 1.48 | O31: ='InputC-Electricity Drill Down'!O44 -> 1.39 | P31: ='InputC-Electricity Drill Down'!P44 -> 1.5925 | Q31: ='InputC-Electricity Drill Down'!Q44 -> 1.27 | R31: ='InputC-Electricity Drill Down'!R44 -> 1.3025 | S31: ='InputC-Electricity Drill Down'!S44 -> 1.37 | T31: ='InputC-Electricity Drill Down'!T44 -> 1.16 | U31: ='InputC-Electricity Drill Down'!U44 -> 1.305 | V31: ='InputC-Electricity Drill Down'!V44 -> 1.135 | W31: ='InputC-Electricity Drill Down'!W44 -> 1.145 | X31: ='InputC-Electricity Drill Down'!X44 -> 1.24 | Y31: ='InputC-Electricity Drill Down'!Y44 -> 1.08 | Z31: ='InputC-Electricity Drill Down'!Z44 -> 1.22 | AA31: ='InputC-Electricity Drill Down'!AA44 -> 1.1025 | AB31: ='InputC-Electricity Drill Down'!AB44 -> 1.055 | AC31: ='InputC-Electricity Drill Down'!AC44 -> 1.105 | AD31: ='InputC-Electricity Drill Down'!AD44 -> 1.305 | AE31: ='InputC-Electricity Drill Down'!AE44 -> 1.5 | AF31: ='InputC-Electricity Drill Down'!AF44 -> 1.17 | AG31: ='InputC-Electricity Drill Down'!AG44 -> 1.065 | AH31: ='InputC-Electricity Drill Down'!AH44 -> 1.3475 | AI31: ='InputC-Electricity Drill Down'!AI44 -> 1.205 | AJ31: ='InputC-Electricity Drill Down'!AJ44 -> 1.42 | AK31: ='InputC-Electricity Drill Down'!AK44 -> 1.485 | AL31: ='InputC-Electricity Drill Down'!AL44 -> 1.335 | AM31: ='InputC-Electricity Drill Down'!AM44 -> 1.17 | AN31: ='InputC-Electricity Drill Down'!AN44 -> 1.1225 | AO31: ='InputC-Electricity Drill Down'!AO44 -> 1.13 | AP31: ='InputC-Electricity Drill Down'!AP44 -> 1.2775 | AQ31: ='InputC-Electricity Drill Down'!AQ44 -> 1.12 | AR31: ='InputC-Electricity Drill Down'!AR44 -> 1.1425 | AS31: ='InputC-Electricity Drill Down'!AS44 -> 1.09 | AT31: ='InputC-Electricity Drill Down'!AT44 -> 1.11 | AU31: ='InputC-Electricity Drill Down'!AU44 -> 1.245 | AV31: ='InputC-Electricity Drill Down'!AV44 -> 1.0625 | AW31: ='InputC-Electricity Drill Down'!AW44 -> 1.12 | AX31: ='InputC-Electricity Drill Down'!AX44 -> 1.0775
C33: Degradation in PUE | F33: PUE p.a. | G33: =INDEX(J33:SS33,$E$2) -> 0.007 | J33: =TRANSPOSE('Efficiency for Data Centers'!EK5:EK45) -> 0.015 | K33: 0.025 | L33: 0.02 | M33: 0.012 | N33: 0.018 | O33: 0.022 | P33: 0.028 | Q33: 0.014 | R33: 0.015 | S33: 0.019 | T33: 0.01 | U33: 0.016 | V33: 0.011 | W33: 0.012 | X33: 0.015 | Y33: 0.008 | Z33: 0.013 | AA33: 0.009 | AB33: 0.007 | AC33: 0.011 | AD33: 0.012 | AE33: 0.018 | AF33: 0.006 | AG33: 0.009 | AH33: 0.014 | AI33: 0.013 | AJ33: 0.019 | AK33: 0.016 | AL33: 0.014 | AM33: 0.011 | AN33: 0.01 | AO33: 0.009 | AP33: 0.015 | AQ33: 0.011 | AR33: 0.01 | AS33: 0.008 | AT33: 0.007 | AU33: 0.012 | AV33: 0.008 | AW33: 0.009 | AX33: 0.007
C35: Capacity in MM Tokens per kW of IT | F35: Monthly MM Tokens/kW | G35: =INDEX(J35:SS35,$E$2) -> 6500 | J35: ='InputC-Electricity Drill Down'!J102 -> 0.005 | K35: ='InputC-Electricity Drill Down'!K102 -> 0.012 | L35: ='InputC-Electricity Drill Down'!L102 -> 0.006 | M35: ='InputC-Electricity Drill Down'!M102 -> 0.018 | N35: ='InputC-Electricity Drill Down'!N102 -> 0.025 | O35: ='InputC-Electricity Drill Down'!O102 -> 0.85 | P35: ='InputC-Electricity Drill Down'!P102 -> 1.95 | Q35: ='InputC-Electricity Drill Down'!Q102 -> 3.4 | R35: ='InputC-Electricity Drill Down'!R102 -> 3.85 | S35: ='InputC-Electricity Drill Down'!S102 -> 2.9 | T35: ='InputC-Electricity Drill Down'!T102 -> 12.5 | U35: ='InputC-Electricity Drill Down'!U102 -> 26 | V35: ='InputC-Electricity Drill Down'!V102 -> 42.5 | W35: ='InputC-Electricity Drill Down'!W102 -> 45 | X35: ='InputC-Electricity Drill Down'!X102 -> 34.5 | Y35: ='InputC-Electricity Drill Down'!Y102 -> 95 | Z35: ='InputC-Electricity Drill Down'!Z102 -> 185 | AA35: ='InputC-Electricity Drill Down'!AA102 -> 210 | AB35: ='InputC-Electricity Drill Down'!AB102 -> 245 | AC35: ='InputC-Electricity Drill Down'!AC102 -> 260 | AD35: ='InputC-Electricity Drill Down'!AD102 -> 150 | AE35: ='InputC-Electricity Drill Down'!AE102 -> 310 | AF35: ='InputC-Electricity Drill Down'!AF102 -> 415 | AG35: ='InputC-Electricity Drill Down'!AG102 -> 480 | AH35: ='InputC-Electricity Drill Down'!AH102 -> 365 | AI35: ='InputC-Electricity Drill Down'!AI102 -> 48 | AJ35: ='InputC-Electricity Drill Down'!AJ102 -> 92 | AK35: ='InputC-Electricity Drill Down'!AK102 -> 62 | AL35: ='InputC-Electricity Drill Down'!AL102 -> 84 | AM35: ='InputC-Electricity Drill Down'!AM102 -> 115 | AN35: ='InputC-Electricity Drill Down'!AN102 -> 138 | AO35: ='InputC-Electricity Drill Down'!AO102 -> 380 | AP35: ='InputC-Electricity Drill Down'!AP102 -> 740 | AQ35: ='InputC-Electricity Drill Down'!AQ102 -> 890 | AR35: ='InputC-Electricity Drill Down'!AR102 -> 980 | AS35: ='InputC-Electricity Drill Down'!AS102 -> 1120 | AT35: ='InputC-Electricity Drill Down'!AT102 -> 2400 | AU35: ='InputC-Electricity Drill Down'!AU102 -> 4600 | AV35: ='InputC-Electricity Drill Down'!AV102 -> 5100 | AW35: ='InputC-Electricity Drill Down'!AW102 -> 5800 | AX35: ='InputC-Electricity Drill Down'!AX102 -> 6500
C36: GPU per MW | F36: GPU/MW | G36: =INDEX(J36:SS36,$E$2) -> 540 | J36: ='InputC-Electricity Drill Down'!J104 -> 680 | K36: ='InputC-Electricity Drill Down'!K104 -> 990 | L36: ='InputC-Electricity Drill Down'!L104 -> 790 | M36: ='InputC-Electricity Drill Down'!M104 -> 890 | N36: ='InputC-Electricity Drill Down'!N104 -> 950 | O36: ='InputC-Electricity Drill Down'!O104 -> 920 | P36: ='InputC-Electricity Drill Down'!P104 -> 1100 | Q36: ='InputC-Electricity Drill Down'!Q104 -> 1190 | R36: ='InputC-Electricity Drill Down'!R104 -> 1140 | S36: ='InputC-Electricity Drill Down'!S104 -> 1060 | T36: ='InputC-Electricity Drill Down'!T104 -> 1020 | U36: ='InputC-Electricity Drill Down'!U104 -> 1210 | V36: ='InputC-Electricity Drill Down'!V104 -> 1240 | W36: ='InputC-Electricity Drill Down'!W104 -> 1230 | X36: ='InputC-Electricity Drill Down'!X104 -> 1140 | Y36: ='InputC-Electricity Drill Down'!Y104 -> 670 | Z36: ='InputC-Electricity Drill Down'!Z104 -> 760 | AA36: ='InputC-Electricity Drill Down'!AA104 -> 770 | AB36: ='InputC-Electricity Drill Down'!AB104 -> 790 | AC36: ='InputC-Electricity Drill Down'!AC104 -> 790 | AD36: ='InputC-Electricity Drill Down'!AD104 -> 830 | AE36: ='InputC-Electricity Drill Down'!AE104 -> 950 | AF36: ='InputC-Electricity Drill Down'!AF104 -> 970 | AG36: ='InputC-Electricity Drill Down'!AG104 -> 980 | AH36: ='InputC-Electricity Drill Down'!AH104 -> 930 | AI36: ='InputC-Electricity Drill Down'!AI104 -> 990 | AJ36: ='InputC-Electricity Drill Down'!AJ104 -> 1190 | AK36: ='InputC-Electricity Drill Down'!AK104 -> 1060 | AL36: ='InputC-Electricity Drill Down'!AL104 -> 1140 | AM36: ='InputC-Electricity Drill Down'!AM104 -> 1240 | AN36: ='InputC-Electricity Drill Down'!AN104 -> 1280 | AO36: ='InputC-Electricity Drill Down'!AO104 -> 620 | AP36: ='InputC-Electricity Drill Down'!AP104 -> 740 | AQ36: ='InputC-Electricity Drill Down'!AQ104 -> 760 | AR36: ='InputC-Electricity Drill Down'!AR104 -> 770 | AS36: ='InputC-Electricity Drill Down'!AS104 -> 790 | AT36: ='InputC-Electricity Drill Down'!AT104 -> 430 | AU36: ='InputC-Electricity Drill Down'!AU104 -> 510 | AV36: ='InputC-Electricity Drill Down'!AV104 -> 520 | AW36: ='InputC-Electricity Drill Down'!AW104 -> 530 | AX36: ='InputC-Electricity Drill Down'!AX104 -> 540
C38: Utilization Rate of Data Center | F38: % | G38: =H38/100 -> 0.66 | H38: 66 | J38: =$G$38 -> 0.66 | K38: =$G$38 -> 0.66 | L38: 0.66 | M38: 0.66 | N38: 0.66 | O38: 0.66 | P38: 0.66 | Q38: 0.66 | R38: 0.66 | S38: 0.66 | T38: 0.66 | U38: 0.66 | V38: 0.66 | W38: 0.66 | X38: 0.66 | Y38: 0.66 | Z38: 0.66 | AA38: 0.66 | AB38: 0.66 | AC38: 0.66 | AD38: 0.66 | AE38: 0.66 | AF38: 0.66 | AG38: 0.66 | AH38: 0.66 | AI38: 0.66 | AJ38: 0.66 | AK38: 0.66 | AL38: 0.66 | AM38: 0.66 | AN38: 0.66 | AO38: 0.66 | AP38: 0.66 | AQ38: 0.66 | AR38: 0.66 | AS38: 0.66 | AT38: 0.66 | AU38: 0.66 | AV38: 0.66 | AW38: 0.66 | AX38: 0.66
C39: Utilization Factor from Gemini | F39: % | G39: =INDEX(J39:SS39,$E$2) -> 0.7 | J39: =TRANSPOSE('Token per kW'!DH3:DH43) -> 0.6 | K39: 0.6666666667 | L39: 0.6666666667 | M39: 0.6666666667 | N39: 0.64 | O39: 0.6470588235 | P39: 0.641025641 | Q39: 0.6470588235 | R39: 0.6493506494 | S39: 0.6551724138 | T39: 0.648 | U39: 0.65 | V39: 0.6494117647 | W39: 0.6511111111 | X39: 0.6492753623 | Y39: 0.6505263158 | Z39: 0.6502702703 | AA39: 0.65 | AB39: 0.6497959184 | AC39: 0.65 | AD39: 0.7 | AE39: 0.7 | AF39: 0.6987951807 | AG39: 0.7 | AH39: 0.698630137 | AI39: 0.65 | AJ39: 0.65 | AK39: 0.65 | AL39: 0.65 | AM39: 0.6504347826 | AN39: 0.65 | AO39: 0.7 | AP39: 0.7 | AQ39: 0.7 | AR39: 0.7 | AS39: 0.7 | AT39: 0.7 | AU39: 0.7 | AV39: 0.7 | AW39: 0.7 | AX39: 0.7
C40: Utilization Code for Detail in InputS | F40: Code | G40: 1 | J40: =$G$40 -> 1 | K40: =$G$40 -> 1 | L40: 1 | M40: 1 | N40: 1 | O40: 1 | P40: 1 | Q40: 1 | R40: 1 | S40: 1 | T40: 1 | U40: 1 | V40: 1 | W40: 1 | X40: 1 | Y40: 1 | Z40: 1 | AA40: 1 | AB40: 1 | AC40: 1 | AD40: 1 | AE40: 1 | AF40: 1 | AG40: 1 | AH40: 1 | AI40: 1 | AJ40: 1 | AK40: 1 | AL40: 1 | AM40: 1 | AN40: 1 | AO40: 1 | AP40: 1 | AQ40: 1 | AR40: 1 | AS40: 1 | AT40: 1 | AU40: 1 | AV40: 1 | AW40: 1 | AX40: 1
C42: Water Usage | F42: liters/kWh | G42: =INDEX(J42:SS42,$E$2) -> 0.08 | J42: =TRANSPOSE('Efficiency for Data Centers'!$ED$5:$ED$45) -> 2.5 | K42: 3 | L42: 2.2 | M42: 1.8 | N42: 2.6 | O42: 1.6 | P42: 2.2 | Q42: 0.8 | R42: 0.9 | S42: 1.4 | T42: 0.5 | U42: 1.5 | V42: 0.4 | W42: 0.45 | X42: 0.8 | Y42: 0.15 | Z42: 1.2 | AA42: 0 | AB42: 0.05 | AC42: 0.3 | AD42: 0.7 | AE42: 1.4 | AF42: 0.1 | AG42: 0.04 | AH42: 0 | AI42: 0.8 | AJ42: 1.8 | AK42: 2 | AL42: 1.3 | AM42: 0.6 | AN42: 0.4 | AO42: 0.15 | AP42: 1.1 | AQ42: 0.1 | AR42: 0.3 | AS42: 0.1 | AT42: 0.1 | AU42: 0.8 | AV42: 0 | AW42: 0.2 | AX42: 0.08
B44: Capital Expenditures
C46: IT Equipment | F46: USD/KW IT | G46: =INDEX(J46:SS46,$E$2) -> 370000 | J46: ='InputC-Electricity Drill Down'!J51 -> 3500 | K46: ='InputC-Electricity Drill Down'!K51 -> 2500 | L46: ='InputC-Electricity Drill Down'!L51 -> 2700 | M46: ='InputC-Electricity Drill Down'!M51 -> 3000 | N46: ='InputC-Electricity Drill Down'!N51 -> 3200 | O46: ='InputC-Electricity Drill Down'!O51 -> 18000 | P46: ='InputC-Electricity Drill Down'!P51 -> 12000 | Q46: ='InputC-Electricity Drill Down'!Q51 -> 14500 | R46: ='InputC-Electricity Drill Down'!R51 -> 13500 | S46: ='InputC-Electricity Drill Down'!S51 -> 16000 | T46: ='InputC-Electricity Drill Down'!T51 -> 50000 | U46: ='InputC-Electricity Drill Down'!U51 -> 40000 | V46: ='InputC-Electricity Drill Down'!V51 -> 44000 | W46: ='InputC-Electricity Drill Down'!W51 -> 42000 | X46: ='InputC-Electricity Drill Down'!X51 -> 47000 | Y46: ='InputC-Electricity Drill Down'!Y51 -> 70000 | Z46: ='InputC-Electricity Drill Down'!Z51 -> 60000 | AA46: ='InputC-Electricity Drill Down'!AA51 -> 62000 | AB46: ='InputC-Electricity Drill Down'!AB51 -> 68000 | AC46: ='InputC-Electricity Drill Down'!AC51 -> 69500 | AD46: ='InputC-Electricity Drill Down'!AD51 -> 40000 | AE46: ='InputC-Electricity Drill Down'!AE51 -> 30000 | AF46: ='InputC-Electricity Drill Down'!AF51 -> 33000 | AG46: ='InputC-Electricity Drill Down'!AG51 -> 38500 | AH46: ='InputC-Electricity Drill Down'!AH51 -> 31500 | AI46: ='InputC-Electricity Drill Down'!AI51 -> 41000 | AJ46: ='InputC-Electricity Drill Down'!AJ51 -> 35000 | AK46: ='InputC-Electricity Drill Down'!AK51 -> 36500 | AL46: ='InputC-Electricity Drill Down'!AL51 -> 38000 | AM46: ='InputC-Electricity Drill Down'!AM51 -> 39000 | AN46: ='InputC-Electricity Drill Down'!AN51 -> 40500 | AO46: ='InputC-Electricity Drill Down'!AO51 -> 95000 | AP46: ='InputC-Electricity Drill Down'!AP51 -> 85000 | AQ46: ='InputC-Electricity Drill Down'!AQ51 -> 88000 | AR46: ='InputC-Electricity Drill Down'!AR51 -> 90000 | AS46: ='InputC-Electricity Drill Down'!AS51 -> 93500 | AT46: ='InputC-Electricity Drill Down'!AT51 -> 380000 | AU46: ='InputC-Electricity Drill Down'!AU51 -> 310000 | AV46: ='InputC-Electricity Drill Down'!AV51 -> 330000 | AW46: ='InputC-Electricity Drill Down'!AW51 -> 345000 | AX46: ='InputC-Electricity Drill Down'!AX51 -> 370000
C48: Cost of Electrical Equipment and Mechanical for Cooling | F48: USD/KW IT | G48: =INDEX(J48:SS48,$E$2) -> 132900 | J48: ='InputC-Electricity Drill Down'!J53 -> 7800 | K48: ='InputC-Electricity Drill Down'!K53 -> 6000 | L48: ='InputC-Electricity Drill Down'!L53 -> 6100 | M48: ='InputC-Electricity Drill Down'!M53 -> 6750 | N48: ='InputC-Electricity Drill Down'!N53 -> 7400 | O48: ='InputC-Electricity Drill Down'!O53 -> 12600 | P48: ='InputC-Electricity Drill Down'!P53 -> 8700 | Q48: ='InputC-Electricity Drill Down'!Q53 -> 11000 | R48: ='InputC-Electricity Drill Down'!R53 -> 9550 | S48: ='InputC-Electricity Drill Down'!S53 -> 11900 | T48: ='InputC-Electricity Drill Down'!T53 -> 22300 | U48: ='InputC-Electricity Drill Down'!U53 -> 13300 | V48: ='InputC-Electricity Drill Down'!V53 -> 17700 | W48: ='InputC-Electricity Drill Down'!W53 -> 15200 | X48: ='InputC-Electricity Drill Down'!X53 -> 20100 | Y48: ='InputC-Electricity Drill Down'!Y53 -> 51800 | Z48: ='InputC-Electricity Drill Down'!Z53 -> 42900 | AA48: ='InputC-Electricity Drill Down'!AA53 -> 44800 | AB48: ='InputC-Electricity Drill Down'!AB53 -> 49600 | AC48: ='InputC-Electricity Drill Down'!AC53 -> 51800 | AD48: ='InputC-Electricity Drill Down'!AD53 -> 15500 | AE48: ='InputC-Electricity Drill Down'!AE53 -> 10600 | AF48: ='InputC-Electricity Drill Down'!AF53 -> 12500 | AG48: ='InputC-Electricity Drill Down'!AG53 -> 15900 | AH48: ='InputC-Electricity Drill Down'!AH53 -> 11600 | AI48: ='InputC-Electricity Drill Down'!AI53 -> 21700 | AJ48: ='InputC-Electricity Drill Down'!AJ53 -> 18500 | AK48: ='InputC-Electricity Drill Down'!AK53 -> 19400 | AL48: ='InputC-Electricity Drill Down'!AL53 -> 20200 | AM48: ='InputC-Electricity Drill Down'!AM53 -> 20900 | AN48: ='InputC-Electricity Drill Down'!AN53 -> 22100 | AO48: ='InputC-Electricity Drill Down'!AO53 -> 57400 | AP48: ='InputC-Electricity Drill Down'!AP53 -> 48300 | AQ48: ='InputC-Electricity Drill Down'!AQ53 -> 51700 | AR48: ='InputC-Electricity Drill Down'!AR53 -> 53200 | AS48: ='InputC-Electricity Drill Down'!AS53 -> 56100 | AT48: ='InputC-Electricity Drill Down'!AT53 -> 137200 | AU48: ='InputC-Electricity Drill Down'!AU53 -> 113000 | AV48: ='InputC-Electricity Drill Down'!AV53 -> 118000 | AW48: ='InputC-Electricity Drill Down'!AW53 -> 123000 | AX48: ='InputC-Electricity Drill Down'!AX53 -> 132900
C49: Cost of Mechanical Equipment for Removing Heat | F49: USD/KW IT | G49: =INDEX(J49:SS49,$E$2) -> 0 | J49: =J52-J50-J48-J46 -> 0 | K49: =K52-K50-K48-K46 -> 0 | L49: 0 | M49: 0 | N49: 0 | O49: 0 | P49: 0 | Q49: 0 | R49: 0 | S49: 0 | T49: 0 | U49: 0 | V49: 50 | W49: 0 | X49: 0 | Y49: 0 | Z49: 0 | AA49: 0 | AB49: 0 | AC49: 0 | AD49: 0 | AE49: 0 | AF49: 0 | AG49: 0 | AH49: 0 | AI49: 0 | AJ49: 0 | AK49: 0 | AL49: 0 | AM49: 0 | AN49: 0 | AO49: 0 | AP49: 0 | AQ49: 0 | AR49: 0 | AS49: 0 | AT49: 0 | AU49: 0 | AV49: 0 | AW49: 0 | AX49: 0
C50: Cost of Building and Other | F50: USD/KW IT | G50: =INDEX(J50:SS50,$E$2) -> 2100 | J50: ='InputC-Electricity Drill Down'!J48 -> 2200 | K50: ='InputC-Electricity Drill Down'!K48 -> 1000 | L50: ='InputC-Electricity Drill Down'!L48 -> 1400 | M50: ='InputC-Electricity Drill Down'!M48 -> 1450 | N50: ='InputC-Electricity Drill Down'!N48 -> 1600 | O50: ='InputC-Electricity Drill Down'!O48 -> 2400 | P50: ='InputC-Electricity Drill Down'!P48 -> 1300 | Q50: ='InputC-Electricity Drill Down'!Q48 -> 1500 | R50: ='InputC-Electricity Drill Down'!R48 -> 1450 | S50: ='InputC-Electricity Drill Down'!S48 -> 1600 | T50: ='InputC-Electricity Drill Down'!T48 -> 2700 | U50: ='InputC-Electricity Drill Down'!U48 -> 1700 | V50: ='InputC-Electricity Drill Down'!V48 -> 1800 | W50: ='InputC-Electricity Drill Down'!W48 -> 1800 | X50: ='InputC-Electricity Drill Down'!X48 -> 1900 | Y50: ='InputC-Electricity Drill Down'!Y48 -> 3200 | Z50: ='InputC-Electricity Drill Down'!Z48 -> 2100 | AA50: ='InputC-Electricity Drill Down'!AA48 -> 2200 | AB50: ='InputC-Electricity Drill Down'!AB48 -> 2400 | AC50: ='InputC-Electricity Drill Down'!AC48 -> 2200 | AD50: ='InputC-Electricity Drill Down'!AD48 -> 2500 | AE50: ='InputC-Electricity Drill Down'!AE48 -> 1400 | AF50: ='InputC-Electricity Drill Down'!AF48 -> 1500 | AG50: ='InputC-Electricity Drill Down'!AG48 -> 1600 | AH50: ='InputC-Electricity Drill Down'!AH48 -> 1400 | AI50: ='InputC-Electricity Drill Down'!AI48 -> 2300 | AJ50: ='InputC-Electricity Drill Down'!AJ48 -> 1500 | AK50: ='InputC-Electricity Drill Down'!AK48 -> 1600 | AL50: ='InputC-Electricity Drill Down'!AL48 -> 1600 | AM50: ='InputC-Electricity Drill Down'!AM48 -> 1600 | AN50: ='InputC-Electricity Drill Down'!AN48 -> 1700 | AO50: ='InputC-Electricity Drill Down'!AO48 -> 2600 | AP50: ='InputC-Electricity Drill Down'!AP48 -> 1700 | AQ50: ='InputC-Electricity Drill Down'!AQ48 -> 1800 | AR50: ='InputC-Electricity Drill Down'!AR48 -> 1800 | AS50: ='InputC-Electricity Drill Down'!AS48 -> 1900 | AT50: ='InputC-Electricity Drill Down'!AT48 -> 2800 | AU50: ='InputC-Electricity Drill Down'!AU48 -> 2000 | AV50: ='InputC-Electricity Drill Down'!AV48 -> 2000 | AW50: ='InputC-Electricity Drill Down'!AW48 -> 2000 | AX50: ='InputC-Electricity Drill Down'!AX48 -> 2100
C51: Total Cost | F51: USD/KW IT | G51: =INDEX(J51:SS51,$E$2) -> 505000 | J51: =SUM(J46:J50) -> 13500 | K51: =SUM(K46:K50) -> 9500 | L51: 10200 | M51: 11200 | N51: 12200 | O51: 33000 | P51: 22000 | Q51: 27000 | R51: 24500 | S51: 29500 | T51: 75000 | U51: 55000 | V51: 63550 | W51: 59000 | X51: 69000 | Y51: 125000 | Z51: 105000 | AA51: 109000 | AB51: 120000 | AC51: 123500 | AD51: 58000 | AE51: 42000 | AF51: 47000 | AG51: 56000 | AH51: 44500 | AI51: 65000 | AJ51: 55000 | AK51: 57500 | AL51: 59800 | AM51: 61500 | AN51: 64300 | AO51: 155000 | AP51: 135000 | AQ51: 141500 | AR51: 145000 | AS51: 151500 | AT51: 520000 | AU51: 425000 | AV51: 450000 | AW51: 470000 | AX51: 505000
C52: Total Capital Expenditure | F52: USD/KW IT | J52: ='InputC-Electricity Drill Down'!J50 -> 13500 | K52: ='InputC-Electricity Drill Down'!K50 -> 9500 | L52: ='InputC-Electricity Drill Down'!L50 -> 10200 | M52: ='InputC-Electricity Drill Down'!M50 -> 11200 | N52: ='InputC-Electricity Drill Down'!N50 -> 12200 | O52: ='InputC-Electricity Drill Down'!O50 -> 33000 | P52: ='InputC-Electricity Drill Down'!P50 -> 22000 | Q52: ='InputC-Electricity Drill Down'!Q50 -> 27000 | R52: ='InputC-Electricity Drill Down'!R50 -> 24500 | S52: ='InputC-Electricity Drill Down'!S50 -> 29500 | T52: ='InputC-Electricity Drill Down'!T50 -> 75000 | U52: ='InputC-Electricity Drill Down'!U50 -> 55000 | V52: ='InputC-Electricity Drill Down'!V50 -> 63550 | W52: ='InputC-Electricity Drill Down'!W50 -> 59000 | X52: ='InputC-Electricity Drill Down'!X50 -> 69000 | Y52: ='InputC-Electricity Drill Down'!Y50 -> 125000 | Z52: ='InputC-Electricity Drill Down'!Z50 -> 105000 | AA52: ='InputC-Electricity Drill Down'!AA50 -> 109000 | AB52: ='InputC-Electricity Drill Down'!AB50 -> 120000 | AC52: ='InputC-Electricity Drill Down'!AC50 -> 123500 | AD52: ='InputC-Electricity Drill Down'!AD50 -> 58000 | AE52: ='InputC-Electricity Drill Down'!AE50 -> 42000 | AF52: ='InputC-Electricity Drill Down'!AF50 -> 47000 | AG52: ='InputC-Electricity Drill Down'!AG50 -> 56000 | AH52: ='InputC-Electricity Drill Down'!AH50 -> 44500 | AI52: ='InputC-Electricity Drill Down'!AI50 -> 65000 | AJ52: ='InputC-Electricity Drill Down'!AJ50 -> 55000 | AK52: ='InputC-Electricity Drill Down'!AK50 -> 57500 | AL52: ='InputC-Electricity Drill Down'!AL50 -> 59800 | AM52: ='InputC-Electricity Drill Down'!AM50 -> 61500 | AN52: ='InputC-Electricity Drill Down'!AN50 -> 64300 | AO52: ='InputC-Electricity Drill Down'!AO50 -> 155000 | AP52: ='InputC-Electricity Drill Down'!AP50 -> 135000 | AQ52: ='InputC-Electricity Drill Down'!AQ50 -> 141500 | AR52: ='InputC-Electricity Drill Down'!AR50 -> 145000 | AS52: ='InputC-Electricity Drill Down'!AS50 -> 151500 | AT52: ='InputC-Electricity Drill Down'!AT50 -> 520000 | AU52: ='InputC-Electricity Drill Down'!AU50 -> 425000 | AV52: ='InputC-Electricity Drill Down'!AV50 -> 450000 | AW52: ='InputC-Electricity Drill Down'!AW50 -> 470000 | AX52: ='InputC-Electricity Drill Down'!AX50 -> 505000
C54: Months until Replace IT Equipement | F54: Months | G54: =INDEX(J54:SS54,$E$2) -> 24 | J54: =TRANSPOSE('Capital Expenditures'!IZ4:IZ44) -> 60 | K54: 36 | L54: 48 | M54: 48 | N54: 60 | O54: 36 | P54: 24 | Q54: 42 | R54: 36 | S54: 48 | T54: 30 | U54: 24 | V54: 36 | W54: 30 | X54: 36 | Y54: 24 | Z54: 18 | AA54: 30 | AB54: 36 | AC54: 24 | AD54: 36 | AE54: 24 | AF54: 42 | AG54: 48 | AH54: 30 | AI54: 48 | AJ54: 36 | AK54: 36 | AL54: 42 | AM54: 48 | AN54: 36 | AO54: 24 | AP54: 30 | AQ54: 26 | AR54: 26 | AS54: 28 | AT54: 30 | AU54: 20 | AV54: 36 | AW54: 30 | AX54: 24
C56: Percent of Electricity Cost Replaced at IT Replace | F56: % | G56: =INDEX(J56:SS56,$E$2) -> 0.72 | J56: =TRANSPOSE('Capital Expenditures'!JC4:JC44) -> 0.12 | K56: 0.05 | L56: 0.06 | M56: 0.08 | N56: 0.1 | O56: 0.24 | P56: 0.14 | Q56: 0.18 | R56: 0.16 | S56: 0.2 | T56: 0.42 | U56: 0.28 | V56: 0.32 | W56: 0.3 | X56: 0.35 | Y56: 0.55 | Z56: 0.38 | AA56: 0.4 | AB56: 0.44 | AC56: 0.48 | AD56: 0.48 | AE56: 0.32 | AF56: 0.36 | AG56: 0.42 | AH56: 0.34 | AI56: 0.3 | AJ56: 0.18 | AK56: 0.22 | AL56: 0.25 | AM56: 0.26 | AN56: 0.28 | AO56: 0.65 | AP56: 0.45 | AQ56: 0.5 | AR56: 0.52 | AS56: 0.56 | AT56: 0.82 | AU56: 0.6 | AV56: 0.64 | AW56: 0.68 | AX56: 0.72
C57: Months of Downtime after Replacement | F57: Months
B59: Operating Cost
C61: Cost of Electricity without Inflation | F61: USD/MWH | G61: =H61 -> 180 | H61: 180 | J61: =$G$61 -> 180 | K61: =$G$61 -> 180 | L61: 180 | M61: 180 | N61: 180 | O61: 180 | P61: 180 | Q61: 180 | R61: 180 | S61: 180 | T61: 180 | U61: 180 | V61: 180 | W61: 180 | X61: 180 | Y61: 180 | Z61: 180 | AA61: 180 | AB61: 180 | AC61: 180 | AD61: 180 | AE61: 180 | AF61: 180 | AG61: 180 | AH61: 180 | AI61: 180 | AJ61: 180 | AK61: 180 | AL61: 180 | AM61: 180 | AN61: 180 | AO61: 180 | AP61: 180 | AQ61: 180 | AR61: 180 | AS61: 180 | AT61: 180 | AU61: 180 | AV61: 180 | AW61: 180 | AX61: 180
C62: Electricity Price Code Time Series | F62: Code | G62: 1 | J62: =$G$62 -> 1 | K62: =$G$62 -> 1 | L62: 1 | M62: 1 | N62: 1 | O62: 1 | P62: 1 | Q62: 1 | R62: 1 | S62: 1 | T62: 1 | U62: 1 | V62: 1 | W62: 1 | X62: 1 | Y62: 1 | Z62: 1 | AA62: 1 | AB62: 1 | AC62: 1 | AD62: 1 | AE62: 1 | AF62: 1 | AG62: 1 | AH62: 1 | AI62: 1 | AJ62: 1 | AK62: 1 | AL62: 1 | AM62: 1 | AN62: 1 | AO62: 1 | AP62: 1 | AQ62: 1 | AR62: 1 | AS62: 1 | AT62: 1 | AU62: 1 | AV62: 1 | AW62: 1 | AX62: 1
C63: Other Operating Cost without Inflation | F63: USD/kw-year | G63: =INDEX(J63:SS63,$E$2)/10 -> 122 | J63: =TRANSPOSE('Non Electricity Operating Cost'!AJ3:AJ43) -> 320 | K63: 145 | L63: 160 | M63: 185 | N63: 240 | O63: 480 | P63: 220 | Q63: 295 | R63: 310 | S63: 340 | T63: 650 | U63: 310 | V63: 415 | W63: 390 | X63: 450 | Y63: 820 | Z63: 395 | AA63: 360 | AB63: 520 | AC63: 480 | AD63: 940 | AE63: 440 | AF63: 510 | AG63: 680 | AH63: 460 | AI63: 580 | AJ63: 280 | AK63: 310 | AL63: 365 | AM63: 420 | AN63: 540 | AO63: 1150 | AP63: 520 | AQ63: 640 | AR63: 690 | AS63: 840 | AT63: 1650 | AU63: 780 | AV63: 810 | AW63: 960 | AX63: 1220
C64: Water Cost per Litre | F64: USD/Litre | G64: 0.003 | J64: =$G$64 -> 0.003 | K64: =$G$64 -> 0.003 | L64: 0.003 | M64: 0.003 | N64: 0.003 | O64: 0.003 | P64: 0.003 | Q64: 0.003 | R64: 0.003 | S64: 0.003 | T64: 0.003 | U64: 0.003 | V64: 0.003 | W64: 0.003 | X64: 0.003 | Y64: 0.003 | Z64: 0.003 | AA64: 0.003 | AB64: 0.003 | AC64: 0.003 | AD64: 0.003 | AE64: 0.003 | AF64: 0.003 | AG64: 0.003 | AH64: 0.003 | AI64: 0.003 | AJ64: 0.003 | AK64: 0.003 | AL64: 0.003 | AM64: 0.003 | AN64: 0.003 | AO64: 0.003 | AP64: 0.003 | AQ64: 0.003 | AR64: 0.003 | AS64: 0.003 | AT64: 0.003 | AU64: 0.003 | AV64: 0.003 | AW64: 0.003 | AX64: 0.003
B66: Financing Targets
C68: General Inflation Rate | F68: % p.a. | G68: 0.02 | J68: =$G$68 -> 0.02 | K68: 0.02 | L68: 0.02 | M68: 0.02 | N68: 0.02 | O68: 0.02 | P68: 0.02 | Q68: 0.02 | R68: 0.02 | S68: 0.02 | T68: 0.02 | U68: 0.02 | V68: 0.02 | W68: 0.02 | X68: 0.02 | Y68: 0.02 | Z68: 0.02 | AA68: 0.02 | AB68: 0.02 | AC68: 0.02 | AD68: 0.02 | AE68: 0.02 | AF68: 0.02 | AG68: 0.02 | AH68: 0.02 | AI68: 0.02 | AJ68: 0.02 | AK68: 0.02 | AL68: 0.02 | AM68: 0.02 | AN68: 0.02 | AO68: 0.02 | AP68: 0.02 | AQ68: 0.02 | AR68: 0.02 | AS68: 0.02 | AT68: 0.02 | AU68: 0.02 | AV68: 0.02 | AW68: 0.02 | AX68: 0.02
C69: Inflation in Electricity Price | F69: % p.a. | G69: 0.02 | J69: =$G$69 -> 0.02 | K69: =$G$69 -> 0.02 | L69: 0.02 | M69: 0.02 | N69: 0.02 | O69: 0.02 | P69: 0.02 | Q69: 0.02 | R69: 0.02 | S69: 0.02 | T69: 0.02 | U69: 0.02 | V69: 0.02 | W69: 0.02 | X69: 0.02 | Y69: 0.02 | Z69: 0.02 | AA69: 0.02 | AB69: 0.02 | AC69: 0.02 | AD69: 0.02 | AE69: 0.02 | AF69: 0.02 | AG69: 0.02 | AH69: 0.02 | AI69: 0.02 | AJ69: 0.02 | AK69: 0.02 | AL69: 0.02 | AM69: 0.02 | AN69: 0.02 | AO69: 0.02 | AP69: 0.02 | AQ69: 0.02 | AR69: 0.02 | AS69: 0.02 | AT69: 0.02 | AU69: 0.02 | AV69: 0.02 | AW69: 0.02 | AX69: 0.02
C70: Change in Cost of IT Equipment | F70: % p.a. | G70: -0.01 | J70: =$G$70 -> -0.01 | K70: =$G$70 -> -0.01 | L70: -0.01 | M70: -0.01 | N70: -0.01 | O70: -0.01 | P70: -0.01 | Q70: -0.01 | R70: -0.01 | S70: -0.01 | T70: -0.01 | U70: -0.01 | V70: -0.01 | W70: -0.01 | X70: -0.01 | Y70: -0.01 | Z70: -0.01 | AA70: -0.01 | AB70: -0.01 | AC70: -0.01 | AD70: -0.01 | AE70: -0.01 | AF70: -0.01 | AG70: -0.01 | AH70: -0.01 | AI70: -0.01 | AJ70: -0.01 | AK70: -0.01 | AL70: -0.01 | AM70: -0.01 | AN70: -0.01 | AO70: -0.01 | AP70: -0.01 | AQ70: -0.01 | AR70: -0.01 | AS70: -0.01 | AT70: -0.01 | AU70: -0.01 | AV70: -0.01 | AW70: -0.01 | AX70: -0.01
C72: Target IRR | F72: % | G72: =H72/1000 -> 0.09 | H72: 90 | J72: =$G$72 -> 0.09 | K72: =$G$72 -> 0.09 | L72: 0.09 | M72: 0.09 | N72: 0.09 | O72: 0.09 | P72: 0.09 | Q72: 0.09 | R72: 0.09 | S72: 0.09 | T72: 0.09 | U72: 0.09 | V72: 0.09 | W72: 0.09 | X72: 0.09 | Y72: 0.09 | Z72: 0.09 | AA72: 0.09 | AB72: 0.09 | AC72: 0.09 | AD72: 0.09 | AE72: 0.09 | AF72: 0.09 | AG72: 0.09 | AH72: 0.09 | AI72: 0.09 | AJ72: 0.09 | AK72: 0.09 | AL72: 0.09 | AM72: 0.09 | AN72: 0.09 | AO72: 0.09 | AP72: 0.09 | AQ72: 0.09 | AR72: 0.09 | AS72: 0.09 | AT72: 0.09 | AU72: 0.09 | AV72: 0.09 | AW72: 0.09 | AX72: 0.09
C74: CO2 Emissions per MWH | F74: Tons/MWH | G74: =INDEX(J74:SS74,$E$2) -> 0
C75: Price Applied to Emissions | F75: USD/Ton | G75: 85 | J75: =$G$75 -> 85 | K75: =$G$75 -> 85 | L75: 85 | M75: 85 | N75: 85 | O75: 85 | P75: 85 | Q75: 85 | R75: 85 | S75: 85 | T75: 85 | U75: 85 | V75: 85 | W75: 85 | X75: 85 | Y75: 85 | Z75: 85 | AA75: 85 | AB75: 85 | AC75: 85 | AD75: 85 | AE75: 85 | AF75: 85 | AG75: 85 | AH75: 85 | AI75: 85 | AJ75: 85 | AK75: 85 | AL75: 85 | AM75: 85 | AN75: 85 | AO75: 85 | AP75: 85 | AQ75: 85 | AR75: 85 | AS75: 85 | AT75: 85 | AU75: 85 | AV75: 85 | AW75: 85 | AX75: 85
C77: Detailed Data Scenarios
C78: Apply High Range PUE | F78: Flag | G78: TRUE
C79: Apply Low Range PUE | F79: Flag | G79: =NOT(G78) -> FALSE
C81: Price from Setting IRR with Goal Seek | F81: USD/MM Token | G81: =INDEX(J81:SS81,$E$2) -> 4.192449849 | I81: TCO | J81: 108153.0465 | K81: 48567.61033 | L81: 85963.16206 | M81: 25355.29177 | N81: 18354.32452 | O81: 1387.786073 | P81: 614.8449452 | Q81: 269.0321035 | R81: 248.755125 | S81: 304.5429738 | T81: 225.7083149 | U81: 108.5091455 | V81: 52.25852566 | W81: 51.07739818 | X81: 69.40268871 | Y81: 53.12401721 | Z81: 28.29973046 | AA81: 17.34228541 | AB81: 14.17795177 | AC81: 18.97453193 | AD81: 13.16034945 | AE81: 7.205586664 | AF81: 3.782151721 | AG81: 3.370619027 | AH81: 5.171767951 | AI81: 35.52939036 | AJ81: 20.72483727 | AK81: 39.40254681 | AL81: 24.19632183 | AM81: 15.60571003 | AN81: 15.47028452 | AO81: 19.30341891 | AP81: 8.434466084 | AQ81: 7.093225836 | AR81: 5.905614235 | AS81: 5.352690012 | AT81: 8.825579236 | AU81: 4.926779434 | AV81: 3.130436632 | AW81: 3.305020341 | AX81: 4.192449849
C82: Price Input from Low Cost in Each Technology | F82: USD/MM Token | G82: =INDEX(J82:SS82,$E$2) -> 4.926779434 | J82: =K81 -> 48567.61033 | K82: =J82 -> 48567.61033 | L82: =K82 -> 48567.61033 | M82: 48567.61033 | N82: 48567.61033 | O82: =P81 -> 614.8449452 | P82: =O82 -> 614.8449452 | Q82: =P82 -> 614.8449452 | R82: 614.8449452 | S82: 614.8449452 | T82: =U81 -> 108.5091455 | U82: =T82 -> 108.5091455 | V82: =U82 -> 108.5091455 | W82: 108.5091455 | X82: 108.5091455 | Y82: =Z81 -> 28.29973046 | Z82: =Y82 -> 28.29973046 | AA82: =Z82 -> 28.29973046 | AB82: 28.29973046 | AC82: 28.29973046 | AD82: =AE81 -> 7.205586664 | AE82: =AD82 -> 7.205586664 | AF82: =AE82 -> 7.205586664 | AG82: 7.205586664 | AH82: 7.205586664 | AI82: =AJ81 -> 20.72483727 | AJ82: =AI82 -> 20.72483727 | AK82: =AJ82 -> 20.72483727 | AL82: 20.72483727 | AM82: =AN81 -> 15.47028452 | AN82: =AM82 -> 15.47028452 | AO82: =AP81 -> 8.434466084 | AP82: =AO82 -> 8.434466084 | AQ82: 8.434466084 | AR82: 8.434466084 | AS82: 8.434466084 | AT82: =AU81 -> 4.926779434 | AU82: =AT82 -> 4.926779434 | AV82: =AU82 -> 4.926779434 | AW82: 4.926779434 | AX82: 4.926779434
C83: IRR from Scenario | F83: % | G83: =INDEX(J83:SS83,$E$2) -> 0.215559727 | I83: IRR Output | J83: FALSE | K83: 0.0900000006 | L83: 2.980232239e-09 | M83: 0.4021483958 | N83: 0.5358553827 | O83: 2.980232239e-09 | P83: 0.0900000006 | Q83: 0.4844479382 | R83: 0.6138531506 | S83: 0.3571908772 | T83: 2.980232239e-09 | U83: 0.0900000006 | V83: 0.4497185767 | W83: 0.4985700428 | X83: 0.2868170321 | Y83: 2.980232239e-09 | Z83: 0.0900000006 | AA83: 0.2836220086 | AB83: 0.3345432103 | AC83: 0.2658551037 | AD83: 2.980232239e-09 | AE83: 0.0900000006 | AF83: 0.405318886 | AG83: 0.4112863243 | AH83: 0.2788500249 | AI83: -0.07842144221 | AJ83: 0.0900000006 | AK83: 2.980232239e-09 | AL83: 0.01800938547 | AM83: 0.08644265831 | AN83: 0.0900000006 | AO83: 2.980232239e-09 | AP83: 0.0900000006 | AQ83: 0.1991962969 | AR83: 0.2998542607 | AS83: 0.3627407491 | AT83: 2.980232239e-09 | AU83: 0.0900000006 | AV83: 0.3442245901 | AW83: 0.3408171833 | AX83: 0.215559727
C85: Price per kW-month | F85: USD/kW-Month | G85: =INDEX(J85:SS85,$E$2) -> 18254.7251 | J85: 371.9372895 | K85: 394.2957824 | L85: 349.5219573 | M85: 309.790881 | N85: 314.5618228 | O85: 806.0011971 | P85: 808.4645968 | Q85: 620.8840975 | R85: 648.9983578 | S85: 601.4609783 | T85: 1921.402917 | U85: 1908.683159 | V85: 1505.070745 | W85: 1555.018037 | X85: 1625.26021 | Y85: 3540.59006 | Z85: 3565.454525 | AA85: 2488.398094 | AB85: 2381.261975 | AC85: 3404.385573 | AD85: 1337.733218 | AE85: 1498.793445 | AF85: 1058.395127 | AG85: 1094.573818 | AH85: 1264.520747 | AI85: 1140.529115 | AJ85: 1266.746217 | AK85: 1623.030356 | AL85: 1352.558253 | AM85: 1196.259486 | AN85: 1425.404383 | AO85: 4913.736871 | AP85: 4153.523351 | AQ85: 4214.970082 | AR85: 3857.759699 | AS85: 4009.290261 | AT85: 14212.32746 | AU85: 15106.53889 | AV85: 10659.47451 | AW85: 12798.6108 | AX85: 18254.7251
C86: Price per GPU - Month | F86: USD/GPU-Month | G86: =INDEX(J86:SS86,$E$2) -> 33805.04648 | J86: 546.9666022 | K86: 398.2785681 | L86: 442.4328574 | M86: 348.0796416 | N86: 331.1177082 | O86: 876.0882577 | P86: 734.9678153 | Q86: 521.7513424 | R86: 569.2968051 | S86: 567.4160172 | T86: 1883.72835 | U86: 1577.424098 | V86: 1213.76673 | W86: 1264.242306 | X86: 1425.666851 | Y86: 5284.462776 | Z86: 4691.387533 | AA86: 3231.685837 | AB86: 3014.255664 | AC86: 4309.348827 | AD86: 1611.726769 | AE86: 1577.677311 | AF86: 1091.128997 | AG86: 1116.912059 | AH86: 1359.699728 | AI86: 1152.049611 | AJ86: 1064.49262 | AK86: 1531.160713 | AL86: 1186.454608 | AM86: 964.7253921 | AN86: 1113.597174 | AO86: 7925.382051 | AP86: 5612.869393 | AQ86: 5546.013265 | AR86: 5010.077531 | AS86: 5075.050963 | AT86: 33051.92433 | AU86: 29620.66448 | AV86: 20498.98945 | AW86: 24148.32227 | AX86: 33805.04648
B88: Constants
D89: Months in Year | G89: 12
D90: Hours in Day | G90: 24
D91: Seconds in Minute | G91: 60
D92: Minutes in Hour | G92: 60
D93: Feet/Meters | G93: 9
D94: Number of Scenarios | G94: =MAX(J2:AX2) -> 41

Sheet InputS
B4: Period | G4: =_xlfn.SEQUENCE(,20) -> 1 | H4: 2 | I4: 3 | J4: 4 | K4: 5 | L4: 6 | M4: 7 | N4: 8 | O4: 9 | P4: 10 | Q4: 11 | R4: 12 | S4: 13 | T4: 14 | U4: 15 | V4: 16 | W4: 17 | X4: 18 | Y4: 19 | Z4: 20
C6: Year | G6: =YEAR(InputC!G6) -> 2027 | H6: =G6+1 -> 2028 | I6: =H6+1 -> 2029 | J6: 2030 | K6: 2031 | L6: 2032 | M6: 2033 | N6: 2034 | O6: 2035 | P6: 2036 | Q6: 2037 | R6: 2038 | S6: 2039 | T6: 2040 | U6: 2041 | V6: 2042 | W6: 2043 | X6: 2044 | Y6: 2045 | Z6: 2046
B8: Utilization Rate
D9: Code | F9: =InputC!G40 -> 1
D11: ="Base Case "&$B$8 -> Base Case Utilization Rate | G11: =InputC!$G$38 -> 0.66 | H11: =InputC!$G$38 -> 0.66 | I11: =InputC!$G$38 -> 0.66 | J11: =InputC!$G$38 -> 0.66 | K11: =InputC!$G$38 -> 0.66 | L11: =InputC!$G$38 -> 0.66 | M11: =InputC!$G$38 -> 0.66 | N11: =InputC!$G$38 -> 0.66 | O11: =InputC!$G$38 -> 0.66 | P11: =InputC!$G$38 -> 0.66 | Q11: =InputC!$G$38 -> 0.66 | R11: =InputC!$G$38 -> 0.66 | S11: =InputC!$G$38 -> 0.66 | T11: =InputC!$G$38 -> 0.66 | U11: =InputC!$G$38 -> 0.66 | V11: =InputC!$G$38 -> 0.66 | W11: =InputC!$G$38 -> 0.66 | X11: =InputC!$G$38 -> 0.66 | Y11: =InputC!$G$38 -> 0.66 | Z11: =InputC!$G$38 -> 0.66
D12: ="Low Case "&$B$8 -> Low Case Utilization Rate | G12: 0.7 | H12: =G12-1% -> 0.69 | I12: =H12-1% -> 0.68 | J12: 0.67 | K12: 0.66 | L12: 0.65 | M12: 0.64 | N12: 0.63 | O12: 0.62 | P12: 0.61 | Q12: 0.6 | R12: 0.59 | S12: 0.58 | T12: 0.57 | U12: 0.56 | V12: 0.55 | W12: 0.54 | X12: 0.53 | Y12: 0.52 | Z12: 0.51
D13: ="High Case "&$B$8 -> High Case Utilization Rate | G13: 0.85 | H13: 0.85 | I13: 0.85 | J13: 0.85 | K13: 0.85 | L13: 0.85 | M13: 0.85 | N13: 0.85 | O13: 0.85 | P13: 0.85 | Q13: 0.85 | R13: 0.85 | S13: 0.85 | T13: 0.85 | U13: 0.85 | V13: 0.85 | W13: 0.85 | X13: 0.85 | Y13: 0.85 | Z13: 0.85
D15: =INDEX(D11:D13,$F$9) -> Base Case Utilization Rate | G15: =INDEX(G11:G13,$F$9) -> 0.66 | H15: =INDEX(H11:H13,$F$9) -> 0.66 | I15: =INDEX(I11:I13,$F$9) -> 0.66 | J15: =INDEX(J11:J13,$F$9) -> 0.66 | K15: =INDEX(K11:K13,$F$9) -> 0.66 | L15: =INDEX(L11:L13,$F$9) -> 0.66 | M15: =INDEX(M11:M13,$F$9) -> 0.66 | N15: =INDEX(N11:N13,$F$9) -> 0.66 | O15: =INDEX(O11:O13,$F$9) -> 0.66 | P15: =INDEX(P11:P13,$F$9) -> 0.66 | Q15: =INDEX(Q11:Q13,$F$9) -> 0.66 | R15: =INDEX(R11:R13,$F$9) -> 0.66 | S15: =INDEX(S11:S13,$F$9) -> 0.66 | T15: =INDEX(T11:T13,$F$9) -> 0.66 | U15: =INDEX(U11:U13,$F$9) -> 0.66 | V15: =INDEX(V11:V13,$F$9) -> 0.66 | W15: =INDEX(W11:W13,$F$9) -> 0.66 | X15: =INDEX(X11:X13,$F$9) -> 0.66 | Y15: =INDEX(Y11:Y13,$F$9) -> 0.66 | Z15: =INDEX(Z11:Z13,$F$9) -> 0.66
B17: Electricity Price
D18: Code | F18: =InputC!G62 -> 1
D20: ="Base Case "&B17 -> Base Case Electricity Price | G20: =InputC!$G$61 -> 180 | H20: =InputC!$G$61 -> 180 | I20: =InputC!$G$61 -> 180 | J20: =InputC!$G$61 -> 180 | K20: =InputC!$G$61 -> 180 | L20: =InputC!$G$61 -> 180 | M20: =InputC!$G$61 -> 180 | N20: =InputC!$G$61 -> 180 | O20: =InputC!$G$61 -> 180 | P20: =InputC!$G$61 -> 180 | Q20: =InputC!$G$61 -> 180 | R20: =InputC!$G$61 -> 180 | S20: =InputC!$G$61 -> 180 | T20: =InputC!$G$61 -> 180 | U20: =InputC!$G$61 -> 180 | V20: =InputC!$G$61 -> 180 | W20: =InputC!$G$61 -> 180 | X20: =InputC!$G$61 -> 180 | Y20: =InputC!$G$61 -> 180 | Z20: =InputC!$G$61 -> 180
D21: ="High Case "&B17 -> High Case Electricity Price | G21: 280 | H21: =G21*1.015 -> 284.2 | I21: =H21*1.015 -> 288.463 | J21: 292.789945 | K21: 297.1817942 | L21: 301.6395211 | M21: 306.1641139 | N21: 310.7565756 | O21: 315.4179242 | P21: 320.1491931 | Q21: 324.951431 | R21: 329.8257025 | S21: 334.773088 | T21: 339.7946843 | U21: 344.8916046 | V21: 350.0649787 | W21: 355.3159533 | X21: 360.6456926 | Y21: 366.055378 | Z21: 371.5462087
D22: ="Low Case "&B17 -> Low Case Electricity Price | G22: 150 | H22: 150 | I22: 150 | J22: 150 | K22: 150 | L22: 150 | M22: 150 | N22: 150 | O22: 150 | P22: 150 | Q22: 150 | R22: 150 | S22: 150 | T22: 150 | U22: 150 | V22: 150 | W22: 150 | X22: 150 | Y22: 150 | Z22: 150
D24: =INDEX(D20:D22,$F$18) -> Base Case Electricity Price | G24: =INDEX(G20:G22,$F$18) -> 180 | H24: =INDEX(H20:H22,$F$18) -> 180 | I24: =INDEX(I20:I22,$F$18) -> 180 | J24: =INDEX(J20:J22,$F$18) -> 180 | K24: =INDEX(K20:K22,$F$18) -> 180 | L24: =INDEX(L20:L22,$F$18) -> 180 | M24: =INDEX(M20:M22,$F$18) -> 180 | N24: =INDEX(N20:N22,$F$18) -> 180 | O24: =INDEX(O20:O22,$F$18) -> 180 | P24: =INDEX(P20:P22,$F$18) -> 180 | Q24: =INDEX(Q20:Q22,$F$18) -> 180 | R24: =INDEX(R20:R22,$F$18) -> 180 | S24: =INDEX(S20:S22,$F$18) -> 180 | T24: =INDEX(T20:T22,$F$18) -> 180 | U24: =INDEX(U20:U22,$F$18) -> 180 | V24: =INDEX(V20:V22,$F$18) -> 180 | W24: =INDEX(W20:W22,$F$18) -> 180 | X24: =INDEX(X20:X22,$F$18) -> 180 | Y24: =INDEX(Y20:Y22,$F$18) -> 180 | Z24: =INDEX(Z20:Z22,$F$18) -> 180
B27: Degradation of PUE
F28: 1
D29: Code
D31: ="Base Case "&B27 -> Base Case Degradation of PUE | G31: =TRANSPOSE('Efficiency for Data Centers'!EK5:EK45) -> 0.015 | H31: 0.025 | I31: 0.02 | J31: 0.012 | K31: 0.018 | L31: 0.022 | M31: 0.028 | N31: 0.014 | O31: 0.015 | P31: 0.019 | Q31: 0.01 | R31: 0.016 | S31: 0.011 | T31: 0.012 | U31: 0.015 | V31: 0.008 | W31: 0.013 | X31: 0.009 | Y31: 0.007 | Z31: 0.011 | AA31: 0.012 | AB31: 0.018 | AC31: 0.006 | AD31: 0.009 | AE31: 0.014 | AF31: 0.013 | AG31: 0.019 | AH31: 0.016 | AI31: 0.014 | AJ31: 0.011 | AK31: 0.01 | AL31: 0.009 | AM31: 0.015 | AN31: 0.011 | AO31: 0.01 | AP31: 0.008 | AQ31: 0.007 | AR31: 0.012 | AS31: 0.008 | AT31: 0.009 | AU31: 0.007
D32: ="High Case "&B27 -> High Case Degradation of PUE | G32: =G31*1.5 -> 0.0225 | H32: =H31*1.5 -> 0.0375 | I32: 0.03 | J32: 0.018 | K32: 0.027 | L32: 0.033 | M32: 0.042 | N32: 0.021 | O32: 0.0225 | P32: 0.0285 | Q32: 0.015 | R32: 0.024 | S32: 0.0165 | T32: 0.018 | U32: 0.0225 | V32: 0.012 | W32: 0.0195 | X32: 0.0135 | Y32: 0.0105 | Z32: 0.0165 | AA32: 0.018 | AB32: 0.027 | AC32: 0.009 | AD32: 0.0135 | AE32: 0.021 | AF32: 0.0195 | AG32: 0.0285 | AH32: 0.024 | AI32: 0.021 | AJ32: 0.0165 | AK32: 0.015 | AL32: 0.0135 | AM32: 0.0225 | AN32: 0.0165 | AO32: 0.015 | AP32: 0.012 | AQ32: 0.0105 | AR32: 0.018 | AS32: 0.012 | AT32: 0.0135 | AU32: 0.0105
D33: ="Low Case "&B27 -> Low Case Degradation of PUE | G33: =G31*0.75 -> 0.01125 | H33: =H31*0.75 -> 0.01875 | I33: 0.015 | J33: 0.009 | K33: 0.0135 | L33: 0.0165 | M33: 0.021 | N33: 0.0105 | O33: 0.01125 | P33: 0.01425 | Q33: 0.0075 | R33: 0.012 | S33: 0.00825 | T33: 0.009 | U33: 0.01125 | V33: 0.006 | W33: 0.00975 | X33: 0.00675 | Y33: 0.00525 | Z33: 0.00825 | AA33: 0.009 | AB33: 0.0135 | AC33: 0.0045 | AD33: 0.00675 | AE33: 0.0105 | AF33: 0.00975 | AG33: 0.01425 | AH33: 0.012 | AI33: 0.0105 | AJ33: 0.00825 | AK33: 0.0075 | AL33: 0.00675 | AM33: 0.01125 | AN33: 0.00825 | AO33: 0.0075 | AP33: 0.006 | AQ33: 0.00525 | AR33: 0.009 | AS33: 0.006 | AT33: 0.00675 | AU33: 0.00525
D35: =INDEX(D31:D33,$F$28) -> Base Case Degradation of PUE | G35: =INDEX(G31:G33,$F$28) -> 0.015 | H35: =INDEX(H31:H33,$F$28) -> 0.025 | I35: =INDEX(I31:I33,$F$28) -> 0.02 | J35: =INDEX(J31:J33,$F$28) -> 0.012 | K35: =INDEX(K31:K33,$F$28) -> 0.018 | L35: =INDEX(L31:L33,$F$28) -> 0.022 | M35: =INDEX(M31:M33,$F$28) -> 0.028 | N35: =INDEX(N31:N33,$F$28) -> 0.014 | O35: =INDEX(O31:O33,$F$28) -> 0.015 | P35: =INDEX(P31:P33,$F$28) -> 0.019 | Q35: =INDEX(Q31:Q33,$F$28) -> 0.01 | R35: =INDEX(R31:R33,$F$28) -> 0.016 | S35: =INDEX(S31:S33,$F$28) -> 0.011 | T35: =INDEX(T31:T33,$F$28) -> 0.012 | U35: =INDEX(U31:U33,$F$28) -> 0.015 | V35: =INDEX(V31:V33,$F$28) -> 0.008 | W35: =INDEX(W31:W33,$F$28) -> 0.013 | X35: =INDEX(X31:X33,$F$28) -> 0.009 | Y35: =INDEX(Y31:Y33,$F$28) -> 0.007 | Z35: =INDEX(Z31:Z33,$F$28) -> 0.011

Sheet InputC-Electricity Drill Down
E2: Units | J2: =InputC!J3 -> Legacy Data Centers - High Cost | K2: =InputC!K3 -> Legacy Data Centers - Low Cost | L2: =InputC!L3 -> Legacy Data Centers - Computer Room Air Conditioning | M2: =InputC!M3 -> Legacy Data Centers - Hot/Cold Aisle Containment | N2: =InputC!N3 -> Legacy Data Centers - Chilled Water Central Loops | O2: =InputC!O3 -> Early AI Date Centers - High Cost | P2: =InputC!P3 -> Early AI Date Centers - Low Cost | Q2: =InputC!Q3 -> Early AI Date Centers - Single Phase Direct to Liquid Cooling | R2: =InputC!R3 -> Early AI Date Centers - Coolant Distribution Units | S2: =InputC!S3 -> Early AI Date Centers - Hybrid Air-Liquid Infrastructure | T2: =InputC!T3 -> Modern AI Factories - High Cost | U2: =InputC!U3 -> Modern AI Factories - Low Cost | V2: =InputC!V3 -> Modern AI Factories - Single Phase Direct-to-Chip Liquid Cooling | W2: =InputC!W3 -> Modern AI Factories - Coolant Distribution Units (CDUs) | X2: =InputC!X3 -> Modern AI Factories - Hybrid Air-Liquid Infrastructure | Y2: =InputC!Y3 -> Next-Gen Superclusters - High Cost | Z2: =InputC!Z3 -> Next-Gen Superclusters - Low Cost | AA2: =InputC!AA3 -> Next-Gen Superclusters - Chiller-Less Dry Cooling | AB2: =InputC!AB3 -> Next-Gen Superclusters - High -Impedance Dielectric Coolants | AC2: =InputC!AC3 -> Next-Gen Superclusters - AI-Driven Grid Balance Cooling | AD2: =InputC!AD3 -> Specialized Inference Farms - High Cost | AE2: =InputC!AE3 -> Specialized Inference Farms - Low Cost | AF2: =InputC!AF3 -> Specialized Inference Farms - Chassis-Level Immersion Cooling | AG2: =InputC!AG3 -> Specialized Inference Farms - Open-Tank-Phase Immersion | AH2: =InputC!AH3 -> Specialized Inference Farms - Liquid-to-Air (L2A) Sidecars | AI2: =InputC!AI3 -> NVIDIA Hopper (H200) - High Cost | AJ2: =InputC!AJ3 -> NVIDIA Hopper (H200) - Low Cost | AK2: =InputC!AK3 -> NVIDIA Hopper (H200) - Hyrid Air | AL2: =InputC!AL3 -> NVIDIA Hopper (H200) - Fluid-Assisted | AM2: =InputC!AM3 -> NVIDIA Hopper (H200) - Single Phase Direct-to-Chip Liquid Cooling | AN2: =InputC!AN3 -> NVIDIA Hopper (H200) - Double Phase Direct-to-Chip Liquid Cooling | AO2: =InputC!AO3 -> NVIDIA Blackwell (GB300 / B300) - High Cost | AP2: =InputC!AP3 -> NVIDIA Blackwell (GB300 / B300) - Low Cost | AQ2: =InputC!AQ3 -> NVIDIA Blackwell (GB300 / B300) - 90% Direct-to-Chip Liquid | AR2: =InputC!AR3 -> NVIDIA Blackwell (GB300 / B300) - Single Phase Direct-to-Chip Liquid Cooling | AS2: =InputC!AS3 -> NVIDIA Blackwell (GB300 / B300) - Double Phase Direct-to-Chip Liquid Cooling | AT2: =InputC!AT3 -> NVIDIA Vera Rubin NVL72 - High Cost | AU2: =InputC!AU3 -> NVIDIA Vera Rubin NVL72 - Low Cost | AV2: =InputC!AV3 -> NVIDIA Vera Rubin NVL72 - 45 C Warm-Water Closed-Loop Liquid | AW2: =InputC!AW3 -> NVIDIA Vera Rubin NVL72 - Single Phase Direct-to-Chip Liquid Cooling | AX2: =InputC!AX3 -> NVIDIA Vera Rubin NVL72 - Double Phase Direct-to-Chip Liquid Cooling | AY2: =InputC!AY3 -> NVIDA Vera Alternative Scenario (Full Description Copied from ___) | AZ2: =InputC!AZ3 -> NVIDA Blackwell Alternative Scenario (Full Description Copied from ___) | BA2: =InputC!BA3 -> NVIDA Blackwell Alternative Scenario (Full Description Copied from ___) | BB2: =InputC!BB3 -> NVIDA Hopper Added Scenario (Full Description Copied from ___) | BC2: =InputC!BC3 -> Added Scenario (Full Description Copied from ___)
B4: PUE Drill Down
C5: High PUE Range from Gemini | E5: x | J5: =TRANSPOSE('Efficiency for Data Centers'!DY5:DY45) -> 1.9 | K5: 2.2 | L5: 2 | M5: 1.6 | N5: 1.5 | O5: 1.45 | P5: 1.65 | Q5: 1.3 | R5: 1.32 | S5: 1.4 | T5: 1.18 | U5: 1.35 | V5: 1.15 | W5: 1.16 | X5: 1.25 | Y5: 1.1 | Z5: 1.25 | AA5: 1.12 | AB5: 1.07 | AC5: 1.12 | AD5: 1.35 | AE5: 1.55 | AF5: 1.18 | AG5: 1.08 | AH5: 1.35 | AI5: 1.22 | AJ5: 1.45 | AK5: 1.5 | AL5: 1.35 | AM5: 1.18 | AN5: 1.14 | AO5: 1.14 | AP5: 1.3 | AQ5: 1.13 | AR5: 1.15 | AS5: 1.11 | AT5: 1.12 | AU5: 1.25 | AV5: 1.07 | AW5: 1.14 | AX5: 1.1
C6: Low PUE Range from Gemini | E6: x | J6: =TRANSPOSE('Efficiency for Data Centers'!DZ5:DZ45) -> 1.6 | K6: 1.8 | L6: 1.7 | M6: 1.4 | N6: 1.35 | O6: 1.3 | P6: 1.45 | Q6: 1.2 | R6: 1.22 | S6: 1.28 | T6: 1.12 | U6: 1.22 | V6: 1.1 | W6: 1.11 | X6: 1.18 | Y6: 1.05 | Z6: 1.15 | AA6: 1.06 | AB6: 1.03 | AC6: 1.07 | AD6: 1.2 | AE6: 1.35 | AF6: 1.12 | AG6: 1.04 | AH6: 1.25 | AI6: 1.15 | AJ6: 1.3 | AK6: 1.35 | AL6: 1.25 | AM6: 1.12 | AN6: 1.08 | AO6: 1.1 | AP6: 1.2 | AQ6: 1.09 | AR6: 1.1 | AS6: 1.05 | AT6: 1.08 | AU6: 1.18 | AV6: 1.04 | AW6: 1.09 | AX6: 1.05
C8: Implied Efficiency - High PUE | E8: % | J8: =1/J5 -> 0.5263157895 | K8: =1/K5 -> 0.4545454545 | L8: 0.5 | M8: 0.625 | N8: 0.6666666667 | O8: 0.6896551724 | P8: 0.6060606061 | Q8: 0.7692307692 | R8: 0.7575757576 | S8: 0.7142857143 | T8: 0.8474576271 | U8: 0.7407407407 | V8: 0.8695652174 | W8: 0.8620689655 | X8: 0.8 | Y8: 0.9090909091 | Z8: 0.8 | AA8: 0.8928571429 | AB8: 0.9345794393 | AC8: 0.8928571429 | AD8: 0.7407407407 | AE8: 0.6451612903 | AF8: 0.8474576271 | AG8: 0.9259259259 | AH8: 0.7407407407 | AI8: 0.8196721311 | AJ8: 0.6896551724 | AK8: 0.6666666667 | AL8: 0.7407407407 | AM8: 0.8474576271 | AN8: 0.8771929825 | AO8: 0.8771929825 | AP8: 0.7692307692 | AQ8: 0.8849557522 | AR8: 0.8695652174 | AS8: 0.9009009009 | AT8: 0.8928571429 | AU8: 0.8 | AV8: 0.9345794393 | AW8: 0.8771929825 | AX8: 0.9090909091
C9: Implied Efficiency - Low PUE | E9: % | J9: =1/J6 -> 0.625 | K9: 0.5555555556 | L9: 0.5882352941 | M9: 0.7142857143 | N9: 0.7407407407 | O9: 0.7692307692 | P9: 0.6896551724 | Q9: 0.8333333333 | R9: 0.8196721311 | S9: 0.78125 | T9: 0.8928571429 | U9: 0.8196721311 | V9: 0.9090909091 | W9: 0.9009009009 | X9: 0.8474576271 | Y9: 0.9523809524 | Z9: 0.8695652174 | AA9: 0.9433962264 | AB9: 0.9708737864 | AC9: 0.9345794393 | AD9: 0.8333333333 | AE9: 0.7407407407 | AF9: 0.8928571429 | AG9: 0.9615384615 | AH9: 0.8 | AI9: 0.8695652174 | AJ9: 0.7692307692 | AK9: 0.7407407407 | AL9: 0.8 | AM9: 0.8928571429 | AN9: 0.9259259259 | AO9: 0.9090909091 | AP9: 0.8333333333 | AQ9: 0.9174311927 | AR9: 0.9090909091 | AS9: 0.9523809524 | AT9: 0.9259259259 | AU9: 0.8474576271 | AV9: 0.9615384615 | AW9: 0.9174311927 | AX9: 0.9523809524
C11: Applied PUE (True is High) | E11: =InputC!G78 -> TRUE | J11: =IF($E$11,J5,J6) -> 1.9 | K11: =IF($E$11,K5,K6) -> 2.2 | L11: 2 | M11: 1.6 | N11: 1.5 | O11: 1.45 | P11: 1.65 | Q11: 1.3 | R11: 1.32 | S11: 1.4 | T11: 1.18 | U11: 1.35 | V11: 1.15 | W11: 1.16 | X11: 1.25 | Y11: 1.1 | Z11: 1.25 | AA11: 1.12 | AB11: 1.07 | AC11: 1.12 | AD11: 1.35 | AE11: 1.55 | AF11: 1.18 | AG11: 1.08 | AH11: 1.35 | AI11: 1.22 | AJ11: 1.45 | AK11: 1.5 | AL11: 1.35 | AM11: 1.18 | AN11: 1.14 | AO11: 1.14 | AP11: 1.3 | AQ11: 1.13 | AR11: 1.15 | AS11: 1.11 | AT11: 1.12 | AU11: 1.25 | AV11: 1.07 | AW11: 1.14 | AX11: 1.1
B13: PUE from Losses Efficiencty Perrcent
C14: High Range Cooling Loss from Gemini | E14: % | J14: =TRANSPOSE('Efficiency for Data Centers'!EH5:EH45) -> 0.45 | K14: 0.55 | L14: 0.48 | M14: 0.33 | N14: 0.3 | O14: 0.28 | P14: 0.36 | Q14: 0.2 | R14: 0.22 | S14: 0.25 | T14: 0.13 | U14: 0.24 | V14: 0.12 | W14: 0.13 | X14: 0.18 | Y14: 0.08 | Z14: 0.16 | AA14: 0.09 | AB14: 0.05 | AC14: 0.1 | AD14: 0.15 | AE14: 0.32 | AF14: 0.13 | AG14: 0.06 | AH14: 0.24 | AI14: 0.16 | AJ14: 0.28 | AK14: 0.3 | AL14: 0.23 | AM14: 0.14 | AN14: 0.11 | AO14: 0.11 | AP14: 0.21 | AQ14: 0.1 | AR14: 0.12 | AS14: 0.09 | AT14: 0.09 | AU14: 0.18 | AV14: 0.06 | AW14: 0.1 | AX14: 0.08
C15: Low Range Cooling Loss from Gemini | E15: % | J15: =TRANSPOSE('Efficiency for Data Centers'!EE5:EE45) -> 0.35 | K15: 0.4 | L15: 0.38 | M15: 0.25 | N15: 0.22 | O15: 0.2 | P15: 0.28 | Q15: 0.14 | R15: 0.15 | S15: 0.18 | T15: 0.09 | U15: 0.16 | V15: 0.08 | W15: 0.09 | X15: 0.13 | Y15: 0.04 | Z15: 0.11 | AA15: 0.05 | AB15: 0.02 | AC15: 0.1 | AD15: 0.15 | AE15: 0.22 | AF15: 0.09 | AG15: 0.03 | AH15: 0.18 | AI15: 0.11 | AJ15: 0.21 | AK15: 0.23 | AL15: 0.17 | AM15: 0.1 | AN15: 0.07 | AO15: 0.08 | AP15: 0.15 | AQ15: 0.07 | AR15: 0.08 | AS15: 0.04 | AT15: 0.06 | AU15: 0.13 | AV15: 0.03 | AW15: 0.07 | AX15: 0.04
C17: High Range Loss from UPS and Equipment | E17: % | J17: =TRANSPOSE('Efficiency for Data Centers'!EI5:EI45) -> 0.12 | K17: 0.16 | L17: 0.13 | M17: 0.11 | N17: 0.1 | O17: 0.08 | P17: 0.12 | Q17: 0.08 | R17: 0.08 | S17: 0.09 | T17: 0.06 | U17: 0.1 | V17: 0.06 | W17: 0.06 | X17: 0.07 | Y17: 0.05 | Z17: 0.08 | AA17: 0.05 | AB17: 0.04 | AC17: 0.06 | AD17: 0.07 | AE17: 0.08 | AF17: 0.04 | AG17: 0.03 | AH17: 0.06 | AI17: 0.07 | AJ17: 0.08 | AK17: 0.1 | AL17: 0.08 | AM17: 0.07 | AN17: 0.06 | AO17: 0.05 | AP17: 0.08 | AQ17: 0.05 | AR17: 0.055 | AS17: 0.045 | AT17: 0.04 | AU17: 0.07 | AV17: 0.045 | AW17: 0.05 | AX17: 0.04
C18: Low Range Loss from UPS and Equipment | E18: % | J18: =TRANSPOSE('Efficiency for Data Centers'!EF5:EF45) -> 0.08 | K18: 0.12 | L18: 0.09 | M18: 0.08 | N18: 0.07 | O18: 0.06 | P18: 0.09 | Q18: 0.06 | R18: 0.06 | S18: 0.07 | T18: 0.04 | U18: 0.07 | V18: 0.04 | W18: 0.04 | X18: 0.05 | Y18: 0.03 | Z18: 0.06 | AA18: 0.03 | AB18: 0.03 | AC18: 0.04 | AD18: 0.05 | AE18: 0.08 | AF18: 0.04 | AG18: 0.03 | AH18: 0.06 | AI18: 0.05 | AJ18: 0.11 | AK18: 0.07 | AL18: 0.06 | AM18: 0.05 | AN18: 0.04 | AO18: 0.035 | AP18: 0.06 | AQ18: 0.035 | AR18: 0.04 | AS18: 0.035 | AT18: 0.025 | AU18: 0.05 | AV18: 0.03 | AW18: 0.03 | AX18: 0.025
C20: High Range Loss from Lighting and Other | E20: % | J20: =TRANSPOSE('Efficiency for Data Centers'!EJ5:EJ45) -> 0.013 | K20: 0.015 | L20: 0.013 | M20: 0.009 | N20: 0.01 | O20: 0.004 | P20: 0.008 | Q20: 0.004 | R20: 0.004 | S20: 0.005 | T20: 0.0015 | U20: 0.004 | V20: 0.0015 | W20: 0.0015 | X20: 0.0025 | Y20: 0.0005 | Z20: 0.0015 | AA20: 0.0006 | AB20: 0.0004 | AC20: 0.0005 | AD20: 0.0035 | AE20: 0.006 | AF20: 0.002 | AG20: 0.0015 | AH20: 0.0045 | AI20: 0.002 | AJ20: 0.006 | AK20: 0.0045 | AL20: 0.003 | AM20: 0.002 | AN20: 0.0018 | AO20: 0.0008 | AP20: 0.0025 | AQ20: 0.0007 | AR20: 0.0009 | AS20: 0.0006 | AT20: 0.0004 | AU20: 0.0015 | AV20: 0.0005 | AW20: 0.0006 | AX20: 0.0004
C21: Low Range Loss from Lighting and Other | E21: % | J21: =TRANSPOSE('Efficiency for Data Centers'!EG5:EG45) -> 0.008 | K21: 0.01 | L21: 0.008 | M21: 0.009 | N21: 0.006 | O21: 0.002 | P21: 0.005 | Q21: 0.002 | R21: 0.002 | S21: 0.003 | T21: 0.0005 | U21: 0.002 | V21: 0.0005 | W21: 0.0005 | X21: 0.001 | Y21: 0.0001 | Z21: 0.0008 | AA21: 0.0002 | AB21: 0.0001 | AC21: 0.0002 | AD21: 0.0015 | AE21: 0.003 | AF21: 0.001 | AG21: 0.0005 | AH21: 0.002 | AI21: 0.001 | AJ21: 0.0035 | AK21: 0.0025 | AL21: 0.0015 | AM21: 0.001 | AN21: 0.0008 | AO21: 0.0003 | AP21: 0.0012 | AQ21: 0.0002 | AR21: 0.0003 | AS21: 0.0002 | AT21: 0.0001 | AU21: 0.0006 | AV21: 0.0002 | AW21: 0.0002 | AX21: 0.0001
C23: Sum of High Losses (No Compounding) | E23: % | J23: =J14+J17+J20 -> 0.583 | K23: =K14+K17+K20 -> 0.725 | L23: 0.623 | M23: 0.449 | N23: 0.41 | O23: 0.364 | P23: 0.488 | Q23: 0.284 | R23: 0.304 | S23: 0.345 | T23: 0.1915 | U23: 0.344 | V23: 0.1815 | W23: 0.1915 | X23: 0.2525 | Y23: 0.1305 | Z23: 0.2415 | AA23: 0.1406 | AB23: 0.0904 | AC23: 0.1605 | AD23: 0.2235 | AE23: 0.406 | AF23: 0.172 | AG23: 0.0915 | AH23: 0.3045 | AI23: 0.232 | AJ23: 0.366 | AK23: 0.4045 | AL23: 0.313 | AM23: 0.212 | AN23: 0.1718 | AO23: 0.1608 | AP23: 0.2925 | AQ23: 0.1507 | AR23: 0.1759 | AS23: 0.1356 | AT23: 0.1304 | AU23: 0.2515 | AV23: 0.1055 | AW23: 0.1506 | AX23: 0.1204
C24: Sum of Low Losses (No Compounding) | E24: % | J24: =J15+J18+J21 -> 0.438 | K24: =K15+K18+K21 -> 0.53 | L24: 0.478 | M24: 0.339 | N24: 0.296 | O24: 0.262 | P24: 0.375 | Q24: 0.202 | R24: 0.212 | S24: 0.253 | T24: 0.1305 | U24: 0.232 | V24: 0.1205 | W24: 0.1305 | X24: 0.181 | Y24: 0.0701 | Z24: 0.1708 | AA24: 0.0802 | AB24: 0.0501 | AC24: 0.1402 | AD24: 0.2015 | AE24: 0.303 | AF24: 0.131 | AG24: 0.0605 | AH24: 0.242 | AI24: 0.161 | AJ24: 0.3235 | AK24: 0.3025 | AL24: 0.2315 | AM24: 0.151 | AN24: 0.1108 | AO24: 0.1153 | AP24: 0.2112 | AQ24: 0.1052 | AR24: 0.1203 | AS24: 0.0752 | AT24: 0.0851 | AU24: 0.1806 | AV24: 0.0602 | AW24: 0.1002 | AX24: 0.0651
C26: PUE from High Range Loss | E26: x | J26: =1/(1-J23) -> 2.398081535 | K26: =1/(1-K23) -> 3.636363636 | L26: 2.652519894 | M26: 1.814882033 | N26: 1.694915254 | O26: 1.572327044 | P26: 1.953125 | Q26: 1.396648045 | R26: 1.436781609 | S26: 1.526717557 | T26: 1.23685838 | U26: 1.524390244 | V26: 1.221747098 | W26: 1.23685838 | X26: 1.337792642 | Y26: 1.150086256 | Z26: 1.318391562 | AA26: 1.163602513 | AB26: 1.099384345 | AC26: 1.191185229 | AD26: 1.287830006 | AE26: 1.683501684 | AF26: 1.207729469 | AG26: 1.100715465 | AH26: 1.437814522 | AI26: 1.302083333 | AJ26: 1.577287066 | AK26: 1.679261125 | AL26: 1.455604076 | AM26: 1.269035533 | AN26: 1.207437817 | AO26: 1.191611058 | AP26: 1.413427562 | AQ26: 1.177440245 | AR26: 1.21344497 | AS26: 1.156871819 | AT26: 1.149954002 | AU26: 1.336005344 | AV26: 1.117942985 | AW26: 1.177301625 | AX26: 1.1368804
C27: PUE from Low Range Loss | E27: x | J27: =1/(1-J24) -> 1.779359431 | K27: =1/(1-K24) -> 2.127659574 | L27: 1.915708812 | M27: 1.512859304 | N27: 1.420454545 | O27: 1.35501355 | P27: 1.6 | Q27: 1.253132832 | R27: 1.269035533 | S27: 1.338688086 | T27: 1.150086256 | U27: 1.302083333 | V27: 1.137009665 | W27: 1.150086256 | X27: 1.221001221 | Y27: 1.07538445 | Z27: 1.205981669 | AA27: 1.087192868 | AB27: 1.052742394 | AC27: 1.163061177 | AD27: 1.252348153 | AE27: 1.43472023 | AF27: 1.150747986 | AG27: 1.064395955 | AH27: 1.319261214 | AI27: 1.191895113 | AJ27: 1.4781966 | AK27: 1.433691756 | AL27: 1.301236174 | AM27: 1.177856302 | AN27: 1.124606388 | AO27: 1.130326664 | AP27: 1.267748479 | AQ27: 1.117568172 | AR27: 1.136751165 | AS27: 1.081314879 | AT27: 1.09301563 | AU27: 1.220405175 | AV27: 1.064056182 | AW27: 1.11135808 | AX27: 1.069633116
C29: Applied PUE from Loss Analysis | E29: Flag | F29: =E11 -> TRUE | J29: =IF($F$29,J26,J27) -> 2.398081535 | K29: 3.636363636 | L29: 2.652519894 | M29: 1.814882033 | N29: 1.694915254 | O29: 1.572327044 | P29: 1.953125 | Q29: 1.396648045 | R29: 1.436781609 | S29: 1.526717557 | T29: 1.23685838 | U29: 1.524390244 | V29: 1.221747098 | W29: 1.23685838 | X29: 1.337792642 | Y29: 1.150086256 | Z29: 1.318391562 | AA29: 1.163602513 | AB29: 1.099384345 | AC29: 1.191185229 | AD29: 1.287830006 | AE29: 1.683501684 | AF29: 1.207729469 | AG29: 1.100715465 | AH29: 1.437814522 | AI29: 1.302083333 | AJ29: 1.577287066 | AK29: 1.679261125 | AL29: 1.455604076 | AM29: 1.269035533 | AN29: 1.207437817 | AO29: 1.191611058 | AP29: 1.413427562 | AQ29: 1.177440245 | AR29: 1.21344497 | AS29: 1.156871819 | AT29: 1.149954002 | AU29: 1.336005344 | AV29: 1.117942985 | AW29: 1.177301625 | AX29: 1.1368804
B31: PUE with Temperature Adjustment
C32: PUE at | E32: x | F32: 10 | J32: =TRANSPOSE('Efficiency for Data Centers'!EA5:EA45) -> 1.5 | K32: 1.7 | L32: 1.6 | M32: 1.35 | N32: 1.28 | O32: 1.22 | P32: 1.38 | Q32: 1.15 | R32: 1.17 | S32: 1.2 | T32: 1.09 | U32: 1.18 | V32: 1.08 | W32: 1.09 | X32: 1.14 | Y32: 1.04 | Z32: 1.12 | AA32: 1.05 | AB32: 1.02 | AC32: 1.05 | AD32: 1.16 | AE32: 1.28 | AF32: 1.1 | AG32: 1.03 | AH32: 1.18 | AI32: 1.12 | AJ32: 1.24 | AK32: 1.28 | AL32: 1.2 | AM32: 1.1 | AN32: 1.07 | AO32: 1.08 | AP32: 1.16 | AQ32: 1.07 | AR32: 1.08 | AS32: 1.04 | AT32: 1.06 | AU32: 1.14 | AV32: 1.03 | AW32: 1.07 | AX32: 1.04
C33: PUE at | E33: x | F33: 20 | J33: =TRANSPOSE('Efficiency for Data Centers'!EB5:EB45) -> 1.65 | K33: 1.9 | L33: 1.8 | M33: 1.48 | N33: 1.4 | O33: 1.32 | P33: 1.5 | Q33: 1.22 | R33: 1.25 | S33: 1.3 | T33: 1.13 | U33: 1.25 | V33: 1.11 | W33: 1.12 | X33: 1.2 | Y33: 1.06 | Z33: 1.18 | AA33: 1.08 | AB33: 1.04 | AC33: 1.08 | AD33: 1.24 | AE33: 1.4 | AF33: 1.14 | AG33: 1.05 | AH33: 1.28 | AI33: 1.17 | AJ33: 1.35 | AK33: 1.4 | AL33: 1.28 | AM33: 1.14 | AN33: 1.1 | AO33: 1.11 | AP33: 1.23 | AQ33: 1.1 | AR33: 1.12 | AS33: 1.07 | AT33: 1.09 | AU33: 1.2 | AV33: 1.05 | AW33: 1.1 | AX33: 1.06
C34: PUE at | E34: x | F34: 30 | J34: =TRANSPOSE('Efficiency for Data Centers'!EC5:EC45) -> 1.95 | K34: 2.3 | L34: 2.15 | M34: 1.7 | N34: 1.6 | O34: 1.5 | P34: 1.75 | Q34: 1.35 | R34: 1.38 | S34: 1.48 | T34: 1.21 | U34: 1.4 | V34: 1.18 | W34: 1.19 | X34: 1.3 | Y34: 1.12 | Z34: 1.28 | AA34: 1.14 | AB34: 1.08 | AC34: 1.15 | AD34: 1.42 | AE34: 1.68 | AF34: 1.22 | AG34: 1.09 | AH34: 1.45 | AI34: 1.26 | AJ34: 1.52 | AK34: 1.62 | AL34: 1.42 | AM34: 1.22 | AN34: 1.16 | AO34: 1.16 | AP34: 1.35 | AQ34: 1.15 | AR34: 1.17 | AS34: 1.12 | AT34: 1.14 | AU34: 1.32 | AV34: 1.08 | AW34: 1.15 | AX34: 1.11
C36: Slope | E36: PUE Chg/Temp Chg | J36: =(J32-J33)/($F$32-$F$33) -> 0.015 | K36: 0.02 | L36: 0.02 | M36: 0.013 | N36: 0.012 | O36: 0.01 | P36: 0.012 | Q36: 0.007 | R36: 0.008 | S36: 0.01 | T36: 0.004 | U36: 0.007 | V36: 0.003 | W36: 0.003 | X36: 0.006 | Y36: 0.002 | Z36: 0.006 | AA36: 0.003 | AB36: 0.002 | AC36: 0.003 | AD36: 0.008 | AE36: 0.012 | AF36: 0.004 | AG36: 0.002 | AH36: 0.01 | AI36: 0.005 | AJ36: 0.011 | AK36: 0.012 | AL36: 0.008 | AM36: 0.004 | AN36: 0.003 | AO36: 0.003 | AP36: 0.007 | AQ36: 0.003 | AR36: 0.004 | AS36: 0.003 | AT36: 0.003 | AU36: 0.006 | AV36: 0.002 | AW36: 0.003 | AX36: 0.002
C37: Slope | E37: PUE Chg/Temp Chg | J37: =(J33-J34)/($F$33-$F$34) -> 0.03 | K37: 0.04 | L37: 0.035 | M37: 0.022 | N37: 0.02 | O37: 0.018 | P37: 0.025 | Q37: 0.013 | R37: 0.013 | S37: 0.018 | T37: 0.008 | U37: 0.015 | V37: 0.007 | W37: 0.007 | X37: 0.01 | Y37: 0.006 | Z37: 0.01 | AA37: 0.006 | AB37: 0.004 | AC37: 0.007 | AD37: 0.018 | AE37: 0.028 | AF37: 0.008 | AG37: 0.004 | AH37: 0.017 | AI37: 0.009 | AJ37: 0.017 | AK37: 0.022 | AL37: 0.014 | AM37: 0.008 | AN37: 0.006 | AO37: 0.005 | AP37: 0.012 | AQ37: 0.005 | AR37: 0.005 | AS37: 0.005 | AT37: 0.005 | AU37: 0.012 | AV37: 0.003 | AW37: 0.005 | AX37: 0.005
C39: Intercept | E39: PUE at 0 | J39: =J32-J36*$F$32 -> 1.35 | K39: 1.5 | L39: 1.4 | M39: 1.22 | N39: 1.16 | O39: 1.12 | P39: 1.26 | Q39: 1.08 | R39: 1.09 | S39: 1.1 | T39: 1.05 | U39: 1.11 | V39: 1.05 | W39: 1.06 | X39: 1.08 | Y39: 1.02 | Z39: 1.06 | AA39: 1.02 | AB39: 1 | AC39: 1.02 | AD39: 1.08 | AE39: 1.16 | AF39: 1.06 | AG39: 1.01 | AH39: 1.08 | AI39: 1.07 | AJ39: 1.13 | AK39: 1.16 | AL39: 1.12 | AM39: 1.06 | AN39: 1.04 | AO39: 1.05 | AP39: 1.09 | AQ39: 1.04 | AR39: 1.04 | AS39: 1.01 | AT39: 1.03 | AU39: 1.08 | AV39: 1.01 | AW39: 1.04 | AX39: 1.02
C40: Intercept | E40: PUE at 0 | J40: =J33-J37*$F$33 -> 1.05 | K40: 1.1 | L40: 1.1 | M40: 1.04 | N40: 1 | O40: 0.96 | P40: 1 | Q40: 0.96 | R40: 0.99 | S40: 0.94 | T40: 0.97 | U40: 0.95 | V40: 0.97 | W40: 0.98 | X40: 1 | Y40: 0.94 | Z40: 0.98 | AA40: 0.96 | AB40: 0.96 | AC40: 0.94 | AD40: 0.88 | AE40: 0.84 | AF40: 0.98 | AG40: 0.97 | AH40: 0.94 | AI40: 0.99 | AJ40: 1.01 | AK40: 0.96 | AL40: 1 | AM40: 0.98 | AN40: 0.98 | AO40: 1.01 | AP40: 0.99 | AQ40: 1 | AR40: 1.02 | AS40: 0.97 | AT40: 0.99 | AU40: 0.96 | AV40: 0.99 | AW40: 1 | AX40: 0.96
C42: PUE at Temperature Using First Slope | E42: x | F42: =InputC!G30 -> 25 | J42: =J39+J36*$F$42 -> 1.725 | K42: 2 | L42: 1.9 | M42: 1.545 | N42: 1.46 | O42: 1.37 | P42: 1.56 | Q42: 1.255 | R42: 1.29 | S42: 1.35 | T42: 1.15 | U42: 1.285 | V42: 1.125 | W42: 1.135 | X42: 1.23 | Y42: 1.07 | Z42: 1.21 | AA42: 1.095 | AB42: 1.05 | AC42: 1.095 | AD42: 1.28 | AE42: 1.46 | AF42: 1.16 | AG42: 1.06 | AH42: 1.33 | AI42: 1.195 | AJ42: 1.405 | AK42: 1.46 | AL42: 1.32 | AM42: 1.16 | AN42: 1.115 | AO42: 1.125 | AP42: 1.265 | AQ42: 1.115 | AR42: 1.14 | AS42: 1.085 | AT42: 1.105 | AU42: 1.23 | AV42: 1.06 | AW42: 1.115 | AX42: 1.07
C43: PUE at Temperature Using Second Slope | E43: x | F43: =F42 -> 25 | J43: =J40+J37*$F$43 -> 1.8 | K43: 2.1 | L43: 1.975 | M43: 1.59 | N43: 1.5 | O43: 1.41 | P43: 1.625 | Q43: 1.285 | R43: 1.315 | S43: 1.39 | T43: 1.17 | U43: 1.325 | V43: 1.145 | W43: 1.155 | X43: 1.25 | Y43: 1.09 | Z43: 1.23 | AA43: 1.11 | AB43: 1.06 | AC43: 1.115 | AD43: 1.33 | AE43: 1.54 | AF43: 1.18 | AG43: 1.07 | AH43: 1.365 | AI43: 1.215 | AJ43: 1.435 | AK43: 1.51 | AL43: 1.35 | AM43: 1.18 | AN43: 1.13 | AO43: 1.135 | AP43: 1.29 | AQ43: 1.125 | AR43: 1.145 | AS43: 1.095 | AT43: 1.115 | AU43: 1.26 | AV43: 1.065 | AW43: 1.125 | AX43: 1.085
C44: Average PUE | E44: x | J44: =AVERAGE(J42:J43) -> 1.7625 | K44: =AVERAGE(K42:K43) -> 2.05 | L44: 1.9375 | M44: 1.5675 | N44: 1.48 | O44: 1.39 | P44: 1.5925 | Q44: 1.27 | R44: 1.3025 | S44: 1.37 | T44: 1.16 | U44: 1.305 | V44: 1.135 | W44: 1.145 | X44: 1.24 | Y44: 1.08 | Z44: 1.22 | AA44: 1.1025 | AB44: 1.055 | AC44: 1.105 | AD44: 1.305 | AE44: 1.5 | AF44: 1.17 | AG44: 1.065 | AH44: 1.3475 | AI44: 1.205 | AJ44: 1.42 | AK44: 1.485 | AL44: 1.335 | AM44: 1.17 | AN44: 1.1225 | AO44: 1.13 | AP44: 1.2775 | AQ44: 1.12 | AR44: 1.1425 | AS44: 1.09 | AT44: 1.11 | AU44: 1.245 | AV44: 1.0625 | AW44: 1.12 | AX44: 1.0775
B46: Capital Expenditure Drill Down
C47: Total Capital Expenditure per kW without Building etc | E47: USD/kW | J47: =TRANSPOSE('Capital Expenditures'!HZ4:HZ44) -> 14500 | K47: 8000 | L47: 9500 | M47: 10200 | N47: 13500 | O47: 26000 | P47: 18500 | Q47: 20500 | R47: 19800 | S47: 21000 | T47: 42000 | U47: 33000 | V47: 35500 | W47: 34800 | X47: 37000 | Y47: 55000 | Z47: 44000 | AA47: 46000 | AB47: 49500 | AC47: 48000 | AD47: 28500 | AE47: 21000 | AF47: 25500 | AG47: 27000 | AH47: 23500 | AI47: 34500 | AJ47: 27000 | AK47: 28500 | AL47: 29800 | AM47: 31200 | AN47: 33500 | AO47: 53000 | AP47: 42000 | AQ47: 45500 | AR47: 46800 | AS47: 49500 | AT47: 61000 | AU47: 48500 | AV47: 51000 | AW47: 53200 | AX47: 56000
C48: General Building, office lighting, land cost per kW | E48: USD/kW | J48: =TRANSPOSE('Capital Expenditures'!IE4:IE44) -> 2200 | K48: 1000 | L48: 1400 | M48: 1450 | N48: 1600 | O48: 2400 | P48: 1300 | Q48: 1500 | R48: 1450 | S48: 1600 | T48: 2700 | U48: 1700 | V48: 1800 | W48: 1800 | X48: 1900 | Y48: 3200 | Z48: 2100 | AA48: 2200 | AB48: 2400 | AC48: 2200 | AD48: 2500 | AE48: 1400 | AF48: 1500 | AG48: 1600 | AH48: 1400 | AI48: 2300 | AJ48: 1500 | AK48: 1600 | AL48: 1600 | AM48: 1600 | AN48: 1700 | AO48: 2600 | AP48: 1700 | AQ48: 1800 | AR48: 1800 | AS48: 1900 | AT48: 2800 | AU48: 2000 | AV48: 2000 | AW48: 2000 | AX48: 2100
C50: Total Revised Expenditure per kW | E50: USD/kW | J50: =TRANSPOSE('Capital Expenditures'!HW4:HW44) -> 13500 | K50: 9500 | L50: 10200 | M50: 11200 | N50: 12200 | O50: 33000 | P50: 22000 | Q50: 27000 | R50: 24500 | S50: 29500 | T50: 75000 | U50: 55000 | V50: 63550 | W50: 59000 | X50: 69000 | Y50: 125000 | Z50: 105000 | AA50: 109000 | AB50: 120000 | AC50: 123500 | AD50: 58000 | AE50: 42000 | AF50: 47000 | AG50: 56000 | AH50: 44500 | AI50: 65000 | AJ50: 55000 | AK50: 57500 | AL50: 59800 | AM50: 61500 | AN50: 64300 | AO50: 155000 | AP50: 135000 | AQ50: 141500 | AR50: 145000 | AS50: 151500 | AT50: 520000 | AU50: 425000 | AV50: 450000 | AW50: 470000 | AX50: 505000
C51: Total Revised IT per kW | E51: USD/kW | J51: =TRANSPOSE('Capital Expenditures'!HX4:HX44) -> 3500 | K51: 2500 | L51: 2700 | M51: 3000 | N51: 3200 | O51: 18000 | P51: 12000 | Q51: 14500 | R51: 13500 | S51: 16000 | T51: 50000 | U51: 40000 | V51: 44000 | W51: 42000 | X51: 47000 | Y51: 70000 | Z51: 60000 | AA51: 62000 | AB51: 68000 | AC51: 69500 | AD51: 40000 | AE51: 30000 | AF51: 33000 | AG51: 38500 | AH51: 31500 | AI51: 41000 | AJ51: 35000 | AK51: 36500 | AL51: 38000 | AM51: 39000 | AN51: 40500 | AO51: 95000 | AP51: 85000 | AQ51: 88000 | AR51: 90000 | AS51: 93500 | AT51: 380000 | AU51: 310000 | AV51: 330000 | AW51: 345000 | AX51: 370000
C52: Other Revised Capital Expenditure per kW | E52: USD/kW | J52: =TRANSPOSE('Capital Expenditures'!HY4:HY44) -> 10000 | K52: 7000 | L52: 7500 | M52: 8200 | N52: 9000 | O52: 15000 | P52: 10000 | Q52: 12500 | R52: 11000 | S52: 13500 | T52: 25000 | U52: 15000 | V52: 19500 | W52: 17000 | X52: 22000 | Y52: 55000 | Z52: 45000 | AA52: 47000 | AB52: 52000 | AC52: 54000 | AD52: 18000 | AE52: 12000 | AF52: 14000 | AG52: 17500 | AH52: 13000 | AI52: 24000 | AJ52: 20000 | AK52: 21000 | AL52: 21800 | AM52: 22500 | AN52: 23800 | AO52: 60000 | AP52: 50000 | AQ52: 53500 | AR52: 55000 | AS52: 58000 | AT52: 140000 | AU52: 115000 | AV52: 120000 | AW52: 125000 | AX52: 135000
C53: Computed Electricity Capital Expenditure per kW | E53: USD/kW | J53: =J52-J48 -> 7800 | K53: =K52-K48 -> 6000 | L53: 6100 | M53: 6750 | N53: 7400 | O53: 12600 | P53: 8700 | Q53: 11000 | R53: 9550 | S53: 11900 | T53: 22300 | U53: 13300 | V53: 17700 | W53: 15200 | X53: 20100 | Y53: 51800 | Z53: 42900 | AA53: 44800 | AB53: 49600 | AC53: 51800 | AD53: 15500 | AE53: 10600 | AF53: 12500 | AG53: 15900 | AH53: 11600 | AI53: 21700 | AJ53: 18500 | AK53: 19400 | AL53: 20200 | AM53: 20900 | AN53: 22100 | AO53: 57400 | AP53: 48300 | AQ53: 51700 | AR53: 53200 | AS53: 56100 | AT53: 137200 | AU53: 113000 | AV53: 118000 | AW53: 123000 | AX53: 132900
C55: Total Capital Expenditure per kW - Sum | E55: USD/kW | J55: =J47+J48 -> 16700 | K55: =K47+K48 -> 9000 | L55: 10900 | M55: 11650 | N55: 15100 | O55: 28400 | P55: 19800 | Q55: 22000 | R55: 21250 | S55: 22600 | T55: 44700 | U55: 34700 | V55: 37300 | W55: 36600 | X55: 38900 | Y55: 58200 | Z55: 46100 | AA55: 48200 | AB55: 51900 | AC55: 50200 | AD55: 31000 | AE55: 22400 | AF55: 27000 | AG55: 28600 | AH55: 24900 | AI55: 36800 | AJ55: 28500 | AK55: 30100 | AL55: 31400 | AM55: 32800 | AN55: 35200 | AO55: 55600 | AP55: 43700 | AQ55: 47300 | AR55: 48600 | AS55: 51400 | AT55: 63800 | AU55: 50500 | AV55: 53000 | AW55: 55200 | AX55: 58100
C56: Applied Capital Expenditue per kW | E56: USD/kW | J56: =J55 -> 16700 | K56: =K55 -> 9000 | L56: 10900 | M56: 11650 | N56: 15100 | O56: 28400 | P56: 19800 | Q56: 22000 | R56: 21250 | S56: 22600 | T56: 44700 | U56: 34700 | V56: 37300 | W56: 36600 | X56: 38900 | Y56: 58200 | Z56: 46100 | AA56: 48200 | AB56: 51900 | AC56: 50200 | AD56: 31000 | AE56: 22400 | AF56: 27000 | AG56: 28600 | AH56: 24900 | AI56: 36800 | AJ56: 28500 | AK56: 30100 | AL56: 31400 | AM56: 32800 | AN56: 35200 | AO56: 55600 | AP56: 43700 | AQ56: 47300 | AR56: 48600 | AS56: 51400 | AT56: 63800 | AU56: 50500 | AV56: 53000 | AW56: 55200 | AX56: 58100
C58: Capital Expenditures for IT Equipment per kW | E58: USD/kW | J58: =TRANSPOSE('Capital Expenditures'!IA4:IA44) -> 3500 | K58: 2500 | L58: 3000 | M58: 3000 | N58: 3000 | O58: 14000 | P58: 11000 | Q58: 11500 | R58: 11000 | S58: 11500 | T58: 26000 | U58: 21000 | V58: 22000 | W58: 21500 | X58: 23000 | Y58: 35000 | Z58: 29000 | AA58: 30000 | AB58: 31000 | AC58: 30500 | AD58: 16500 | AE58: 12500 | AF58: 14500 | AG58: 14000 | AH58: 13500 | AI58: 22000 | AJ58: 17500 | AK58: 18000 | AL58: 18500 | AM58: 19000 | AN58: 19500 | AO58: 35000 | AP58: 27500 | AQ58: 29000 | AR58: 30000 | AS58: 31000 | AT58: 43000 | AU58: 34500 | AV58: 35500 | AW58: 37000 | AX58: 38500
C60: Capital Expenditures for IT Equipment per kW - Low | E60: USD/kW | J60: =TRANSPOSE('Capital Expenditures'!IX4:IX44) -> 1800 | K60: 800 | L60: 1000 | M60: 1200 | N60: 1500 | O60: 12500 | P60: 6000 | Q60: 9000 | R60: 9500 | S60: 8500 | T60: 32000 | U60: 18000 | V60: 25000 | W60: 24000 | X60: 22000 | Y60: 40000 | Z60: 26000 | AA60: 30000 | AB60: 28000 | AC60: 35000 | AD60: 14000 | AE60: 5000 | AF60: 11000 | AG60: 10000 | AH60: 7500 | AI60: 16000 | AJ60: 11000 | AK60: 12500 | AL60: 13000 | AM60: 13500 | AN60: 14000 | AO60: 35000 | AP60: 24000 | AQ60: 28000 | AR60: 27000 | AS60: 30000 | AT60: 48000 | AU60: 32000 | AV60: 36000 | AW60: 35000 | AX60: 40000
C61: Total Electric Capital Expenditures per kW - Summary | E61: USD/kW | J61: =TRANSPOSE('Capital Expenditures'!IB4:IB44) -> 5000 | K61: 3000 | L61: 3500 | M61: 3700 | N61: 4000 | O61: 6000 | P61: 4500 | Q61: 4800 | R61: 4800 | S61: 5000 | T61: 8500 | U61: 6500 | V61: 7000 | W61: 6800 | X61: 7200 | Y61: 11000 | Z61: 8500 | AA61: 9000 | AB61: 9500 | AC61: 10500 | AD61: 6000 | AE61: 4500 | AF61: 5200 | AG61: 5200 | AH61: 4800 | AI61: 6500 | AJ61: 5000 | AK61: 5200 | AL61: 5400 | AM61: 5700 | AN61: 6000 | AO61: 9500 | AP61: 8000 | AQ61: 8500 | AR61: 8800 | AS61: 9000 | AT61: 10000 | AU61: 8000 | AV61: 8000 | AW61: 8700 | AX61: 9000
C62: Total Electric Capital Expenditures per kW - Low | E62: USD/kW | J62: =TRANSPOSE('Capital Expenditures'!IT4:IT44) -> 4500 | K62: 2500 | L62: 2800 | M62: 3200 | N62: 3800 | O62: 5200 | P62: 3500 | Q62: 4000 | R62: 4200 | S62: 4600 | T62: 5800 | U62: 4200 | V62: 4400 | W62: 4600 | X62: 4800 | Y62: 6200 | Z62: 4600 | AA62: 4800 | AB62: 5500 | AC62: 5800 | AD62: 4800 | AE62: 3200 | AF62: 4200 | AG62: 4600 | AH62: 3600 | AI62: 1600 | AJ62: 1100 | AK62: 1200 | AL62: 1300 | AM62: 1400 | AN62: 1700 | AO62: 2200 | AP62: 1600 | AQ62: 1800 | AR62: 1700 | AS62: 2400 | AT62: 2600 | AU62: 1800 | AV62: 1900 | AW62: 2000 | AX62: 2800
C64: Alt Electric Capital Expenditures per kW - High | E64: USD/kW | J64: =TRANSPOSE('Capital Expenditures'!IU4:IU44) -> 8000 | K64: 4600 | L64: 4200 | M64: 5400 | N64: 7200 | O64: 9500 | P64: 6200 | Q64: 7400 | R64: 7800 | S64: 8400 | T64: 10500 | U64: 7500 | V64: 7800 | W64: 8200 | X64: 8800 | Y64: 11500 | Z64: 8200 | AA64: 8500 | AB64: 10000 | AC64: 10800 | AD64: 8800 | AE64: 5800 | AF64: 7500 | AG64: 8200 | AH64: 6200 | AI64: 3000 | AJ64: 2000 | AK64: 2200 | AL64: 2500 | AM64: 2700 | AN64: 3200 | AO64: 4200 | AP64: 3000 | AQ64: 3500 | AR64: 3200 | AS64: 4500 | AT64: 5200 | AU64: 3500 | AV64: 3800 | AW64: 4000 | AX64: 5800
C65: Alt Electric Capital Expenditures per kW - Low | E65: USD/kW | J65: =TRANSPOSE('Capital Expenditures'!IV4:IV44) -> 6500 | K65: 3800 | L65: 4200 | M65: 4500 | N65: 5800 | O65: 7800 | P65: 5200 | Q65: 6000 | R65: 6400 | S65: 6800 | T65: 8500 | U65: 6200 | V65: 6500 | W65: 6800 | X65: 7200 | Y65: 9500 | Z65: 6800 | AA65: 7000 | AB65: 8200 | AC65: 8800 | AD65: 7200 | AE65: 4800 | AF65: 6200 | AG65: 6800 | AH65: 5200 | AI65: 2400 | AJ65: 1600 | AK65: 1800 | AL65: 2000 | AM65: 2200 | AN65: 2600 | AO65: 3400 | AP65: 2400 | AQ65: 2800 | AR65: 2600 | AS65: 3600 | AT65: 4200 | AU65: 2800 | AV65: 3000 | AW65: 3200 | AX65: 4400
C67: Captial Expenditures for Replacement | E67: USD/kW | J67: =TRANSPOSE('Capital Expenditures'!JD4:JD44) -> 185 | K67: 75 | L67: 90 | M67: 110 | N67: 145 | O67: 410 | P67: 215 | Q67: 295 | R67: 260 | S67: 340 | T67: 880 | U67: 540 | V67: 620 | W67: 590 | X67: 70 | Y67: 1450 | Z67: 920 | AA67: 980 | AB67: 1120 | AC67: 1280 | AD67: 1150 | AE67: 740 | AF67: 820 | AG67: 960 | AH67: 790 | AI67: 680 | AJ67: 390 | AK67: 440 | AL67: 510 | AM67: 560 | AN67: 610 | AO67: 1950 | AP67: 1250 | AQ67: 1400 | AR67: 1480 | AS67: 1620 | AT67: 2800 | AU67: 1850 | AV67: 1980 | AW67: 2200 | AX67: 2450
C68: Percent of Capital Expenditures - Replacement | E68: USD/kW | J68: =TRANSPOSE('Capital Expenditures'!JC4:JC44) -> 0.12 | K68: 0.05 | L68: 0.06 | M68: 0.08 | N68: 0.1 | O68: 0.24 | P68: 0.14 | Q68: 0.18 | R68: 0.16 | S68: 0.2 | T68: 0.42 | U68: 0.28 | V68: 0.32 | W68: 0.3 | X68: 0.35 | Y68: 0.55 | Z68: 0.38 | AA68: 0.4 | AB68: 0.44 | AC68: 0.48 | AD68: 0.48 | AE68: 0.32 | AF68: 0.36 | AG68: 0.42 | AH68: 0.34 | AI68: 0.3 | AJ68: 0.18 | AK68: 0.22 | AL68: 0.25 | AM68: 0.26 | AN68: 0.28 | AO68: 0.65 | AP68: 0.45 | AQ68: 0.5 | AR68: 0.52 | AS68: 0.56 | AT68: 0.82 | AU68: 0.6 | AV68: 0.64 | AW68: 0.68 | AX68: 0.72
C69: Implied Total Capital Expenditures for Electricity | E69: USD/kW | J69: =J67/J68 -> 1541.666667 | K69: =K67/K68 -> 1500 | L69: 1500 | M69: 1375 | N69: 1450 | O69: 1708.333333 | P69: 1535.714286 | Q69: 1638.888889 | R69: 1625 | S69: 1700 | T69: 2095.238095 | U69: 1928.571429 | V69: 1937.5 | W69: 1966.666667 | X69: 200 | Y69: 2636.363636 | Z69: 2421.052632 | AA69: 2450 | AB69: 2545.454545 | AC69: 2666.666667 | AD69: 2395.833333 | AE69: 2312.5 | AF69: 2277.777778 | AG69: 2285.714286 | AH69: 2323.529412 | AI69: 2266.666667 | AJ69: 2166.666667 | AK69: 2000 | AL69: 2040 | AM69: 2153.846154 | AN69: 2178.571429 | AO69: 3000 | AP69: 2777.777778 | AQ69: 2800 | AR69: 2846.153846 | AS69: 2892.857143 | AT69: 3414.634146 | AU69: 3083.333333 | AV69: 3093.75 | AW69: 3235.294118 | AX69: 3402.777778
B71: Break Down of Electic and Mechanical Cost
C72: =TRANSPOSE('Capital Expenditures'!IG3:IR3) -> Total Electric Cost | E72: USD/kW | J72: =TRANSPOSE('Capital Expenditures'!IG4:IR44) -> 5000 | K72: 3000 | L72: 3500 | M72: 3500 | N72: 4000 | O72: 0 | P72: 0 | Q72: 0 | R72: 0 | S72: 0 | T72: 0 | U72: 0 | V72: 0 | W72: 0 | X72: 0 | Y72: 11000 | Z72: 8500 | AA72: 9000 | AB72: 9500 | AC72: 10500 | AD72: 6000 | AE72: 4500 | AF72: 5200 | AG72: 5500 | AH72: 4800 | AI72: 6500 | AJ72: 5000 | AK72: 5200 | AL72: 5400 | AM72: 5700 | AN72: 6000 | AO72: 9500 | AP72: 8000 | AQ72: 8500 | AR72: 8800 | AS72: 9000 | AT72: 0 | AU72: 0 | AV72: 0 | AW72: 0 | AX72: 0
C73: Total Mechanical Cost | E73: USD/kW | J73: 6000 | K73: 2500 | L73: 3000 | M73: 3000 | N73: 4500 | O73: 0 | P73: 0 | Q73: 0 | R73: 0 | S73: 0 | T73: 0 | U73: 0 | V73: 0 | W73: 0 | X73: 0 | Y73: 9000 | Z73: 6500 | AA73: 7000 | AB73: 9000 | AC73: 7000 | AD73: 6000 | AE73: 4000 | AF73: 5800 | AG73: 7500 | AH73: 5200 | AI73: 6000 | AJ73: 4500 | AK73: 5300 | AL73: 5900 | AM73: 6500 | AN73: 8000 | AO73: 8500 | AP73: 6500 | AQ73: 8000 | AR73: 8000 | AS73: 9500 | AT73: 0 | AU73: 0 | AV73: 0 | AW73: 0 | AX73: 0
C74: Back-up Generators | E74: USD/kW | J74: 1800 | K74: 1100 | L74: 1300 | M74: 1300 | N74: 1450 | O74: 0 | P74: 0 | Q74: 0 | R74: 0 | S74: 0 | T74: 0 | U74: 0 | V74: 0 | W74: 0 | X74: 0 | Y74: 3400 | Z74: 2700 | AA74: 2850 | AB74: 3000 | AC74: 2500 | AD74: 2000 | AE74: 1550 | AF74: 1750 | AG74: 1850 | AH74: 1600 | AI74: 2200 | AJ74: 1700 | AK74: 1750 | AL74: 1800 | AM74: 1900 | AN74: 2000 | AO74: 3000 | AP74: 2550 | AQ74: 2700 | AR74: 2800 | AS74: 2850 | AT74: 0 | AU74: 0 | AV74: 0 | AW74: 0 | AX74: 0
C75: Universal Power Supply | E75: USD/kW | J75: 1500 | K75: 900 | L75: 1050 | M75: 1050 | N75: 1200 | O75: 0 | P75: 0 | Q75: 0 | R75: 0 | S75: 0 | T75: 0 | U75: 0 | V75: 0 | W75: 0 | X75: 0 | Y75: 3000 | Z75: 2300 | AA75: 2450 | AB75: 2600 | AC75: 4100 | AD75: 1700 | AE75: 1250 | AF75: 1450 | AG75: 1550 | AH75: 1350 | AI75: 1800 | AJ75: 1400 | AK75: 1450 | AL75: 1500 | AM75: 1600 | AN75: 1700 | AO75: 2650 | AP75: 2250 | AQ75: 2400 | AR75: 2450 | AS75: 2500 | AT75: 0 | AU75: 0 | AV75: 0 | AW75: 0 | AX75: 0
C76: Transmission Step Down | E76: USD/kW | J76: 700 | K76: 400 | L76: 450 | M76: 450 | N76: 550 | O76: 0 | P76: 0 | Q76: 0 | R76: 0 | S76: 0 | T76: 0 | U76: 0 | V76: 0 | W76: 0 | X76: 0 | Y76: 1800 | Z76: 1400 | AA76: 1500 | AB76: 1600 | AC76: 1700 | AD76: 850 | AE76: 600 | AF76: 700 | AG76: 750 | AH76: 650 | AI76: 900 | AJ76: 700 | AK76: 700 | AL76: 750 | AM76: 800 | AN76: 850 | AO76: 1450 | AP76: 1200 | AQ76: 1300 | AR76: 1350 | AS76: 1400 | AT76: 0 | AU76: 0 | AV76: 0 | AW76: 0 | AX76: 0
C77: Switchgear/Dense Busway Distribution | E77: USD/kW | J77: 1000 | K77: 600 | L77: 700 | M77: 700 | N77: 800 | O77: 0 | P77: 0 | Q77: 0 | R77: 0 | S77: 0 | T77: 0 | U77: 0 | V77: 0 | W77: 0 | X77: 0 | Y77: 2800 | Z77: 2100 | AA77: 2200 | AB77: 2300 | AC77: 2200 | AD77: 1450 | AE77: 1100 | AF77: 1300 | AG77: 1350 | AH77: 1200 | AI77: 1600 | AJ77: 1200 | AK77: 1300 | AL77: 1350 | AM77: 1400 | AN77: 1450 | AO77: 2400 | AP77: 2000 | AQ77: 2100 | AR77: 2200 | AS77: 2250 | AT77: 0 | AU77: 0 | AV77: 0 | AW77: 0 | AX77: 0
C78: Chillers | E78: USD/kW | J78: 2800 | K78: 1000 | L78: 0 | M78: 0 | N78: 2400 | O78: 0 | P78: 0 | Q78: 0 | R78: 0 | S78: 0 | T78: 0 | U78: 0 | V78: 0 | W78: 0 | X78: 0 | Y78: 3000 | Z78: 2000 | AA78: 0 | AB78: 2500 | AC78: 2200 | AD78: 2200 | AE78: 1400 | AF78: 1800 | AG78: 2000 | AH78: 0 | AI78: 2300 | AJ78: 1600 | AK78: 1800 | AL78: 1900 | AM78: 2100 | AN78: 2200 | AO78: 3000 | AP78: 2200 | AQ78: 2400 | AR78: 2500 | AS78: 2600 | AT78: 0 | AU78: 0 | AV78: 0 | AW78: 0 | AX78: 0
C79: CRAH | E79: USD/kW | J79: 1500 | K79: 700 | L79: 1800 | M79: 1800 | N79: 1000 | O79: 0 | P79: 0 | Q79: 0 | R79: 0 | S79: 0 | T79: 0 | U79: 0 | V79: 0 | W79: 0 | X79: 0 | Y79: 0 | Z79: 0 | AA79: 0 | AB79: 0 | AC79: 0 | AD79: 0 | AE79: 0 | AF79: 0 | AG79: 0 | AH79: 0 | AI79: 0 | AJ79: 0 | AK79: 0 | AL79: 0 | AM79: 0 | AN79: 0 | AO79: 0 | AP79: 0 | AQ79: 0 | AR79: 0 | AS79: 0 | AT79: 0 | AU79: 0 | AV79: 0 | AW79: 0 | AX79: 0
C80: CDU | J80: 1700 | K80: 800 | L80: 1200 | M80: 1200 | N80: 1100 | O80: 0 | P80: 0 | Q80: 0 | R80: 0 | S80: 0 | T80: 0 | U80: 0 | V80: 0 | W80: 0 | X80: 0 | Y80: 0 | Z80: 0 | AA80: 0 | AB80: 0 | AC80: 0 | AD80: 0 | AE80: 0 | AF80: 0 | AG80: 0 | AH80: 0 | AI80: 0 | AJ80: 0 | AK80: 0 | AL80: 0 | AM80: 0 | AN80: 0 | AO80: 0 | AP80: 0 | AQ80: 0 | AR80: 0 | AS80: 0 | AT80: 0 | AU80: 0 | AV80: 0 | AW80: 0 | AX80: 0
C81: Piping/Liq Loop/Adiabatic Dry Fluid Coolers/Dense Secondary Loops | E81: USD/kW | J81: 0 | K81: 0 | L81: 0 | M81: 0 | N81: 0 | O81: 0 | P81: 0 | Q81: 0 | R81: 0 | S81: 0 | T81: 0 | U81: 0 | V81: 0 | W81: 0 | X81: 0 | Y81: 3400 | Z81: 2500 | AA81: 3800 | AB81: 0 | AC81: 0 | AD81: 2000 | AE81: 1300 | AF81: 0 | AG81: 3800 | AH81: 3400 | AI81: 2100 | AJ81: 1500 | AK81: 0 | AL81: 0 | AM81: 0 | AN81: 0 | AO81: 3400 | AP81: 2600 | AQ81: 0 | AR81: 0 | AS81: 0 | AT81: 0 | AU81: 0 | AV81: 0 | AW81: 0 | AX81: 0
C82: In Chassis CDU/Dielectric Fluid Pumps and Loops | E82: USD/kW | J82: 0 | K82: 0 | L82: 0 | M82: 0 | N82: 0 | O82: 0 | P82: 0 | Q82: 0 | R82: 0 | S82: 0 | T82: 0 | U82: 0 | V82: 0 | W82: 0 | X82: 0 | Y82: 0 | Z82: 0 | AA82: 0 | AB82: 3900 | AC82: 2800 | AD82: 0 | AE82: 0 | AF82: 2500 | AG82: 0 | AH82: 0 | AI82: 0 | AJ82: 0 | AK82: 2100 | AL82: 2400 | AM82: 2800 | AN82: 4100 | AO82: 0 | AP82: 0 | AQ82: 3800 | AR82: 3700 | AS82: 4900 | AT82: 0 | AU82: 0 | AV82: 0 | AW82: 0 | AX82: 0
C83: Other - Loops, CDUs and Mechanical Sheel | E83: USD/kW | J83: 0 | K83: 0 | L83: 0 | M83: 0 | N83: 0 | O83: 0 | P83: 0 | Q83: 0 | R83: 0 | S83: 0 | T83: 0 | U83: 0 | V83: 0 | W83: 0 | X83: 0 | Y83: 2600 | Z83: 2000 | AA83: 3200 | AB83: 2600 | AC83: 2000 | AD83: 1800 | AE83: 1300 | AF83: 1500 | AG83: 1700 | AH83: 1800 | AI83: 1600 | AJ83: 1400 | AK83: 1400 | AL83: 1600 | AM83: 1600 | AN83: 1700 | AO83: 2100 | AP83: 1700 | AQ83: 1800 | AR83: 1800 | AS83: 2000 | AT83: 0 | AU83: 0 | AV83: 0 | AW83: 0 | AX83: 0
C86: Electrical Cost Check | E86: USD/kW | J86: =J74+J75+J76+J77 -> 5000 | K86: =K74+K75+K76+K77 -> 3000 | L86: 3500 | M86: 3500 | N86: 4000 | O86: 0 | P86: 0 | Q86: 0 | R86: 0 | S86: 0 | T86: 0 | U86: 0 | V86: 0 | W86: 0 | X86: 0 | Y86: 11000 | Z86: 8500 | AA86: 9000 | AB86: 9500 | AC86: 10500 | AD86: 6000 | AE86: 4500 | AF86: 5200 | AG86: 5500 | AH86: 4800 | AI86: 6500 | AJ86: 5000 | AK86: 5200 | AL86: 5400 | AM86: 5700 | AN86: 6000 | AO86: 9500 | AP86: 8000 | AQ86: 8500 | AR86: 8800 | AS86: 9000 | AT86: 0 | AU86: 0 | AV86: 0 | AW86: 0 | AX86: 0
C87: Mechanical Cost Check | E87: USD/kW | J87: =J79+J80+J81+J82+J83+J78 -> 6000 | K87: =K79+K80+K81+K82+K83+K78 -> 2500 | L87: 3000 | M87: 3000 | N87: 4500 | O87: 0 | P87: 0 | Q87: 0 | R87: 0 | S87: 0 | T87: 0 | U87: 0 | V87: 0 | W87: 0 | X87: 0 | Y87: 9000 | Z87: 6500 | AA87: 7000 | AB87: 9000 | AC87: 7000 | AD87: 6000 | AE87: 4000 | AF87: 5800 | AG87: 7500 | AH87: 5200 | AI87: 6000 | AJ87: 4500 | AK87: 5300 | AL87: 5900 | AM87: 6500 | AN87: 8000 | AO87: 8500 | AP87: 6500 | AQ87: 8000 | AR87: 8000 | AS87: 9500 | AT87: 0 | AU87: 0 | AV87: 0 | AW87: 0 | AX87: 0
C89: Electrical Test | J89: =J86=J72 -> TRUE | K89: =K86=K72 -> TRUE | L89: TRUE | M89: TRUE | N89: TRUE | O89: TRUE | P89: TRUE | Q89: TRUE | R89: TRUE | S89: TRUE | T89: TRUE | U89: TRUE | V89: TRUE | W89: TRUE | X89: TRUE | Y89: TRUE | Z89: TRUE | AA89: TRUE | AB89: TRUE | AC89: TRUE | AD89: TRUE | AE89: TRUE | AF89: TRUE | AG89: TRUE | AH89: TRUE | AI89: TRUE | AJ89: TRUE | AK89: TRUE | AL89: TRUE | AM89: TRUE | AN89: TRUE | AO89: TRUE | AP89: TRUE | AQ89: TRUE | AR89: TRUE | AS89: TRUE | AT89: TRUE | AU89: TRUE | AV89: TRUE | AW89: TRUE | AX89: TRUE
C90: Mechanical Test | J90: =J87=J73 -> TRUE | K90: =K87=K73 -> TRUE | L90: TRUE | M90: TRUE | N90: TRUE | O90: TRUE | P90: TRUE | Q90: TRUE | R90: TRUE | S90: TRUE | T90: TRUE | U90: TRUE | V90: TRUE | W90: TRUE | X90: TRUE | Y90: TRUE | Z90: TRUE | AA90: TRUE | AB90: TRUE | AC90: TRUE | AD90: TRUE | AE90: TRUE | AF90: TRUE | AG90: TRUE | AH90: TRUE | AI90: TRUE | AJ90: TRUE | AK90: TRUE | AL90: TRUE | AM90: TRUE | AN90: TRUE | AO90: TRUE | AP90: TRUE | AQ90: TRUE | AR90: TRUE | AS90: TRUE | AT90: TRUE | AU90: TRUE | AV90: TRUE | AW90: TRUE | AX90: TRUE
B92: Other Inputs
C93: Replacement Months - Low | E93: Months | J93: =TRANSPOSE('Capital Expenditures'!IZ4:IZ44) -> 60 | K93: 36 | L93: 48 | M93: 48 | N93: 60 | O93: 36 | P93: 24 | Q93: 42 | R93: 36 | S93: 48 | T93: 30 | U93: 24 | V93: 36 | W93: 30 | X93: 36 | Y93: 24 | Z93: 18 | AA93: 30 | AB93: 36 | AC93: 24 | AD93: 36 | AE93: 24 | AF93: 42 | AG93: 48 | AH93: 30 | AI93: 48 | AJ93: 36 | AK93: 36 | AL93: 42 | AM93: 48 | AN93: 36 | AO93: 24 | AP93: 30 | AQ93: 26 | AR93: 26 | AS93: 28 | AT93: 30 | AU93: 20 | AV93: 36 | AW93: 30 | AX93: 24
C94: Replacement Months - High | E94: Months | J94: =TRANSPOSE('Capital Expenditures'!IY4:IY44) -> 84 | K94: 48 | L94: 60 | M94: 72 | N94: 72 | O94: 48 | P94: 36 | Q94: 54 | R94: 48 | S94: 60 | T94: 36 | U94: 30 | V94: 42 | W94: 36 | X94: 48 | Y94: 30 | Z94: 24 | AA94: 36 | AB94: 48 | AC94: 36 | AD94: 48 | AE94: 36 | AF94: 54 | AG94: 60 | AH94: 42 | AI94: 60 | AJ94: 42 | AK94: 48 | AL94: 54 | AM94: 60 | AN94: 49 | AO94: 24 | AP94: 30 | AQ94: 26 | AR94: 26 | AS94: 28 | AT94: 36 | AU94: 26 | AV94: 42 | AW94: 36 | AX94: 32
C95: Replacement Months - Average | E95: Months | J95: =ROUND(AVERAGE(J93:J94),0) -> 72 | K95: =ROUND(AVERAGE(K93:K94),0) -> 42 | L95: 54 | M95: 60 | N95: 66 | O95: 42 | P95: 30 | Q95: 48 | R95: 42 | S95: 54 | T95: 33 | U95: 27 | V95: 39 | W95: 33 | X95: 42 | Y95: 27 | Z95: 21 | AA95: 33 | AB95: 42 | AC95: 30 | AD95: 42 | AE95: 30 | AF95: 48 | AG95: 54 | AH95: 36 | AI95: 54 | AJ95: 39 | AK95: 42 | AL95: 48 | AM95: 54 | AN95: 43 | AO95: 24 | AP95: 30 | AQ95: 26 | AR95: 26 | AS95: 28 | AT95: 33 | AU95: 23 | AV95: 39 | AW95: 33 | AX95: 28
C97: MM Token per kW per Month - Prompt 1 - High token Case | E97: MM Tokens per kW Month | J97: =TRANSPOSE('Token per kW'!DF3:DF43) -> 0.005 | K97: 0.012 | L97: 0.006 | M97: 0.018 | N97: 0.025 | O97: 0.85 | P97: 1.95 | Q97: 3.4 | R97: 3.85 | S97: 2.9 | T97: 12.5 | U97: 26 | V97: 42.5 | W97: 45 | X97: 34.5 | Y97: 95 | Z97: 185 | AA97: 210 | AB97: 245 | AC97: 260 | AD97: 150 | AE97: 310 | AF97: 415 | AG97: 480 | AH97: 365 | AI97: 48 | AJ97: 92 | AK97: 62 | AL97: 84 | AM97: 115 | AN97: 138 | AO97: 380 | AP97: 740 | AQ97: 890 | AR97: 980 | AS97: 1120 | AT97: 2400 | AU97: 4600 | AV97: 5100 | AW97: 5800 | AX97: 6500
C98: MM Token per kW per Month - Prompt 2 - Low token Case 1 | E98: MM Tokens per kW Month | J98: =TRANSPOSE('Token per kW'!DI3:DI43) -> 0.02 | K98: 0.04 | L98: 0.03 | M98: 0.04 | N98: 0.04 | O98: 1.2 | P98: 1.5 | Q98: 1.8 | R98: 1.7 | S98: 1.6 | T98: 4.5 | U98: 5.5 | V98: 6.2 | W98: 6 | X98: 5.2 | Y98: 8.5 | Z98: 11 | AA98: 10.5 | AB98: 12 | AC98: 10 | AD98: 14 | AE98: 18.5 | AF98: 22 | AG98: 24.5 | AH98: 16 | AI98: 3.8 | AJ98: 4.8 | AK98: 4 | AL98: 4.4 | AM98: 5 | AN98: 5.4 | AO98: 18 | AP98: 23 | AQ98: 21.5 | AR98: 22.5 | AS98: 24.5 | AT98: 32 | AU98: 41 | AV98: 38 | AW98: 40 | AX98: 44
C99: MM Token per kW per Month - Prompt 2 - Low token Case 2 | E99: MM Tokens per kW Month | J99: =TRANSPOSE('Token per kW'!DJ3:DJ43) -> 0.05 | K99: 0.08 | L99: 0.06 | M99: 0.07 | N99: 0.08 | O99: 2.5 | P99: 3.2 | Q99: 3.8 | R99: 3.6 | S99: 3.4 | T99: 9.5 | U99: 11.5 | V99: 13 | W99: 12.5 | X99: 11 | Y99: 18 | Z99: 22.5 | AA99: 21 | AB99: 24.5 | AC99: 21.5 | AD99: 30 | AE99: 38 | AF99: 45 | AG99: 50 | AH99: 34 | AI99: 8 | AJ99: 10.2 | AK99: 8.5 | AL99: 9.2 | AM99: 10.5 | AN99: 11.2 | AO99: 38 | AP99: 48 | AQ99: 45 | AR99: 47 | AS99: 51 | AT99: 68 | AU99: 85 | AV99: 80 | AW99: 83 | AX99: 92
C100: MM Token per kW per Month - Prompt 3 - Medium Token Case | E100: MM Tokens per kW Month | J100: =TRANSPOSE(Sheet1!C2:C42) -> 3.51 | K100: 6.73 | L100: 4.1 | M100: 4.91 | N100: 5.73 | O100: 8.42 | P100: 16.15 | Q100: 20.2 | R100: 18.52 | S100: 14.73 | T100: 18.72 | U100: 35.88 | V100: 44.88 | W100: 41.14 | X100: 32.73 | Y100: 46.8 | Z100: 89.7 | AA100: 98.67 | AB100: 112.13 | AC100: 119.6 | AD100: 65.52 | AE100: 125.58 | AF100: 156.98 | AG100: 178.43 | AH100: 131.04 | AI100: 31.2 | AJ100: 59.8 | AK100: 40.3 | AL100: 54.6 | AM100: 74.8 | AN100: 89.7 | AO100: 109.2 | AP100: 209.3 | AQ100: 245.7 | AR100: 261.8 | AS100: 313.95 | AT100: 327.6 | AU100: 627.9 | AV100: 700.7 | AW100: 785.4 | AX100: 941.85
C102: =INDEX(C97:C100,$F$102) -> MM Token per kW per Month - Prompt 1 - High token Case | E102: =INDEX(E97:E100,$F$102) -> MM Tokens per kW Month | F102: ='Misc Forms'!V10 -> 1 | J102: =INDEX(J97:J100,$F$102) -> 0.005 | K102: =INDEX(K97:K100,$F$102) -> 0.012 | L102: =INDEX(L97:L100,$F$102) -> 0.006 | M102: =INDEX(M97:M100,$F$102) -> 0.018 | N102: =INDEX(N97:N100,$F$102) -> 0.025 | O102: =INDEX(O97:O100,$F$102) -> 0.85 | P102: =INDEX(P97:P100,$F$102) -> 1.95 | Q102: =INDEX(Q97:Q100,$F$102) -> 3.4 | R102: =INDEX(R97:R100,$F$102) -> 3.85 | S102: =INDEX(S97:S100,$F$102) -> 2.9 | T102: =INDEX(T97:T100,$F$102) -> 12.5 | U102: =INDEX(U97:U100,$F$102) -> 26 | V102: =INDEX(V97:V100,$F$102) -> 42.5 | W102: =INDEX(W97:W100,$F$102) -> 45 | X102: =INDEX(X97:X100,$F$102) -> 34.5 | Y102: =INDEX(Y97:Y100,$F$102) -> 95 | Z102: =INDEX(Z97:Z100,$F$102) -> 185 | AA102: =INDEX(AA97:AA100,$F$102) -> 210 | AB102: =INDEX(AB97:AB100,$F$102) -> 245 | AC102: =INDEX(AC97:AC100,$F$102) -> 260 | AD102: =INDEX(AD97:AD100,$F$102) -> 150 | AE102: =INDEX(AE97:AE100,$F$102) -> 310 | AF102: =INDEX(AF97:AF100,$F$102) -> 415 | AG102: =INDEX(AG97:AG100,$F$102) -> 480 | AH102: =INDEX(AH97:AH100,$F$102) -> 365 | AI102: =INDEX(AI97:AI100,$F$102) -> 48 | AJ102: =INDEX(AJ97:AJ100,$F$102) -> 92 | AK102: =INDEX(AK97:AK100,$F$102) -> 62 | AL102: =INDEX(AL97:AL100,$F$102) -> 84 | AM102: =INDEX(AM97:AM100,$F$102) -> 115 | AN102: =INDEX(AN97:AN100,$F$102) -> 138 | AO102: =INDEX(AO97:AO100,$F$102) -> 380 | AP102: =INDEX(AP97:AP100,$F$102) -> 740 | AQ102: =INDEX(AQ97:AQ100,$F$102) -> 890 | AR102: =INDEX(AR97:AR100,$F$102) -> 980 | AS102: =INDEX(AS97:AS100,$F$102) -> 1120 | AT102: =INDEX(AT97:AT100,$F$102) -> 2400 | AU102: =INDEX(AU97:AU100,$F$102) -> 4600 | AV102: =INDEX(AV97:AV100,$F$102) -> 5100 | AW102: =INDEX(AW97:AW100,$F$102) -> 5800 | AX102: =INDEX(AX97:AX100,$F$102) -> 6500
C104: Active GPU per MW-month | E104: GPU/MW | J104: =TRANSPOSE(Sheet1!I2:I42) -> 680 | K104: 990 | L104: 790 | M104: 890 | N104: 950 | O104: 920 | P104: 1100 | Q104: 1190 | R104: 1140 | S104: 1060 | T104: 1020 | U104: 1210 | V104: 1240 | W104: 1230 | X104: 1140 | Y104: 670 | Z104: 760 | AA104: 770 | AB104: 790 | AC104: 790 | AD104: 830 | AE104: 950 | AF104: 970 | AG104: 980 | AH104: 930 | AI104: 990 | AJ104: 1190 | AK104: 1060 | AL104: 1140 | AM104: 1240 | AN104: 1280 | AO104: 620 | AP104: 740 | AQ104: 760 | AR104: 770 | AS104: 790 | AT104: 430 | AU104: 510 | AV104: 520 | AW104: 530 | AX104: 540
C107: Chemical Tons per 100 kW | E107: Tons/100 kW | J107: =TRANSPOSE('Capital Expenditures'!JB4:JB44) -> 140 | K107: 110 | L107: 45 | M107: 95 | N107: 220 | O107: 340 | P107: 280 | Q107: 410 | R107: 180 | S107: 290 | T107: 620 | U107: 510 | V107: 740 | W107: 480 | X107: 580 | Y107: 1850 | Z107: 1400 | AA107: 1650 | AB107: 2100 | AC107: 880 | AD107: 0 | AE107: 0 | AF107: 0 | AG107: 0 | AH107: 0 | AI107: 580 | AJ107: 460 | AK107: 240 | AL107: 510 | AM107: 720 | AN107: 850 | AO107: 1250 | AP107: 980 | AQ107: 1100 | AR107: 1320 | AS107: 1480 | AT107: 2100 | AU107: 1650 | AV107: 1400 | AW107: 2400 | AX107: 2850
C108: Chemical Cost per Ton | E108: USD/Ton | J108: =TRANSPOSE('Capital Expenditures'!JA4:JA44) -> 4500 | K108: 2200 | L108: 1800 | M108: 2400 | N108: 3800 | O108: 12500 | P108: 5500 | Q108: 14000 | R108: 16500 | S108: 9200 | T108: 38000 | U108: 18500 | V108: 32000 | W108: 35000 | X108: 24000 | Y108: 140000 | Z108: 65000 | AA108: 110000 | AB108: 165000 | AC108: 45000 | AD108: 0 | AE108: 0 | AF108: 0 | AG108: 0 | AH108: 0 | AI108: 35000 | AJ108: 16000 | AK108: 12000 | AL108: 26000 | AM108: 34000 | AN108: 88000 | AO108: 95000 | AP108: 48000 | AQ108: 78000 | AR108: 85000 | AS108: 145000 | AT108: 180000 | AU108: 88000 | AV108: 55000 | AW108: 160000 | AX108: 230000
C110: Benchmark Price | E110: USD/MMToken | J110: =TRANSPOSE(Sheet1!G2:G42) -> 0.68 | K110: 0.99 | L110: 0.79 | M110: 0.89 | N110: 0.95 | O110: 0.92 | P110: 1.1 | Q110: 1.19 | R110: 1.14 | S110: 1.06 | T110: 1.02 | U110: 1.21 | V110: 1.24 | W110: 1.23 | X110: 1.14 | Y110: 0.67 | Z110: 0.76 | AA110: 0.77 | AB110: 0.79 | AC110: 0.79 | AD110: 0.83 | AE110: 0.95 | AF110: 0.97 | AG110: 0.98 | AH110: 0.93 | AI110: 0.99 | AJ110: 1.19 | AK110: 1.06 | AL110: 1.14 | AM110: 1.24 | AN110: 1.28 | AO110: 0.62 | AP110: 0.74 | AQ110: 0.76 | AR110: 0.77 | AS110: 0.79 | AT110: 0.43 | AU110: 0.51 | AV110: 0.52 | AW110: 0.53 | AX110: 0.54

Sheet FM Monthly
H1: Price in MW | I1: =F35 -> 6000 | J1: Target IRR | K1: =F129 -> 0.09
H2: Price in MM Tokens | I2: =Price -> 4.192449849 | J2: IRR | K2: =F127 -> 0.215559727
B4: Timeline | E4: Units | F4: Driver | H4: Sum
C5: Period | I5: =_xlfn.SEQUENCE(,300) -> 1 | J5: 2 | K5: 3 | L5: 4 | M5: 5 | N5: 6 | O5: 7 | P5: 8 | Q5: 9 | R5: 10 | S5: 11 | T5: 12 | U5: 13 | V5: 14 | W5: 15 | X5: 16 | Y5: 17 | Z5: 18 | AA5: 19 | AB5: 20 | AC5: 21 | AD5: 22 | AE5: 23 | AF5: 24 | AG5: 25 | AH5: 26 | AI5: 27 | AJ5: 28 | AK5: 29 | AL5: 30 | AM5: 31 | AN5: 32 | AO5: 33 | AP5: 34 | AQ5: 35 | AR5: 36 | AS5: 37 | AT5: 38 | AU5: 39 | AV5: 40 | AW5: 41 | AX5: 42 | AY5: 43 | AZ5: 44 | BA5: 45 | BB5: 46 | BC5: 47 | BD5: 48 | BE5: 49 | BF5: 50 | BG5: 51 | BH5: 52 | BI5: 53 | BJ5: 54 | BK5: 55 | BL5: 56 | BM5: 57 | BN5: 58 | BO5: 59 | BP5: 60 | BQ5: 61 | BR5: 62 | BS5: 63 | BT5: 64 | BU5: 65 | BV5: 66 | BW5: 67 | BX5: 68 | BY5: 69 | BZ5: 70 | CA5: 71 | CB5: 72 | CC5: 73 | CD5: 74 | CE5: 75 | CF5: 76 | CG5: 77 | CH5: 78 | CI5: 79 | CJ5: 80 | CK5: 81 | CL5: 82 | CM5: 83 | CN5: 84 | CO5: 85 | CP5: 86 | CQ5: 87 | CR5: 88 | CS5: 89 | CT5: 90 | CU5: 91 | CV5: 92 | CW5: 93 | CX5: 94 | CY5: 95 | CZ5: 96 | DA5: 97 | DB5: 98 | DC5: 99 | DD5: 100 | DE5: 101 | DF5: 102 | DG5: 103 | DH5: 104 | DI5: 105 | DJ5: 106 | DK5: 107 | DL5: 108 | DM5: 109 | DN5: 110 | DO5: 111 | DP5: 112 | DQ5: 113 | DR5: 114 | DS5: 115 | DT5: 116 | DU5: 117 | DV5: 118 | DW5: 119 | DX5: 120 | DY5: 121 | DZ5: 122 | EA5: 123 | EB5: 124 | EC5: 125 | ED5: 126 | EE5: 127 | EF5: 128 | EG5: 129 | EH5: 130 | EI5: 131 | EJ5: 132 | EK5: 133 | EL5: 134 | EM5: 135 | EN5: 136 | EO5: 137 | EP5: 138 | EQ5: 139 | ER5: 140 | ES5: 141 | ET5: 142 | EU5: 143 | EV5: 144 | EW5: 145 | EX5: 146 | EY5: 147 | EZ5: 148 | FA5: 149 | FB5: 150 | FC5: 151 | FD5: 152 | FE5: 153 | FF5: 154 | FG5: 155 | FH5: 156 | FI5: 157 | FJ5: 158 | FK5: 159 | FL5: 160 | FM5: 161 | FN5: 162 | FO5: 163 | FP5: 164 | FQ5: 165 | FR5: 166 | FS5: 167 | FT5: 168 | FU5: 169 | FV5: 170 | FW5: 171 | FX5: 172 | FY5: 173 | FZ5: 174 | GA5: 175 | GB5: 176 | GC5: 177 | GD5: 178 | GE5: 179 | GF5: 180 | GG5: 181 | GH5: 182 | GI5: 183 | GJ5: 184 | GK5: 185 | GL5: 186 | GM5: 187 | GN5: 188 | GO5: 189 | GP5: 190 | GQ5: 191 | GR5: 192 | GS5: 193 | GT5: 194 | GU5: 195 | GV5: 196 | GW5: 197 | GX5: 198 | GY5: 199 | GZ5: 200 | HA5: 201 | HB5: 202 | HC5: 203 | HD5: 204 | HE5: 205 | HF5: 206 | HG5: 207 | HH5: 208 | HI5: 209 | HJ5: 210 | HK5: 211 | HL5: 212 | HM5: 213 | HN5: 214 | HO5: 215 | HP5: 216 | HQ5: 217 | HR5: 218 | HS5: 219 | HT5: 220 | HU5: 221 | HV5: 222 | HW5: 223 | HX5: 224 | HY5: 225 | HZ5: 226 | IA5: 227 | IB5: 228 | IC5: 229 | ID5: 230 | IE5: 231 | IF5: 232 | IG5: 233 | IH5: 234 | II5: 235 | IJ5: 236 | IK5: 237 | IL5: 238 | IM5: 239 | IN5: 240 | IO5: 241 | IP5: 242 | IQ5: 243 | IR5: 244 | IS5: 245 | IT5: 246 | IU5: 247 | IV5: 248 | IW5: 249 | IX5: 250 | IY5: 251 | IZ5: 252 | JA5: 253 | JB5: 254 | JC5: 255 | JD5: 256 | JE5: 257 | JF5: 258 | JG5: 259 | JH5: 260 | JI5: 261 | JJ5: 262 | JK5: 263 | JL5: 264 | JM5: 265 | JN5: 266 | JO5: 267 | JP5: 268 | JQ5: 269 | JR5: 270 | JS5: 271 | JT5: 272 | JU5: 273 | JV5: 274 | JW5: 275 | JX5: 276 | JY5: 277 | JZ5: 278 | KA5: 279 | KB5: 280 | KC5: 281 | KD5: 282 | KE5: 283 | KF5: 284 | KG5: 285 | KH5: 286 | KI5: 287 | KJ5: 288 | KK5: 289 | KL5: 290 | KM5: 291 | KN5: 292 | KO5: 293 | KP5: 294 | KQ5: 295 | KR5: 296 | KS5: 297 | KT5: 298 | KU5: 299 | KV5: 300
C6: Construction Periods | E6: Flag | F6: =InputC!G7 -> 8 | H6: =SUM(I6:KV6) -> 8 | I6: =(I5<=$F$6)*1 -> 1 | J6: =(J5<=$F$6)*1 -> 1 | K6: 1 | L6: 1 | M6: 1 | N6: 1 | O6: 1 | P6: 1 | Q6: 0 | R6: 0 | S6: 0 | T6: 0 | U6: 0 | V6: 0 | W6: 0 | X6: 0 | Y6: 0 | Z6: 0 | AA6: 0 | AB6: 0 | AC6: 0 | AD6: 0 | AE6: 0 | AF6: 0 | AG6: 0 | AH6: 0 | AI6: 0 | AJ6: 0 | AK6: 0 | AL6: 0 | AM6: 0 | AN6: 0 | AO6: 0 | AP6: 0 | AQ6: 0 | AR6: 0 | AS6: 0 | AT6: 0 | AU6: 0 | AV6: 0 | AW6: 0 | AX6: 0 | AY6: 0 | AZ6: 0 | BA6: 0 | BB6: 0 | BC6: 0 | BD6: 0 | BE6: 0 | BF6: 0 | BG6: 0 | BH6: 0 | BI6: 0 | BJ6: 0 | BK6: 0 | BL6: 0 | BM6: 0 | BN6: 0 | BO6: 0 | BP6: 0 | BQ6: 0 | BR6: 0 | BS6: 0 | BT6: 0 | BU6: 0 | BV6: =(BV5<=$F$6)*1 -> 0 | BW6: 0 | BX6: 0 | BY6: 0 | BZ6: 0 | CA6: 0 | CB6: 0 | CC6: 0 | CD6: 0 | CE6: 0 | CF6: 0 | CG6: 0 | CH6: 0 | CI6: 0 | CJ6: 0 | CK6: 0 | CL6: 0 | CM6: 0 | CN6: 0 | CO6: 0 | CP6: 0 | CQ6: 0 | CR6: 0 | CS6: 0 | CT6: 0 | CU6: 0 | CV6: 0 | CW6: 0 | CX6: 0 | CY6: 0 | CZ6: 0 | DA6: 0 | DB6: 0 | DC6: 0 | DD6: 0 | DE6: 0 | DF6: 0 | DG6: 0 | DH6: 0 | DI6: 0 | DJ6: 0 | DK6: 0 | DL6: 0 | DM6: 0 | DN6: 0 | DO6: 0 | DP6: 0 | DQ6: 0 | DR6: 0 | DS6: 0 | DT6: 0 | DU6: 0 | DV6: 0 | DW6: 0 | DX6: 0 | DY6: 0 | DZ6: 0 | EA6: 0 | EB6: 0 | EC6: 0 | ED6: 0 | EE6: 0 | EF6: 0 | EG6: 0 | EH6: =(EH5<=$F$6)*1 -> 0 | EI6: 0 | EJ6: 0 | EK6: 0 | EL6: 0 | EM6: 0 | EN6: 0 | EO6: 0 | EP6: 0 | EQ6: 0 | ER6: 0 | ES6: 0 | ET6: 0 | EU6: 0 | EV6: 0 | EW6: 0 | EX6: 0 | EY6: 0 | EZ6: 0 | FA6: 0 | FB6: 0 | FC6: 0 | FD6: 0 | FE6: 0 | FF6: 0 | FG6: 0 | FH6: 0 | FI6: 0 | FJ6: 0 | FK6: 0 | FL6: 0 | FM6: 0 | FN6: 0 | FO6: 0 | FP6: 0 | FQ6: 0 | FR6: 0 | FS6: 0 | FT6: 0 | FU6: 0 | FV6: 0 | FW6: 0 | FX6: 0 | FY6: 0 | FZ6: 0 | GA6: 0 | GB6: 0 | GC6: 0 | GD6: 0 | GE6: 0 | GF6: 0 | GG6: 0 | GH6: 0 | GI6: 0 | GJ6: 0 | GK6: 0 | GL6: 0 | GM6: 0 | GN6: 0 | GO6: 0 | GP6: 0 | GQ6: 0 | GR6: 0 | GS6: 0 | GT6: =(GT5<=$F$6)*1 -> 0 | GU6: 0 | GV6: 0 | GW6: 0 | GX6: 0 | GY6: 0 | GZ6: 0 | HA6: 0 | HB6: 0 | HC6: 0 | HD6: 0 | HE6: 0 | HF6: 0 | HG6: 0 | HH6: 0 | HI6: 0 | HJ6: 0 | HK6: 0 | HL6: 0 | HM6: 0 | HN6: 0 | HO6: 0 | HP6: 0 | HQ6: 0 | HR6: 0 | HS6: 0 | HT6: 0 | HU6: 0 | HV6: 0 | HW6: 0 | HX6: 0 | HY6: 0 | HZ6: 0 | IA6: 0 | IB6: 0 | IC6: 0 | ID6: 0 | IE6: 0 | IF6: 0 | IG6: 0 | IH6: 0 | II6: 0 | IJ6: 0 | IK6: 0 | IL6: 0 | IM6: 0 | IN6: 0 | IO6: 0 | IP6: 0 | IQ6: 0 | IR6: 0 | IS6: 0 | IT6: 0 | IU6: 0 | IV6: 0 | IW6: 0 | IX6: 0 | IY6: 0 | IZ6: 0 | JA6: 0 | JB6: 0 | JC6: 0 | JD6: 0 | JE6: 0 | JF6: =(JF5<=$F$6)*1 -> 0 | JG6: 0 | JH6: 0 | JI6: 0 | JJ6: 0 | JK6: 0 | JL6: 0 | JM6: 0 | JN6: 0 | JO6: 0 | JP6: 0 | JQ6: 0 | JR6: 0 | JS6: 0 | JT6: 0 | JU6: 0 | JV6: 0 | JW6: 0 | JX6: 0 | JY6: 0 | JZ6: 0 | KA6: 0 | KB6: 0 | KC6: 0 | KD6: 0 | KE6: 0 | KF6: 0 | KG6: 0 | KH6: 0 | KI6: 0 | KJ6: 0 | KK6: 0 | KL6: 0 | KM6: 0 | KN6: 0 | KO6: 0 | KP6: 0 | KQ6: 0 | KR6: 0 | KS6: 0 | KT6: 0 | KU6: 0 | KV6: 0
C7: Start of the period | E7: Date | I7: =H8+1 -> 2027-01-01 | J7: =I8+1 -> 2027-02-01 | K7: 2027-03-01 | L7: 2027-04-01 | M7: 2027-05-01 | N7: 2027-06-01 | O7: 2027-07-01 | P7: 2027-08-01 | Q7: 2027-09-01 | R7: 2027-10-01 | S7: 2027-11-01 | T7: 2027-12-01 | U7: 2028-01-01 | V7: 2028-02-01 | W7: 2028-03-01 | X7: 2028-04-01 | Y7: 2028-05-01 | Z7: 2028-06-01 | AA7: 2028-07-01 | AB7: 2028-08-01 | AC7: 2028-09-01 | AD7: 2028-10-01 | AE7: 2028-11-01 | AF7: 2028-12-01 | AG7: 2029-01-01 | AH7: 2029-02-01 | AI7: 2029-03-01 | AJ7: 2029-04-01 | AK7: 2029-05-01 | AL7: 2029-06-01 | AM7: 2029-07-01 | AN7: 2029-08-01 | AO7: 2029-09-01 | AP7: 2029-10-01 | AQ7: 2029-11-01 | AR7: 2029-12-01 | AS7: 2030-01-01 | AT7: 2030-02-01 | AU7: 2030-03-01 | AV7: 2030-04-01 | AW7: 2030-05-01 | AX7: 2030-06-01 | AY7: 2030-07-01 | AZ7: 2030-08-01 | BA7: 2030-09-01 | BB7: 2030-10-01 | BC7: 2030-11-01 | BD7: 2030-12-01 | BE7: 2031-01-01 | BF7: 2031-02-01 | BG7: 2031-03-01 | BH7: 2031-04-01 | BI7: 2031-05-01 | BJ7: 2031-06-01 | BK7: 2031-07-01 | BL7: 2031-08-01 | BM7: 2031-09-01 | BN7: 2031-10-01 | BO7: 2031-11-01 | BP7: 2031-12-01 | BQ7: 2032-01-01 | BR7: 2032-02-01 | BS7: 2032-03-01 | BT7: 2032-04-01 | BU7: 2032-05-01 | BV7: =BU8+1 -> 2032-06-01 | BW7: 2032-07-01 | BX7: 2032-08-01 | BY7: 2032-09-01 | BZ7: 2032-10-01 | CA7: 2032-11-01 | CB7: 2032-12-01 | CC7: 2033-01-01 | CD7: 2033-02-01 | CE7: 2033-03-01 | CF7: 2033-04-01 | CG7: 2033-05-01 | CH7: 2033-06-01 | CI7: 2033-07-01 | CJ7: 2033-08-01 | CK7: 2033-09-01 | CL7: 2033-10-01 | CM7: 2033-11-01 | CN7: 2033-12-01 | CO7: 2034-01-01 | CP7: 2034-02-01 | CQ7: 2034-03-01 | CR7: 2034-04-01 | CS7: 2034-05-01 | CT7: 2034-06-01 | CU7: 2034-07-01 | CV7: 2034-08-01 | CW7: 2034-09-01 | CX7: 2034-10-01 | CY7: 2034-11-01 | CZ7: 2034-12-01 | DA7: 2035-01-01 | DB7: 2035-02-01 | DC7: 2035-03-01 | DD7: 2035-04-01 | DE7: 2035-05-01 | DF7: 2035-06-01 | DG7: 2035-07-01 | DH7: 2035-08-01 | DI7: 2035-09-01 | DJ7: 2035-10-01 | DK7: 2035-11-01 | DL7: 2035-12-01 | DM7: 2036-01-01 | DN7: 2036-02-01 | DO7: 2036-03-01 | DP7: 2036-04-01 | DQ7: 2036-05-01 | DR7: 2036-06-01 | DS7: 2036-07-01 | DT7: 2036-08-01 | DU7: 2036-09-01 | DV7: 2036-10-01 | DW7: 2036-11-01 | DX7: 2036-12-01 | DY7: 2037-01-01 | DZ7: 2037-02-01 | EA7: 2037-03-01 | EB7: 2037-04-01 | EC7: 2037-05-01 | ED7: 2037-06-01 | EE7: 2037-07-01 | EF7: 2037-08-01 | EG7: 2037-09-01 | EH7: =EG8+1 -> 2037-10-01 | EI7: 2037-11-01 | EJ7: 2037-12-01 | EK7: 2038-01-01 | EL7: 2038-02-01 | EM7: 2038-03-01 | EN7: 2038-04-01 | EO7: 2038-05-01 | EP7: 2038-06-01 | EQ7: 2038-07-01 | ER7: 2038-08-01 | ES7: 2038-09-01 | ET7: 2038-10-01 | EU7: 2038-11-01 | EV7: 2038-12-01 | EW7: 2039-01-01 | EX7: 2039-02-01 | EY7: 2039-03-01 | EZ7: 2039-04-01 | FA7: 2039-05-01 | FB7: 2039-06-01 | FC7: 2039-07-01 | FD7: 2039-08-01 | FE7: 2039-09-01 | FF7: 2039-10-01 | FG7: 2039-11-01 | FH7: 2039-12-01 | FI7: 2040-01-01 | FJ7: 2040-02-01 | FK7: 2040-03-01 | FL7: 2040-04-01 | FM7: 2040-05-01 | FN7: 2040-06-01 | FO7: 2040-07-01 | FP7: 2040-08-01 | FQ7: 2040-09-01 | FR7: 2040-10-01 | FS7: 2040-11-01 | FT7: 2040-12-01 | FU7: 2041-01-01 | FV7: 2041-02-01 | FW7: 2041-03-01 | FX7: 2041-04-01 | FY7: 2041-05-01 | FZ7: 2041-06-01 | GA7: 2041-07-01 | GB7: 2041-08-01 | GC7: 2041-09-01 | GD7: 2041-10-01 | GE7: 2041-11-01 | GF7: 2041-12-01 | GG7: 2042-01-01 | GH7: 2042-02-01 | GI7: 2042-03-01 | GJ7: 2042-04-01 | GK7: 2042-05-01 | GL7: 2042-06-01 | GM7: 2042-07-01 | GN7: 2042-08-01 | GO7: 2042-09-01 | GP7: 2042-10-01 | GQ7: 2042-11-01 | GR7: 2042-12-01 | GS7: 2043-01-01 | GT7: =GS8+1 -> 2043-02-01 | GU7: 2043-03-01 | GV7: 2043-04-01 | GW7: 2043-05-01 | GX7: 2043-06-01 | GY7: 2043-07-01 | GZ7: 2043-08-01 | HA7: 2043-09-01 | HB7: 2043-10-01 | HC7: 2043-11-01 | HD7: 2043-12-01 | HE7: 2044-01-01 | HF7: 2044-02-01 | HG7: 2044-03-01 | HH7: 2044-04-01 | HI7: 2044-05-01 | HJ7: 2044-06-01 | HK7: 2044-07-01 | HL7: 2044-08-01 | HM7: 2044-09-01 | HN7: 2044-10-01 | HO7: 2044-11-01 | HP7: 2044-12-01 | HQ7: 2045-01-01 | HR7: 2045-02-01 | HS7: 2045-03-01 | HT7: 2045-04-01 | HU7: 2045-05-01 | HV7: 2045-06-01 | HW7: 2045-07-01 | HX7: 2045-08-01 | HY7: 2045-09-01 | HZ7: 2045-10-01 | IA7: 2045-11-01 | IB7: 2045-12-01 | IC7: 2046-01-01 | ID7: 2046-02-01 | IE7: 2046-03-01 | IF7: 2046-04-01 | IG7: 2046-05-01 | IH7: 2046-06-01 | II7: 2046-07-01 | IJ7: 2046-08-01 | IK7: 2046-09-01 | IL7: 2046-10-01 | IM7: 2046-11-01 | IN7: 2046-12-01 | IO7: 2047-01-01 | IP7: 2047-02-01 | IQ7: 2047-03-01 | IR7: 2047-04-01 | IS7: 2047-05-01 | IT7: 2047-06-01 | IU7: 2047-07-01 | IV7: 2047-08-01 | IW7: 2047-09-01 | IX7: 2047-10-01 | IY7: 2047-11-01 | IZ7: 2047-12-01 | JA7: 2048-01-01 | JB7: 2048-02-01 | JC7: 2048-03-01 | JD7: 2048-04-01 | JE7: 2048-05-01 | JF7: =JE8+1 -> 2048-06-01 | JG7: 2048-07-01 | JH7: 2048-08-01 | JI7: 2048-09-01 | JJ7: 2048-10-01 | JK7: 2048-11-01 | JL7: 2048-12-01 | JM7: 2049-01-01 | JN7: 2049-02-01 | JO7: 2049-03-01 | JP7: 2049-04-01 | JQ7: 2049-05-01 | JR7: 2049-06-01 | JS7: 2049-07-01 | JT7: 2049-08-01 | JU7: 2049-09-01 | JV7: 2049-10-01 | JW7: 2049-11-01 | JX7: 2049-12-01 | JY7: 2050-01-01 | JZ7: 2050-02-01 | KA7: 2050-03-01 | KB7: 2050-04-01 | KC7: 2050-05-01 | KD7: 2050-06-01 | KE7: 2050-07-01 | KF7: 2050-08-01 | KG7: 2050-09-01 | KH7: 2050-10-01 | KI7: 2050-11-01 | KJ7: 2050-12-01 | KK7: 2051-01-01 | KL7: 2051-02-01 | KM7: 2051-03-01 | KN7: 2051-04-01 | KO7: 2051-05-01 | KP7: 2051-06-01 | KQ7: 2051-07-01 | KR7: 2051-08-01 | KS7: 2051-09-01 | KT7: 2051-10-01 | KU7: 2051-11-01 | KV7: 2051-12-01
C8: End of the period | E8: Date | H8: =InputC!G6-1 -> 2026-12-31 | I8: =EOMONTH(I7,0) -> 2027-01-31 | J8: =EOMONTH(J7,0) -> 2027-02-28 | K8: 2027-03-31 | L8: 2027-04-30 | M8: 2027-05-31 | N8: 2027-06-30 | O8: 2027-07-31 | P8: 2027-08-31 | Q8: 2027-09-30 | R8: 2027-10-31 | S8: 2027-11-30 | T8: 2027-12-31 | U8: 2028-01-31 | V8: 2028-02-29 | W8: 2028-03-31 | X8: 2028-04-30 | Y8: 2028-05-31 | Z8: 2028-06-30 | AA8: 2028-07-31 | AB8: 2028-08-31 | AC8: 2028-09-30 | AD8: 2028-10-31 | AE8: 2028-11-30 | AF8: 2028-12-31 | AG8: 2029-01-31 | AH8: 2029-02-28 | AI8: 2029-03-31 | AJ8: 2029-04-30 | AK8: 2029-05-31 | AL8: 2029-06-30 | AM8: 2029-07-31 | AN8: 2029-08-31 | AO8: 2029-09-30 | AP8: 2029-10-31 | AQ8: 2029-11-30 | AR8: 2029-12-31 | AS8: 2030-01-31 | AT8: 2030-02-28 | AU8: 2030-03-31 | AV8: 2030-04-30 | AW8: 2030-05-31 | AX8: 2030-06-30 | AY8: 2030-07-31 | AZ8: 2030-08-31 | BA8: 2030-09-30 | BB8: 2030-10-31 | BC8: 2030-11-30 | BD8: 2030-12-31 | BE8: 2031-01-31 | BF8: 2031-02-28 | BG8: 2031-03-31 | BH8: 2031-04-30 | BI8: 2031-05-31 | BJ8: 2031-06-30 | BK8: 2031-07-31 | BL8: 2031-08-31 | BM8: 2031-09-30 | BN8: 2031-10-31 | BO8: 2031-11-30 | BP8: 2031-12-31 | BQ8: 2032-01-31 | BR8: 2032-02-29 | BS8: 2032-03-31 | BT8: 2032-04-30 | BU8: 2032-05-31 | BV8: =EOMONTH(BV7,0) -> 2032-06-30 | BW8: 2032-07-31 | BX8: 2032-08-31 | BY8: 2032-09-30 | BZ8: 2032-10-31 | CA8: 2032-11-30 | CB8: 2032-12-31 | CC8: 2033-01-31 | CD8: 2033-02-28 | CE8: 2033-03-31 | CF8: 2033-04-30 | CG8: 2033-05-31 | CH8: 2033-06-30 | CI8: 2033-07-31 | CJ8: 2033-08-31 | CK8: 2033-09-30 | CL8: 2033-10-31 | CM8: 2033-11-30 | CN8: 2033-12-31 | CO8: 2034-01-31 | CP8: 2034-02-28 | CQ8: 2034-03-31 | CR8: 2034-04-30 | CS8: 2034-05-31 | CT8: 2034-06-30 | CU8: 2034-07-31 | CV8: 2034-08-31 | CW8: 2034-09-30 | CX8: 2034-10-31 | CY8: 2034-11-30 | CZ8: 2034-12-31 | DA8: 2035-01-31 | DB8: 2035-02-28 | DC8: 2035-03-31 | DD8: 2035-04-30 | DE8: 2035-05-31 | DF8: 2035-06-30 | DG8: 2035-07-31 | DH8: 2035-08-31 | DI8: 2035-09-30 | DJ8: 2035-10-31 | DK8: 2035-11-30 | DL8: 2035-12-31 | DM8: 2036-01-31 | DN8: 2036-02-29 | DO8: 2036-03-31 | DP8: 2036-04-30 | DQ8: 2036-05-31 | DR8: 2036-06-30 | DS8: 2036-07-31 | DT8: 2036-08-31 | DU8: 2036-09-30 | DV8: 2036-10-31 | DW8: 2036-11-30 | DX8: 2036-12-31 | DY8: 2037-01-31 | DZ8: 2037-02-28 | EA8: 2037-03-31 | EB8: 2037-04-30 | EC8: 2037-05-31 | ED8: 2037-06-30 | EE8: 2037-07-31 | EF8: 2037-08-31 | EG8: 2037-09-30 | EH8: =EOMONTH(EH7,0) -> 2037-10-31 | EI8: 2037-11-30 | EJ8: 2037-12-31 | EK8: 2038-01-31 | EL8: 2038-02-28 | EM8: 2038-03-31 | EN8: 2038-04-30 | EO8: 2038-05-31 | EP8: 2038-06-30 | EQ8: 2038-07-31 | ER8: 2038-08-31 | ES8: 2038-09-30 | ET8: 2038-10-31 | EU8: 2038-11-30 | EV8: 2038-12-31 | EW8: 2039-01-31 | EX8: 2039-02-28 | EY8: 2039-03-31 | EZ8: 2039-04-30 | FA8: 2039-05-31 | FB8: 2039-06-30 | FC8: 2039-07-31 | FD8: 2039-08-31 | FE8: 2039-09-30 | FF8: 2039-10-31 | FG8: 2039-11-30 | FH8: 2039-12-31 | FI8: 2040-01-31 | FJ8: 2040-02-29 | FK8: 2040-03-31 | FL8: 2040-04-30 | FM8: 2040-05-31 | FN8: 2040-06-30 | FO8: 2040-07-31 | FP8: 2040-08-31 | FQ8: 2040-09-30 | FR8: 2040-10-31 | FS8: 2040-11-30 | FT8: 2040-12-31 | FU8: 2041-01-31 | FV8: 2041-02-28 | FW8: 2041-03-31 | FX8: 2041-04-30 | FY8: 2041-05-31 | FZ8: 2041-06-30 | GA8: 2041-07-31 | GB8: 2041-08-31 | GC8: 2041-09-30 | GD8: 2041-10-31 | GE8: 2041-11-30 | GF8: 2041-12-31 | GG8: 2042-01-31 | GH8: 2042-02-28 | GI8: 2042-03-31 | GJ8: 2042-04-30 | GK8: 2042-05-31 | GL8: 2042-06-30 | GM8: 2042-07-31 | GN8: 2042-08-31 | GO8: 2042-09-30 | GP8: 2042-10-31 | GQ8: 2042-11-30 | GR8: 2042-12-31 | GS8: 2043-01-31 | GT8: =EOMONTH(GT7,0) -> 2043-02-28 | GU8: 2043-03-31 | GV8: 2043-04-30 | GW8: 2043-05-31 | GX8: 2043-06-30 | GY8: 2043-07-31 | GZ8: 2043-08-31 | HA8: 2043-09-30 | HB8: 2043-10-31 | HC8: 2043-11-30 | HD8: 2043-12-31 | HE8: 2044-01-31 | HF8: 2044-02-29 | HG8: 2044-03-31 | HH8: 2044-04-30 | HI8: 2044-05-31 | HJ8: 2044-06-30 | HK8: 2044-07-31 | HL8: 2044-08-31 | HM8: 2044-09-30 | HN8: 2044-10-31 | HO8: 2044-11-30 | HP8: 2044-12-31 | HQ8: 2045-01-31 | HR8: 2045-02-28 | HS8: 2045-03-31 | HT8: 2045-04-30 | HU8: 2045-05-31 | HV8: 2045-06-30 | HW8: 2045-07-31 | HX8: 2045-08-31 | HY8: 2045-09-30 | HZ8: 2045-10-31 | IA8: 2045-11-30 | IB8: 2045-12-31 | IC8: 2046-01-31 | ID8: 2046-02-28 | IE8: 2046-03-31 | IF8: 2046-04-30 | IG8: 2046-05-31 | IH8: 2046-06-30 | II8: 2046-07-31 | IJ8: 2046-08-31 | IK8: 2046-09-30 | IL8: 2046-10-31 | IM8: 2046-11-30 | IN8: 2046-12-31 | IO8: 2047-01-31 | IP8: 2047-02-28 | IQ8: 2047-03-31 | IR8: 2047-04-30 | IS8: 2047-05-31 | IT8: 2047-06-30 | IU8: 2047-07-31 | IV8: 2047-08-31 | IW8: 2047-09-30 | IX8: 2047-10-31 | IY8: 2047-11-30 | IZ8: 2047-12-31 | JA8: 2048-01-31 | JB8: 2048-02-29 | JC8: 2048-03-31 | JD8: 2048-04-30 | JE8: 2048-05-31 | JF8: =EOMONTH(JF7,0) -> 2048-06-30 | JG8: 2048-07-31 | JH8: 2048-08-31 | JI8: 2048-09-30 | JJ8: 2048-10-31 | JK8: 2048-11-30 | JL8: 2048-12-31 | JM8: 2049-01-31 | JN8: 2049-02-28 | JO8: 2049-03-31 | JP8: 2049-04-30 | JQ8: 2049-05-31 | JR8: 2049-06-30 | JS8: 2049-07-31 | JT8: 2049-08-31 | JU8: 2049-09-30 | JV8: 2049-10-31 | JW8: 2049-11-30 | JX8: 2049-12-31 | JY8: 2050-01-31 | JZ8: 2050-02-28 | KA8: 2050-03-31 | KB8: 2050-04-30 | KC8: 2050-05-31 | KD8: 2050-06-30 | KE8: 2050-07-31 | KF8: 2050-08-31 | KG8: 2050-09-30 | KH8: 2050-10-31 | KI8: 2050-11-30 | KJ8: 2050-12-31 | KK8: 2051-01-31 | KL8: 2051-02-28 | KM8: 2051-03-31 | KN8: 2051-04-30 | KO8: 2051-05-31 | KP8: 2051-06-30 | KQ8: 2051-07-31 | KR8: 2051-08-31 | KS8: 2051-09-30 | KT8: 2051-10-31 | KU8: 2051-11-30 | KV8: 2051-12-31
C9: Operation period | E9: Flag | F9: =InputC!G8 -> 2027-09-01 | G9: =InputC!G10 -> 2033-09-30 | H9: =SUM(I9:KV9) -> 72 | I9: =(AND(I7>=$F$9,I8<$G$9))*1 -> 0 | J9: =(AND(J7>=$F$9,J8<$G$9))*1 -> 0 | K9: 0 | L9: 0 | M9: 0 | N9: 0 | O9: 0 | P9: 0 | Q9: 1 | R9: 1 | S9: 1 | T9: 1 | U9: 1 | V9: 1 | W9: 1 | X9: 1 | Y9: 1 | Z9: 1 | AA9: 1 | AB9: 1 | AC9: 1 | AD9: 1 | AE9: 1 | AF9: 1 | AG9: 1 | AH9: 1 | AI9: 1 | AJ9: 1 | AK9: 1 | AL9: 1 | AM9: 1 | AN9: 1 | AO9: 1 | AP9: 1 | AQ9: 1 | AR9: 1 | AS9: 1 | AT9: 1 | AU9: 1 | AV9: 1 | AW9: 1 | AX9: 1 | AY9: 1 | AZ9: 1 | BA9: 1 | BB9: 1 | BC9: 1 | BD9: 1 | BE9: 1 | BF9: 1 | BG9: 1 | BH9: 1 | BI9: 1 | BJ9: 1 | BK9: 1 | BL9: 1 | BM9: 1 | BN9: 1 | BO9: 1 | BP9: 1 | BQ9: 1 | BR9: 1 | BS9: 1 | BT9: 1 | BU9: 1 | BV9: =(AND(BV7>=$F$9,BV8<$G$9))*1 -> 1 | BW9: 1 | BX9: 1 | BY9: 1 | BZ9: 1 | CA9: 1 | CB9: 1 | CC9: 1 | CD9: 1 | CE9: 1 | CF9: 1 | CG9: 1 | CH9: 1 | CI9: 1 | CJ9: 1 | CK9: 0 | CL9: 0 | CM9: 0 | CN9: 0 | CO9: 0 | CP9: 0 | CQ9: 0 | CR9: 0 | CS9: 0 | CT9: 0 | CU9: 0 | CV9: 0 | CW9: 0 | CX9: 0 | CY9: 0 | CZ9: 0 | DA9: 0 | DB9: 0 | DC9: 0 | DD9: 0 | DE9: 0 | DF9: 0 | DG9: 0 | DH9: 0 | DI9: 0 | DJ9: 0 | DK9: 0 | DL9: 0 | DM9: 0 | DN9: 0 | DO9: 0 | DP9: 0 | DQ9: 0 | DR9: 0 | DS9: 0 | DT9: 0 | DU9: 0 | DV9: 0 | DW9: 0 | DX9: 0 | DY9: 0 | DZ9: 0 | EA9: 0 | EB9: 0 | EC9: 0 | ED9: 0 | EE9: 0 | EF9: 0 | EG9: 0 | EH9: =(AND(EH7>=$F$9,EH8<$G$9))*1 -> 0 | EI9: 0 | EJ9: 0 | EK9: 0 | EL9: 0 | EM9: 0 | EN9: 0 | EO9: 0 | EP9: 0 | EQ9: 0 | ER9: 0 | ES9: 0 | ET9: 0 | EU9: 0 | EV9: 0 | EW9: 0 | EX9: 0 | EY9: 0 | EZ9: 0 | FA9: 0 | FB9: 0 | FC9: 0 | FD9: 0 | FE9: 0 | FF9: 0 | FG9: 0 | FH9: 0 | FI9: 0 | FJ9: 0 | FK9: 0 | FL9: 0 | FM9: 0 | FN9: 0 | FO9: 0 | FP9: 0 | FQ9: 0 | FR9: 0 | FS9: 0 | FT9: 0 | FU9: 0 | FV9: 0 | FW9: 0 | FX9: 0 | FY9: 0 | FZ9: 0 | GA9: 0 | GB9: 0 | GC9: 0 | GD9: 0 | GE9: 0 | GF9: 0 | GG9: 0 | GH9: 0 | GI9: 0 | GJ9: 0 | GK9: 0 | GL9: 0 | GM9: 0 | GN9: 0 | GO9: 0 | GP9: 0 | GQ9: 0 | GR9: 0 | GS9: 0 | GT9: =(AND(GT7>=$F$9,GT8<$G$9))*1 -> 0 | GU9: 0 | GV9: 0 | GW9: 0 | GX9: 0 | GY9: 0 | GZ9: 0 | HA9: 0 | HB9: 0 | HC9: 0 | HD9: 0 | HE9: 0 | HF9: 0 | HG9: 0 | HH9: 0 | HI9: 0 | HJ9: 0 | HK9: 0 | HL9: 0 | HM9: 0 | HN9: 0 | HO9: 0 | HP9: 0 | HQ9: 0 | HR9: 0 | HS9: 0 | HT9: 0 | HU9: 0 | HV9: 0 | HW9: 0 | HX9: 0 | HY9: 0 | HZ9: 0 | IA9: 0 | IB9: 0 | IC9: 0 | ID9: 0 | IE9: 0 | IF9: 0 | IG9: 0 | IH9: 0 | II9: 0 | IJ9: 0 | IK9: 0 | IL9: 0 | IM9: 0 | IN9: 0 | IO9: 0 | IP9: 0 | IQ9: 0 | IR9: 0 | IS9: 0 | IT9: 0 | IU9: 0 | IV9: 0 | IW9: 0 | IX9: 0 | IY9: 0 | IZ9: 0 | JA9: 0 | JB9: 0 | JC9: 0 | JD9: 0 | JE9: 0 | JF9: =(AND(JF7>=$F$9,JF8<$G$9))*1 -> 0 | JG9: 0 | JH9: 0 | JI9: 0 | JJ9: 0 | JK9: 0 | JL9: 0 | JM9: 0 | JN9: 0 | JO9: 0 | JP9: 0 | JQ9: 0 | JR9: 0 | JS9: 0 | JT9: 0 | JU9: 0 | JV9: 0 | JW9: 0 | JX9: 0 | JY9: 0 | JZ9: 0 | KA9: 0 | KB9: 0 | KC9: 0 | KD9: 0 | KE9: 0 | KF9: 0 | KG9: 0 | KH9: 0 | KI9: 0 | KJ9: 0 | KK9: 0 | KL9: 0 | KM9: 0 | KN9: 0 | KO9: 0 | KP9: 0 | KQ9: 0 | KR9: 0 | KS9: 0 | KT9: 0 | KU9: 0 | KV9: 0
C10: Year | E10: Year | I10: =YEAR(I8) -> 2027 | J10: =YEAR(J8) -> 2027 | K10: 2027 | L10: 2027 | M10: 2027 | N10: 2027 | O10: 2027 | P10: 2027 | Q10: 2027 | R10: 2027 | S10: 2027 | T10: 2027 | U10: 2028 | V10: 2028 | W10: 2028 | X10: 2028 | Y10: 2028 | Z10: 2028 | AA10: 2028 | AB10: 2028 | AC10: 2028 | AD10: 2028 | AE10: 2028 | AF10: 2028 | AG10: 2029 | AH10: 2029 | AI10: 2029 | AJ10: 2029 | AK10: 2029 | AL10: 2029 | AM10: 2029 | AN10: 2029 | AO10: 2029 | AP10: 2029 | AQ10: 2029 | AR10: 2029 | AS10: 2030 | AT10: 2030 | AU10: 2030 | AV10: 2030 | AW10: 2030 | AX10: 2030 | AY10: 2030 | AZ10: 2030 | BA10: 2030 | BB10: 2030 | BC10: 2030 | BD10: 2030 | BE10: 2031 | BF10: 2031 | BG10: 2031 | BH10: 2031 | BI10: 2031 | BJ10: 2031 | BK10: 2031 | BL10: 2031 | BM10: 2031 | BN10: 2031 | BO10: 2031 | BP10: 2031 | BQ10: 2032 | BR10: 2032 | BS10: 2032 | BT10: 2032 | BU10: 2032 | BV10: =YEAR(BV8) -> 2032 | BW10: 2032 | BX10: 2032 | BY10: 2032 | BZ10: 2032 | CA10: 2032 | CB10: 2032 | CC10: 2033 | CD10: 2033 | CE10: 2033 | CF10: 2033 | CG10: 2033 | CH10: 2033 | CI10: 2033 | CJ10: 2033 | CK10: 2033 | CL10: 2033 | CM10: 2033 | CN10: 2033 | CO10: 2034 | CP10: 2034 | CQ10: 2034 | CR10: 2034 | CS10: 2034 | CT10: 2034 | CU10: 2034 | CV10: 2034 | CW10: 2034 | CX10: 2034 | CY10: 2034 | CZ10: 2034 | DA10: 2035 | DB10: 2035 | DC10: 2035 | DD10: 2035 | DE10: 2035 | DF10: 2035 | DG10: 2035 | DH10: 2035 | DI10: 2035 | DJ10: 2035 | DK10: 2035 | DL10: 2035 | DM10: 2036 | DN10: 2036 | DO10: 2036 | DP10: 2036 | DQ10: 2036 | DR10: 2036 | DS10: 2036 | DT10: 2036 | DU10: 2036 | DV10: 2036 | DW10: 2036 | DX10: 2036 | DY10: 2037 | DZ10: 2037 | EA10: 2037 | EB10: 2037 | EC10: 2037 | ED10: 2037 | EE10: 2037 | EF10: 2037 | EG10: 2037 | EH10: =YEAR(EH8) -> 2037 | EI10: 2037 | EJ10: 2037 | EK10: 2038 | EL10: 2038 | EM10: 2038 | EN10: 2038 | EO10: 2038 | EP10: 2038 | EQ10: 2038 | ER10: 2038 | ES10: 2038 | ET10: 2038 | EU10: 2038 | EV10: 2038 | EW10: 2039 | EX10: 2039 | EY10: 2039 | EZ10: 2039 | FA10: 2039 | FB10: 2039 | FC10: 2039 | FD10: 2039 | FE10: 2039 | FF10: 2039 | FG10: 2039 | FH10: 2039 | FI10: 2040 | FJ10: 2040 | FK10: 2040 | FL10: 2040 | FM10: 2040 | FN10: 2040 | FO10: 2040 | FP10: 2040 | FQ10: 2040 | FR10: 2040 | FS10: 2040 | FT10: 2040 | FU10: 2041 | FV10: 2041 | FW10: 2041 | FX10: 2041 | FY10: 2041 | FZ10: 2041 | GA10: 2041 | GB10: 2041 | GC10: 2041 | GD10: 2041 | GE10: 2041 | GF10: 2041 | GG10: 2042 | GH10: 2042 | GI10: 2042 | GJ10: 2042 | GK10: 2042 | GL10: 2042 | GM10: 2042 | GN10: 2042 | GO10: 2042 | GP10: 2042 | GQ10: 2042 | GR10: 2042 | GS10: 2043 | GT10: =YEAR(GT8) -> 2043 | GU10: 2043 | GV10: 2043 | GW10: 2043 | GX10: 2043 | GY10: 2043 | GZ10: 2043 | HA10: 2043 | HB10: 2043 | HC10: 2043 | HD10: 2043 | HE10: 2044 | HF10: 2044 | HG10: 2044 | HH10: 2044 | HI10: 2044 | HJ10: 2044 | HK10: 2044 | HL10: 2044 | HM10: 2044 | HN10: 2044 | HO10: 2044 | HP10: 2044 | HQ10: 2045 | HR10: 2045 | HS10: 2045 | HT10: 2045 | HU10: 2045 | HV10: 2045 | HW10: 2045 | HX10: 2045 | HY10: 2045 | HZ10: 2045 | IA10: 2045 | IB10: 2045 | IC10: 2046 | ID10: 2046 | IE10: 2046 | IF10: 2046 | IG10: 2046 | IH10: 2046 | II10: 2046 | IJ10: 2046 | IK10: 2046 | IL10: 2046 | IM10: 2046 | IN10: 2046 | IO10: 2047 | IP10: 2047 | IQ10: 2047 | IR10: 2047 | IS10: 2047 | IT10: 2047 | IU10: 2047 | IV10: 2047 | IW10: 2047 | IX10: 2047 | IY10: 2047 | IZ10: 2047 | JA10: 2048 | JB10: 2048 | JC10: 2048 | JD10: 2048 | JE10: 2048 | JF10: =YEAR(JF8) -> 2048 | JG10: 2048 | JH10: 2048 | JI10: 2048 | JJ10: 2048 | JK10: 2048 | JL10: 2048 | JM10: 2049 | JN10: 2049 | JO10: 2049 | JP10: 2049 | JQ10: 2049 | JR10: 2049 | JS10: 2049 | JT10: 2049 | JU10: 2049 | JV10: 2049 | JW10: 2049 | JX10: 2049 | JY10: 2050 | JZ10: 2050 | KA10: 2050 | KB10: 2050 | KC10: 2050 | KD10: 2050 | KE10: 2050 | KF10: 2050 | KG10: 2050 | KH10: 2050 | KI10: 2050 | KJ10: 2050 | KK10: 2051 | KL10: 2051 | KM10: 2051 | KN10: 2051 | KO10: 2051 | KP10: 2051 | KQ10: 2051 | KR10: 2051 | KS10: 2051 | KT10: 2051 | KU10: 2051 | KV10: 2051
B12: Operations
C14: MW of data center | E14: MW IT | F14: =InputC!G14 -> 150 | I14: =$F$14*I9 -> 0 | J14: 0 | K14: 0 | L14: 0 | M14: 0 | N14: 0 | O14: 0 | P14: 0 | Q14: 150 | R14: 150 | S14: 150 | T14: 150 | U14: 150 | V14: 150 | W14: 150 | X14: 150 | Y14: 150 | Z14: 150 | AA14: 150 | AB14: 150 | AC14: 150 | AD14: 150 | AE14: 150 | AF14: 150 | AG14: 150 | AH14: 150 | AI14: 150 | AJ14: 150 | AK14: 150 | AL14: 150 | AM14: 150 | AN14: 150 | AO14: 150 | AP14: 150 | AQ14: 150 | AR14: 150 | AS14: 150 | AT14: 150 | AU14: 150 | AV14: 150 | AW14: 150 | AX14: 150 | AY14: 150 | AZ14: 150 | BA14: 150 | BB14: 150 | BC14: 150 | BD14: 150 | BE14: 150 | BF14: 150 | BG14: 150 | BH14: 150 | BI14: 150 | BJ14: 150 | BK14: 150 | BL14: 150 | BM14: 150 | BN14: 150 | BO14: 150 | BP14: 150 | BQ14: 150 | BR14: 150 | BS14: 150 | BT14: 150 | BU14: =$F$14*BU9 -> 150 | BV14: 150 | BW14: 150 | BX14: 150 | BY14: 150 | BZ14: 150 | CA14: 150 | CB14: 150 | CC14: 150 | CD14: 150 | CE14: 150 | CF14: 150 | CG14: 150 | CH14: 150 | CI14: 150 | CJ14: 150 | CK14: 0 | CL14: 0 | CM14: 0 | CN14: 0 | CO14: 0 | CP14: 0 | CQ14: 0 | CR14: 0 | CS14: 0 | CT14: 0 | CU14: 0 | CV14: 0 | CW14: 0 | CX14: 0 | CY14: 0 | CZ14: 0 | DA14: 0 | DB14: 0 | DC14: 0 | DD14: 0 | DE14: 0 | DF14: 0 | DG14: 0 | DH14: 0 | DI14: 0 | DJ14: 0 | DK14: 0 | DL14: 0 | DM14: 0 | DN14: 0 | DO14: 0 | DP14: 0 | DQ14: 0 | DR14: 0 | DS14: 0 | DT14: 0 | DU14: 0 | DV14: 0 | DW14: 0 | DX14: 0 | DY14: 0 | DZ14: 0 | EA14: 0 | EB14: 0 | EC14: 0 | ED14: 0 | EE14: 0 | EF14: 0 | EG14: =$F$14*EG9 -> 0 | EH14: 0 | EI14: 0 | EJ14: 0 | EK14: 0 | EL14: 0 | EM14: 0 | EN14: 0 | EO14: 0 | EP14: 0 | EQ14: 0 | ER14: 0 | ES14: 0 | ET14: 0 | EU14: 0 | EV14: 0 | EW14: 0 | EX14: 0 | EY14: 0 | EZ14: 0 | FA14: 0 | FB14: 0 | FC14: 0 | FD14: 0 | FE14: 0 | FF14: 0 | FG14: 0 | FH14: 0 | FI14: 0 | FJ14: 0 | FK14: 0 | FL14: 0 | FM14: 0 | FN14: 0 | FO14: 0 | FP14: 0 | FQ14: 0 | FR14: 0 | FS14: 0 | FT14: 0 | FU14: 0 | FV14: 0 | FW14: 0 | FX14: 0 | FY14: 0 | FZ14: 0 | GA14: 0 | GB14: 0 | GC14: 0 | GD14: 0 | GE14: 0 | GF14: 0 | GG14: 0 | GH14: 0 | GI14: 0 | GJ14: 0 | GK14: 0 | GL14: 0 | GM14: 0 | GN14: 0 | GO14: 0 | GP14: 0 | GQ14: 0 | GR14: 0 | GS14: =$F$14*GS9 -> 0 | GT14: 0 | GU14: 0 | GV14: 0 | GW14: 0 | GX14: 0 | GY14: 0 | GZ14: 0 | HA14: 0 | HB14: 0 | HC14: 0 | HD14: 0 | HE14: 0 | HF14: 0 | HG14: 0 | HH14: 0 | HI14: 0 | HJ14: 0 | HK14: 0 | HL14: 0 | HM14: 0 | HN14: 0 | HO14: 0 | HP14: 0 | HQ14: 0 | HR14: 0 | HS14: 0 | HT14: 0 | HU14: 0 | HV14: 0 | HW14: 0 | HX14: 0 | HY14: 0 | HZ14: 0 | IA14: 0 | IB14: 0 | IC14: 0 | ID14: 0 | IE14: 0 | IF14: 0 | IG14: 0 | IH14: 0 | II14: 0 | IJ14: 0 | IK14: 0 | IL14: 0 | IM14: 0 | IN14: 0 | IO14: 0 | IP14: 0 | IQ14: 0 | IR14: 0 | IS14: 0 | IT14: 0 | IU14: 0 | IV14: 0 | IW14: 0 | IX14: 0 | IY14: 0 | IZ14: 0 | JA14: 0 | JB14: 0 | JC14: 0 | JD14: 0 | JE14: =$F$14*JE9 -> 0 | JF14: 0 | JG14: 0 | JH14: 0 | JI14: 0 | JJ14: 0 | JK14: 0 | JL14: 0 | JM14: 0 | JN14: 0 | JO14: 0 | JP14: 0 | JQ14: 0 | JR14: 0 | JS14: 0 | JT14: 0 | JU14: 0 | JV14: 0 | JW14: 0 | JX14: 0 | JY14: 0 | JZ14: 0 | KA14: 0 | KB14: 0 | KC14: 0 | KD14: 0 | KE14: 0 | KF14: 0 | KG14: 0 | KH14: 0 | KI14: 0 | KJ14: 0 | KK14: 0 | KL14: 0 | KM14: 0 | KN14: 0 | KO14: 0 | KP14: 0 | KQ14: 0 | KR14: 0 | KS14: 0 | KT14: 0 | KU14: 0 | KV14: 0
C15: Number of days | E15: Days | I15: =I8-I7+1 -> 31 | J15: =J8-J7+1 -> 28 | K15: 31 | L15: 30 | M15: 31 | N15: 30 | O15: 31 | P15: 31 | Q15: 30 | R15: 31 | S15: 30 | T15: 31 | U15: 31 | V15: 29 | W15: 31 | X15: 30 | Y15: 31 | Z15: 30 | AA15: 31 | AB15: 31 | AC15: 30 | AD15: 31 | AE15: 30 | AF15: 31 | AG15: 31 | AH15: 28 | AI15: 31 | AJ15: 30 | AK15: 31 | AL15: 30 | AM15: 31 | AN15: 31 | AO15: 30 | AP15: 31 | AQ15: 30 | AR15: 31 | AS15: 31 | AT15: 28 | AU15: 31 | AV15: 30 | AW15: 31 | AX15: 30 | AY15: 31 | AZ15: 31 | BA15: 30 | BB15: 31 | BC15: 30 | BD15: 31 | BE15: 31 | BF15: 28 | BG15: 31 | BH15: 30 | BI15: 31 | BJ15: 30 | BK15: 31 | BL15: 31 | BM15: 30 | BN15: 31 | BO15: 30 | BP15: 31 | BQ15: 31 | BR15: 29 | BS15: 31 | BT15: 30 | BU15: 31 | BV15: =BV8-BV7+1 -> 30 | BW15: 31 | BX15: 31 | BY15: 30 | BZ15: 31 | CA15: 30 | CB15: 31 | CC15: 31 | CD15: 28 | CE15: 31 | CF15: 30 | CG15: 31 | CH15: 30 | CI15: 31 | CJ15: 31 | CK15: 30 | CL15: 31 | CM15: 30 | CN15: 31 | CO15: 31 | CP15: 28 | CQ15: 31 | CR15: 30 | CS15: 31 | CT15: 30 | CU15: 31 | CV15: 31 | CW15: 30 | CX15: 31 | CY15: 30 | CZ15: 31 | DA15: 31 | DB15: 28 | DC15: 31 | DD15: 30 | DE15: 31 | DF15: 30 | DG15: 31 | DH15: 31 | DI15: 30 | DJ15: 31 | DK15: 30 | DL15: 31 | DM15: 31 | DN15: 29 | DO15: 31 | DP15: 30 | DQ15: 31 | DR15: 30 | DS15: 31 | DT15: 31 | DU15: 30 | DV15: 31 | DW15: 30 | DX15: 31 | DY15: 31 | DZ15: 28 | EA15: 31 | EB15: 30 | EC15: 31 | ED15: 30 | EE15: 31 | EF15: 31 | EG15: 30 | EH15: =EH8-EH7+1 -> 31 | EI15: 30 | EJ15: 31 | EK15: 31 | EL15: 28 | EM15: 31 | EN15: 30 | EO15: 31 | EP15: 30 | EQ15: 31 | ER15: 31 | ES15: 30 | ET15: 31 | EU15: 30 | EV15: 31 | EW15: 31 | EX15: 28 | EY15: 31 | EZ15: 30 | FA15: 31 | FB15: 30 | FC15: 31 | FD15: 31 | FE15: 30 | FF15: 31 | FG15: 30 | FH15: 31 | FI15: 31 | FJ15: 29 | FK15: 31 | FL15: 30 | FM15: 31 | FN15: 30 | FO15: 31 | FP15: 31 | FQ15: 30 | FR15: 31 | FS15: 30 | FT15: 31 | FU15: 31 | FV15: 28 | FW15: 31 | FX15: 30 | FY15: 31 | FZ15: 30 | GA15: 31 | GB15: 31 | GC15: 30 | GD15: 31 | GE15: 30 | GF15: 31 | GG15: 31 | GH15: 28 | GI15: 31 | GJ15: 30 | GK15: 31 | GL15: 30 | GM15: 31 | GN15: 31 | GO15: 30 | GP15: 31 | GQ15: 30 | GR15: 31 | GS15: 31 | GT15: =GT8-GT7+1 -> 28 | GU15: 31 | GV15: 30 | GW15: 31 | GX15: 30 | GY15: 31 | GZ15: 31 | HA15: 30 | HB15: 31 | HC15: 30 | HD15: 31 | HE15: 31 | HF15: 29 | HG15: 31 | HH15: 30 | HI15: 31 | HJ15: 30 | HK15: 31 | HL15: 31 | HM15: 30 | HN15: 31 | HO15: 30 | HP15: 31 | HQ15: 31 | HR15: 28 | HS15: 31 | HT15: 30 | HU15: 31 | HV15: 30 | HW15: 31 | HX15: 31 | HY15: 30 | HZ15: 31 | IA15: 30 | IB15: 31 | IC15: 31 | ID15: 28 | IE15: 31 | IF15: 30 | IG15: 31 | IH15: 30 | II15: 31 | IJ15: 31 | IK15: 30 | IL15: 31 | IM15: 30 | IN15: 31 | IO15: 31 | IP15: 28 | IQ15: 31 | IR15: 30 | IS15: 31 | IT15: 30 | IU15: 31 | IV15: 31 | IW15: 30 | IX15: 31 | IY15: 30 | IZ15: 31 | JA15: 31 | JB15: 29 | JC15: 31 | JD15: 30 | JE15: 31 | JF15: =JF8-JF7+1 -> 30 | JG15: 31 | JH15: 31 | JI15: 30 | JJ15: 31 | JK15: 30 | JL15: 31 | JM15: 31 | JN15: 28 | JO15: 31 | JP15: 30 | JQ15: 31 | JR15: 30 | JS15: 31 | JT15: 31 | JU15: 30 | JV15: 31 | JW15: 30 | JX15: 31 | JY15: 31 | JZ15: 28 | KA15: 31 | KB15: 30 | KC15: 31 | KD15: 30 | KE15: 31 | KF15: 31 | KG15: 30 | KH15: 31 | KI15: 30 | KJ15: 31 | KK15: 31 | KL15: 28 | KM15: 31 | KN15: 30 | KO15: 31 | KP15: 30 | KQ15: 31 | KR15: 31 | KS15: 30 | KT15: 31 | KU15: 30 | KV15: 31
C16: Number of hours | E16: Hours | I16: =I15*24 -> 744 | J16: =J15*24 -> 672 | K16: 744 | L16: 720 | M16: 744 | N16: 720 | O16: 744 | P16: 744 | Q16: 720 | R16: 744 | S16: 720 | T16: 744 | U16: 744 | V16: 696 | W16: 744 | X16: 720 | Y16: 744 | Z16: 720 | AA16: 744 | AB16: 744 | AC16: 720 | AD16: 744 | AE16: 720 | AF16: 744 | AG16: 744 | AH16: 672 | AI16: 744 | AJ16: 720 | AK16: 744 | AL16: 720 | AM16: 744 | AN16: 744 | AO16: 720 | AP16: 744 | AQ16: 720 | AR16: 744 | AS16: 744 | AT16: 672 | AU16: 744 | AV16: 720 | AW16: 744 | AX16: 720 | AY16: 744 | AZ16: 744 | BA16: 720 | BB16: 744 | BC16: 720 | BD16: 744 | BE16: 744 | BF16: 672 | BG16: 744 | BH16: 720 | BI16: 744 | BJ16: 720 | BK16: 744 | BL16: 744 | BM16: 720 | BN16: 744 | BO16: 720 | BP16: 744 | BQ16: 744 | BR16: 696 | BS16: 744 | BT16: 720 | BU16: 744 | BV16: =BV15*24 -> 720 | BW16: 744 | BX16: 744 | BY16: 720 | BZ16: 744 | CA16: 720 | CB16: 744 | CC16: 744 | CD16: 672 | CE16: 744 | CF16: 720 | CG16: 744 | CH16: 720 | CI16: 744 | CJ16: 744 | CK16: 720 | CL16: 744 | CM16: 720 | CN16: 744 | CO16: 744 | CP16: 672 | CQ16: 744 | CR16: 720 | CS16: 744 | CT16: 720 | CU16: 744 | CV16: 744 | CW16: 720 | CX16: 744 | CY16: 720 | CZ16: 744 | DA16: 744 | DB16: 672 | DC16: 744 | DD16: 720 | DE16: 744 | DF16: 720 | DG16: 744 | DH16: 744 | DI16: 720 | DJ16: 744 | DK16: 720 | DL16: 744 | DM16: 744 | DN16: 696 | DO16: 744 | DP16: 720 | DQ16: 744 | DR16: 720 | DS16: 744 | DT16: 744 | DU16: 720 | DV16: 744 | DW16: 720 | DX16: 744 | DY16: 744 | DZ16: 672 | EA16: 744 | EB16: 720 | EC16: 744 | ED16: 720 | EE16: 744 | EF16: 744 | EG16: 720 | EH16: =EH15*24 -> 744 | EI16: 720 | EJ16: 744 | EK16: 744 | EL16: 672 | EM16: 744 | EN16: 720 | EO16: 744 | EP16: 720 | EQ16: 744 | ER16: 744 | ES16: 720 | ET16: 744 | EU16: 720 | EV16: 744 | EW16: 744 | EX16: 672 | EY16: 744 | EZ16: 720 | FA16: 744 | FB16: 720 | FC16: 744 | FD16: 744 | FE16: 720 | FF16: 744 | FG16: 720 | FH16: 744 | FI16: 744 | FJ16: 696 | FK16: 744 | FL16: 720 | FM16: 744 | FN16: 720 | FO16: 744 | FP16: 744 | FQ16: 720 | FR16: 744 | FS16: 720 | FT16: 744 | FU16: 744 | FV16: 672 | FW16: 744 | FX16: 720 | FY16: 744 | FZ16: 720 | GA16: 744 | GB16: 744 | GC16: 720 | GD16: 744 | GE16: 720 | GF16: 744 | GG16: 744 | GH16: 672 | GI16: 744 | GJ16: 720 | GK16: 744 | GL16: 720 | GM16: 744 | GN16: 744 | GO16: 720 | GP16: 744 | GQ16: 720 | GR16: 744 | GS16: 744 | GT16: =GT15*24 -> 672 | GU16: 744 | GV16: 720 | GW16: 744 | GX16: 720 | GY16: 744 | GZ16: 744 | HA16: 720 | HB16: 744 | HC16: 720 | HD16: 744 | HE16: 744 | HF16: 696 | HG16: 744 | HH16: 720 | HI16: 744 | HJ16: 720 | HK16: 744 | HL16: 744 | HM16: 720 | HN16: 744 | HO16: 720 | HP16: 744 | HQ16: 744 | HR16: 672 | HS16: 744 | HT16: 720 | HU16: 744 | HV16: 720 | HW16: 744 | HX16: 744 | HY16: 720 | HZ16: 744 | IA16: 720 | IB16: 744 | IC16: 744 | ID16: 672 | IE16: 744 | IF16: 720 | IG16: 744 | IH16: 720 | II16: 744 | IJ16: 744 | IK16: 720 | IL16: 744 | IM16: 720 | IN16: 744 | IO16: 744 | IP16: 672 | IQ16: 744 | IR16: 720 | IS16: 744 | IT16: 720 | IU16: 744 | IV16: 744 | IW16: 720 | IX16: 744 | IY16: 720 | IZ16: 744 | JA16: 744 | JB16: 696 | JC16: 744 | JD16: 720 | JE16: 744 | JF16: =JF15*24 -> 720 | JG16: 744 | JH16: 744 | JI16: 720 | JJ16: 744 | JK16: 720 | JL16: 744 | JM16: 744 | JN16: 672 | JO16: 744 | JP16: 720 | JQ16: 744 | JR16: 720 | JS16: 744 | JT16: 744 | JU16: 720 | JV16: 744 | JW16: 720 | JX16: 744 | JY16: 744 | JZ16: 672 | KA16: 744 | KB16: 720 | KC16: 744 | KD16: 720 | KE16: 744 | KF16: 744 | KG16: 720 | KH16: 744 | KI16: 720 | KJ16: 744 | KK16: 744 | KL16: 672 | KM16: 744 | KN16: 720 | KO16: 744 | KP16: 720 | KQ16: 744 | KR16: 744 | KS16: 720 | KT16: 744 | KU16: 720 | KV16: 744
C17: MWh of IT Potential | E17: MWh | I17: =I16*I14 -> 0 | J17: 0 | K17: 0 | L17: 0 | M17: 0 | N17: 0 | O17: 0 | P17: 0 | Q17: 108000 | R17: 111600 | S17: 108000 | T17: 111600 | U17: 111600 | V17: 104400 | W17: 111600 | X17: 108000 | Y17: 111600 | Z17: 108000 | AA17: 111600 | AB17: 111600 | AC17: 108000 | AD17: 111600 | AE17: 108000 | AF17: 111600 | AG17: 111600 | AH17: 100800 | AI17: 111600 | AJ17: 108000 | AK17: 111600 | AL17: 108000 | AM17: 111600 | AN17: 111600 | AO17: 108000 | AP17: 111600 | AQ17: 108000 | AR17: 111600 | AS17: 111600 | AT17: 100800 | AU17: 111600 | AV17: 108000 | AW17: 111600 | AX17: 108000 | AY17: 111600 | AZ17: 111600 | BA17: 108000 | BB17: 111600 | BC17: 108000 | BD17: 111600 | BE17: 111600 | BF17: 100800 | BG17: 111600 | BH17: 108000 | BI17: 111600 | BJ17: 108000 | BK17: 111600 | BL17: 111600 | BM17: 108000 | BN17: 111600 | BO17: 108000 | BP17: 111600 | BQ17: 111600 | BR17: 104400 | BS17: 111600 | BT17: 108000 | BU17: =BU16*BU14 -> 111600 | BV17: 108000 | BW17: 111600 | BX17: 111600 | BY17: 108000 | BZ17: 111600 | CA17: 108000 | CB17: 111600 | CC17: 111600 | CD17: 100800 | CE17: 111600 | CF17: 108000 | CG17: 111600 | CH17: 108000 | CI17: 111600 | CJ17: 111600 | CK17: 0 | CL17: 0 | CM17: 0 | CN17: 0 | CO17: 0 | CP17: 0 | CQ17: 0 | CR17: 0 | CS17: 0 | CT17: 0 | CU17: 0 | CV17: 0 | CW17: 0 | CX17: 0 | CY17: 0 | CZ17: 0 | DA17: 0 | DB17: 0 | DC17: 0 | DD17: 0 | DE17: 0 | DF17: 0 | DG17: 0 | DH17: 0 | DI17: 0 | DJ17: 0 | DK17: 0 | DL17: 0 | DM17: 0 | DN17: 0 | DO17: 0 | DP17: 0 | DQ17: 0 | DR17: 0 | DS17: 0 | DT17: 0 | DU17: 0 | DV17: 0 | DW17: 0 | DX17: 0 | DY17: 0 | DZ17: 0 | EA17: 0 | EB17: 0 | EC17: 0 | ED17: 0 | EE17: 0 | EF17: 0 | EG17: =EG16*EG14 -> 0 | EH17: 0 | EI17: 0 | EJ17: 0 | EK17: 0 | EL17: 0 | EM17: 0 | EN17: 0 | EO17: 0 | EP17: 0 | EQ17: 0 | ER17: 0 | ES17: 0 | ET17: 0 | EU17: 0 | EV17: 0 | EW17: 0 | EX17: 0 | EY17: 0 | EZ17: 0 | FA17: 0 | FB17: 0 | FC17: 0 | FD17: 0 | FE17: 0 | FF17: 0 | FG17: 0 | FH17: 0 | FI17: 0 | FJ17: 0 | FK17: 0 | FL17: 0 | FM17: 0 | FN17: 0 | FO17: 0 | FP17: 0 | FQ17: 0 | FR17: 0 | FS17: 0 | FT17: 0 | FU17: 0 | FV17: 0 | FW17: 0 | FX17: 0 | FY17: 0 | FZ17: 0 | GA17: 0 | GB17: 0 | GC17: 0 | GD17: 0 | GE17: 0 | GF17: 0 | GG17: 0 | GH17: 0 | GI17: 0 | GJ17: 0 | GK17: 0 | GL17: 0 | GM17: 0 | GN17: 0 | GO17: 0 | GP17: 0 | GQ17: 0 | GR17: 0 | GS17: =GS16*GS14 -> 0 | GT17: 0 | GU17: 0 | GV17: 0 | GW17: 0 | GX17: 0 | GY17: 0 | GZ17: 0 | HA17: 0 | HB17: 0 | HC17: 0 | HD17: 0 | HE17: 0 | HF17: 0 | HG17: 0 | HH17: 0 | HI17: 0 | HJ17: 0 | HK17: 0 | HL17: 0 | HM17: 0 | HN17: 0 | HO17: 0 | HP17: 0 | HQ17: 0 | HR17: 0 | HS17: 0 | HT17: 0 | HU17: 0 | HV17: 0 | HW17: 0 | HX17: 0 | HY17: 0 | HZ17: 0 | IA17: 0 | IB17: 0 | IC17: 0 | ID17: 0 | IE17: 0 | IF17: 0 | IG17: 0 | IH17: 0 | II17: 0 | IJ17: 0 | IK17: 0 | IL17: 0 | IM17: 0 | IN17: 0 | IO17: 0 | IP17: 0 | IQ17: 0 | IR17: 0 | IS17: 0 | IT17: 0 | IU17: 0 | IV17: 0 | IW17: 0 | IX17: 0 | IY17: 0 | IZ17: 0 | JA17: 0 | JB17: 0 | JC17: 0 | JD17: 0 | JE17: =JE16*JE14 -> 0 | JF17: 0 | JG17: 0 | JH17: 0 | JI17: 0 | JJ17: 0 | JK17: 0 | JL17: 0 | JM17: 0 | JN17: 0 | JO17: 0 | JP17: 0 | JQ17: 0 | JR17: 0 | JS17: 0 | JT17: 0 | JU17: 0 | JV17: 0 | JW17: 0 | JX17: 0 | JY17: 0 | JZ17: 0 | KA17: 0 | KB17: 0 | KC17: 0 | KD17: 0 | KE17: 0 | KF17: 0 | KG17: 0 | KH17: 0 | KI17: 0 | KJ17: 0 | KK17: 0 | KL17: 0 | KM17: 0 | KN17: 0 | KO17: 0 | KP17: 0 | KQ17: 0 | KR17: 0 | KS17: 0 | KT17: 0 | KU17: 0 | KV17: 0
C18: MWh of IT Cooled | E18: MWh IT | F18: =InputC!G25 -> 0.9 | H18: =SUM(I18:XFD18) -> 7102080 | I18: =I17*$F$18 -> 0 | J18: =J17*$F$18 -> 0 | K18: 0 | L18: 0 | M18: 0 | N18: 0 | O18: 0 | P18: 0 | Q18: 97200 | R18: 100440 | S18: 97200 | T18: 100440 | U18: 100440 | V18: 93960 | W18: 100440 | X18: 97200 | Y18: 100440 | Z18: 97200 | AA18: 100440 | AB18: 100440 | AC18: 97200 | AD18: 100440 | AE18: 97200 | AF18: 100440 | AG18: 100440 | AH18: 90720 | AI18: 100440 | AJ18: 97200 | AK18: 100440 | AL18: 97200 | AM18: 100440 | AN18: 100440 | AO18: 97200 | AP18: 100440 | AQ18: 97200 | AR18: 100440 | AS18: 100440 | AT18: 90720 | AU18: 100440 | AV18: 97200 | AW18: 100440 | AX18: 97200 | AY18: 100440 | AZ18: 100440 | BA18: 97200 | BB18: 100440 | BC18: 97200 | BD18: 100440 | BE18: 100440 | BF18: 90720 | BG18: 100440 | BH18: 97200 | BI18: 100440 | BJ18: 97200 | BK18: 100440 | BL18: 100440 | BM18: 97200 | BN18: 100440 | BO18: 97200 | BP18: 100440 | BQ18: 100440 | BR18: 93960 | BS18: 100440 | BT18: 97200 | BU18: 100440 | BV18: =BV17*$F$18 -> 97200 | BW18: 100440 | BX18: 100440 | BY18: 97200 | BZ18: 100440 | CA18: 97200 | CB18: 100440 | CC18: 100440 | CD18: 90720 | CE18: 100440 | CF18: 97200 | CG18: 100440 | CH18: 97200 | CI18: 100440 | CJ18: 100440 | CK18: 0 | CL18: 0 | CM18: 0 | CN18: 0 | CO18: 0 | CP18: 0 | CQ18: 0 | CR18: 0 | CS18: 0 | CT18: 0 | CU18: 0 | CV18: 0 | CW18: 0 | CX18: 0 | CY18: 0 | CZ18: 0 | DA18: 0 | DB18: 0 | DC18: 0 | DD18: 0 | DE18: 0 | DF18: 0 | DG18: 0 | DH18: 0 | DI18: 0 | DJ18: 0 | DK18: 0 | DL18: 0 | DM18: 0 | DN18: 0 | DO18: 0 | DP18: 0 | DQ18: 0 | DR18: 0 | DS18: 0 | DT18: 0 | DU18: 0 | DV18: 0 | DW18: 0 | DX18: 0 | DY18: 0 | DZ18: 0 | EA18: 0 | EB18: 0 | EC18: 0 | ED18: 0 | EE18: 0 | EF18: 0 | EG18: 0 | EH18: =EH17*$F$18 -> 0 | EI18: 0 | EJ18: 0 | EK18: 0 | EL18: 0 | EM18: 0 | EN18: 0 | EO18: 0 | EP18: 0 | EQ18: 0 | ER18: 0 | ES18: 0 | ET18: 0 | EU18: 0 | EV18: 0 | EW18: 0 | EX18: 0 | EY18: 0 | EZ18: 0 | FA18: 0 | FB18: 0 | FC18: 0 | FD18: 0 | FE18: 0 | FF18: 0 | FG18: 0 | FH18: 0 | FI18: 0 | FJ18: 0 | FK18: 0 | FL18: 0 | FM18: 0 | FN18: 0 | FO18: 0 | FP18: 0 | FQ18: 0 | FR18: 0 | FS18: 0 | FT18: 0 | FU18: 0 | FV18: 0 | FW18: 0 | FX18: 0 | FY18: 0 | FZ18: 0 | GA18: 0 | GB18: 0 | GC18: 0 | GD18: 0 | GE18: 0 | GF18: 0 | GG18: 0 | GH18: 0 | GI18: 0 | GJ18: 0 | GK18: 0 | GL18: 0 | GM18: 0 | GN18: 0 | GO18: 0 | GP18: 0 | GQ18: 0 | GR18: 0 | GS18: 0 | GT18: =GT17*$F$18 -> 0 | GU18: 0 | GV18: 0 | GW18: 0 | GX18: 0 | GY18: 0 | GZ18: 0 | HA18: 0 | HB18: 0 | HC18: 0 | HD18: 0 | HE18: 0 | HF18: 0 | HG18: 0 | HH18: 0 | HI18: 0 | HJ18: 0 | HK18: 0 | HL18: 0 | HM18: 0 | HN18: 0 | HO18: 0 | HP18: 0 | HQ18: 0 | HR18: 0 | HS18: 0 | HT18: 0 | HU18: 0 | HV18: 0 | HW18: 0 | HX18: 0 | HY18: 0 | HZ18: 0 | IA18: 0 | IB18: 0 | IC18: 0 | ID18: 0 | IE18: 0 | IF18: 0 | IG18: 0 | IH18: 0 | II18: 0 | IJ18: 0 | IK18: 0 | IL18: 0 | IM18: 0 | IN18: 0 | IO18: 0 | IP18: 0 | IQ18: 0 | IR18: 0 | IS18: 0 | IT18: 0 | IU18: 0 | IV18: 0 | IW18: 0 | IX18: 0 | IY18: 0 | IZ18: 0 | JA18: 0 | JB18: 0 | JC18: 0 | JD18: 0 | JE18: 0 | JF18: =JF17*$F$18 -> 0 | JG18: 0 | JH18: 0 | JI18: 0 | JJ18: 0 | JK18: 0 | JL18: 0 | JM18: 0 | JN18: 0 | JO18: 0 | JP18: 0 | JQ18: 0 | JR18: 0 | JS18: 0 | JT18: 0 | JU18: 0 | JV18: 0 | JW18: 0 | JX18: 0 | JY18: 0 | JZ18: 0 | KA18: 0 | KB18: 0 | KC18: 0 | KD18: 0 | KE18: 0 | KF18: 0 | KG18: 0 | KH18: 0 | KI18: 0 | KJ18: 0 | KK18: 0 | KL18: 0 | KM18: 0 | KN18: 0 | KO18: 0 | KP18: 0 | KQ18: 0 | KR18: 0 | KS18: 0 | KT18: 0 | KU18: 0 | KV18: 0
C20: PUE without Degradation | E20: Purchased/Used | F20: =InputC!G27 -> 1.1 | I20: =$F$20 -> 1.1 | J20: =$F$20 -> 1.1 | K20: 1.1 | L20: 1.1 | M20: 1.1 | N20: 1.1 | O20: 1.1 | P20: 1.1 | Q20: 1.1 | R20: 1.1 | S20: 1.1 | T20: 1.1 | U20: 1.1 | V20: 1.1 | W20: 1.1 | X20: 1.1 | Y20: 1.1 | Z20: 1.1 | AA20: 1.1 | AB20: 1.1 | AC20: 1.1 | AD20: 1.1 | AE20: 1.1 | AF20: 1.1 | AG20: 1.1 | AH20: 1.1 | AI20: 1.1 | AJ20: 1.1 | AK20: 1.1 | AL20: 1.1 | AM20: 1.1 | AN20: 1.1 | AO20: 1.1 | AP20: 1.1 | AQ20: 1.1 | AR20: 1.1 | AS20: 1.1 | AT20: 1.1 | AU20: 1.1 | AV20: 1.1 | AW20: 1.1 | AX20: 1.1 | AY20: 1.1 | AZ20: 1.1 | BA20: 1.1 | BB20: 1.1 | BC20: 1.1 | BD20: 1.1 | BE20: 1.1 | BF20: 1.1 | BG20: 1.1 | BH20: 1.1 | BI20: 1.1 | BJ20: 1.1 | BK20: 1.1 | BL20: 1.1 | BM20: 1.1 | BN20: 1.1 | BO20: 1.1 | BP20: 1.1 | BQ20: 1.1 | BR20: 1.1 | BS20: 1.1 | BT20: 1.1 | BU20: 1.1 | BV20: =$F$20 -> 1.1 | BW20: 1.1 | BX20: 1.1 | BY20: 1.1 | BZ20: 1.1 | CA20: 1.1 | CB20: 1.1 | CC20: 1.1 | CD20: 1.1 | CE20: 1.1 | CF20: 1.1 | CG20: 1.1 | CH20: 1.1 | CI20: 1.1 | CJ20: 1.1 | CK20: 1.1 | CL20: 1.1 | CM20: 1.1 | CN20: 1.1 | CO20: 1.1 | CP20: 1.1 | CQ20: 1.1 | CR20: 1.1 | CS20: 1.1 | CT20: 1.1 | CU20: 1.1 | CV20: 1.1 | CW20: 1.1 | CX20: 1.1 | CY20: 1.1 | CZ20: 1.1 | DA20: 1.1 | DB20: 1.1 | DC20: 1.1 | DD20: 1.1 | DE20: 1.1 | DF20: 1.1 | DG20: 1.1 | DH20: 1.1 | DI20: 1.1 | DJ20: 1.1 | DK20: 1.1 | DL20: 1.1 | DM20: 1.1 | DN20: 1.1 | DO20: 1.1 | DP20: 1.1 | DQ20: 1.1 | DR20: 1.1 | DS20: 1.1 | DT20: 1.1 | DU20: 1.1 | DV20: 1.1 | DW20: 1.1 | DX20: 1.1 | DY20: 1.1 | DZ20: 1.1 | EA20: 1.1 | EB20: 1.1 | EC20: 1.1 | ED20: 1.1 | EE20: 1.1 | EF20: 1.1 | EG20: 1.1 | EH20: =$F$20 -> 1.1 | EI20: 1.1 | EJ20: 1.1 | EK20: 1.1 | EL20: 1.1 | EM20: 1.1 | EN20: 1.1 | EO20: 1.1 | EP20: 1.1 | EQ20: 1.1 | ER20: 1.1 | ES20: 1.1 | ET20: 1.1 | EU20: 1.1 | EV20: 1.1 | EW20: 1.1 | EX20: 1.1 | EY20: 1.1 | EZ20: 1.1 | FA20: 1.1 | FB20: 1.1 | FC20: 1.1 | FD20: 1.1 | FE20: 1.1 | FF20: 1.1 | FG20: 1.1 | FH20: 1.1 | FI20: 1.1 | FJ20: 1.1 | FK20: 1.1 | FL20: 1.1 | FM20: 1.1 | FN20: 1.1 | FO20: 1.1 | FP20: 1.1 | FQ20: 1.1 | FR20: 1.1 | FS20: 1.1 | FT20: 1.1 | FU20: 1.1 | FV20: 1.1 | FW20: 1.1 | FX20: 1.1 | FY20: 1.1 | FZ20: 1.1 | GA20: 1.1 | GB20: 1.1 | GC20: 1.1 | GD20: 1.1 | GE20: 1.1 | GF20: 1.1 | GG20: 1.1 | GH20: 1.1 | GI20: 1.1 | GJ20: 1.1 | GK20: 1.1 | GL20: 1.1 | GM20: 1.1 | GN20: 1.1 | GO20: 1.1 | GP20: 1.1 | GQ20: 1.1 | GR20: 1.1 | GS20: 1.1 | GT20: =$F$20 -> 1.1 | GU20: 1.1 | GV20: 1.1 | GW20: 1.1 | GX20: 1.1 | GY20: 1.1 | GZ20: 1.1 | HA20: 1.1 | HB20: 1.1 | HC20: 1.1 | HD20: 1.1 | HE20: 1.1 | HF20: 1.1 | HG20: 1.1 | HH20: 1.1 | HI20: 1.1 | HJ20: 1.1 | HK20: 1.1 | HL20: 1.1 | HM20: 1.1 | HN20: 1.1 | HO20: 1.1 | HP20: 1.1 | HQ20: 1.1 | HR20: 1.1 | HS20: 1.1 | HT20: 1.1 | HU20: 1.1 | HV20: 1.1 | HW20: 1.1 | HX20: 1.1 | HY20: 1.1 | HZ20: 1.1 | IA20: 1.1 | IB20: 1.1 | IC20: 1.1 | ID20: 1.1 | IE20: 1.1 | IF20: 1.1 | IG20: 1.1 | IH20: 1.1 | II20: 1.1 | IJ20: 1.1 | IK20: 1.1 | IL20: 1.1 | IM20: 1.1 | IN20: 1.1 | IO20: 1.1 | IP20: 1.1 | IQ20: 1.1 | IR20: 1.1 | IS20: 1.1 | IT20: 1.1 | IU20: 1.1 | IV20: 1.1 | IW20: 1.1 | IX20: 1.1 | IY20: 1.1 | IZ20: 1.1 | JA20: 1.1 | JB20: 1.1 | JC20: 1.1 | JD20: 1.1 | JE20: 1.1 | JF20: =$F$20 -> 1.1 | JG20: 1.1 | JH20: 1.1 | JI20: 1.1 | JJ20: 1.1 | JK20: 1.1 | JL20: 1.1 | JM20: 1.1 | JN20: 1.1 | JO20: 1.1 | JP20: 1.1 | JQ20: 1.1 | JR20: 1.1 | JS20: 1.1 | JT20: 1.1 | JU20: 1.1 | JV20: 1.1 | JW20: 1.1 | JX20: 1.1 | JY20: 1.1 | JZ20: 1.1 | KA20: 1.1 | KB20: 1.1 | KC20: 1.1 | KD20: 1.1 | KE20: 1.1 | KF20: 1.1 | KG20: 1.1 | KH20: 1.1 | KI20: 1.1 | KJ20: 1.1 | KK20: 1.1 | KL20: 1.1 | KM20: 1.1 | KN20: 1.1 | KO20: 1.1 | KP20: 1.1 | KQ20: 1.1 | KR20: 1.1 | KS20: 1.1 | KT20: 1.1 | KU20: 1.1 | KV20: 1.1
C21: PUE Degradation per Month | E21: PUE per month | F21: =InputC!G33 -> 0.007 | G21: =(1+F21)^(1/12)-1 -> 0.000581470133 | I21: =$G$21*I9 -> 0 | J21: =$G$21*J9 -> 0 | K21: 0 | L21: 0 | M21: 0 | N21: 0 | O21: 0 | P21: 0 | Q21: 0.000581470133 | R21: 0.000581470133 | S21: 0.000581470133 | T21: 0.000581470133 | U21: 0.000581470133 | V21: 0.000581470133 | W21: 0.000581470133 | X21: 0.000581470133 | Y21: 0.000581470133 | Z21: 0.000581470133 | AA21: 0.000581470133 | AB21: 0.000581470133 | AC21: 0.000581470133 | AD21: 0.000581470133 | AE21: 0.000581470133 | AF21: 0.000581470133 | AG21: 0.000581470133 | AH21: 0.000581470133 | AI21: 0.000581470133 | AJ21: 0.000581470133 | AK21: 0.000581470133 | AL21: 0.000581470133 | AM21: 0.000581470133 | AN21: 0.000581470133 | AO21: 0.000581470133 | AP21: 0.000581470133 | AQ21: 0.000581470133 | AR21: 0.000581470133 | AS21: 0.000581470133 | AT21: 0.000581470133 | AU21: 0.000581470133 | AV21: 0.000581470133 | AW21: 0.000581470133 | AX21: 0.000581470133 | AY21: 0.000581470133 | AZ21: 0.000581470133 | BA21: 0.000581470133 | BB21: 0.000581470133 | BC21: 0.000581470133 | BD21: 0.000581470133 | BE21: 0.000581470133 | BF21: 0.000581470133 | BG21: 0.000581470133 | BH21: 0.000581470133 | BI21: 0.000581470133 | BJ21: 0.000581470133 | BK21: 0.000581470133 | BL21: 0.000581470133 | BM21: 0.000581470133 | BN21: 0.000581470133 | BO21: 0.000581470133 | BP21: 0.000581470133 | BQ21: 0.000581470133 | BR21: 0.000581470133 | BS21: 0.000581470133 | BT21: 0.000581470133 | BU21: 0.000581470133 | BV21: =$G$21*BV9 -> 0.000581470133 | BW21: 0.000581470133 | BX21: 0.000581470133 | BY21: 0.000581470133 | BZ21: 0.000581470133 | CA21: 0.000581470133 | CB21: 0.000581470133 | CC21: 0.000581470133 | CD21: 0.000581470133 | CE21: 0.000581470133 | CF21: 0.000581470133 | CG21: 0.000581470133 | CH21: 0.000581470133 | CI21: 0.000581470133 | CJ21: 0.000581470133 | CK21: 0 | CL21: 0 | CM21: 0 | CN21: 0 | CO21: 0 | CP21: 0 | CQ21: 0 | CR21: 0 | CS21: 0 | CT21: 0 | CU21: 0 | CV21: 0 | CW21: 0 | CX21: 0 | CY21: 0 | CZ21: 0 | DA21: 0 | DB21: 0 | DC21: 0 | DD21: 0 | DE21: 0 | DF21: 0 | DG21: 0 | DH21: 0 | DI21: 0 | DJ21: 0 | DK21: 0 | DL21: 0 | DM21: 0 | DN21: 0 | DO21: 0 | DP21: 0 | DQ21: 0 | DR21: 0 | DS21: 0 | DT21: 0 | DU21: 0 | DV21: 0 | DW21: 0 | DX21: 0 | DY21: 0 | DZ21: 0 | EA21: 0 | EB21: 0 | EC21: 0 | ED21: 0 | EE21: 0 | EF21: 0 | EG21: 0 | EH21: =$G$21*EH9 -> 0 | EI21: 0 | EJ21: 0 | EK21: 0 | EL21: 0 | EM21: 0 | EN21: 0 | EO21: 0 | EP21: 0 | EQ21: 0 | ER21: 0 | ES21: 0 | ET21: 0 | EU21: 0 | EV21: 0 | EW21: 0 | EX21: 0 | EY21: 0 | EZ21: 0 | FA21: 0 | FB21: 0 | FC21: 0 | FD21: 0 | FE21: 0 | FF21: 0 | FG21: 0 | FH21: 0 | FI21: 0 | FJ21: 0 | FK21: 0 | FL21: 0 | FM21: 0 | FN21: 0 | FO21: 0 | FP21: 0 | FQ21: 0 | FR21: 0 | FS21: 0 | FT21: 0 | FU21: 0 | FV21: 0 | FW21: 0 | FX21: 0 | FY21: 0 | FZ21: 0 | GA21: 0 | GB21: 0 | GC21: 0 | GD21: 0 | GE21: 0 | GF21: 0 | GG21: 0 | GH21: 0 | GI21: 0 | GJ21: 0 | GK21: 0 | GL21: 0 | GM21: 0 | GN21: 0 | GO21: 0 | GP21: 0 | GQ21: 0 | GR21: 0 | GS21: 0 | GT21: =$G$21*GT9 -> 0 | GU21: 0 | GV21: 0 | GW21: 0 | GX21: 0 | GY21: 0 | GZ21: 0 | HA21: 0 | HB21: 0 | HC21: 0 | HD21: 0 | HE21: 0 | HF21: 0 | HG21: 0 | HH21: 0 | HI21: 0 | HJ21: 0 | HK21: 0 | HL21: 0 | HM21: 0 | HN21: 0 | HO21: 0 | HP21: 0 | HQ21: 0 | HR21: 0 | HS21: 0 | HT21: 0 | HU21: 0 | HV21: 0 | HW21: 0 | HX21: 0 | HY21: 0 | HZ21: 0 | IA21: 0 | IB21: 0 | IC21: 0 | ID21: 0 | IE21: 0 | IF21: 0 | IG21: 0 | IH21: 0 | II21: 0 | IJ21: 0 | IK21: 0 | IL21: 0 | IM21: 0 | IN21: 0 | IO21: 0 | IP21: 0 | IQ21: 0 | IR21: 0 | IS21: 0 | IT21: 0 | IU21: 0 | IV21: 0 | IW21: 0 | IX21: 0 | IY21: 0 | IZ21: 0 | JA21: 0 | JB21: 0 | JC21: 0 | JD21: 0 | JE21: 0 | JF21: =$G$21*JF9 -> 0 | JG21: 0 | JH21: 0 | JI21: 0 | JJ21: 0 | JK21: 0 | JL21: 0 | JM21: 0 | JN21: 0 | JO21: 0 | JP21: 0 | JQ21: 0 | JR21: 0 | JS21: 0 | JT21: 0 | JU21: 0 | JV21: 0 | JW21: 0 | JX21: 0 | JY21: 0 | JZ21: 0 | KA21: 0 | KB21: 0 | KC21: 0 | KD21: 0 | KE21: 0 | KF21: 0 | KG21: 0 | KH21: 0 | KI21: 0 | KJ21: 0 | KK21: 0 | KL21: 0 | KM21: 0 | KN21: 0 | KO21: 0 | KP21: 0 | KQ21: 0 | KR21: 0 | KS21: 0 | KT21: 0 | KU21: 0 | KV21: 0
C22: PUE after Degradation | E22: Purchased/Used | F22: =F20 -> 1.1 | I22: =F22 -> 1.1 | J22: =I22+J21 -> 1.1 | K22: =J22+K21 -> 1.1 | L22: 1.1 | M22: 1.1 | N22: 1.1 | O22: 1.1 | P22: 1.1 | Q22: 1.10058147 | R22: 1.10116294 | S22: 1.10174441 | T22: 1.102325881 | U22: 1.102907351 | V22: 1.103488821 | W22: 1.104070291 | X22: 1.104651761 | Y22: 1.105233231 | Z22: 1.105814701 | AA22: 1.106396171 | AB22: 1.106977642 | AC22: 1.107559112 | AD22: 1.108140582 | AE22: 1.108722052 | AF22: 1.109303522 | AG22: 1.109884992 | AH22: 1.110466462 | AI22: 1.111047933 | AJ22: 1.111629403 | AK22: 1.112210873 | AL22: 1.112792343 | AM22: 1.113373813 | AN22: 1.113955283 | AO22: 1.114536753 | AP22: 1.115118223 | AQ22: 1.115699694 | AR22: 1.116281164 | AS22: 1.116862634 | AT22: 1.117444104 | AU22: 1.118025574 | AV22: 1.118607044 | AW22: 1.119188514 | AX22: 1.119769985 | AY22: 1.120351455 | AZ22: 1.120932925 | BA22: 1.121514395 | BB22: 1.122095865 | BC22: 1.122677335 | BD22: 1.123258805 | BE22: 1.123840275 | BF22: 1.124421746 | BG22: 1.125003216 | BH22: 1.125584686 | BI22: 1.126166156 | BJ22: 1.126747626 | BK22: 1.127329096 | BL22: 1.127910566 | BM22: 1.128492037 | BN22: 1.129073507 | BO22: 1.129654977 | BP22: 1.130236447 | BQ22: 1.130817917 | BR22: 1.131399387 | BS22: 1.131980857 | BT22: 1.132562327 | BU22: 1.133143798 | BV22: 1.133725268 | BW22: =BV22+BW21 -> 1.134306738 | BX22: 1.134888208 | BY22: 1.135469678 | BZ22: 1.136051148 | CA22: 1.136632618 | CB22: 1.137214089 | CC22: 1.137795559 | CD22: 1.138377029 | CE22: 1.138958499 | CF22: 1.139539969 | CG22: 1.140121439 | CH22: 1.140702909 | CI22: 1.141284379 | CJ22: 1.14186585 | CK22: 1.14186585 | CL22: 1.14186585 | CM22: 1.14186585 | CN22: 1.14186585 | CO22: 1.14186585 | CP22: 1.14186585 | CQ22: 1.14186585 | CR22: 1.14186585 | CS22: 1.14186585 | CT22: 1.14186585 | CU22: 1.14186585 | CV22: 1.14186585 | CW22: 1.14186585 | CX22: 1.14186585 | CY22: 1.14186585 | CZ22: 1.14186585 | DA22: 1.14186585 | DB22: 1.14186585 | DC22: 1.14186585 | DD22: 1.14186585 | DE22: 1.14186585 | DF22: 1.14186585 | DG22: 1.14186585 | DH22: 1.14186585 | DI22: 1.14186585 | DJ22: 1.14186585 | DK22: 1.14186585 | DL22: 1.14186585 | DM22: 1.14186585 | DN22: 1.14186585 | DO22: 1.14186585 | DP22: 1.14186585 | DQ22: 1.14186585 | DR22: 1.14186585 | DS22: 1.14186585 | DT22: 1.14186585 | DU22: 1.14186585 | DV22: 1.14186585 | DW22: 1.14186585 | DX22: 1.14186585 | DY22: 1.14186585 | DZ22: 1.14186585 | EA22: 1.14186585 | EB22: 1.14186585 | EC22: 1.14186585 | ED22: 1.14186585 | EE22: 1.14186585 | EF22: 1.14186585 | EG22: 1.14186585 | EH22: 1.14186585 | EI22: =EH22+EI21 -> 1.14186585 | EJ22: 1.14186585 | EK22: 1.14186585 | EL22: 1.14186585 | EM22: 1.14186585 | EN22: 1.14186585 | EO22: 1.14186585 | EP22: 1.14186585 | EQ22: 1.14186585 | ER22: 1.14186585 | ES22: 1.14186585 | ET22: 1.14186585 | EU22: 1.14186585 | EV22: 1.14186585 | EW22: 1.14186585 | EX22: 1.14186585 | EY22: 1.14186585 | EZ22: 1.14186585 | FA22: 1.14186585 | FB22: 1.14186585 | FC22: 1.14186585 | FD22: 1.14186585 | FE22: 1.14186585 | FF22: 1.14186585 | FG22: 1.14186585 | FH22: 1.14186585 | FI22: 1.14186585 | FJ22: 1.14186585 | FK22: 1.14186585 | FL22: 1.14186585 | FM22: 1.14186585 | FN22: 1.14186585 | FO22: 1.14186585 | FP22: 1.14186585 | FQ22: 1.14186585 | FR22: 1.14186585 | FS22: 1.14186585 | FT22: 1.14186585 | FU22: 1.14186585 | FV22: 1.14186585 | FW22: 1.14186585 | FX22: 1.14186585 | FY22: 1.14186585 | FZ22: 1.14186585 | GA22: 1.14186585 | GB22: 1.14186585 | GC22: 1.14186585 | GD22: 1.14186585 | GE22: 1.14186585 | GF22: 1.14186585 | GG22: 1.14186585 | GH22: 1.14186585 | GI22: 1.14186585 | GJ22: 1.14186585 | GK22: 1.14186585 | GL22: 1.14186585 | GM22: 1.14186585 | GN22: 1.14186585 | GO22: 1.14186585 | GP22: 1.14186585 | GQ22: 1.14186585 | GR22: 1.14186585 | GS22: 1.14186585 | GT22: 1.14186585 | GU22: =GT22+GU21 -> 1.14186585 | GV22: 1.14186585 | GW22: 1.14186585 | GX22: 1.14186585 | GY22: 1.14186585 | GZ22: 1.14186585 | HA22: 1.14186585 | HB22: 1.14186585 | HC22: 1.14186585 | HD22: 1.14186585 | HE22: 1.14186585 | HF22: 1.14186585 | HG22: 1.14186585 | HH22: 1.14186585 | HI22: 1.14186585 | HJ22: 1.14186585 | HK22: 1.14186585 | HL22: 1.14186585 | HM22: 1.14186585 | HN22: 1.14186585 | HO22: 1.14186585 | HP22: 1.14186585 | HQ22: 1.14186585 | HR22: 1.14186585 | HS22: 1.14186585 | HT22: 1.14186585 | HU22: 1.14186585 | HV22: 1.14186585 | HW22: 1.14186585 | HX22: 1.14186585 | HY22: 1.14186585 | HZ22: 1.14186585 | IA22: 1.14186585 | IB22: 1.14186585 | IC22: 1.14186585 | ID22: 1.14186585 | IE22: 1.14186585 | IF22: 1.14186585 | IG22: 1.14186585 | IH22: 1.14186585 | II22: 1.14186585 | IJ22: 1.14186585 | IK22: 1.14186585 | IL22: 1.14186585 | IM22: 1.14186585 | IN22: 1.14186585 | IO22: 1.14186585 | IP22: 1.14186585 | IQ22: 1.14186585 | IR22: 1.14186585 | IS22: 1.14186585 | IT22: 1.14186585 | IU22: 1.14186585 | IV22: 1.14186585 | IW22: 1.14186585 | IX22: 1.14186585 | IY22: 1.14186585 | IZ22: 1.14186585 | JA22: 1.14186585 | JB22: 1.14186585 | JC22: 1.14186585 | JD22: 1.14186585 | JE22: 1.14186585 | JF22: 1.14186585 | JG22: =JF22+JG21 -> 1.14186585 | JH22: 1.14186585 | JI22: 1.14186585 | JJ22: 1.14186585 | JK22: 1.14186585 | JL22: 1.14186585 | JM22: 1.14186585 | JN22: 1.14186585 | JO22: 1.14186585 | JP22: 1.14186585 | JQ22: 1.14186585 | JR22: 1.14186585 | JS22: 1.14186585 | JT22: 1.14186585 | JU22: 1.14186585 | JV22: 1.14186585 | JW22: 1.14186585 | JX22: 1.14186585 | JY22: 1.14186585 | JZ22: 1.14186585 | KA22: 1.14186585 | KB22: 1.14186585 | KC22: 1.14186585 | KD22: 1.14186585 | KE22: 1.14186585 | KF22: 1.14186585 | KG22: 1.14186585 | KH22: 1.14186585 | KI22: 1.14186585 | KJ22: 1.14186585 | KK22: 1.14186585 | KL22: 1.14186585 | KM22: 1.14186585 | KN22: 1.14186585 | KO22: 1.14186585 | KP22: 1.14186585 | KQ22: 1.14186585 | KR22: 1.14186585 | KS22: 1.14186585 | KT22: 1.14186585 | KU22: 1.14186585 | KV22: 1.14186585
C24: MWh Electricity purchased from Applied PUE | E24: MWh | H24: =SUM(I24:XFD24) -> 7963057.809 | I24: =I22*I18 -> 0 | J24: 0 | K24: 0 | L24: 0 | M24: 0 | N24: 0 | O24: 0 | P24: 0 | Q24: 106976.5189 | R24: 110600.8057 | S24: 107089.5567 | T24: 110717.6114 | U24: 110776.0143 | V24: 103683.8096 | W24: 110892.82 | X24: 107372.1512 | Y24: 111009.6257 | Z24: 107485.189 | AA24: 111126.4315 | AB24: 111184.8343 | AC24: 107654.7457 | AD24: 111301.64 | AE24: 107767.7835 | AF24: 111418.4458 | AG24: 111476.8486 | AH24: 100741.5175 | AI24: 111593.6543 | AJ24: 108050.3779 | AK24: 111710.4601 | AL24: 108163.4157 | AM24: 111827.2658 | AN24: 111885.6686 | AO24: 108332.9724 | AP24: 112002.4744 | AQ24: 108446.0102 | AR24: 112119.2801 | AS24: 112177.6829 | AT24: 101374.5291 | AU24: 112294.4887 | AV24: 108728.6047 | AW24: 112411.2944 | AX24: 108841.6425 | AY24: 112528.1001 | AZ24: 112586.503 | BA24: 109011.1992 | BB24: 112703.3087 | BC24: 109124.237 | BD24: 112820.1144 | BE24: 112878.5173 | BF24: 102007.5408 | BG24: 112995.323 | BH24: 109406.8315 | BI24: 113112.1287 | BJ24: 109519.8693 | BK24: 113228.9344 | BL24: 113287.3373 | BM24: 109689.4259 | BN24: 113404.143 | BO24: 109802.4637 | BP24: 113520.9487 | BQ24: 113579.3516 | BR24: 106306.2864 | BS24: 113696.1573 | BT24: 110085.0582 | BU24: =BU22*BU18 -> 113812.963 | BV24: 110198.096 | BW24: 113929.7687 | BX24: 113988.1716 | BY24: 110367.6527 | BZ24: 114104.9773 | CA24: 110480.6905 | CB24: 114221.783 | CC24: 114280.1859 | CD24: 103273.5641 | CE24: 114396.9916 | CF24: 110763.285 | CG24: 114513.7974 | CH24: 110876.3228 | CI24: 114630.6031 | CJ24: 114689.0059 | CK24: 0 | CL24: 0 | CM24: 0 | CN24: 0 | CO24: 0 | CP24: 0 | CQ24: 0 | CR24: 0 | CS24: 0 | CT24: 0 | CU24: 0 | CV24: 0 | CW24: 0 | CX24: 0 | CY24: 0 | CZ24: 0 | DA24: 0 | DB24: 0 | DC24: 0 | DD24: 0 | DE24: 0 | DF24: 0 | DG24: 0 | DH24: 0 | DI24: 0 | DJ24: 0 | DK24: 0 | DL24: 0 | DM24: 0 | DN24: 0 | DO24: 0 | DP24: 0 | DQ24: 0 | DR24: 0 | DS24: 0 | DT24: 0 | DU24: 0 | DV24: 0 | DW24: 0 | DX24: 0 | DY24: 0 | DZ24: 0 | EA24: 0 | EB24: 0 | EC24: 0 | ED24: 0 | EE24: 0 | EF24: 0 | EG24: =EG22*EG18 -> 0 | EH24: 0 | EI24: 0 | EJ24: 0 | EK24: 0 | EL24: 0 | EM24: 0 | EN24: 0 | EO24: 0 | EP24: 0 | EQ24: 0 | ER24: 0 | ES24: 0 | ET24: 0 | EU24: 0 | EV24: 0 | EW24: 0 | EX24: 0 | EY24: 0 | EZ24: 0 | FA24: 0 | FB24: 0 | FC24: 0 | FD24: 0 | FE24: 0 | FF24: 0 | FG24: 0 | FH24: 0 | FI24: 0 | FJ24: 0 | FK24: 0 | FL24: 0 | FM24: 0 | FN24: 0 | FO24: 0 | FP24: 0 | FQ24: 0 | FR24: 0 | FS24: 0 | FT24: 0 | FU24: 0 | FV24: 0 | FW24: 0 | FX24: 0 | FY24: 0 | FZ24: 0 | GA24: 0 | GB24: 0 | GC24: 0 | GD24: 0 | GE24: 0 | GF24: 0 | GG24: 0 | GH24: 0 | GI24: 0 | GJ24: 0 | GK24: 0 | GL24: 0 | GM24: 0 | GN24: 0 | GO24: 0 | GP24: 0 | GQ24: 0 | GR24: 0 | GS24: =GS22*GS18 -> 0 | GT24: 0 | GU24: 0 | GV24: 0 | GW24: 0 | GX24: 0 | GY24: 0 | GZ24: 0 | HA24: 0 | HB24: 0 | HC24: 0 | HD24: 0 | HE24: 0 | HF24: 0 | HG24: 0 | HH24: 0 | HI24: 0 | HJ24: 0 | HK24: 0 | HL24: 0 | HM24: 0 | HN24: 0 | HO24: 0 | HP24: 0 | HQ24: 0 | HR24: 0 | HS24: 0 | HT24: 0 | HU24: 0 | HV24: 0 | HW24: 0 | HX24: 0 | HY24: 0 | HZ24: 0 | IA24: 0 | IB24: 0 | IC24: 0 | ID24: 0 | IE24: 0 | IF24: 0 | IG24: 0 | IH24: 0 | II24: 0 | IJ24: 0 | IK24: 0 | IL24: 0 | IM24: 0 | IN24: 0 | IO24: 0 | IP24: 0 | IQ24: 0 | IR24: 0 | IS24: 0 | IT24: 0 | IU24: 0 | IV24: 0 | IW24: 0 | IX24: 0 | IY24: 0 | IZ24: 0 | JA24: 0 | JB24: 0 | JC24: 0 | JD24: 0 | JE24: =JE22*JE18 -> 0 | JF24: 0 | JG24: 0 | JH24: 0 | JI24: 0 | JJ24: 0 | JK24: 0 | JL24: 0 | JM24: 0 | JN24: 0 | JO24: 0 | JP24: 0 | JQ24: 0 | JR24: 0 | JS24: 0 | JT24: 0 | JU24: 0 | JV24: 0 | JW24: 0 | JX24: 0 | JY24: 0 | JZ24: 0 | KA24: 0 | KB24: 0 | KC24: 0 | KD24: 0 | KE24: 0 | KF24: 0 | KG24: 0 | KH24: 0 | KI24: 0 | KJ24: 0 | KK24: 0 | KL24: 0 | KM24: 0 | KN24: 0 | KO24: 0 | KP24: 0 | KQ24: 0 | KR24: 0 | KS24: 0 | KT24: 0 | KU24: 0 | KV24: 0
C26: MM Tokens per kW Month Capacity | E26: MM Tokens per kW/Month | F26: =InputC!G35 -> 6500 | I26: =$F$26*I9 -> 0 | J26: 0 | K26: 0 | L26: 0 | M26: 0 | N26: 0 | O26: 0 | P26: 0 | Q26: 6500 | R26: 6500 | S26: 6500 | T26: 6500 | U26: 6500 | V26: 6500 | W26: 6500 | X26: 6500 | Y26: 6500 | Z26: 6500 | AA26: 6500 | AB26: 6500 | AC26: 6500 | AD26: 6500 | AE26: 6500 | AF26: 6500 | AG26: 6500 | AH26: 6500 | AI26: 6500 | AJ26: 6500 | AK26: 6500 | AL26: 6500 | AM26: 6500 | AN26: 6500 | AO26: 6500 | AP26: 6500 | AQ26: 6500 | AR26: 6500 | AS26: 6500 | AT26: 6500 | AU26: 6500 | AV26: 6500 | AW26: 6500 | AX26: 6500 | AY26: 6500 | AZ26: 6500 | BA26: 6500 | BB26: 6500 | BC26: 6500 | BD26: 6500 | BE26: 6500 | BF26: 6500 | BG26: 6500 | BH26: 6500 | BI26: 6500 | BJ26: 6500 | BK26: 6500 | BL26: 6500 | BM26: 6500 | BN26: 6500 | BO26: 6500 | BP26: 6500 | BQ26: 6500 | BR26: 6500 | BS26: 6500 | BT26: 6500 | BU26: =$F$26*BU9 -> 6500 | BV26: 6500 | BW26: 6500 | BX26: 6500 | BY26: 6500 | BZ26: 6500 | CA26: 6500 | CB26: 6500 | CC26: 6500 | CD26: 6500 | CE26: 6500 | CF26: 6500 | CG26: 6500 | CH26: 6500 | CI26: 6500 | CJ26: 6500 | CK26: 0 | CL26: 0 | CM26: 0 | CN26: 0 | CO26: 0 | CP26: 0 | CQ26: 0 | CR26: 0 | CS26: 0 | CT26: 0 | CU26: 0 | CV26: 0 | CW26: 0 | CX26: 0 | CY26: 0 | CZ26: 0 | DA26: 0 | DB26: 0 | DC26: 0 | DD26: 0 | DE26: 0 | DF26: 0 | DG26: 0 | DH26: 0 | DI26: 0 | DJ26: 0 | DK26: 0 | DL26: 0 | DM26: 0 | DN26: 0 | DO26: 0 | DP26: 0 | DQ26: 0 | DR26: 0 | DS26: 0 | DT26: 0 | DU26: 0 | DV26: 0 | DW26: 0 | DX26: 0 | DY26: 0 | DZ26: 0 | EA26: 0 | EB26: 0 | EC26: 0 | ED26: 0 | EE26: 0 | EF26: 0 | EG26: =$F$26*EG9 -> 0 | EH26: 0 | EI26: 0 | EJ26: 0 | EK26: 0 | EL26: 0 | EM26: 0 | EN26: 0 | EO26: 0 | EP26: 0 | EQ26: 0 | ER26: 0 | ES26: 0 | ET26: 0 | EU26: 0 | EV26: 0 | EW26: 0 | EX26: 0 | EY26: 0 | EZ26: 0 | FA26: 0 | FB26: 0 | FC26: 0 | FD26: 0 | FE26: 0 | FF26: 0 | FG26: 0 | FH26: 0 | FI26: 0 | FJ26: 0 | FK26: 0 | FL26: 0 | FM26: 0 | FN26: 0 | FO26: 0 | FP26: 0 | FQ26: 0 | FR26: 0 | FS26: 0 | FT26: 0 | FU26: 0 | FV26: 0 | FW26: 0 | FX26: 0 | FY26: 0 | FZ26: 0 | GA26: 0 | GB26: 0 | GC26: 0 | GD26: 0 | GE26: 0 | GF26: 0 | GG26: 0 | GH26: 0 | GI26: 0 | GJ26: 0 | GK26: 0 | GL26: 0 | GM26: 0 | GN26: 0 | GO26: 0 | GP26: 0 | GQ26: 0 | GR26: 0 | GS26: =$F$26*GS9 -> 0 | GT26: 0 | GU26: 0 | GV26: 0 | GW26: 0 | GX26: 0 | GY26: 0 | GZ26: 0 | HA26: 0 | HB26: 0 | HC26: 0 | HD26: 0 | HE26: 0 | HF26: 0 | HG26: 0 | HH26: 0 | HI26: 0 | HJ26: 0 | HK26: 0 | HL26: 0 | HM26: 0 | HN26: 0 | HO26: 0 | HP26: 0 | HQ26: 0 | HR26: 0 | HS26: 0 | HT26: 0 | HU26: 0 | HV26: 0 | HW26: 0 | HX26: 0 | HY26: 0 | HZ26: 0 | IA26: 0 | IB26: 0 | IC26: 0 | ID26: 0 | IE26: 0 | IF26: 0 | IG26: 0 | IH26: 0 | II26: 0 | IJ26: 0 | IK26: 0 | IL26: 0 | IM26: 0 | IN26: 0 | IO26: 0 | IP26: 0 | IQ26: 0 | IR26: 0 | IS26: 0 | IT26: 0 | IU26: 0 | IV26: 0 | IW26: 0 | IX26: 0 | IY26: 0 | IZ26: 0 | JA26: 0 | JB26: 0 | JC26: 0 | JD26: 0 | JE26: =$F$26*JE9 -> 0 | JF26: 0 | JG26: 0 | JH26: 0 | JI26: 0 | JJ26: 0 | JK26: 0 | JL26: 0 | JM26: 0 | JN26: 0 | JO26: 0 | JP26: 0 | JQ26: 0 | JR26: 0 | JS26: 0 | JT26: 0 | JU26: 0 | JV26: 0 | JW26: 0 | JX26: 0 | JY26: 0 | JZ26: 0 | KA26: 0 | KB26: 0 | KC26: 0 | KD26: 0 | KE26: 0 | KF26: 0 | KG26: 0 | KH26: 0 | KI26: 0 | KJ26: 0 | KK26: 0 | KL26: 0 | KM26: 0 | KN26: 0 | KO26: 0 | KP26: 0 | KQ26: 0 | KR26: 0 | KS26: 0 | KT26: 0 | KU26: 0 | KV26: 0
C27: Million Tokens per MW Month | E27: MM Tokens/MW Mnt | I27: =I26*I14*1000 -> 0 | J27: 0 | K27: 0 | L27: 0 | M27: 0 | N27: 0 | O27: 0 | P27: 0 | Q27: 975000000 | R27: 975000000 | S27: 975000000 | T27: 975000000 | U27: 975000000 | V27: 975000000 | W27: 975000000 | X27: 975000000 | Y27: 975000000 | Z27: 975000000 | AA27: 975000000 | AB27: 975000000 | AC27: 975000000 | AD27: 975000000 | AE27: 975000000 | AF27: 975000000 | AG27: 975000000 | AH27: 975000000 | AI27: 975000000 | AJ27: 975000000 | AK27: 975000000 | AL27: 975000000 | AM27: 975000000 | AN27: 975000000 | AO27: 975000000 | AP27: 975000000 | AQ27: 975000000 | AR27: 975000000 | AS27: 975000000 | AT27: 975000000 | AU27: 975000000 | AV27: 975000000 | AW27: 975000000 | AX27: 975000000 | AY27: 975000000 | AZ27: 975000000 | BA27: 975000000 | BB27: 975000000 | BC27: 975000000 | BD27: 975000000 | BE27: 975000000 | BF27: 975000000 | BG27: 975000000 | BH27: 975000000 | BI27: 975000000 | BJ27: 975000000 | BK27: 975000000 | BL27: 975000000 | BM27: 975000000 | BN27: 975000000 | BO27: 975000000 | BP27: 975000000 | BQ27: 975000000 | BR27: 975000000 | BS27: 975000000 | BT27: 975000000 | BU27: =BU26*BU14*1000 -> 975000000 | BV27: 975000000 | BW27: 975000000 | BX27: 975000000 | BY27: 975000000 | BZ27: 975000000 | CA27: 975000000 | CB27: 975000000 | CC27: 975000000 | CD27: 975000000 | CE27: 975000000 | CF27: 975000000 | CG27: 975000000 | CH27: 975000000 | CI27: 975000000 | CJ27: 975000000 | CK27: 0 | CL27: 0 | CM27: 0 | CN27: 0 | CO27: 0 | CP27: 0 | CQ27: 0 | CR27: 0 | CS27: 0 | CT27: 0 | CU27: 0 | CV27: 0 | CW27: 0 | CX27: 0 | CY27: 0 | CZ27: 0 | DA27: 0 | DB27: 0 | DC27: 0 | DD27: 0 | DE27: 0 | DF27: 0 | DG27: 0 | DH27: 0 | DI27: 0 | DJ27: 0 | DK27: 0 | DL27: 0 | DM27: 0 | DN27: 0 | DO27: 0 | DP27: 0 | DQ27: 0 | DR27: 0 | DS27: 0 | DT27: 0 | DU27: 0 | DV27: 0 | DW27: 0 | DX27: 0 | DY27: 0 | DZ27: 0 | EA27: 0 | EB27: 0 | EC27: 0 | ED27: 0 | EE27: 0 | EF27: 0 | EG27: =EG26*EG14*1000 -> 0 | EH27: 0 | EI27: 0 | EJ27: 0 | EK27: 0 | EL27: 0 | EM27: 0 | EN27: 0 | EO27: 0 | EP27: 0 | EQ27: 0 | ER27: 0 | ES27: 0 | ET27: 0 | EU27: 0 | EV27: 0 | EW27: 0 | EX27: 0 | EY27: 0 | EZ27: 0 | FA27: 0 | FB27: 0 | FC27: 0 | FD27: 0 | FE27: 0 | FF27: 0 | FG27: 0 | FH27: 0 | FI27: 0 | FJ27: 0 | FK27: 0 | FL27: 0 | FM27: 0 | FN27: 0 | FO27: 0 | FP27: 0 | FQ27: 0 | FR27: 0 | FS27: 0 | FT27: 0 | FU27: 0 | FV27: 0 | FW27: 0 | FX27: 0 | FY27: 0 | FZ27: 0 | GA27: 0 | GB27: 0 | GC27: 0 | GD27: 0 | GE27: 0 | GF27: 0 | GG27: 0 | GH27: 0 | GI27: 0 | GJ27: 0 | GK27: 0 | GL27: 0 | GM27: 0 | GN27: 0 | GO27: 0 | GP27: 0 | GQ27: 0 | GR27: 0 | GS27: =GS26*GS14*1000 -> 0 | GT27: 0 | GU27: 0 | GV27: 0 | GW27: 0 | GX27: 0 | GY27: 0 | GZ27: 0 | HA27: 0 | HB27: 0 | HC27: 0 | HD27: 0 | HE27: 0 | HF27: 0 | HG27: 0 | HH27: 0 | HI27: 0 | HJ27: 0 | HK27: 0 | HL27: 0 | HM27: 0 | HN27: 0 | HO27: 0 | HP27: 0 | HQ27: 0 | HR27: 0 | HS27: 0 | HT27: 0 | HU27: 0 | HV27: 0 | HW27: 0 | HX27: 0 | HY27: 0 | HZ27: 0 | IA27: 0 | IB27: 0 | IC27: 0 | ID27: 0 | IE27: 0 | IF27: 0 | IG27: 0 | IH27: 0 | II27: 0 | IJ27: 0 | IK27: 0 | IL27: 0 | IM27: 0 | IN27: 0 | IO27: 0 | IP27: 0 | IQ27: 0 | IR27: 0 | IS27: 0 | IT27: 0 | IU27: 0 | IV27: 0 | IW27: 0 | IX27: 0 | IY27: 0 | IZ27: 0 | JA27: 0 | JB27: 0 | JC27: 0 | JD27: 0 | JE27: =JE26*JE14*1000 -> 0 | JF27: 0 | JG27: 0 | JH27: 0 | JI27: 0 | JJ27: 0 | JK27: 0 | JL27: 0 | JM27: 0 | JN27: 0 | JO27: 0 | JP27: 0 | JQ27: 0 | JR27: 0 | JS27: 0 | JT27: 0 | JU27: 0 | JV27: 0 | JW27: 0 | JX27: 0 | JY27: 0 | JZ27: 0 | KA27: 0 | KB27: 0 | KC27: 0 | KD27: 0 | KE27: 0 | KF27: 0 | KG27: 0 | KH27: 0 | KI27: 0 | KJ27: 0 | KK27: 0 | KL27: 0 | KM27: 0 | KN27: 0 | KO27: 0 | KP27: 0 | KQ27: 0 | KR27: 0 | KS27: 0 | KT27: 0 | KU27: 0 | KV27: 0
C29: Utilization Factor of Data Center | E29: % | F29: =InputC!G40 -> 1 | G29: =INDEX(InputS!D11:D13,InputS!F9) -> Base Case Utilization Rate | I29: =_xlfn.XLOOKUP(I10,InputS!6:6,InputS!15:15,0) -> 0.66 | J29: =_xlfn.XLOOKUP(J10,InputS!6:6,InputS!15:15,0) -> 0.66 | K29: =_xlfn.XLOOKUP(K10,InputS!6:6,InputS!15:15,0) -> 0.66 | L29: =_xlfn.XLOOKUP(L10,InputS!6:6,InputS!15:15,0) -> 0.66 | M29: =_xlfn.XLOOKUP(M10,InputS!6:6,InputS!15:15,0) -> 0.66 | N29: =_xlfn.XLOOKUP(N10,InputS!6:6,InputS!15:15,0) -> 0.66 | O29: =_xlfn.XLOOKUP(O10,InputS!6:6,InputS!15:15,0) -> 0.66 | P29: =_xlfn.XLOOKUP(P10,InputS!6:6,InputS!15:15,0) -> 0.66 | Q29: =_xlfn.XLOOKUP(Q10,InputS!6:6,InputS!15:15,0) -> 0.66 | R29: =_xlfn.XLOOKUP(R10,InputS!6:6,InputS!15:15,0) -> 0.66 | S29: =_xlfn.XLOOKUP(S10,InputS!6:6,InputS!15:15,0) -> 0.66 | T29: =_xlfn.XLOOKUP(T10,InputS!6:6,InputS!15:15,0) -> 0.66 | U29: =_xlfn.XLOOKUP(U10,InputS!6:6,InputS!15:15,0) -> 0.66 | V29: =_xlfn.XLOOKUP(V10,InputS!6:6,InputS!15:15,0) -> 0.66 | W29: =_xlfn.XLOOKUP(W10,InputS!6:6,InputS!15:15,0) -> 0.66 | X29: =_xlfn.XLOOKUP(X10,InputS!6:6,InputS!15:15,0) -> 0.66 | Y29: =_xlfn.XLOOKUP(Y10,InputS!6:6,InputS!15:15,0) -> 0.66 | Z29: =_xlfn.XLOOKUP(Z10,InputS!6:6,InputS!15:15,0) -> 0.66 | AA29: =_xlfn.XLOOKUP(AA10,InputS!6:6,InputS!15:15,0) -> 0.66 | AB29: =_xlfn.XLOOKUP(AB10,InputS!6:6,InputS!15:15,0) -> 0.66 | AC29: =_xlfn.XLOOKUP(AC10,InputS!6:6,InputS!15:15,0) -> 0.66 | AD29: =_xlfn.XLOOKUP(AD10,InputS!6:6,InputS!15:15,0) -> 0.66 | AE29: =_xlfn.XLOOKUP(AE10,InputS!6:6,InputS!15:15,0) -> 0.66 | AF29: =_xlfn.XLOOKUP(AF10,InputS!6:6,InputS!15:15,0) -> 0.66 | AG29: =_xlfn.XLOOKUP(AG10,InputS!6:6,InputS!15:15,0) -> 0.66 | AH29: =_xlfn.XLOOKUP(AH10,InputS!6:6,InputS!15:15,0) -> 0.66 | AI29: =_xlfn.XLOOKUP(AI10,InputS!6:6,InputS!15:15,0) -> 0.66 | AJ29: =_xlfn.XLOOKUP(AJ10,InputS!6:6,InputS!15:15,0) -> 0.66 | AK29: =_xlfn.XLOOKUP(AK10,InputS!6:6,InputS!15:15,0) -> 0.66 | AL29: =_xlfn.XLOOKUP(AL10,InputS!6:6,InputS!15:15,0) -> 0.66 | AM29: =_xlfn.XLOOKUP(AM10,InputS!6:6,InputS!15:15,0) -> 0.66 | AN29: =_xlfn.XLOOKUP(AN10,InputS!6:6,InputS!15:15,0) -> 0.66 | AO29: =_xlfn.XLOOKUP(AO10,InputS!6:6,InputS!15:15,0) -> 0.66 | AP29: =_xlfn.XLOOKUP(AP10,InputS!6:6,InputS!15:15,0) -> 0.66 | AQ29: =_xlfn.XLOOKUP(AQ10,InputS!6:6,InputS!15:15,0) -> 0.66 | AR29: =_xlfn.XLOOKUP(AR10,InputS!6:6,InputS!15:15,0) -> 0.66 | AS29: =_xlfn.XLOOKUP(AS10,InputS!6:6,InputS!15:15,0) -> 0.66 | AT29: =_xlfn.XLOOKUP(AT10,InputS!6:6,InputS!15:15,0) -> 0.66 | AU29: =_xlfn.XLOOKUP(AU10,InputS!6:6,InputS!15:15,0) -> 0.66 | AV29: =_xlfn.XLOOKUP(AV10,InputS!6:6,InputS!15:15,0) -> 0.66 | AW29: =_xlfn.XLOOKUP(AW10,InputS!6:6,InputS!15:15,0) -> 0.66 | AX29: =_xlfn.XLOOKUP(AX10,InputS!6:6,InputS!15:15,0) -> 0.66 | AY29: =_xlfn.XLOOKUP(AY10,InputS!6:6,InputS!15:15,0) -> 0.66 | AZ29: =_xlfn.XLOOKUP(AZ10,InputS!6:6,InputS!15:15,0) -> 0.66 | BA29: =_xlfn.XLOOKUP(BA10,InputS!6:6,InputS!15:15,0) -> 0.66 | BB29: =_xlfn.XLOOKUP(BB10,InputS!6:6,InputS!15:15,0) -> 0.66 | BC29: =_xlfn.XLOOKUP(BC10,InputS!6:6,InputS!15:15,0) -> 0.66 | BD29: =_xlfn.XLOOKUP(BD10,InputS!6:6,InputS!15:15,0) -> 0.66 | BE29: =_xlfn.XLOOKUP(BE10,InputS!6:6,InputS!15:15,0) -> 0.66 | BF29: =_xlfn.XLOOKUP(BF10,InputS!6:6,InputS!15:15,0) -> 0.66 | BG29: =_xlfn.XLOOKUP(BG10,InputS!6:6,InputS!15:15,0) -> 0.66 | BH29: =_xlfn.XLOOKUP(BH10,InputS!6:6,InputS!15:15,0) -> 0.66 | BI29: =_xlfn.XLOOKUP(BI10,InputS!6:6,InputS!15:15,0) -> 0.66 | BJ29: =_xlfn.XLOOKUP(BJ10,InputS!6:6,InputS!15:15,0) -> 0.66 | BK29: =_xlfn.XLOOKUP(BK10,InputS!6:6,InputS!15:15,0) -> 0.66 | BL29: =_xlfn.XLOOKUP(BL10,InputS!6:6,InputS!15:15,0) -> 0.66 | BM29: =_xlfn.XLOOKUP(BM10,InputS!6:6,InputS!15:15,0) -> 0.66 | BN29: =_xlfn.XLOOKUP(BN10,InputS!6:6,InputS!15:15,0) -> 0.66 | BO29: =_xlfn.XLOOKUP(BO10,InputS!6:6,InputS!15:15,0) -> 0.66 | BP29: =_xlfn.XLOOKUP(BP10,InputS!6:6,InputS!15:15,0) -> 0.66 | BQ29: =_xlfn.XLOOKUP(BQ10,InputS!6:6,InputS!15:15,0) -> 0.66 | BR29: =_xlfn.XLOOKUP(BR10,InputS!6:6,InputS!15:15,0) -> 0.66 | BS29: =_xlfn.XLOOKUP(BS10,InputS!6:6,InputS!15:15,0) -> 0.66 | BT29: =_xlfn.XLOOKUP(BT10,InputS!6:6,InputS!15:15,0) -> 0.66 | BU29: =_xlfn.XLOOKUP(BU10,InputS!6:6,InputS!15:15,0) -> 0.66 | BV29: =_xlfn.XLOOKUP(BV10,InputS!6:6,InputS!15:15,0) -> 0.66 | BW29: =_xlfn.XLOOKUP(BW10,InputS!6:6,InputS!15:15,0) -> 0.66 | BX29: =_xlfn.XLOOKUP(BX10,InputS!6:6,InputS!15:15,0) -> 0.66 | BY29: =_xlfn.XLOOKUP(BY10,InputS!6:6,InputS!15:15,0) -> 0.66 | BZ29: =_xlfn.XLOOKUP(BZ10,InputS!6:6,InputS!15:15,0) -> 0.66 | CA29: =_xlfn.XLOOKUP(CA10,InputS!6:6,InputS!15:15,0) -> 0.66 | CB29: =_xlfn.XLOOKUP(CB10,InputS!6:6,InputS!15:15,0) -> 0.66 | CC29: =_xlfn.XLOOKUP(CC10,InputS!6:6,InputS!15:15,0) -> 0.66 | CD29: =_xlfn.XLOOKUP(CD10,InputS!6:6,InputS!15:15,0) -> 0.66 | CE29: =_xlfn.XLOOKUP(CE10,InputS!6:6,InputS!15:15,0) -> 0.66 | CF29: =_xlfn.XLOOKUP(CF10,InputS!6:6,InputS!15:15,0) -> 0.66 | CG29: =_xlfn.XLOOKUP(CG10,InputS!6:6,InputS!15:15,0) -> 0.66 | CH29: =_xlfn.XLOOKUP(CH10,InputS!6:6,InputS!15:15,0) -> 0.66 | CI29: =_xlfn.XLOOKUP(CI10,InputS!6:6,InputS!15:15,0) -> 0.66 | CJ29: =_xlfn.XLOOKUP(CJ10,InputS!6:6,InputS!15:15,0) -> 0.66 | CK29: =_xlfn.XLOOKUP(CK10,InputS!6:6,InputS!15:15,0) -> 0.66 | CL29: =_xlfn.XLOOKUP(CL10,InputS!6:6,InputS!15:15,0) -> 0.66 | CM29: =_xlfn.XLOOKUP(CM10,InputS!6:6,InputS!15:15,0) -> 0.66 | CN29: =_xlfn.XLOOKUP(CN10,InputS!6:6,InputS!15:15,0) -> 0.66 | CO29: =_xlfn.XLOOKUP(CO10,InputS!6:6,InputS!15:15,0) -> 0.66 | CP29: =_xlfn.XLOOKUP(CP10,InputS!6:6,InputS!15:15,0) -> 0.66 | CQ29: =_xlfn.XLOOKUP(CQ10,InputS!6:6,InputS!15:15,0) -> 0.66 | CR29: =_xlfn.XLOOKUP(CR10,InputS!6:6,InputS!15:15,0) -> 0.66 | CS29: =_xlfn.XLOOKUP(CS10,InputS!6:6,InputS!15:15,0) -> 0.66 | CT29: =_xlfn.XLOOKUP(CT10,InputS!6:6,InputS!15:15,0) -> 0.66 | CU29: =_xlfn.XLOOKUP(CU10,InputS!6:6,InputS!15:15,0) -> 0.66 | CV29: =_xlfn.XLOOKUP(CV10,InputS!6:6,InputS!15:15,0) -> 0.66 | CW29: =_xlfn.XLOOKUP(CW10,InputS!6:6,InputS!15:15,0) -> 0.66 | CX29: =_xlfn.XLOOKUP(CX10,InputS!6:6,InputS!15:15,0) -> 0.66 | CY29: =_xlfn.XLOOKUP(CY10,InputS!6:6,InputS!15:15,0) -> 0.66 | CZ29: =_xlfn.XLOOKUP(CZ10,InputS!6:6,InputS!15:15,0) -> 0.66 | DA29: =_xlfn.XLOOKUP(DA10,InputS!6:6,InputS!15:15,0) -> 0.66 | DB29: =_xlfn.XLOOKUP(DB10,InputS!6:6,InputS!15:15,0) -> 0.66 | DC29: =_xlfn.XLOOKUP(DC10,InputS!6:6,InputS!15:15,0) -> 0.66 | DD29: =_xlfn.XLOOKUP(DD10,InputS!6:6,InputS!15:15,0) -> 0.66 | DE29: =_xlfn.XLOOKUP(DE10,InputS!6:6,InputS!15:15,0) -> 0.66 | DF29: =_xlfn.XLOOKUP(DF10,InputS!6:6,InputS!15:15,0) -> 0.66 | DG29: =_xlfn.XLOOKUP(DG10,InputS!6:6,InputS!15:15,0) -> 0.66 | DH29: =_xlfn.XLOOKUP(DH10,InputS!6:6,InputS!15:15,0) -> 0.66 | DI29: =_xlfn.XLOOKUP(DI10,InputS!6:6,InputS!15:15,0) -> 0.66 | DJ29: =_xlfn.XLOOKUP(DJ10,InputS!6:6,InputS!15:15,0) -> 0.66 | DK29: =_xlfn.XLOOKUP(DK10,InputS!6:6,InputS!15:15,0) -> 0.66 | DL29: =_xlfn.XLOOKUP(DL10,InputS!6:6,InputS!15:15,0) -> 0.66 | DM29: =_xlfn.XLOOKUP(DM10,InputS!6:6,InputS!15:15,0) -> 0.66 | DN29: =_xlfn.XLOOKUP(DN10,InputS!6:6,InputS!15:15,0) -> 0.66 | DO29: =_xlfn.XLOOKUP(DO10,InputS!6:6,InputS!15:15,0) -> 0.66 | DP29: =_xlfn.XLOOKUP(DP10,InputS!6:6,InputS!15:15,0) -> 0.66 | DQ29: =_xlfn.XLOOKUP(DQ10,InputS!6:6,InputS!15:15,0) -> 0.66 | DR29: =_xlfn.XLOOKUP(DR10,InputS!6:6,InputS!15:15,0) -> 0.66 | DS29: =_xlfn.XLOOKUP(DS10,InputS!6:6,InputS!15:15,0) -> 0.66 | DT29: =_xlfn.XLOOKUP(DT10,InputS!6:6,InputS!15:15,0) -> 0.66 | DU29: =_xlfn.XLOOKUP(DU10,InputS!6:6,InputS!15:15,0) -> 0.66 | DV29: =_xlfn.XLOOKUP(DV10,InputS!6:6,InputS!15:15,0) -> 0.66 | DW29: =_xlfn.XLOOKUP(DW10,InputS!6:6,InputS!15:15,0) -> 0.66 | DX29: =_xlfn.XLOOKUP(DX10,InputS!6:6,InputS!15:15,0) -> 0.66 | DY29: =_xlfn.XLOOKUP(DY10,InputS!6:6,InputS!15:15,0) -> 0.66 | DZ29: =_xlfn.XLOOKUP(DZ10,InputS!6:6,InputS!15:15,0) -> 0.66 | EA29: =_xlfn.XLOOKUP(EA10,InputS!6:6,InputS!15:15,0) -> 0.66 | EB29: =_xlfn.XLOOKUP(EB10,InputS!6:6,InputS!15:15,0) -> 0.66 | EC29: =_xlfn.XLOOKUP(EC10,InputS!6:6,InputS!15:15,0) -> 0.66 | ED29: =_xlfn.XLOOKUP(ED10,InputS!6:6,InputS!15:15,0) -> 0.66 | EE29: =_xlfn.XLOOKUP(EE10,InputS!6:6,InputS!15:15,0) -> 0.66 | EF29: =_xlfn.XLOOKUP(EF10,InputS!6:6,InputS!15:15,0) -> 0.66 | EG29: =_xlfn.XLOOKUP(EG10,InputS!6:6,InputS!15:15,0) -> 0.66 | EH29: =_xlfn.XLOOKUP(EH10,InputS!6:6,InputS!15:15,0) -> 0.66 | EI29: =_xlfn.XLOOKUP(EI10,InputS!6:6,InputS!15:15,0) -> 0.66 | EJ29: =_xlfn.XLOOKUP(EJ10,InputS!6:6,InputS!15:15,0) -> 0.66 | EK29: =_xlfn.XLOOKUP(EK10,InputS!6:6,InputS!15:15,0) -> 0.66 | EL29: =_xlfn.XLOOKUP(EL10,InputS!6:6,InputS!15:15,0) -> 0.66 | EM29: =_xlfn.XLOOKUP(EM10,InputS!6:6,InputS!15:15,0) -> 0.66 | EN29: =_xlfn.XLOOKUP(EN10,InputS!6:6,InputS!15:15,0) -> 0.66 | EO29: =_xlfn.XLOOKUP(EO10,InputS!6:6,InputS!15:15,0) -> 0.66 | EP29: =_xlfn.XLOOKUP(EP10,InputS!6:6,InputS!15:15,0) -> 0.66 | EQ29: =_xlfn.XLOOKUP(EQ10,InputS!6:6,InputS!15:15,0) -> 0.66 | ER29: =_xlfn.XLOOKUP(ER10,InputS!6:6,InputS!15:15,0) -> 0.66 | ES29: =_xlfn.XLOOKUP(ES10,InputS!6:6,InputS!15:15,0) -> 0.66 | ET29: =_xlfn.XLOOKUP(ET10,InputS!6:6,InputS!15:15,0) -> 0.66 | EU29: =_xlfn.XLOOKUP(EU10,InputS!6:6,InputS!15:15,0) -> 0.66 | EV29: =_xlfn.XLOOKUP(EV10,InputS!6:6,InputS!15:15,0) -> 0.66 | EW29: =_xlfn.XLOOKUP(EW10,InputS!6:6,InputS!15:15,0) -> 0.66 | EX29: =_xlfn.XLOOKUP(EX10,InputS!6:6,InputS!15:15,0) -> 0.66 | EY29: =_xlfn.XLOOKUP(EY10,InputS!6:6,InputS!15:15,0) -> 0.66 | EZ29: =_xlfn.XLOOKUP(EZ10,InputS!6:6,InputS!15:15,0) -> 0.66 | FA29: =_xlfn.XLOOKUP(FA10,InputS!6:6,InputS!15:15,0) -> 0.66 | FB29: =_xlfn.XLOOKUP(FB10,InputS!6:6,InputS!15:15,0) -> 0.66 | FC29: =_xlfn.XLOOKUP(FC10,InputS!6:6,InputS!15:15,0) -> 0.66 | FD29: =_xlfn.XLOOKUP(FD10,InputS!6:6,InputS!15:15,0) -> 0.66 | FE29: =_xlfn.XLOOKUP(FE10,InputS!6:6,InputS!15:15,0) -> 0.66 | FF29: =_xlfn.XLOOKUP(FF10,InputS!6:6,InputS!15:15,0) -> 0.66 | FG29: =_xlfn.XLOOKUP(FG10,InputS!6:6,InputS!15:15,0) -> 0.66 | FH29: =_xlfn.XLOOKUP(FH10,InputS!6:6,InputS!15:15,0) -> 0.66 | FI29: =_xlfn.XLOOKUP(FI10,InputS!6:6,InputS!15:15,0) -> 0.66 | FJ29: =_xlfn.XLOOKUP(FJ10,InputS!6:6,InputS!15:15,0) -> 0.66 | FK29: =_xlfn.XLOOKUP(FK10,InputS!6:6,InputS!15:15,0) -> 0.66 | FL29: =_xlfn.XLOOKUP(FL10,InputS!6:6,InputS!15:15,0) -> 0.66 | FM29: =_xlfn.XLOOKUP(FM10,InputS!6:6,InputS!15:15,0) -> 0.66 | FN29: =_xlfn.XLOOKUP(FN10,InputS!6:6,InputS!15:15,0) -> 0.66 | FO29: =_xlfn.XLOOKUP(FO10,InputS!6:6,InputS!15:15,0) -> 0.66 | FP29: =_xlfn.XLOOKUP(FP10,InputS!6:6,InputS!15:15,0) -> 0.66 | FQ29: =_xlfn.XLOOKUP(FQ10,InputS!6:6,InputS!15:15,0) -> 0.66 | FR29: =_xlfn.XLOOKUP(FR10,InputS!6:6,InputS!15:15,0) -> 0.66 | FS29: =_xlfn.XLOOKUP(FS10,InputS!6:6,InputS!15:15,0) -> 0.66 | FT29: =_xlfn.XLOOKUP(FT10,InputS!6:6,InputS!15:15,0) -> 0.66 | FU29: =_xlfn.XLOOKUP(FU10,InputS!6:6,InputS!15:15,0) -> 0.66 | FV29: =_xlfn.XLOOKUP(FV10,InputS!6:6,InputS!15:15,0) -> 0.66 | FW29: =_xlfn.XLOOKUP(FW10,InputS!6:6,InputS!15:15,0) -> 0.66 | FX29: =_xlfn.XLOOKUP(FX10,InputS!6:6,InputS!15:15,0) -> 0.66 | FY29: =_xlfn.XLOOKUP(FY10,InputS!6:6,InputS!15:15,0) -> 0.66 | FZ29: =_xlfn.XLOOKUP(FZ10,InputS!6:6,InputS!15:15,0) -> 0.66 | GA29: =_xlfn.XLOOKUP(GA10,InputS!6:6,InputS!15:15,0) -> 0.66 | GB29: =_xlfn.XLOOKUP(GB10,InputS!6:6,InputS!15:15,0) -> 0.66 | GC29: =_xlfn.XLOOKUP(GC10,InputS!6:6,InputS!15:15,0) -> 0.66 | GD29: =_xlfn.XLOOKUP(GD10,InputS!6:6,InputS!15:15,0) -> 0.66 | GE29: =_xlfn.XLOOKUP(GE10,InputS!6:6,InputS!15:15,0) -> 0.66 | GF29: =_xlfn.XLOOKUP(GF10,InputS!6:6,InputS!15:15,0) -> 0.66 | GG29: =_xlfn.XLOOKUP(GG10,InputS!6:6,InputS!15:15,0) -> 0.66 | GH29: =_xlfn.XLOOKUP(GH10,InputS!6:6,InputS!15:15,0) -> 0.66 | GI29: =_xlfn.XLOOKUP(GI10,InputS!6:6,InputS!15:15,0) -> 0.66 | GJ29: =_xlfn.XLOOKUP(GJ10,InputS!6:6,InputS!15:15,0) -> 0.66 | GK29: =_xlfn.XLOOKUP(GK10,InputS!6:6,InputS!15:15,0) -> 0.66 | GL29: =_xlfn.XLOOKUP(GL10,InputS!6:6,InputS!15:15,0) -> 0.66 | GM29: =_xlfn.XLOOKUP(GM10,InputS!6:6,InputS!15:15,0) -> 0.66 | GN29: =_xlfn.XLOOKUP(GN10,InputS!6:6,InputS!15:15,0) -> 0.66 | GO29: =_xlfn.XLOOKUP(GO10,InputS!6:6,InputS!15:15,0) -> 0.66 | GP29: =_xlfn.XLOOKUP(GP10,InputS!6:6,InputS!15:15,0) -> 0.66 | GQ29: =_xlfn.XLOOKUP(GQ10,InputS!6:6,InputS!15:15,0) -> 0.66 | GR29: =_xlfn.XLOOKUP(GR10,InputS!6:6,InputS!15:15,0) -> 0.66 | GS29: =_xlfn.XLOOKUP(GS10,InputS!6:6,InputS!15:15,0) -> 0.66 | GT29: =_xlfn.XLOOKUP(GT10,InputS!6:6,InputS!15:15,0) -> 0.66 | GU29: =_xlfn.XLOOKUP(GU10,InputS!6:6,InputS!15:15,0) -> 0.66 | GV29: =_xlfn.XLOOKUP(GV10,InputS!6:6,InputS!15:15,0) -> 0.66 | GW29: =_xlfn.XLOOKUP(GW10,InputS!6:6,InputS!15:15,0) -> 0.66 | GX29: =_xlfn.XLOOKUP(GX10,InputS!6:6,InputS!15:15,0) -> 0.66 | GY29: =_xlfn.XLOOKUP(GY10,InputS!6:6,InputS!15:15,0) -> 0.66 | GZ29: =_xlfn.XLOOKUP(GZ10,InputS!6:6,InputS!15:15,0) -> 0.66 | HA29: =_xlfn.XLOOKUP(HA10,InputS!6:6,InputS!15:15,0) -> 0.66 | HB29: =_xlfn.XLOOKUP(HB10,InputS!6:6,InputS!15:15,0) -> 0.66 | HC29: =_xlfn.XLOOKUP(HC10,InputS!6:6,InputS!15:15,0) -> 0.66 | HD29: =_xlfn.XLOOKUP(HD10,InputS!6:6,InputS!15:15,0) -> 0.66 | HE29: =_xlfn.XLOOKUP(HE10,InputS!6:6,InputS!15:15,0) -> 0.66 | HF29: =_xlfn.XLOOKUP(HF10,InputS!6:6,InputS!15:15,0) -> 0.66 | HG29: =_xlfn.XLOOKUP(HG10,InputS!6:6,InputS!15:15,0) -> 0.66 | HH29: =_xlfn.XLOOKUP(HH10,InputS!6:6,InputS!15:15,0) -> 0.66 | HI29: =_xlfn.XLOOKUP(HI10,InputS!6:6,InputS!15:15,0) -> 0.66 | HJ29: =_xlfn.XLOOKUP(HJ10,InputS!6:6,InputS!15:15,0) -> 0.66 | HK29: =_xlfn.XLOOKUP(HK10,InputS!6:6,InputS!15:15,0) -> 0.66 | HL29: =_xlfn.XLOOKUP(HL10,InputS!6:6,InputS!15:15,0) -> 0.66 | HM29: =_xlfn.XLOOKUP(HM10,InputS!6:6,InputS!15:15,0) -> 0.66 | HN29: =_xlfn.XLOOKUP(HN10,InputS!6:6,InputS!15:15,0) -> 0.66 | HO29: =_xlfn.XLOOKUP(HO10,InputS!6:6,InputS!15:15,0) -> 0.66 | HP29: =_xlfn.XLOOKUP(HP10,InputS!6:6,InputS!15:15,0) -> 0.66 | HQ29: =_xlfn.XLOOKUP(HQ10,InputS!6:6,InputS!15:15,0) -> 0.66 | HR29: =_xlfn.XLOOKUP(HR10,InputS!6:6,InputS!15:15,0) -> 0.66 | HS29: =_xlfn.XLOOKUP(HS10,InputS!6:6,InputS!15:15,0) -> 0.66 | HT29: =_xlfn.XLOOKUP(HT10,InputS!6:6,InputS!15:15,0) -> 0.66 | HU29: =_xlfn.XLOOKUP(HU10,InputS!6:6,InputS!15:15,0) -> 0.66 | HV29: =_xlfn.XLOOKUP(HV10,InputS!6:6,InputS!15:15,0) -> 0.66 | HW29: =_xlfn.XLOOKUP(HW10,InputS!6:6,InputS!15:15,0) -> 0.66 | HX29: =_xlfn.XLOOKUP(HX10,InputS!6:6,InputS!15:15,0) -> 0.66 | HY29: =_xlfn.XLOOKUP(HY10,InputS!6:6,InputS!15:15,0) -> 0.66 | HZ29: =_xlfn.XLOOKUP(HZ10,InputS!6:6,InputS!15:15,0) -> 0.66 | IA29: =_xlfn.XLOOKUP(IA10,InputS!6:6,InputS!15:15,0) -> 0.66 | IB29: =_xlfn.XLOOKUP(IB10,InputS!6:6,InputS!15:15,0) -> 0.66 | IC29: =_xlfn.XLOOKUP(IC10,InputS!6:6,InputS!15:15,0) -> 0.66 | ID29: =_xlfn.XLOOKUP(ID10,InputS!6:6,InputS!15:15,0) -> 0.66 | IE29: =_xlfn.XLOOKUP(IE10,InputS!6:6,InputS!15:15,0) -> 0.66 | IF29: =_xlfn.XLOOKUP(IF10,InputS!6:6,InputS!15:15,0) -> 0.66 | IG29: =_xlfn.XLOOKUP(IG10,InputS!6:6,InputS!15:15,0) -> 0.66 | IH29: =_xlfn.XLOOKUP(IH10,InputS!6:6,InputS!15:15,0) -> 0.66 | II29: =_xlfn.XLOOKUP(II10,InputS!6:6,InputS!15:15,0) -> 0.66 | IJ29: =_xlfn.XLOOKUP(IJ10,InputS!6:6,InputS!15:15,0) -> 0.66 | IK29: =_xlfn.XLOOKUP(IK10,InputS!6:6,InputS!15:15,0) -> 0.66 | IL29: =_xlfn.XLOOKUP(IL10,InputS!6:6,InputS!15:15,0) -> 0.66 | IM29: =_xlfn.XLOOKUP(IM10,InputS!6:6,InputS!15:15,0) -> 0.66 | IN29: =_xlfn.XLOOKUP(IN10,InputS!6:6,InputS!15:15,0) -> 0.66 | IO29: =_xlfn.XLOOKUP(IO10,InputS!6:6,InputS!15:15,0) -> 0 | IP29: =_xlfn.XLOOKUP(IP10,InputS!6:6,InputS!15:15,0) -> 0 | IQ29: =_xlfn.XLOOKUP(IQ10,InputS!6:6,InputS!15:15,0) -> 0 | IR29: =_xlfn.XLOOKUP(IR10,InputS!6:6,InputS!15:15,0) -> 0 | IS29: =_xlfn.XLOOKUP(IS10,InputS!6:6,InputS!15:15,0) -> 0 | IT29: =_xlfn.XLOOKUP(IT10,InputS!6:6,InputS!15:15,0) -> 0 | IU29: =_xlfn.XLOOKUP(IU10,InputS!6:6,InputS!15:15,0) -> 0 | IV29: =_xlfn.XLOOKUP(IV10,InputS!6:6,InputS!15:15,0) -> 0 | IW29: =_xlfn.XLOOKUP(IW10,InputS!6:6,InputS!15:15,0) -> 0 | IX29: =_xlfn.XLOOKUP(IX10,InputS!6:6,InputS!15:15,0) -> 0 | IY29: =_xlfn.XLOOKUP(IY10,InputS!6:6,InputS!15:15,0) -> 0 | IZ29: =_xlfn.XLOOKUP(IZ10,InputS!6:6,InputS!15:15,0) -> 0 | JA29: =_xlfn.XLOOKUP(JA10,InputS!6:6,InputS!15:15,0) -> 0 | JB29: =_xlfn.XLOOKUP(JB10,InputS!6:6,InputS!15:15,0) -> 0 | JC29: =_xlfn.XLOOKUP(JC10,InputS!6:6,InputS!15:15,0) -> 0 | JD29: =_xlfn.XLOOKUP(JD10,InputS!6:6,InputS!15:15,0) -> 0 | JE29: =_xlfn.XLOOKUP(JE10,InputS!6:6,InputS!15:15,0) -> 0 | JF29: =_xlfn.XLOOKUP(JF10,InputS!6:6,InputS!15:15,0) -> 0 | JG29: =_xlfn.XLOOKUP(JG10,InputS!6:6,InputS!15:15,0) -> 0 | JH29: =_xlfn.XLOOKUP(JH10,InputS!6:6,InputS!15:15,0) -> 0 | JI29: =_xlfn.XLOOKUP(JI10,InputS!6:6,InputS!15:15,0) -> 0 | JJ29: =_xlfn.XLOOKUP(JJ10,InputS!6:6,InputS!15:15,0) -> 0 | JK29: =_xlfn.XLOOKUP(JK10,InputS!6:6,InputS!15:15,0) -> 0 | JL29: =_xlfn.XLOOKUP(JL10,InputS!6:6,InputS!15:15,0) -> 0 | JM29: =_xlfn.XLOOKUP(JM10,InputS!6:6,InputS!15:15,0) -> 0 | JN29: =_xlfn.XLOOKUP(JN10,InputS!6:6,InputS!15:15,0) -> 0 | JO29: =_xlfn.XLOOKUP(JO10,InputS!6:6,InputS!15:15,0) -> 0 | JP29: =_xlfn.XLOOKUP(JP10,InputS!6:6,InputS!15:15,0) -> 0 | JQ29: =_xlfn.XLOOKUP(JQ10,InputS!6:6,InputS!15:15,0) -> 0 | JR29: =_xlfn.XLOOKUP(JR10,InputS!6:6,InputS!15:15,0) -> 0 | JS29: =_xlfn.XLOOKUP(JS10,InputS!6:6,InputS!15:15,0) -> 0 | JT29: =_xlfn.XLOOKUP(JT10,InputS!6:6,InputS!15:15,0) -> 0 | JU29: =_xlfn.XLOOKUP(JU10,InputS!6:6,InputS!15:15,0) -> 0 | JV29: =_xlfn.XLOOKUP(JV10,InputS!6:6,InputS!15:15,0) -> 0 | JW29: =_xlfn.XLOOKUP(JW10,InputS!6:6,InputS!15:15,0) -> 0 | JX29: =_xlfn.XLOOKUP(JX10,InputS!6:6,InputS!15:15,0) -> 0 | JY29: =_xlfn.XLOOKUP(JY10,InputS!6:6,InputS!15:15,0) -> 0 | JZ29: =_xlfn.XLOOKUP(JZ10,InputS!6:6,InputS!15:15,0) -> 0 | KA29: =_xlfn.XLOOKUP(KA10,InputS!6:6,InputS!15:15,0) -> 0 | KB29: =_xlfn.XLOOKUP(KB10,InputS!6:6,InputS!15:15,0) -> 0 | KC29: =_xlfn.XLOOKUP(KC10,InputS!6:6,InputS!15:15,0) -> 0 | KD29: =_xlfn.XLOOKUP(KD10,InputS!6:6,InputS!15:15,0) -> 0 | KE29: =_xlfn.XLOOKUP(KE10,InputS!6:6,InputS!15:15,0) -> 0 | KF29: =_xlfn.XLOOKUP(KF10,InputS!6:6,InputS!15:15,0) -> 0 | KG29: =_xlfn.XLOOKUP(KG10,InputS!6:6,InputS!15:15,0) -> 0 | KH29: =_xlfn.XLOOKUP(KH10,InputS!6:6,InputS!15:15,0) -> 0 | KI29: =_xlfn.XLOOKUP(KI10,InputS!6:6,InputS!15:15,0) -> 0 | KJ29: =_xlfn.XLOOKUP(KJ10,InputS!6:6,InputS!15:15,0) -> 0 | KK29: =_xlfn.XLOOKUP(KK10,InputS!6:6,InputS!15:15,0) -> 0 | KL29: =_xlfn.XLOOKUP(KL10,InputS!6:6,InputS!15:15,0) -> 0 | KM29: =_xlfn.XLOOKUP(KM10,InputS!6:6,InputS!15:15,0) -> 0 | KN29: =_xlfn.XLOOKUP(KN10,InputS!6:6,InputS!15:15,0) -> 0 | KO29: =_xlfn.XLOOKUP(KO10,InputS!6:6,InputS!15:15,0) -> 0 | KP29: =_xlfn.XLOOKUP(KP10,InputS!6:6,InputS!15:15,0) -> 0 | KQ29: =_xlfn.XLOOKUP(KQ10,InputS!6:6,InputS!15:15,0) -> 0 | KR29: =_xlfn.XLOOKUP(KR10,InputS!6:6,InputS!15:15,0) -> 0 | KS29: =_xlfn.XLOOKUP(KS10,InputS!6:6,InputS!15:15,0) -> 0 | KT29: =_xlfn.XLOOKUP(KT10,InputS!6:6,InputS!15:15,0) -> 0 | KU29: =_xlfn.XLOOKUP(KU10,InputS!6:6,InputS!15:15,0) -> 0 | KV29: =_xlfn.XLOOKUP(KV10,InputS!6:6,InputS!15:15,0) -> 0
C31: Million Tokens per Month Sold | E31: MM/Month | F31: =MAX(I31:KV31) -> 643500000 | H31: =SUM(I31:XFD31) -> 46332000000 | I31: =I27*I29 -> 0 | J31: =J27*J29 -> 0 | K31: 0 | L31: 0 | M31: 0 | N31: 0 | O31: 0 | P31: 0 | Q31: 643500000 | R31: 643500000 | S31: 643500000 | T31: 643500000 | U31: 643500000 | V31: 643500000 | W31: 643500000 | X31: 643500000 | Y31: 643500000 | Z31: 643500000 | AA31: 643500000 | AB31: 643500000 | AC31: 643500000 | AD31: 643500000 | AE31: 643500000 | AF31: 643500000 | AG31: 643500000 | AH31: 643500000 | AI31: 643500000 | AJ31: 643500000 | AK31: 643500000 | AL31: 643500000 | AM31: 643500000 | AN31: 643500000 | AO31: 643500000 | AP31: 643500000 | AQ31: 643500000 | AR31: 643500000 | AS31: 643500000 | AT31: 643500000 | AU31: 643500000 | AV31: 643500000 | AW31: 643500000 | AX31: 643500000 | AY31: 643500000 | AZ31: 643500000 | BA31: 643500000 | BB31: 643500000 | BC31: 643500000 | BD31: 643500000 | BE31: 643500000 | BF31: 643500000 | BG31: 643500000 | BH31: 643500000 | BI31: 643500000 | BJ31: 643500000 | BK31: 643500000 | BL31: 643500000 | BM31: 643500000 | BN31: 643500000 | BO31: 643500000 | BP31: 643500000 | BQ31: 643500000 | BR31: 643500000 | BS31: 643500000 | BT31: 643500000 | BU31: 643500000 | BV31: =BV27*BV29 -> 643500000 | BW31: 643500000 | BX31: 643500000 | BY31: 643500000 | BZ31: 643500000 | CA31: 643500000 | CB31: 643500000 | CC31: 643500000 | CD31: 643500000 | CE31: 643500000 | CF31: 643500000 | CG31: 643500000 | CH31: 643500000 | CI31: 643500000 | CJ31: 643500000 | CK31: 0 | CL31: 0 | CM31: 0 | CN31: 0 | CO31: 0 | CP31: 0 | CQ31: 0 | CR31: 0 | CS31: 0 | CT31: 0 | CU31: 0 | CV31: 0 | CW31: 0 | CX31: 0 | CY31: 0 | CZ31: 0 | DA31: 0 | DB31: 0 | DC31: 0 | DD31: 0 | DE31: 0 | DF31: 0 | DG31: 0 | DH31: 0 | DI31: 0 | DJ31: 0 | DK31: 0 | DL31: 0 | DM31: 0 | DN31: 0 | DO31: 0 | DP31: 0 | DQ31: 0 | DR31: 0 | DS31: 0 | DT31: 0 | DU31: 0 | DV31: 0 | DW31: 0 | DX31: 0 | DY31: 0 | DZ31: 0 | EA31: 0 | EB31: 0 | EC31: 0 | ED31: 0 | EE31: 0 | EF31: 0 | EG31: 0 | EH31: =EH27*EH29 -> 0 | EI31: 0 | EJ31: 0 | EK31: 0 | EL31: 0 | EM31: 0 | EN31: 0 | EO31: 0 | EP31: 0 | EQ31: 0 | ER31: 0 | ES31: 0 | ET31: 0 | EU31: 0 | EV31: 0 | EW31: 0 | EX31: 0 | EY31: 0 | EZ31: 0 | FA31: 0 | FB31: 0 | FC31: 0 | FD31: 0 | FE31: 0 | FF31: 0 | FG31: 0 | FH31: 0 | FI31: 0 | FJ31: 0 | FK31: 0 | FL31: 0 | FM31: 0 | FN31: 0 | FO31: 0 | FP31: 0 | FQ31: 0 | FR31: 0 | FS31: 0 | FT31: 0 | FU31: 0 | FV31: 0 | FW31: 0 | FX31: 0 | FY31: 0 | FZ31: 0 | GA31: 0 | GB31: 0 | GC31: 0 | GD31: 0 | GE31: 0 | GF31: 0 | GG31: 0 | GH31: 0 | GI31: 0 | GJ31: 0 | GK31: 0 | GL31: 0 | GM31: 0 | GN31: 0 | GO31: 0 | GP31: 0 | GQ31: 0 | GR31: 0 | GS31: 0 | GT31: =GT27*GT29 -> 0 | GU31: 0 | GV31: 0 | GW31: 0 | GX31: 0 | GY31: 0 | GZ31: 0 | HA31: 0 | HB31: 0 | HC31: 0 | HD31: 0 | HE31: 0 | HF31: 0 | HG31: 0 | HH31: 0 | HI31: 0 | HJ31: 0 | HK31: 0 | HL31: 0 | HM31: 0 | HN31: 0 | HO31: 0 | HP31: 0 | HQ31: 0 | HR31: 0 | HS31: 0 | HT31: 0 | HU31: 0 | HV31: 0 | HW31: 0 | HX31: 0 | HY31: 0 | HZ31: 0 | IA31: 0 | IB31: 0 | IC31: 0 | ID31: 0 | IE31: 0 | IF31: 0 | IG31: 0 | IH31: 0 | II31: 0 | IJ31: 0 | IK31: 0 | IL31: 0 | IM31: 0 | IN31: 0 | IO31: 0 | IP31: 0 | IQ31: 0 | IR31: 0 | IS31: 0 | IT31: 0 | IU31: 0 | IV31: 0 | IW31: 0 | IX31: 0 | IY31: 0 | IZ31: 0 | JA31: 0 | JB31: 0 | JC31: 0 | JD31: 0 | JE31: 0 | JF31: =JF27*JF29 -> 0 | JG31: 0 | JH31: 0 | JI31: 0 | JJ31: 0 | JK31: 0 | JL31: 0 | JM31: 0 | JN31: 0 | JO31: 0 | JP31: 0 | JQ31: 0 | JR31: 0 | JS31: 0 | JT31: 0 | JU31: 0 | JV31: 0 | JW31: 0 | JX31: 0 | JY31: 0 | JZ31: 0 | KA31: 0 | KB31: 0 | KC31: 0 | KD31: 0 | KE31: 0 | KF31: 0 | KG31: 0 | KH31: 0 | KI31: 0 | KJ31: 0 | KK31: 0 | KL31: 0 | KM31: 0 | KN31: 0 | KO31: 0 | KP31: 0 | KQ31: 0 | KR31: 0 | KS31: 0 | KT31: 0 | KU31: 0 | KV31: 0
B33: Revenues
C35: Price of IT per MWH (Legacy) | E35: USD/MWH | F35: 6000 | G35: Price | I35: =$F$35 -> 6000 | J35: 6000 | K35: 6000 | L35: 6000 | M35: 6000 | N35: 6000 | O35: 6000 | P35: 6000 | Q35: 6000 | R35: 6000 | S35: 6000 | T35: 6000 | U35: 6000 | V35: 6000 | W35: 6000 | X35: 6000 | Y35: 6000 | Z35: 6000 | AA35: 6000 | AB35: 6000 | AC35: 6000 | AD35: 6000 | AE35: 6000 | AF35: 6000 | AG35: 6000 | AH35: 6000 | AI35: 6000 | AJ35: 6000 | AK35: 6000 | AL35: 6000 | AM35: 6000 | AN35: 6000 | AO35: 6000 | AP35: 6000 | AQ35: 6000 | AR35: 6000 | AS35: 6000 | AT35: 6000 | AU35: 6000 | AV35: 6000 | AW35: 6000 | AX35: 6000 | AY35: 6000 | AZ35: 6000 | BA35: 6000 | BB35: 6000 | BC35: 6000 | BD35: 6000 | BE35: 6000 | BF35: 6000 | BG35: 6000 | BH35: 6000 | BI35: 6000 | BJ35: 6000 | BK35: 6000 | BL35: 6000 | BM35: 6000 | BN35: 6000 | BO35: 6000 | BP35: 6000 | BQ35: 6000 | BR35: 6000 | BS35: 6000 | BT35: 6000 | BU35: =$F$35 -> 6000 | BV35: 6000 | BW35: 6000 | BX35: 6000 | BY35: 6000 | BZ35: 6000 | CA35: 6000 | CB35: 6000 | CC35: 6000 | CD35: 6000 | CE35: 6000 | CF35: 6000 | CG35: 6000 | CH35: 6000 | CI35: 6000 | CJ35: 6000 | CK35: 6000 | CL35: 6000 | CM35: 6000 | CN35: 6000 | CO35: 6000 | CP35: 6000 | CQ35: 6000 | CR35: 6000 | CS35: 6000 | CT35: 6000 | CU35: 6000 | CV35: 6000 | CW35: 6000 | CX35: 6000 | CY35: 6000 | CZ35: 6000 | DA35: 6000 | DB35: 6000 | DC35: 6000 | DD35: 6000 | DE35: 6000 | DF35: 6000 | DG35: 6000 | DH35: 6000 | DI35: 6000 | DJ35: 6000 | DK35: 6000 | DL35: 6000 | DM35: 6000 | DN35: 6000 | DO35: 6000 | DP35: 6000 | DQ35: 6000 | DR35: 6000 | DS35: 6000 | DT35: 6000 | DU35: 6000 | DV35: 6000 | DW35: 6000 | DX35: 6000 | DY35: 6000 | DZ35: 6000 | EA35: 6000 | EB35: 6000 | EC35: 6000 | ED35: 6000 | EE35: 6000 | EF35: 6000 | EG35: =$F$35 -> 6000 | EH35: 6000 | EI35: 6000 | EJ35: 6000 | EK35: 6000 | EL35: 6000 | EM35: 6000 | EN35: 6000 | EO35: 6000 | EP35: 6000 | EQ35: 6000 | ER35: 6000 | ES35: 6000 | ET35: 6000 | EU35: 6000 | EV35: 6000 | EW35: 6000 | EX35: 6000 | EY35: 6000 | EZ35: 6000 | FA35: 6000 | FB35: 6000 | FC35: 6000 | FD35: 6000 | FE35: 6000 | FF35: 6000 | FG35: 6000 | FH35: 6000 | FI35: 6000 | FJ35: 6000 | FK35: 6000 | FL35: 6000 | FM35: 6000 | FN35: 6000 | FO35: 6000 | FP35: 6000 | FQ35: 6000 | FR35: 6000 | FS35: 6000 | FT35: 6000 | FU35: 6000 | FV35: 6000 | FW35: 6000 | FX35: 6000 | FY35: 6000 | FZ35: 6000 | GA35: 6000 | GB35: 6000 | GC35: 6000 | GD35: 6000 | GE35: 6000 | GF35: 6000 | GG35: 6000 | GH35: 6000 | GI35: 6000 | GJ35: 6000 | GK35: 6000 | GL35: 6000 | GM35: 6000 | GN35: 6000 | GO35: 6000 | GP35: 6000 | GQ35: 6000 | GR35: 6000 | GS35: =$F$35 -> 6000 | GT35: 6000 | GU35: 6000 | GV35: 6000 | GW35: 6000 | GX35: 6000 | GY35: 6000 | GZ35: 6000 | HA35: 6000 | HB35: 6000 | HC35: 6000 | HD35: 6000 | HE35: 6000 | HF35: 6000 | HG35: 6000 | HH35: 6000 | HI35: 6000 | HJ35: 6000 | HK35: 6000 | HL35: 6000 | HM35: 6000 | HN35: 6000 | HO35: 6000 | HP35: 6000 | HQ35: 6000 | HR35: 6000 | HS35: 6000 | HT35: 6000 | HU35: 6000 | HV35: 6000 | HW35: 6000 | HX35: 6000 | HY35: 6000 | HZ35: 6000 | IA35: 6000 | IB35: 6000 | IC35: 6000 | ID35: 6000 | IE35: 6000 | IF35: 6000 | IG35: 6000 | IH35: 6000 | II35: 6000 | IJ35: 6000 | IK35: 6000 | IL35: 6000 | IM35: 6000 | IN35: 6000 | IO35: 6000 | IP35: 6000 | IQ35: 6000 | IR35: 6000 | IS35: 6000 | IT35: 6000 | IU35: 6000 | IV35: 6000 | IW35: 6000 | IX35: 6000 | IY35: 6000 | IZ35: 6000 | JA35: 6000 | JB35: 6000 | JC35: 6000 | JD35: 6000 | JE35: =$F$35 -> 6000 | JF35: 6000 | JG35: 6000 | JH35: 6000 | JI35: 6000 | JJ35: 6000 | JK35: 6000 | JL35: 6000 | JM35: 6000 | JN35: 6000 | JO35: 6000 | JP35: 6000 | JQ35: 6000 | JR35: 6000 | JS35: 6000 | JT35: 6000 | JU35: 6000 | JV35: 6000 | JW35: 6000 | JX35: 6000 | JY35: 6000 | JZ35: 6000 | KA35: 6000 | KB35: 6000 | KC35: 6000 | KD35: 6000 | KE35: 6000 | KF35: 6000 | KG35: 6000 | KH35: 6000 | KI35: 6000 | KJ35: 6000 | KK35: 6000 | KL35: 6000 | KM35: 6000 | KN35: 6000 | KO35: 6000 | KP35: 6000 | KQ35: 6000 | KR35: 6000 | KS35: 6000 | KT35: 6000 | KU35: 6000 | KV35: 6000
C37: Price with IRR from Input for Each Scenarip | E37: USD/MM Token | F37: =InputC!G82 -> 4.926779434
C38: Price with Fixed Price from Input for Technology | E38: USD/MM Token | F38: =InputC!G81 -> 4.192449849
C39: Price from Input | E39: USD/MM Token | F39: =IF(G39,F37,F38) -> 4.926779434 | G39: TRUE | H39: Use Fixed Price
C40: Price Computed from Goal Seek | E40: USD/MM Token | F40: 4.192449849
C41: Price per MM Token - Goal seek or Given | E41: USD/MM Token | F41: =IF(apply_goal_seek,Price,F39) -> 4.926779434 | G41: FALSE | H41: apply goal seek | I41: =$F$41 -> 4.926779434 | J41: =$F$41 -> 4.926779434 | K41: 4.926779434 | L41: 4.926779434 | M41: 4.926779434 | N41: 4.926779434 | O41: 4.926779434 | P41: 4.926779434 | Q41: 4.926779434 | R41: 4.926779434 | S41: 4.926779434 | T41: 4.926779434 | U41: 4.926779434 | V41: 4.926779434 | W41: 4.926779434 | X41: 4.926779434 | Y41: 4.926779434 | Z41: 4.926779434 | AA41: 4.926779434 | AB41: 4.926779434 | AC41: 4.926779434 | AD41: 4.926779434 | AE41: 4.926779434 | AF41: 4.926779434 | AG41: 4.926779434 | AH41: 4.926779434 | AI41: 4.926779434 | AJ41: 4.926779434 | AK41: 4.926779434 | AL41: 4.926779434 | AM41: 4.926779434 | AN41: 4.926779434 | AO41: 4.926779434 | AP41: 4.926779434 | AQ41: 4.926779434 | AR41: 4.926779434 | AS41: 4.926779434 | AT41: 4.926779434 | AU41: 4.926779434 | AV41: 4.926779434 | AW41: 4.926779434 | AX41: 4.926779434 | AY41: 4.926779434 | AZ41: 4.926779434 | BA41: 4.926779434 | BB41: 4.926779434 | BC41: 4.926779434 | BD41: 4.926779434 | BE41: 4.926779434 | BF41: 4.926779434 | BG41: 4.926779434 | BH41: 4.926779434 | BI41: 4.926779434 | BJ41: 4.926779434 | BK41: 4.926779434 | BL41: 4.926779434 | BM41: 4.926779434 | BN41: 4.926779434 | BO41: 4.926779434 | BP41: 4.926779434 | BQ41: 4.926779434 | BR41: 4.926779434 | BS41: 4.926779434 | BT41: 4.926779434 | BU41: 4.926779434 | BV41: =$F$41 -> 4.926779434 | BW41: 4.926779434 | BX41: 4.926779434 | BY41: 4.926779434 | BZ41: 4.926779434 | CA41: 4.926779434 | CB41: 4.926779434 | CC41: 4.926779434 | CD41: 4.926779434 | CE41: 4.926779434 | CF41: 4.926779434 | CG41: 4.926779434 | CH41: 4.926779434 | CI41: 4.926779434 | CJ41: 4.926779434 | CK41: 4.926779434 | CL41: 4.926779434 | CM41: 4.926779434 | CN41: 4.926779434 | CO41: 4.926779434 | CP41: 4.926779434 | CQ41: 4.926779434 | CR41: 4.926779434 | CS41: 4.926779434 | CT41: 4.926779434 | CU41: 4.926779434 | CV41: 4.926779434 | CW41: 4.926779434 | CX41: 4.926779434 | CY41: 4.926779434 | CZ41: 4.926779434 | DA41: 4.926779434 | DB41: 4.926779434 | DC41: 4.926779434 | DD41: 4.926779434 | DE41: 4.926779434 | DF41: 4.926779434 | DG41: 4.926779434 | DH41: 4.926779434 | DI41: 4.926779434 | DJ41: 4.926779434 | DK41: 4.926779434 | DL41: 4.926779434 | DM41: 4.926779434 | DN41: 4.926779434 | DO41: 4.926779434 | DP41: 4.926779434 | DQ41: 4.926779434 | DR41: 4.926779434 | DS41: 4.926779434 | DT41: 4.926779434 | DU41: 4.926779434 | DV41: 4.926779434 | DW41: 4.926779434 | DX41: 4.926779434 | DY41: 4.926779434 | DZ41: 4.926779434 | EA41: 4.926779434 | EB41: 4.926779434 | EC41: 4.926779434 | ED41: 4.926779434 | EE41: 4.926779434 | EF41: 4.926779434 | EG41: 4.926779434 | EH41: =$F$41 -> 4.926779434 | EI41: 4.926779434 | EJ41: 4.926779434 | EK41: 4.926779434 | EL41: 4.926779434 | EM41: 4.926779434 | EN41: 4.926779434 | EO41: 4.926779434 | EP41: 4.926779434 | EQ41: 4.926779434 | ER41: 4.926779434 | ES41: 4.926779434 | ET41: 4.926779434 | EU41: 4.926779434 | EV41: 4.926779434 | EW41: 4.926779434 | EX41: 4.926779434 | EY41: 4.926779434 | EZ41: 4.926779434 | FA41: 4.926779434 | FB41: 4.926779434 | FC41: 4.926779434 | FD41: 4.926779434 | FE41: 4.926779434 | FF41: 4.926779434 | FG41: 4.926779434 | FH41: 4.926779434 | FI41: 4.926779434 | FJ41: 4.926779434 | FK41: 4.926779434 | FL41: 4.926779434 | FM41: 4.926779434 | FN41: 4.926779434 | FO41: 4.926779434 | FP41: 4.926779434 | FQ41: 4.926779434 | FR41: 4.926779434 | FS41: 4.926779434 | FT41: 4.926779434 | FU41: 4.926779434 | FV41: 4.926779434 | FW41: 4.926779434 | FX41: 4.926779434 | FY41: 4.926779434 | FZ41: 4.926779434 | GA41: 4.926779434 | GB41: 4.926779434 | GC41: 4.926779434 | GD41: 4.926779434 | GE41: 4.926779434 | GF41: 4.926779434 | GG41: 4.926779434 | GH41: 4.926779434 | GI41: 4.926779434 | GJ41: 4.926779434 | GK41: 4.926779434 | GL41: 4.926779434 | GM41: 4.926779434 | GN41: 4.926779434 | GO41: 4.926779434 | GP41: 4.926779434 | GQ41: 4.926779434 | GR41: 4.926779434 | GS41: 4.926779434 | GT41: =$F$41 -> 4.926779434 | GU41: 4.926779434 | GV41: 4.926779434 | GW41: 4.926779434 | GX41: 4.926779434 | GY41: 4.926779434 | GZ41: 4.926779434 | HA41: 4.926779434 | HB41: 4.926779434 | HC41: 4.926779434 | HD41: 4.926779434 | HE41: 4.926779434 | HF41: 4.926779434 | HG41: 4.926779434 | HH41: 4.926779434 | HI41: 4.926779434 | HJ41: 4.926779434 | HK41: 4.926779434 | HL41: 4.926779434 | HM41: 4.926779434 | HN41: 4.926779434 | HO41: 4.926779434 | HP41: 4.926779434 | HQ41: 4.926779434 | HR41: 4.926779434 | HS41: 4.926779434 | HT41: 4.926779434 | HU41: 4.926779434 | HV41: 4.926779434 | HW41: 4.926779434 | HX41: 4.926779434 | HY41: 4.926779434 | HZ41: 4.926779434 | IA41: 4.926779434 | IB41: 4.926779434 | IC41: 4.926779434 | ID41: 4.926779434 | IE41: 4.926779434 | IF41: 4.926779434 | IG41: 4.926779434 | IH41: 4.926779434 | II41: 4.926779434 | IJ41: 4.926779434 | IK41: 4.926779434 | IL41: 4.926779434 | IM41: 4.926779434 | IN41: 4.926779434 | IO41: 4.926779434 | IP41: 4.926779434 | IQ41: 4.926779434 | IR41: 4.926779434 | IS41: 4.926779434 | IT41: 4.926779434 | IU41: 4.926779434 | IV41: 4.926779434 | IW41: 4.926779434 | IX41: 4.926779434 | IY41: 4.926779434 | IZ41: 4.926779434 | JA41: 4.926779434 | JB41: 4.926779434 | JC41: 4.926779434 | JD41: 4.926779434 | JE41: 4.926779434 | JF41: =$F$41 -> 4.926779434 | JG41: 4.926779434 | JH41: 4.926779434 | JI41: 4.926779434 | JJ41: 4.926779434 | JK41: 4.926779434 | JL41: 4.926779434 | JM41: 4.926779434 | JN41: 4.926779434 | JO41: 4.926779434 | JP41: 4.926779434 | JQ41: 4.926779434 | JR41: 4.926779434 | JS41: 4.926779434 | JT41: 4.926779434 | JU41: 4.926779434 | JV41: 4.926779434 | JW41: 4.926779434 | JX41: 4.926779434 | JY41: 4.926779434 | JZ41: 4.926779434 | KA41: 4.926779434 | KB41: 4.926779434 | KC41: 4.926779434 | KD41: 4.926779434 | KE41: 4.926779434 | KF41: 4.926779434 | KG41: 4.926779434 | KH41: 4.926779434 | KI41: 4.926779434 | KJ41: 4.926779434 | KK41: 4.926779434 | KL41: 4.926779434 | KM41: 4.926779434 | KN41: 4.926779434 | KO41: 4.926779434 | KP41: 4.926779434 | KQ41: 4.926779434 | KR41: 4.926779434 | KS41: 4.926779434 | KT41: 4.926779434 | KU41: 4.926779434 | KV41: 4.926779434
C42: Inflation Index | E42: Index | I42: =I57 -> 1.001651581 | J42: =J57 -> 1.00330589 | K42: 1.004962932 | L42: 1.00662271 | M42: 1.008285229 | N42: 1.009950494 | O42: 1.011618509 | P42: 1.013289279 | Q42: 1.014962809 | R42: 1.016639103 | S42: 1.018318165 | T42: 1.02 | U42: 1.021684613 | V42: 1.023372008 | W42: 1.02506219 | X42: 1.026755164 | Y42: 1.028450933 | Z42: 1.030149504 | AA42: 1.031850879 | AB42: 1.033555065 | AC42: 1.035262065 | AD42: 1.036971885 | AE42: 1.038684528 | AF42: 1.0404 | AG42: 1.042118305 | AH42: 1.043839448 | AI42: 1.045563434 | AJ42: 1.047290267 | AK42: 1.049019952 | AL42: 1.050752494 | AM42: 1.052487897 | AN42: 1.054226166 | AO42: 1.055967307 | AP42: 1.057711322 | AQ42: 1.059458219 | AR42: 1.061208 | AS42: 1.062960671 | AT42: 1.064716237 | AU42: 1.066474703 | AV42: 1.068236072 | AW42: 1.070000351 | AX42: 1.071767544 | AY42: 1.073537655 | AZ42: 1.07531069 | BA42: 1.077086653 | BB42: 1.078865549 | BC42: 1.080647383 | BD42: 1.08243216 | BE42: 1.084219885 | BF42: 1.086010562 | BG42: 1.087804197 | BH42: 1.089600794 | BI42: 1.091400358 | BJ42: 1.093202895 | BK42: 1.095008408 | BL42: 1.096816903 | BM42: 1.098628386 | BN42: 1.10044286 | BO42: 1.102260331 | BP42: 1.104080803 | BQ42: 1.105904282 | BR42: 1.107730773 | BS42: 1.109560281 | BT42: 1.11139281 | BU42: 1.113228365 | BV42: =BV57 -> 1.115066952 | BW42: 1.116908576 | BX42: 1.118753241 | BY42: 1.120600953 | BZ42: 1.122451717 | CA42: 1.124305537 | CB42: 1.126162419 | CC42: 1.128022368 | CD42: 1.129885389 | CE42: 1.131751486 | CF42: 1.133620666 | CG42: 1.135492933 | CH42: 1.137368291 | CI42: 1.139246748 | CJ42: 1.141128306 | CK42: 1.143012972 | CL42: 1.144900751 | CM42: 1.146791648 | CN42: 1.148685668 | CO42: 1.150582815 | CP42: 1.152483096 | CQ42: 1.154386516 | CR42: 1.156293079 | CS42: 1.158202791 | CT42: 1.160115657 | CU42: 1.162031683 | CV42: 1.163950872 | CW42: 1.165873232 | CX42: 1.167798766 | CY42: 1.169727481 | CZ42: 1.171659381 | DA42: 1.173594472 | DB42: 1.175532758 | DC42: 1.177474246 | DD42: 1.179418941 | DE42: 1.181366847 | DF42: 1.18331797 | DG42: 1.185272316 | DH42: 1.18722989 | DI42: 1.189190697 | DJ42: 1.191154742 | DK42: 1.193122031 | DL42: 1.195092569 | DM42: 1.197066361 | DN42: 1.199043414 | DO42: 1.201023731 | DP42: 1.20300732 | DQ42: 1.204994184 | DR42: 1.20698433 | DS42: 1.208977763 | DT42: 1.210974488 | DU42: 1.21297451 | DV42: 1.214977837 | DW42: 1.216984471 | DX42: 1.21899442 | DY42: 1.221007688 | DZ42: 1.223024282 | EA42: 1.225044206 | EB42: 1.227067466 | EC42: 1.229094068 | ED42: 1.231124016 | EE42: 1.233157318 | EF42: 1.235193977 | EG42: 1.237234001 | EH42: =EH57 -> 1.239277393 | EI42: 1.241324161 | EJ42: 1.243374308 | EK42: 1.245427842 | EL42: 1.247484767 | EM42: 1.24954509 | EN42: 1.251608815 | EO42: 1.253675949 | EP42: 1.255746497 | EQ42: 1.257820464 | ER42: 1.259897857 | ES42: 1.261978681 | ET42: 1.264062941 | EU42: 1.266150644 | EV42: 1.268241795 | EW42: 1.270336399 | EX42: 1.272434463 | EY42: 1.274535992 | EZ42: 1.276640992 | FA42: 1.278749468 | FB42: 1.280861427 | FC42: 1.282976874 | FD42: 1.285095814 | FE42: 1.287218254 | FF42: 1.2893442 | FG42: 1.291473657 | FH42: 1.29360663 | FI42: 1.295743127 | FJ42: 1.297883152 | FK42: 1.300026712 | FL42: 1.302173811 | FM42: 1.304324457 | FN42: 1.306478655 | FO42: 1.308636411 | FP42: 1.31079773 | FQ42: 1.312962619 | FR42: 1.315131084 | FS42: 1.31730313 | FT42: 1.319478763 | FU42: 1.32165799 | FV42: 1.323840815 | FW42: 1.326027246 | FX42: 1.328217288 | FY42: 1.330410947 | FZ42: 1.332608228 | GA42: 1.334809139 | GB42: 1.337013685 | GC42: 1.339221872 | GD42: 1.341433706 | GE42: 1.343649192 | GF42: 1.345868338 | GG42: 1.348091149 | GH42: 1.350317631 | GI42: 1.352547791 | GJ42: 1.354781633 | GK42: 1.357019165 | GL42: 1.359260393 | GM42: 1.361505322 | GN42: 1.363753959 | GO42: 1.366006309 | GP42: 1.36826238 | GQ42: 1.370522176 | GR42: 1.372785705 | GS42: 1.375052972 | GT42: =GT57 -> 1.377323984 | GU42: 1.379598747 | GV42: 1.381877266 | GW42: 1.384159549 | GX42: 1.386445601 | GY42: 1.388735428 | GZ42: 1.391029038 | HA42: 1.393326435 | HB42: 1.395627627 | HC42: 1.39793262 | HD42: 1.400241419 | HE42: 1.402554032 | HF42: 1.404870464 | HG42: 1.407190722 | HH42: 1.409514811 | HI42: 1.41184274 | HJ42: 1.414174513 | HK42: 1.416510137 | HL42: 1.418849619 | HM42: 1.421192964 | HN42: 1.42354018 | HO42: 1.425891272 | HP42: 1.428246248 | HQ42: 1.430605112 | HR42: 1.432967873 | HS42: 1.435334536 | HT42: 1.437705108 | HU42: 1.440079595 | HV42: 1.442458003 | HW42: 1.44484034 | HX42: 1.447226611 | HY42: 1.449616823 | HZ42: 1.452010983 | IA42: 1.454409098 | IB42: 1.456811173 | IC42: 1.459217215 | ID42: 1.46162723 | IE42: 1.464041227 | IF42: 1.46645921 | IG42: 1.468881186 | IH42: 1.471307163 | II42: 1.473737147 | IJ42: 1.476171143 | IK42: 1.47860916 | IL42: 1.481051203 | IM42: 1.48349728 | IN42: 1.485947396 | IO42: 1.488401559 | IP42: 1.490859775 | IQ42: 1.493322051 | IR42: 1.495788394 | IS42: 1.49825881 | IT42: 1.500733306 | IU42: 1.503211889 | IV42: 1.505694566 | IW42: 1.508181343 | IX42: 1.510672227 | IY42: 1.513167225 | IZ42: 1.515666344 | JA42: 1.51816959 | JB42: 1.520676971 | JC42: 1.523188492 | JD42: 1.525704162 | JE42: 1.528223986 | JF42: =JF57 -> 1.530747973 | JG42: 1.533276127 | JH42: 1.535808457 | JI42: 1.53834497 | JJ42: 1.540885672 | JK42: 1.54343057 | JL42: 1.545979671 | JM42: 1.548532982 | JN42: 1.55109051 | JO42: 1.553652262 | JP42: 1.556218245 | JQ42: 1.558788466 | JR42: 1.561362932 | JS42: 1.56394165 | JT42: 1.566524627 | JU42: 1.569111869 | JV42: 1.571703385 | JW42: 1.574299181 | JX42: 1.576899264 | JY42: 1.579503642 | JZ42: 1.58211232 | KA42: 1.584725307 | KB42: 1.58734261 | KC42: 1.589964235 | KD42: 1.592590191 | KE42: 1.595220483 | KF42: 1.597855119 | KG42: 1.600494107 | KH42: 1.603137453 | KI42: 1.605785165 | KJ42: 1.608437249 | KK42: 1.611093714 | KL42: 1.613754567 | KM42: 1.616419813 | KN42: 1.619089462 | KO42: 1.62176352 | KP42: 1.624441994 | KQ42: 1.627124892 | KR42: 1.629812221 | KS42: 1.632503989 | KT42: 1.635200202 | KU42: 1.637900868 | KV42: 1.640605994
C43: Price per MM Token with Inflation | E43: USD/MM Token | I43: =I41*I42 -> 4.93491641 | J43: =J41*J42 -> 4.943066826 | K43: 4.951230703 | L43: 4.959408063 | M43: 4.967598928 | N43: 4.975803322 | O43: 4.984021266 | P43: 4.992252782 | Q43: 5.000497893 | R43: 5.008756622 | S43: 5.017028991 | T43: 5.025315022 | U43: 5.033614739 | V43: 5.041928163 | W43: 5.050255317 | X43: 5.058596224 | Y43: 5.066950907 | Z43: 5.075319388 | AA43: 5.083701691 | AB43: 5.092097838 | AC43: 5.100507851 | AD43: 5.108931755 | AE43: 5.117369571 | AF43: 5.125821323 | AG43: 5.134287033 | AH43: 5.142766726 | AI43: 5.151260423 | AJ43: 5.159768149 | AK43: 5.168289925 | AL43: 5.176825776 | AM43: 5.185375725 | AN43: 5.193939794 | AO43: 5.202518008 | AP43: 5.21111039 | AQ43: 5.219716962 | AR43: 5.228337749 | AS43: 5.236972774 | AT43: 5.24562206 | AU43: 5.254285632 | AV43: 5.262963512 | AW43: 5.271655724 | AX43: 5.280362292 | AY43: 5.289083239 | AZ43: 5.29781859 | BA43: 5.306568368 | BB43: 5.315332598 | BC43: 5.324111301 | BD43: 5.332904504 | BE43: 5.34171223 | BF43: 5.350534502 | BG43: 5.359371344 | BH43: 5.368222782 | BI43: 5.377088838 | BJ43: 5.385969538 | BK43: 5.394864904 | BL43: 5.403774962 | BM43: 5.412699736 | BN43: 5.42163925 | BO43: 5.430593528 | BP43: 5.439562594 | BQ43: 5.448546474 | BR43: 5.457545192 | BS43: 5.466558771 | BT43: 5.475587237 | BU43: 5.484630615 | BV43: =BV41*BV42 -> 5.493688928 | BW43: 5.502762202 | BX43: 5.511850461 | BY43: 5.520953731 | BZ43: 5.530072035 | CA43: 5.539205398 | CB43: 5.548353846 | CC43: 5.557517404 | CD43: 5.566696095 | CE43: 5.575889947 | CF43: 5.585098982 | CG43: 5.594323227 | CH43: 5.603562707 | CI43: 5.612817446 | CJ43: 5.622087471 | CK43: 5.631372805 | CL43: 5.640673475 | CM43: 5.649989506 | CN43: 5.659320923 | CO43: 5.668667752 | CP43: 5.678030017 | CQ43: 5.687407746 | CR43: 5.696800962 | CS43: 5.706209692 | CT43: 5.715633961 | CU43: 5.725073795 | CV43: 5.73452922 | CW43: 5.744000261 | CX43: 5.753486945 | CY43: 5.762989296 | CZ43: 5.772507342 | DA43: 5.782041107 | DB43: 5.791590618 | DC43: 5.8011559 | DD43: 5.810736981 | DE43: 5.820333886 | DF43: 5.82994664 | DG43: 5.839575271 | DH43: 5.849219804 | DI43: 5.858880266 | DJ43: 5.868556684 | DK43: 5.878249082 | DL43: 5.887957488 | DM43: 5.897681929 | DN43: 5.90742243 | DO43: 5.917179018 | DP43: 5.926951721 | DQ43: 5.936740563 | DR43: 5.946545573 | DS43: 5.956366777 | DT43: 5.966204201 | DU43: 5.976057872 | DV43: 5.985927817 | DW43: 5.995814064 | DX43: 6.005716638 | DY43: 6.015635567 | DZ43: 6.025570879 | EA43: 6.035522599 | EB43: 6.045490755 | EC43: 6.055475375 | ED43: 6.065476485 | EE43: 6.075494112 | EF43: 6.085528285 | EG43: 6.095579029 | EH43: =EH41*EH42 -> 6.105646374 | EI43: 6.115730345 | EJ43: 6.125830971 | EK43: 6.135948279 | EL43: 6.146082296 | EM43: 6.156233051 | EN43: 6.16640057 | EO43: 6.176584882 | EP43: 6.186786014 | EQ43: 6.197003994 | ER43: 6.20723885 | ES43: 6.21749061 | ET43: 6.227759301 | EU43: 6.238044952 | EV43: 6.24834759 | EW43: 6.258667244 | EX43: 6.269003942 | EY43: 6.279357712 | EZ43: 6.289728582 | FA43: 6.30011658 | FB43: 6.310521734 | FC43: 6.320944074 | FD43: 6.331383627 | FE43: 6.341840422 | FF43: 6.352314487 | FG43: 6.362805851 | FH43: 6.373314542 | FI43: 6.383840589 | FJ43: 6.394384021 | FK43: 6.404944866 | FL43: 6.415523153 | FM43: 6.426118911 | FN43: 6.436732169 | FO43: 6.447362956 | FP43: 6.4580113 | FQ43: 6.46867723 | FR43: 6.479360777 | FS43: 6.490061968 | FT43: 6.500780833 | FU43: 6.511517401 | FV43: 6.522271701 | FW43: 6.533043763 | FX43: 6.543833616 | FY43: 6.55464129 | FZ43: 6.565466813 | GA43: 6.576310215 | GB43: 6.587171526 | GC43: 6.598050775 | GD43: 6.608947992 | GE43: 6.619863207 | GF43: 6.63079645 | GG43: 6.641747749 | GH43: 6.652717135 | GI43: 6.663704639 | GJ43: 6.674710289 | GK43: 6.685734115 | GL43: 6.696776149 | GM43: 6.707836419 | GN43: 6.718914956 | GO43: 6.730011791 | GP43: 6.741126952 | GQ43: 6.752260471 | GR43: 6.763412379 | GS43: 6.774582704 | GT43: =GT41*GT42 -> 6.785771478 | GU43: 6.796978731 | GV43: 6.808204494 | GW43: 6.819448798 | GX43: 6.830711672 | GY43: 6.841993147 | GZ43: 6.853293255 | HA43: 6.864612026 | HB43: 6.875949491 | HC43: 6.887305681 | HD43: 6.898680626 | HE43: 6.910074358 | HF43: 6.921486908 | HG43: 6.932918306 | HH43: 6.944368584 | HI43: 6.955837774 | HJ43: 6.967325905 | HK43: 6.97883301 | HL43: 6.990359121 | HM43: 7.001904267 | HN43: 7.013468481 | HO43: 7.025051795 | HP43: 7.036654239 | HQ43: 7.048275845 | HR43: 7.059916646 | HS43: 7.071576672 | HT43: 7.083255956 | HU43: 7.094954529 | HV43: 7.106672423 | HW43: 7.118409671 | HX43: 7.130166303 | HY43: 7.141942352 | HZ43: 7.153737851 | IA43: 7.16555283 | IB43: 7.177387323 | IC43: 7.189241362 | ID43: 7.201114979 | IE43: 7.213008206 | IF43: 7.224921075 | IG43: 7.23685362 | IH43: 7.248805872 | II43: 7.260777864 | IJ43: 7.272769629 | IK43: 7.284781199 | IL43: 7.296812608 | IM43: 7.308863887 | IN43: 7.32093507 | IO43: 7.333026189 | IP43: 7.345137278 | IQ43: 7.35726837 | IR43: 7.369419497 | IS43: 7.381590692 | IT43: 7.393781989 | IU43: 7.405993421 | IV43: 7.418225022 | IW43: 7.430476823 | IX43: 7.44274886 | IY43: 7.455041165 | IZ43: 7.467353771 | JA43: 7.479686713 | JB43: 7.492040024 | JC43: 7.504413737 | JD43: 7.516807887 | JE43: 7.529222506 | JF43: =JF41*JF42 -> 7.541657629 | JG43: 7.55411329 | JH43: 7.566589522 | JI43: 7.57908636 | JJ43: 7.591603837 | JK43: 7.604141988 | JL43: 7.616700847 | JM43: 7.629280447 | JN43: 7.641880824 | JO43: 7.654502012 | JP43: 7.667144044 | JQ43: 7.679806956 | JR43: 7.692490782 | JS43: 7.705195556 | JT43: 7.717921312 | JU43: 7.730668087 | JV43: 7.743435914 | JW43: 7.756224828 | JX43: 7.769034864 | JY43: 7.781866056 | JZ43: 7.794718441 | KA43: 7.807592052 | KB43: 7.820486925 | KC43: 7.833403095 | KD43: 7.846340597 | KE43: 7.859299467 | KF43: 7.872279739 | KG43: 7.885281449 | KH43: 7.898304632 | KI43: 7.911349324 | KJ43: 7.924415561 | KK43: 7.937503378 | KL43: 7.95061281 | KM43: 7.963743893 | KN43: 7.976896664 | KO43: 7.990071157 | KP43: 8.003267409 | KQ43: 8.016485456 | KR43: 8.029725333 | KS43: 8.042987078 | KT43: 8.056270725 | KU43: 8.069576311 | KV43: 8.082903872
C44: Revenues from Selling Tokens | E44: USD | H44: =SUM(I44:XFD44) -> 2.458056441e+11 | I44: =I43*I31 -> 0 | J44: 0 | K44: 0 | L44: 0 | M44: 0 | N44: 0 | O44: 0 | P44: 0 | Q44: 3217820394 | R44: 3223134886 | S44: 3228458156 | T44: 3233790217 | U44: 3239131084 | V44: 3244480773 | W44: 3249839296 | X44: 3255206670 | Y44: 3260582909 | Z44: 3265968026 | AA44: 3271362038 | AB44: 3276764959 | AC44: 3282176802 | AD44: 3287597584 | AE44: 3293027319 | AF44: 3298466021 | AG44: 3303913706 | AH44: 3309370388 | AI44: 3314836082 | AJ44: 3320310804 | AK44: 3325794567 | AL44: 3331287387 | AM44: 3336789279 | AN44: 3342300258 | AO44: 3347820338 | AP44: 3353349536 | AQ44: 3358887865 | AR44: 3364435342 | AS44: 3369991980 | AT44: 3375557796 | AU44: 3381132804 | AV44: 3386717020 | AW44: 3392310458 | AX44: 3397913135 | AY44: 3403525065 | AZ44: 3409146263 | BA44: 3414776745 | BB44: 3420416527 | BC44: 3426065623 | BD44: 3431724048 | BE44: 3437391820 | BF44: 3443068952 | BG44: 3448755460 | BH44: 3454451360 | BI44: 3460156667 | BJ44: 3465871397 | BK44: 3471595566 | BL44: 3477329188 | BM44: 3483072280 | BN44: 3488824857 | BO44: 3494586935 | BP44: 3500358529 | BQ44: 3506139656 | BR44: 3511930331 | BS44: 3517730569 | BT44: 3523540387 | BU44: =BU43*BU31 -> 3529359801 | BV44: 3535188825 | BW44: 3541027477 | BX44: 3546875772 | BY44: 3552733726 | BZ44: 3558601354 | CA44: 3564478674 | CB44: 3570365700 | CC44: 3576262449 | CD44: 3582168937 | CE44: 3588085181 | CF44: 3594011195 | CG44: 3599946997 | CH44: 3605892602 | CI44: 3611848027 | CJ44: 3617813287 | CK44: 0 | CL44: 0 | CM44: 0 | CN44: 0 | CO44: 0 | CP44: 0 | CQ44: 0 | CR44: 0 | CS44: 0 | CT44: 0 | CU44: 0 | CV44: 0 | CW44: 0 | CX44: 0 | CY44: 0 | CZ44: 0 | DA44: 0 | DB44: 0 | DC44: 0 | DD44: 0 | DE44: 0 | DF44: 0 | DG44: 0 | DH44: 0 | DI44: 0 | DJ44: 0 | DK44: 0 | DL44: 0 | DM44: 0 | DN44: 0 | DO44: 0 | DP44: 0 | DQ44: 0 | DR44: 0 | DS44: 0 | DT44: 0 | DU44: 0 | DV44: 0 | DW44: 0 | DX44: 0 | DY44: 0 | DZ44: 0 | EA44: 0 | EB44: 0 | EC44: 0 | ED44: 0 | EE44: 0 | EF44: 0 | EG44: =EG43*EG31 -> 0 | EH44: 0 | EI44: 0 | EJ44: 0 | EK44: 0 | EL44: 0 | EM44: 0 | EN44: 0 | EO44: 0 | EP44: 0 | EQ44: 0 | ER44: 0 | ES44: 0 | ET44: 0 | EU44: 0 | EV44: 0 | EW44: 0 | EX44: 0 | EY44: 0 | EZ44: 0 | FA44: 0 | FB44: 0 | FC44: 0 | FD44: 0 | FE44: 0 | FF44: 0 | FG44: 0 | FH44: 0 | FI44: 0 | FJ44: 0 | FK44: 0 | FL44: 0 | FM44: 0 | FN44: 0 | FO44: 0 | FP44: 0 | FQ44: 0 | FR44: 0 | FS44: 0 | FT44: 0 | FU44: 0 | FV44: 0 | FW44: 0 | FX44: 0 | FY44: 0 | FZ44: 0 | GA44: 0 | GB44: 0 | GC44: 0 | GD44: 0 | GE44: 0 | GF44: 0 | GG44: 0 | GH44: 0 | GI44: 0 | GJ44: 0 | GK44: 0 | GL44: 0 | GM44: 0 | GN44: 0 | GO44: 0 | GP44: 0 | GQ44: 0 | GR44: 0 | GS44: =GS43*GS31 -> 0 | GT44: 0 | GU44: 0 | GV44: 0 | GW44: 0 | GX44: 0 | GY44: 0 | GZ44: 0 | HA44: 0 | HB44: 0 | HC44: 0 | HD44: 0 | HE44: 0 | HF44: 0 | HG44: 0 | HH44: 0 | HI44: 0 | HJ44: 0 | HK44: 0 | HL44: 0 | HM44: 0 | HN44: 0 | HO44: 0 | HP44: 0 | HQ44: 0 | HR44: 0 | HS44: 0 | HT44: 0 | HU44: 0 | HV44: 0 | HW44: 0 | HX44: 0 | HY44: 0 | HZ44: 0 | IA44: 0 | IB44: 0 | IC44: 0 | ID44: 0 | IE44: 0 | IF44: 0 | IG44: 0 | IH44: 0 | II44: 0 | IJ44: 0 | IK44: 0 | IL44: 0 | IM44: 0 | IN44: 0 | IO44: 0 | IP44: 0 | IQ44: 0 | IR44: 0 | IS44: 0 | IT44: 0 | IU44: 0 | IV44: 0 | IW44: 0 | IX44: 0 | IY44: 0 | IZ44: 0 | JA44: 0 | JB44: 0 | JC44: 0 | JD44: 0 | JE44: =JE43*JE31 -> 0 | JF44: 0 | JG44: 0 | JH44: 0 | JI44: 0 | JJ44: 0 | JK44: 0 | JL44: 0 | JM44: 0 | JN44: 0 | JO44: 0 | JP44: 0 | JQ44: 0 | JR44: 0 | JS44: 0 | JT44: 0 | JU44: 0 | JV44: 0 | JW44: 0 | JX44: 0 | JY44: 0 | JZ44: 0 | KA44: 0 | KB44: 0 | KC44: 0 | KD44: 0 | KE44: 0 | KF44: 0 | KG44: 0 | KH44: 0 | KI44: 0 | KJ44: 0 | KK44: 0 | KL44: 0 | KM44: 0 | KN44: 0 | KO44: 0 | KP44: 0 | KQ44: 0 | KR44: 0 | KS44: 0 | KT44: 0 | KU44: 0 | KV44: 0
C45: IRR | E45: % | F45: =F127 -> 0.215559727
C47: Revenues per kWit | E47: USD/kWit | H47: =LOOKUP(F9,7:7,47:47) -> 21452.13596 | I47: =IF(I14,(I44/I14)/1000) -> FALSE | J47: =IF(J14,(J44/J14)/1000) -> FALSE | K47: FALSE | L47: FALSE | M47: FALSE | N47: FALSE | O47: FALSE | P47: FALSE | Q47: 21452.13596 | R47: 21487.56591 | S47: 21523.05437 | T47: 21558.60145 | U47: 21594.20723 | V47: 21629.87182 | W47: 21665.59531 | X47: 21701.3778 | Y47: 21737.21939 | Z47: 21773.12018 | AA47: 21809.08025 | AB47: 21845.09972 | AC47: 21881.17868 | AD47: 21917.31723 | AE47: 21953.51546 | AF47: 21989.77347 | AG47: 22026.09137 | AH47: 22062.46925 | AI47: 22098.90722 | AJ47: 22135.40536 | AK47: 22171.96378 | AL47: 22208.58258 | AM47: 22245.26186 | AN47: 22282.00172 | AO47: 22318.80226 | AP47: 22355.66357 | AQ47: 22392.58577 | AR47: 22429.56894 | AS47: 22466.6132 | AT47: 22503.71864 | AU47: 22540.88536 | AV47: 22578.11346 | AW47: 22615.40305 | AX47: 22652.75423 | AY47: 22690.1671 | AZ47: 22727.64175 | BA47: 22765.1783 | BB47: 22802.77684 | BC47: 22840.43748 | BD47: 22878.16032 | BE47: 22915.94546 | BF47: 22953.79301 | BG47: 22991.70307 | BH47: 23029.67573 | BI47: 23067.71112 | BJ47: 23105.80932 | BK47: 23143.97044 | BL47: 23182.19459 | BM47: 23220.48187 | BN47: 23258.83238 | BO47: 23297.24623 | BP47: 23335.72353 | BQ47: 23374.26437 | BR47: 23412.86887 | BS47: 23451.53713 | BT47: 23490.26925 | BU47: 23529.06534 | BV47: =IF(BV14,(BV44/BV14)/1000) -> 23567.9255 | BW47: 23606.84985 | BX47: 23645.83848 | BY47: 23684.8915 | BZ47: 23724.00903 | CA47: 23763.19116 | CB47: 23802.438 | CC47: 23841.74966 | CD47: 23881.12625 | CE47: 23920.56787 | CF47: 23960.07463 | CG47: 23999.64664 | CH47: 24039.28401 | CI47: 24078.98684 | CJ47: 24118.75525 | CK47: FALSE | CL47: FALSE | CM47: FALSE | CN47: FALSE | CO47: FALSE | CP47: FALSE | CQ47: FALSE | CR47: FALSE | CS47: FALSE | CT47: FALSE | CU47: FALSE | CV47: FALSE | CW47: FALSE | CX47: FALSE | CY47: FALSE | CZ47: FALSE | DA47: FALSE | DB47: FALSE | DC47: FALSE | DD47: FALSE | DE47: FALSE | DF47: FALSE | DG47: FALSE | DH47: FALSE | DI47: FALSE | DJ47: FALSE | DK47: FALSE | DL47: FALSE | DM47: FALSE | DN47: FALSE | DO47: FALSE | DP47: FALSE | DQ47: FALSE | DR47: FALSE | DS47: FALSE | DT47: FALSE | DU47: FALSE | DV47: FALSE | DW47: FALSE | DX47: FALSE | DY47: FALSE | DZ47: FALSE | EA47: FALSE | EB47: FALSE | EC47: FALSE | ED47: FALSE | EE47: FALSE | EF47: FALSE | EG47: FALSE | EH47: =IF(EH14,(EH44/EH14)/1000) -> FALSE | EI47: FALSE | EJ47: FALSE | EK47: FALSE | EL47: FALSE | EM47: FALSE | EN47: FALSE | EO47: FALSE | EP47: FALSE | EQ47: FALSE | ER47: FALSE | ES47: FALSE | ET47: FALSE | EU47: FALSE | EV47: FALSE | EW47: FALSE | EX47: FALSE | EY47: FALSE | EZ47: FALSE | FA47: FALSE | FB47: FALSE | FC47: FALSE | FD47: FALSE | FE47: FALSE | FF47: FALSE | FG47: FALSE | FH47: FALSE | FI47: FALSE | FJ47: FALSE | FK47: FALSE | FL47: FALSE | FM47: FALSE | FN47: FALSE | FO47: FALSE | FP47: FALSE | FQ47: FALSE | FR47: FALSE | FS47: FALSE | FT47: FALSE | FU47: FALSE | FV47: FALSE | FW47: FALSE | FX47: FALSE | FY47: FALSE | FZ47: FALSE | GA47: FALSE | GB47: FALSE | GC47: FALSE | GD47: FALSE | GE47: FALSE | GF47: FALSE | GG47: FALSE | GH47: FALSE | GI47: FALSE | GJ47: FALSE | GK47: FALSE | GL47: FALSE | GM47: FALSE | GN47: FALSE | GO47: FALSE | GP47: FALSE | GQ47: FALSE | GR47: FALSE | GS47: FALSE | GT47: =IF(GT14,(GT44/GT14)/1000) -> FALSE | GU47: FALSE | GV47: FALSE | GW47: FALSE | GX47: FALSE | GY47: FALSE | GZ47: FALSE | HA47: FALSE | HB47: FALSE | HC47: FALSE | HD47: FALSE | HE47: FALSE | HF47: FALSE | HG47: FALSE | HH47: FALSE | HI47: FALSE | HJ47: FALSE | HK47: FALSE | HL47: FALSE | HM47: FALSE | HN47: FALSE | HO47: FALSE | HP47: FALSE | HQ47: FALSE | HR47: FALSE | HS47: FALSE | HT47: FALSE | HU47: FALSE | HV47: FALSE | HW47: FALSE | HX47: FALSE | HY47: FALSE | HZ47: FALSE | IA47: FALSE | IB47: FALSE | IC47: FALSE | ID47: FALSE | IE47: FALSE | IF47: FALSE | IG47: FALSE | IH47: FALSE | II47: FALSE | IJ47: FALSE | IK47: FALSE | IL47: FALSE | IM47: FALSE | IN47: FALSE | IO47: FALSE | IP47: FALSE | IQ47: FALSE | IR47: FALSE | IS47: FALSE | IT47: FALSE | IU47: FALSE | IV47: FALSE | IW47: FALSE | IX47: FALSE | IY47: FALSE | IZ47: FALSE | JA47: FALSE | JB47: FALSE | JC47: FALSE | JD47: FALSE | JE47: FALSE | JF47: =IF(JF14,(JF44/JF14)/1000) -> FALSE | JG47: FALSE | JH47: FALSE | JI47: FALSE | JJ47: FALSE | JK47: FALSE | JL47: FALSE | JM47: FALSE | JN47: FALSE | JO47: FALSE | JP47: FALSE | JQ47: FALSE | JR47: FALSE | JS47: FALSE | JT47: FALSE | JU47: FALSE | JV47: FALSE | JW47: FALSE | JX47: FALSE | JY47: FALSE | JZ47: FALSE | KA47: FALSE | KB47: FALSE | KC47: FALSE | KD47: FALSE | KE47: FALSE | KF47: FALSE | KG47: FALSE | KH47: FALSE | KI47: FALSE | KJ47: FALSE | KK47: FALSE | KL47: FALSE | KM47: FALSE | KN47: FALSE | KO47: FALSE | KP47: FALSE | KQ47: FALSE | KR47: FALSE | KS47: FALSE | KT47: FALSE | KU47: FALSE | KV47: FALSE
C49: GPU per MW | E49: GPU/MW | F49: =InputC!G36 -> 540 | I49: =$F$49 -> 540 | J49: =$F$49 -> 540 | K49: 540 | L49: 540 | M49: 540 | N49: 540 | O49: 540 | P49: 540 | Q49: 540 | R49: 540 | S49: 540 | T49: 540 | U49: 540 | V49: 540 | W49: 540 | X49: 540 | Y49: 540 | Z49: 540 | AA49: 540 | AB49: 540 | AC49: 540 | AD49: 540 | AE49: 540 | AF49: 540 | AG49: 540 | AH49: 540 | AI49: 540 | AJ49: 540 | AK49: 540 | AL49: 540 | AM49: 540 | AN49: 540 | AO49: 540 | AP49: 540 | AQ49: 540 | AR49: 540 | AS49: 540 | AT49: 540 | AU49: 540 | AV49: 540 | AW49: 540 | AX49: 540 | AY49: 540 | AZ49: 540 | BA49: 540 | BB49: 540 | BC49: 540 | BD49: 540 | BE49: 540 | BF49: 540 | BG49: 540 | BH49: 540 | BI49: 540 | BJ49: 540 | BK49: 540 | BL49: 540 | BM49: 540 | BN49: 540 | BO49: 540 | BP49: 540 | BQ49: 540 | BR49: 540 | BS49: 540 | BT49: 540 | BU49: 540 | BV49: =$F$49 -> 540 | BW49: 540 | BX49: 540 | BY49: 540 | BZ49: 540 | CA49: 540 | CB49: 540 | CC49: 540 | CD49: 540 | CE49: 540 | CF49: 540 | CG49: 540 | CH49: 540 | CI49: 540 | CJ49: 540 | CK49: 540 | CL49: 540 | CM49: 540 | CN49: 540 | CO49: 540 | CP49: 540 | CQ49: 540 | CR49: 540 | CS49: 540 | CT49: 540 | CU49: 540 | CV49: 540 | CW49: 540 | CX49: 540 | CY49: 540 | CZ49: 540 | DA49: 540 | DB49: 540 | DC49: 540 | DD49: 540 | DE49: 540 | DF49: 540 | DG49: 540 | DH49: 540 | DI49: 540 | DJ49: 540 | DK49: 540 | DL49: 540 | DM49: 540 | DN49: 540 | DO49: 540 | DP49: 540 | DQ49: 540 | DR49: 540 | DS49: 540 | DT49: 540 | DU49: 540 | DV49: 540 | DW49: 540 | DX49: 540 | DY49: 540 | DZ49: 540 | EA49: 540 | EB49: 540 | EC49: 540 | ED49: 540 | EE49: 540 | EF49: 540 | EG49: 540 | EH49: =$F$49 -> 540 | EI49: 540 | EJ49: 540 | EK49: 540 | EL49: 540 | EM49: 540 | EN49: 540 | EO49: 540 | EP49: 540 | EQ49: 540 | ER49: 540 | ES49: 540 | ET49: 540 | EU49: 540 | EV49: 540 | EW49: 540 | EX49: 540 | EY49: 540 | EZ49: 540 | FA49: 540 | FB49: 540 | FC49: 540 | FD49: 540 | FE49: 540 | FF49: 540 | FG49: 540 | FH49: 540 | FI49: 540 | FJ49: 540 | FK49: 540 | FL49: 540 | FM49: 540 | FN49: 540 | FO49: 540 | FP49: 540 | FQ49: 540 | FR49: 540 | FS49: 540 | FT49: 540 | FU49: 540 | FV49: 540 | FW49: 540 | FX49: 540 | FY49: 540 | FZ49: 540 | GA49: 540 | GB49: 540 | GC49: 540 | GD49: 540 | GE49: 540 | GF49: 540 | GG49: 540 | GH49: 540 | GI49: 540 | GJ49: 540 | GK49: 540 | GL49: 540 | GM49: 540 | GN49: 540 | GO49: 540 | GP49: 540 | GQ49: 540 | GR49: 540 | GS49: 540 | GT49: =$F$49 -> 540 | GU49: 540 | GV49: 540 | GW49: 540 | GX49: 540 | GY49: 540 | GZ49: 540 | HA49: 540 | HB49: 540 | HC49: 540 | HD49: 540 | HE49: 540 | HF49: 540 | HG49: 540 | HH49: 540 | HI49: 540 | HJ49: 540 | HK49: 540 | HL49: 540 | HM49: 540 | HN49: 540 | HO49: 540 | HP49: 540 | HQ49: 540 | HR49: 540 | HS49: 540 | HT49: 540 | HU49: 540 | HV49: 540 | HW49: 540 | HX49: 540 | HY49: 540 | HZ49: 540 | IA49: 540 | IB49: 540 | IC49: 540 | ID49: 540 | IE49: 540 | IF49: 540 | IG49: 540 | IH49: 540 | II49: 540 | IJ49: 540 | IK49: 540 | IL49: 540 | IM49: 540 | IN49: 540 | IO49: 540 | IP49: 540 | IQ49: 540 | IR49: 540 | IS49: 540 | IT49: 540 | IU49: 540 | IV49: 540 | IW49: 540 | IX49: 540 | IY49: 540 | IZ49: 540 | JA49: 540 | JB49: 540 | JC49: 540 | JD49: 540 | JE49: 540 | JF49: =$F$49 -> 540 | JG49: 540 | JH49: 540 | JI49: 540 | JJ49: 540 | JK49: 540 | JL49: 540 | JM49: 540 | JN49: 540 | JO49: 540 | JP49: 540 | JQ49: 540 | JR49: 540 | JS49: 540 | JT49: 540 | JU49: 540 | JV49: 540 | JW49: 540 | JX49: 540 | JY49: 540 | JZ49: 540 | KA49: 540 | KB49: 540 | KC49: 540 | KD49: 540 | KE49: 540 | KF49: 540 | KG49: 540 | KH49: 540 | KI49: 540 | KJ49: 540 | KK49: 540 | KL49: 540 | KM49: 540 | KN49: 540 | KO49: 540 | KP49: 540 | KQ49: 540 | KR49: 540 | KS49: 540 | KT49: 540 | KU49: 540 | KV49: 540
C50: Total GPU | E50: GPU | I50: =I49*I14 -> 0 | J50: =J49*J14 -> 0 | K50: 0 | L50: 0 | M50: 0 | N50: 0 | O50: 0 | P50: 0 | Q50: 81000 | R50: 81000 | S50: 81000 | T50: 81000 | U50: 81000 | V50: 81000 | W50: 81000 | X50: 81000 | Y50: 81000 | Z50: 81000 | AA50: 81000 | AB50: 81000 | AC50: 81000 | AD50: 81000 | AE50: 81000 | AF50: 81000 | AG50: 81000 | AH50: 81000 | AI50: 81000 | AJ50: 81000 | AK50: 81000 | AL50: 81000 | AM50: 81000 | AN50: 81000 | AO50: 81000 | AP50: 81000 | AQ50: 81000 | AR50: 81000 | AS50: 81000 | AT50: 81000 | AU50: 81000 | AV50: 81000 | AW50: 81000 | AX50: 81000 | AY50: 81000 | AZ50: 81000 | BA50: 81000 | BB50: 81000 | BC50: 81000 | BD50: 81000 | BE50: 81000 | BF50: 81000 | BG50: 81000 | BH50: 81000 | BI50: 81000 | BJ50: 81000 | BK50: 81000 | BL50: 81000 | BM50: 81000 | BN50: 81000 | BO50: 81000 | BP50: 81000 | BQ50: 81000 | BR50: 81000 | BS50: 81000 | BT50: 81000 | BU50: 81000 | BV50: =BV49*BV14 -> 81000 | BW50: 81000 | BX50: 81000 | BY50: 81000 | BZ50: 81000 | CA50: 81000 | CB50: 81000 | CC50: 81000 | CD50: 81000 | CE50: 81000 | CF50: 81000 | CG50: 81000 | CH50: 81000 | CI50: 81000 | CJ50: 81000 | CK50: 0 | CL50: 0 | CM50: 0 | CN50: 0 | CO50: 0 | CP50: 0 | CQ50: 0 | CR50: 0 | CS50: 0 | CT50: 0 | CU50: 0 | CV50: 0 | CW50: 0 | CX50: 0 | CY50: 0 | CZ50: 0 | DA50: 0 | DB50: 0 | DC50: 0 | DD50: 0 | DE50: 0 | DF50: 0 | DG50: 0 | DH50: 0 | DI50: 0 | DJ50: 0 | DK50: 0 | DL50: 0 | DM50: 0 | DN50: 0 | DO50: 0 | DP50: 0 | DQ50: 0 | DR50: 0 | DS50: 0 | DT50: 0 | DU50: 0 | DV50: 0 | DW50: 0 | DX50: 0 | DY50: 0 | DZ50: 0 | EA50: 0 | EB50: 0 | EC50: 0 | ED50: 0 | EE50: 0 | EF50: 0 | EG50: 0 | EH50: =EH49*EH14 -> 0 | EI50: 0 | EJ50: 0 | EK50: 0 | EL50: 0 | EM50: 0 | EN50: 0 | EO50: 0 | EP50: 0 | EQ50: 0 | ER50: 0 | ES50: 0 | ET50: 0 | EU50: 0 | EV50: 0 | EW50: 0 | EX50: 0 | EY50: 0 | EZ50: 0 | FA50: 0 | FB50: 0 | FC50: 0 | FD50: 0 | FE50: 0 | FF50: 0 | FG50: 0 | FH50: 0 | FI50: 0 | FJ50: 0 | FK50: 0 | FL50: 0 | FM50: 0 | FN50: 0 | FO50: 0 | FP50: 0 | FQ50: 0 | FR50: 0 | FS50: 0 | FT50: 0 | FU50: 0 | FV50: 0 | FW50: 0 | FX50: 0 | FY50: 0 | FZ50: 0 | GA50: 0 | GB50: 0 | GC50: 0 | GD50: 0 | GE50: 0 | GF50: 0 | GG50: 0 | GH50: 0 | GI50: 0 | GJ50: 0 | GK50: 0 | GL50: 0 | GM50: 0 | GN50: 0 | GO50: 0 | GP50: 0 | GQ50: 0 | GR50: 0 | GS50: 0 | GT50: =GT49*GT14 -> 0 | GU50: 0 | GV50: 0 | GW50: 0 | GX50: 0 | GY50: 0 | GZ50: 0 | HA50: 0 | HB50: 0 | HC50: 0 | HD50: 0 | HE50: 0 | HF50: 0 | HG50: 0 | HH50: 0 | HI50: 0 | HJ50: 0 | HK50: 0 | HL50: 0 | HM50: 0 | HN50: 0 | HO50: 0 | HP50: 0 | HQ50: 0 | HR50: 0 | HS50: 0 | HT50: 0 | HU50: 0 | HV50: 0 | HW50: 0 | HX50: 0 | HY50: 0 | HZ50: 0 | IA50: 0 | IB50: 0 | IC50: 0 | ID50: 0 | IE50: 0 | IF50: 0 | IG50: 0 | IH50: 0 | II50: 0 | IJ50: 0 | IK50: 0 | IL50: 0 | IM50: 0 | IN50: 0 | IO50: 0 | IP50: 0 | IQ50: 0 | IR50: 0 | IS50: 0 | IT50: 0 | IU50: 0 | IV50: 0 | IW50: 0 | IX50: 0 | IY50: 0 | IZ50: 0 | JA50: 0 | JB50: 0 | JC50: 0 | JD50: 0 | JE50: 0 | JF50: =JF49*JF14 -> 0 | JG50: 0 | JH50: 0 | JI50: 0 | JJ50: 0 | JK50: 0 | JL50: 0 | JM50: 0 | JN50: 0 | JO50: 0 | JP50: 0 | JQ50: 0 | JR50: 0 | JS50: 0 | JT50: 0 | JU50: 0 | JV50: 0 | JW50: 0 | JX50: 0 | JY50: 0 | JZ50: 0 | KA50: 0 | KB50: 0 | KC50: 0 | KD50: 0 | KE50: 0 | KF50: 0 | KG50: 0 | KH50: 0 | KI50: 0 | KJ50: 0 | KK50: 0 | KL50: 0 | KM50: 0 | KN50: 0 | KO50: 0 | KP50: 0 | KQ50: 0 | KR50: 0 | KS50: 0 | KT50: 0 | KU50: 0 | KV50: 0
C51: Revenues per GPU | E51: USD/GPU | H51: =LOOKUP(F9,7:7,51:51) -> 39726.17771 | I51: =IF(I50,I44/I50) -> FALSE | J51: =IF(J50,J44/J50) -> FALSE | K51: FALSE | L51: FALSE | M51: FALSE | N51: FALSE | O51: FALSE | P51: FALSE | Q51: 39726.17771 | R51: 39791.78872 | S51: 39857.5081 | T51: 39923.33601 | U51: 39989.27265 | V51: 40055.31818 | W51: 40121.4728 | X51: 40187.73667 | Y51: 40254.10998 | Z51: 40320.59292 | AA51: 40387.18566 | AB51: 40453.88838 | AC51: 40520.70126 | AD51: 40587.6245 | AE51: 40654.65826 | AF51: 40721.80273 | AG51: 40789.0581 | AH51: 40856.42454 | AI51: 40923.90225 | AJ51: 40991.4914 | AK51: 41059.19218 | AL51: 41127.00478 | AM51: 41194.92937 | AN51: 41262.96614 | AO51: 41331.11529 | AP51: 41399.37699 | AQ51: 41467.75142 | AR51: 41536.23879 | AS51: 41604.83926 | AT51: 41673.55304 | AU51: 41742.3803 | AV51: 41811.32123 | AW51: 41880.37603 | AX51: 41949.54487 | AY51: 42018.82796 | AZ51: 42088.22547 | BA51: 42157.73759 | BB51: 42227.36453 | BC51: 42297.10645 | BD51: 42366.96356 | BE51: 42436.93605 | BF51: 42507.0241 | BG51: 42577.2279 | BH51: 42647.54766 | BI51: 42717.98355 | BJ51: 42788.53577 | BK51: 42859.20452 | BL51: 42929.98998 | BM51: 43000.89235 | BN51: 43071.91182 | BO51: 43143.04858 | BP51: 43214.30283 | BQ51: 43285.67477 | BR51: 43357.16458 | BS51: 43428.77246 | BT51: 43500.49861 | BU51: 43572.34322 | BV51: =IF(BV50,BV44/BV50) -> 43644.30649 | BW51: 43716.38861 | BX51: 43788.58978 | BY51: 43860.91019 | BZ51: 43933.35005 | CA51: 44005.90955 | CB51: 44078.58889 | CC51: 44151.38826 | CD51: 44224.30787 | CE51: 44297.34791 | CF51: 44370.50858 | CG51: 44443.79008 | CH51: 44517.19262 | CI51: 44590.71638 | CJ51: 44664.36157 | CK51: FALSE | CL51: FALSE | CM51: FALSE | CN51: FALSE | CO51: FALSE | CP51: FALSE | CQ51: FALSE | CR51: FALSE | CS51: FALSE | CT51: FALSE | CU51: FALSE | CV51: FALSE | CW51: FALSE | CX51: FALSE | CY51: FALSE | CZ51: FALSE | DA51: FALSE | DB51: FALSE | DC51: FALSE | DD51: FALSE | DE51: FALSE | DF51: FALSE | DG51: FALSE | DH51: FALSE | DI51: FALSE | DJ51: FALSE | DK51: FALSE | DL51: FALSE | DM51: FALSE | DN51: FALSE | DO51: FALSE | DP51: FALSE | DQ51: FALSE | DR51: FALSE | DS51: FALSE | DT51: FALSE | DU51: FALSE | DV51: FALSE | DW51: FALSE | DX51: FALSE | DY51: FALSE | DZ51: FALSE | EA51: FALSE | EB51: FALSE | EC51: FALSE | ED51: FALSE | EE51: FALSE | EF51: FALSE | EG51: FALSE | EH51: =IF(EH50,EH44/EH50) -> FALSE | EI51: FALSE | EJ51: FALSE | EK51: FALSE | EL51: FALSE | EM51: FALSE | EN51: FALSE | EO51: FALSE | EP51: FALSE | EQ51: FALSE | ER51: FALSE | ES51: FALSE | ET51: FALSE | EU51: FALSE | EV51: FALSE | EW51: FALSE | EX51: FALSE | EY51: FALSE | EZ51: FALSE | FA51: FALSE | FB51: FALSE | FC51: FALSE | FD51: FALSE | FE51: FALSE | FF51: FALSE | FG51: FALSE | FH51: FALSE | FI51: FALSE | FJ51: FALSE | FK51: FALSE | FL51: FALSE | FM51: FALSE | FN51: FALSE | FO51: FALSE | FP51: FALSE | FQ51: FALSE | FR51: FALSE | FS51: FALSE | FT51: FALSE | FU51: FALSE | FV51: FALSE | FW51: FALSE | FX51: FALSE | FY51: FALSE | FZ51: FALSE | GA51: FALSE | GB51: FALSE | GC51: FALSE | GD51: FALSE | GE51: FALSE | GF51: FALSE | GG51: FALSE | GH51: FALSE | GI51: FALSE | GJ51: FALSE | GK51: FALSE | GL51: FALSE | GM51: FALSE | GN51: FALSE | GO51: FALSE | GP51: FALSE | GQ51: FALSE | GR51: FALSE | GS51: FALSE | GT51: =IF(GT50,GT44/GT50) -> FALSE | GU51: FALSE | GV51: FALSE | GW51: FALSE | GX51: FALSE | GY51: FALSE | GZ51: FALSE | HA51: FALSE | HB51: FALSE | HC51: FALSE | HD51: FALSE | HE51: FALSE | HF51: FALSE | HG51: FALSE | HH51: FALSE | HI51: FALSE | HJ51: FALSE | HK51: FALSE | HL51: FALSE | HM51: FALSE | HN51: FALSE | HO51: FALSE | HP51: FALSE | HQ51: FALSE | HR51: FALSE | HS51: FALSE | HT51: FALSE | HU51: FALSE | HV51: FALSE | HW51: FALSE | HX51: FALSE | HY51: FALSE | HZ51: FALSE | IA51: FALSE | IB51: FALSE | IC51: FALSE | ID51: FALSE | IE51: FALSE | IF51: FALSE | IG51: FALSE | IH51: FALSE | II51: FALSE | IJ51: FALSE | IK51: FALSE | IL51: FALSE | IM51: FALSE | IN51: FALSE | IO51: FALSE | IP51: FALSE | IQ51: FALSE | IR51: FALSE | IS51: FALSE | IT51: FALSE | IU51: FALSE | IV51: FALSE | IW51: FALSE | IX51: FALSE | IY51: FALSE | IZ51: FALSE | JA51: FALSE | JB51: FALSE | JC51: FALSE | JD51: FALSE | JE51: FALSE | JF51: =IF(JF50,JF44/JF50) -> FALSE | JG51: FALSE | JH51: FALSE | JI51: FALSE | JJ51: FALSE | JK51: FALSE | JL51: FALSE | JM51: FALSE | JN51: FALSE | JO51: FALSE | JP51: FALSE | JQ51: FALSE | JR51: FALSE | JS51: FALSE | JT51: FALSE | JU51: FALSE | JV51: FALSE | JW51: FALSE | JX51: FALSE | JY51: FALSE | JZ51: FALSE | KA51: FALSE | KB51: FALSE | KC51: FALSE | KD51: FALSE | KE51: FALSE | KF51: FALSE | KG51: FALSE | KH51: FALSE | KI51: FALSE | KJ51: FALSE | KK51: FALSE | KL51: FALSE | KM51: FALSE | KN51: FALSE | KO51: FALSE | KP51: FALSE | KQ51: FALSE | KR51: FALSE | KS51: FALSE | KT51: FALSE | KU51: FALSE | KV51: FALSE
B53: Inflation and Economic Statistics
C55: Annual Inflation Rate | E55: % p.a. | F55: =InputC!G68 -> 0.02 | I55: =$F$55 -> 0.02 | J55: 0.02 | K55: 0.02 | L55: 0.02 | M55: 0.02 | N55: 0.02 | O55: 0.02 | P55: 0.02 | Q55: 0.02 | R55: 0.02 | S55: 0.02 | T55: 0.02 | U55: 0.02 | V55: 0.02 | W55: 0.02 | X55: 0.02 | Y55: 0.02 | Z55: 0.02 | AA55: 0.02 | AB55: 0.02 | AC55: 0.02 | AD55: 0.02 | AE55: 0.02 | AF55: 0.02 | AG55: 0.02 | AH55: 0.02 | AI55: 0.02 | AJ55: 0.02 | AK55: 0.02 | AL55: 0.02 | AM55: 0.02 | AN55: 0.02 | AO55: 0.02 | AP55: 0.02 | AQ55: 0.02 | AR55: 0.02 | AS55: 0.02 | AT55: 0.02 | AU55: 0.02 | AV55: 0.02 | AW55: 0.02 | AX55: 0.02 | AY55: 0.02 | AZ55: 0.02 | BA55: 0.02 | BB55: 0.02 | BC55: 0.02 | BD55: 0.02 | BE55: 0.02 | BF55: 0.02 | BG55: 0.02 | BH55: 0.02 | BI55: 0.02 | BJ55: 0.02 | BK55: 0.02 | BL55: 0.02 | BM55: 0.02 | BN55: 0.02 | BO55: 0.02 | BP55: 0.02 | BQ55: 0.02 | BR55: 0.02 | BS55: 0.02 | BT55: 0.02 | BU55: =$F$55 -> 0.02 | BV55: 0.02 | BW55: 0.02 | BX55: 0.02 | BY55: 0.02 | BZ55: 0.02 | CA55: 0.02 | CB55: 0.02 | CC55: 0.02 | CD55: 0.02 | CE55: 0.02 | CF55: 0.02 | CG55: 0.02 | CH55: 0.02 | CI55: 0.02 | CJ55: 0.02 | CK55: 0.02 | CL55: 0.02 | CM55: 0.02 | CN55: 0.02 | CO55: 0.02 | CP55: 0.02 | CQ55: 0.02 | CR55: 0.02 | CS55: 0.02 | CT55: 0.02 | CU55: 0.02 | CV55: 0.02 | CW55: 0.02 | CX55: 0.02 | CY55: 0.02 | CZ55: 0.02 | DA55: 0.02 | DB55: 0.02 | DC55: 0.02 | DD55: 0.02 | DE55: 0.02 | DF55: 0.02 | DG55: 0.02 | DH55: 0.02 | DI55: 0.02 | DJ55: 0.02 | DK55: 0.02 | DL55: 0.02 | DM55: 0.02 | DN55: 0.02 | DO55: 0.02 | DP55: 0.02 | DQ55: 0.02 | DR55: 0.02 | DS55: 0.02 | DT55: 0.02 | DU55: 0.02 | DV55: 0.02 | DW55: 0.02 | DX55: 0.02 | DY55: 0.02 | DZ55: 0.02 | EA55: 0.02 | EB55: 0.02 | EC55: 0.02 | ED55: 0.02 | EE55: 0.02 | EF55: 0.02 | EG55: =$F$55 -> 0.02 | EH55: 0.02 | EI55: 0.02 | EJ55: 0.02 | EK55: 0.02 | EL55: 0.02 | EM55: 0.02 | EN55: 0.02 | EO55: 0.02 | EP55: 0.02 | EQ55: 0.02 | ER55: 0.02 | ES55: 0.02 | ET55: 0.02 | EU55: 0.02 | EV55: 0.02 | EW55: 0.02 | EX55: 0.02 | EY55: 0.02 | EZ55: 0.02 | FA55: 0.02 | FB55: 0.02 | FC55: 0.02 | FD55: 0.02 | FE55: 0.02 | FF55: 0.02 | FG55: 0.02 | FH55: 0.02 | FI55: 0.02 | FJ55: 0.02 | FK55: 0.02 | FL55: 0.02 | FM55: 0.02 | FN55: 0.02 | FO55: 0.02 | FP55: 0.02 | FQ55: 0.02 | FR55: 0.02 | FS55: 0.02 | FT55: 0.02 | FU55: 0.02 | FV55: 0.02 | FW55: 0.02 | FX55: 0.02 | FY55: 0.02 | FZ55: 0.02 | GA55: 0.02 | GB55: 0.02 | GC55: 0.02 | GD55: 0.02 | GE55: 0.02 | GF55: 0.02 | GG55: 0.02 | GH55: 0.02 | GI55: 0.02 | GJ55: 0.02 | GK55: 0.02 | GL55: 0.02 | GM55: 0.02 | GN55: 0.02 | GO55: 0.02 | GP55: 0.02 | GQ55: 0.02 | GR55: 0.02 | GS55: =$F$55 -> 0.02 | GT55: 0.02 | GU55: 0.02 | GV55: 0.02 | GW55: 0.02 | GX55: 0.02 | GY55: 0.02 | GZ55: 0.02 | HA55: 0.02 | HB55: 0.02 | HC55: 0.02 | HD55: 0.02 | HE55: 0.02 | HF55: 0.02 | HG55: 0.02 | HH55: 0.02 | HI55: 0.02 | HJ55: 0.02 | HK55: 0.02 | HL55: 0.02 | HM55: 0.02 | HN55: 0.02 | HO55: 0.02 | HP55: 0.02 | HQ55: 0.02 | HR55: 0.02 | HS55: 0.02 | HT55: 0.02 | HU55: 0.02 | HV55: 0.02 | HW55: 0.02 | HX55: 0.02 | HY55: 0.02 | HZ55: 0.02 | IA55: 0.02 | IB55: 0.02 | IC55: 0.02 | ID55: 0.02 | IE55: 0.02 | IF55: 0.02 | IG55: 0.02 | IH55: 0.02 | II55: 0.02 | IJ55: 0.02 | IK55: 0.02 | IL55: 0.02 | IM55: 0.02 | IN55: 0.02 | IO55: 0.02 | IP55: 0.02 | IQ55: 0.02 | IR55: 0.02 | IS55: 0.02 | IT55: 0.02 | IU55: 0.02 | IV55: 0.02 | IW55: 0.02 | IX55: 0.02 | IY55: 0.02 | IZ55: 0.02 | JA55: 0.02 | JB55: 0.02 | JC55: 0.02 | JD55: 0.02 | JE55: =$F$55 -> 0.02 | JF55: 0.02 | JG55: 0.02 | JH55: 0.02 | JI55: 0.02 | JJ55: 0.02 | JK55: 0.02 | JL55: 0.02 | JM55: 0.02 | JN55: 0.02 | JO55: 0.02 | JP55: 0.02 | JQ55: 0.02 | JR55: 0.02 | JS55: 0.02 | JT55: 0.02 | JU55: 0.02 | JV55: 0.02 | JW55: 0.02 | JX55: 0.02 | JY55: 0.02 | JZ55: 0.02 | KA55: 0.02 | KB55: 0.02 | KC55: 0.02 | KD55: 0.02 | KE55: 0.02 | KF55: 0.02 | KG55: 0.02 | KH55: 0.02 | KI55: 0.02 | KJ55: 0.02 | KK55: 0.02 | KL55: 0.02 | KM55: 0.02 | KN55: 0.02 | KO55: 0.02 | KP55: 0.02 | KQ55: 0.02 | KR55: 0.02 | KS55: 0.02 | KT55: 0.02 | KU55: 0.02 | KV55: 0.02
C56: Monthly Inflation Rate | E56: % p.m | F56: =(1+F55)^(1/12)-1 -> 0.001651581302 | I56: =$F$56 -> 0.001651581302 | J56: =$F$56 -> 0.001651581302 | K56: 0.001651581302 | L56: 0.001651581302 | M56: 0.001651581302 | N56: 0.001651581302 | O56: 0.001651581302 | P56: 0.001651581302 | Q56: 0.001651581302 | R56: 0.001651581302 | S56: 0.001651581302 | T56: 0.001651581302 | U56: 0.001651581302 | V56: 0.001651581302 | W56: 0.001651581302 | X56: 0.001651581302 | Y56: 0.001651581302 | Z56: 0.001651581302 | AA56: 0.001651581302 | AB56: 0.001651581302 | AC56: 0.001651581302 | AD56: 0.001651581302 | AE56: 0.001651581302 | AF56: 0.001651581302 | AG56: 0.001651581302 | AH56: 0.001651581302 | AI56: 0.001651581302 | AJ56: 0.001651581302 | AK56: 0.001651581302 | AL56: 0.001651581302 | AM56: 0.001651581302 | AN56: 0.001651581302 | AO56: 0.001651581302 | AP56: 0.001651581302 | AQ56: 0.001651581302 | AR56: 0.001651581302 | AS56: 0.001651581302 | AT56: 0.001651581302 | AU56: 0.001651581302 | AV56: 0.001651581302 | AW56: 0.001651581302 | AX56: 0.001651581302 | AY56: 0.001651581302 | AZ56: 0.001651581302 | BA56: 0.001651581302 | BB56: 0.001651581302 | BC56: 0.001651581302 | BD56: 0.001651581302 | BE56: 0.001651581302 | BF56: 0.001651581302 | BG56: 0.001651581302 | BH56: 0.001651581302 | BI56: 0.001651581302 | BJ56: 0.001651581302 | BK56: 0.001651581302 | BL56: 0.001651581302 | BM56: 0.001651581302 | BN56: 0.001651581302 | BO56: 0.001651581302 | BP56: 0.001651581302 | BQ56: 0.001651581302 | BR56: 0.001651581302 | BS56: 0.001651581302 | BT56: 0.001651581302 | BU56: 0.001651581302 | BV56: =$F$56 -> 0.001651581302 | BW56: 0.001651581302 | BX56: 0.001651581302 | BY56: 0.001651581302 | BZ56: 0.001651581302 | CA56: 0.001651581302 | CB56: 0.001651581302 | CC56: 0.001651581302 | CD56: 0.001651581302 | CE56: 0.001651581302 | CF56: 0.001651581302 | CG56: 0.001651581302 | CH56: 0.001651581302 | CI56: 0.001651581302 | CJ56: 0.001651581302 | CK56: 0.001651581302 | CL56: 0.001651581302 | CM56: 0.001651581302 | CN56: 0.001651581302 | CO56: 0.001651581302 | CP56: 0.001651581302 | CQ56: 0.001651581302 | CR56: 0.001651581302 | CS56: 0.001651581302 | CT56: 0.001651581302 | CU56: 0.001651581302 | CV56: 0.001651581302 | CW56: 0.001651581302 | CX56: 0.001651581302 | CY56: 0.001651581302 | CZ56: 0.001651581302 | DA56: 0.001651581302 | DB56: 0.001651581302 | DC56: 0.001651581302 | DD56: 0.001651581302 | DE56: 0.001651581302 | DF56: 0.001651581302 | DG56: 0.001651581302 | DH56: 0.001651581302 | DI56: 0.001651581302 | DJ56: 0.001651581302 | DK56: 0.001651581302 | DL56: 0.001651581302 | DM56: 0.001651581302 | DN56: 0.001651581302 | DO56: 0.001651581302 | DP56: 0.001651581302 | DQ56: 0.001651581302 | DR56: 0.001651581302 | DS56: 0.001651581302 | DT56: 0.001651581302 | DU56: 0.001651581302 | DV56: 0.001651581302 | DW56: 0.001651581302 | DX56: 0.001651581302 | DY56: 0.001651581302 | DZ56: 0.001651581302 | EA56: 0.001651581302 | EB56: 0.001651581302 | EC56: 0.001651581302 | ED56: 0.001651581302 | EE56: 0.001651581302 | EF56: 0.001651581302 | EG56: 0.001651581302 | EH56: =$F$56 -> 0.001651581302 | EI56: 0.001651581302 | EJ56: 0.001651581302 | EK56: 0.001651581302 | EL56: 0.001651581302 | EM56: 0.001651581302 | EN56: 0.001651581302 | EO56: 0.001651581302 | EP56: 0.001651581302 | EQ56: 0.001651581302 | ER56: 0.001651581302 | ES56: 0.001651581302 | ET56: 0.001651581302 | EU56: 0.001651581302 | EV56: 0.001651581302 | EW56: 0.001651581302 | EX56: 0.001651581302 | EY56: 0.001651581302 | EZ56: 0.001651581302 | FA56: 0.001651581302 | FB56: 0.001651581302 | FC56: 0.001651581302 | FD56: 0.001651581302 | FE56: 0.001651581302 | FF56: 0.001651581302 | FG56: 0.001651581302 | FH56: 0.001651581302 | FI56: 0.001651581302 | FJ56: 0.001651581302 | FK56: 0.001651581302 | FL56: 0.001651581302 | FM56: 0.001651581302 | FN56: 0.001651581302 | FO56: 0.001651581302 | FP56: 0.001651581302 | FQ56: 0.001651581302 | FR56: 0.001651581302 | FS56: 0.001651581302 | FT56: 0.001651581302 | FU56: 0.001651581302 | FV56: 0.001651581302 | FW56: 0.001651581302 | FX56: 0.001651581302 | FY56: 0.001651581302 | FZ56: 0.001651581302 | GA56: 0.001651581302 | GB56: 0.001651581302 | GC56: 0.001651581302 | GD56: 0.001651581302 | GE56: 0.001651581302 | GF56: 0.001651581302 | GG56: 0.001651581302 | GH56: 0.001651581302 | GI56: 0.001651581302 | GJ56: 0.001651581302 | GK56: 0.001651581302 | GL56: 0.001651581302 | GM56: 0.001651581302 | GN56: 0.001651581302 | GO56: 0.001651581302 | GP56: 0.001651581302 | GQ56: 0.001651581302 | GR56: 0.001651581302 | GS56: 0.001651581302 | GT56: =$F$56 -> 0.001651581302 | GU56: 0.001651581302 | GV56: 0.001651581302 | GW56: 0.001651581302 | GX56: 0.001651581302 | GY56: 0.001651581302 | GZ56: 0.001651581302 | HA56: 0.001651581302 | HB56: 0.001651581302 | HC56: 0.001651581302 | HD56: 0.001651581302 | HE56: 0.001651581302 | HF56: 0.001651581302 | HG56: 0.001651581302 | HH56: 0.001651581302 | HI56: 0.001651581302 | HJ56: 0.001651581302 | HK56: 0.001651581302 | HL56: 0.001651581302 | HM56: 0.001651581302 | HN56: 0.001651581302 | HO56: 0.001651581302 | HP56: 0.001651581302 | HQ56: 0.001651581302 | HR56: 0.001651581302 | HS56: 0.001651581302 | HT56: 0.001651581302 | HU56: 0.001651581302 | HV56: 0.001651581302 | HW56: 0.001651581302 | HX56: 0.001651581302 | HY56: 0.001651581302 | HZ56: 0.001651581302 | IA56: 0.001651581302 | IB56: 0.001651581302 | IC56: 0.001651581302 | ID56: 0.001651581302 | IE56: 0.001651581302 | IF56: 0.001651581302 | IG56: 0.001651581302 | IH56: 0.001651581302 | II56: 0.001651581302 | IJ56: 0.001651581302 | IK56: 0.001651581302 | IL56: 0.001651581302 | IM56: 0.001651581302 | IN56: 0.001651581302 | IO56: 0.001651581302 | IP56: 0.001651581302 | IQ56: 0.001651581302 | IR56: 0.001651581302 | IS56: 0.001651581302 | IT56: 0.001651581302 | IU56: 0.001651581302 | IV56: 0.001651581302 | IW56: 0.001651581302 | IX56: 0.001651581302 | IY56: 0.001651581302 | IZ56: 0.001651581302 | JA56: 0.001651581302 | JB56: 0.001651581302 | JC56: 0.001651581302 | JD56: 0.001651581302 | JE56: 0.001651581302 | JF56: =$F$56 -> 0.001651581302 | JG56: 0.001651581302 | JH56: 0.001651581302 | JI56: 0.001651581302 | JJ56: 0.001651581302 | JK56: 0.001651581302 | JL56: 0.001651581302 | JM56: 0.001651581302 | JN56: 0.001651581302 | JO56: 0.001651581302 | JP56: 0.001651581302 | JQ56: 0.001651581302 | JR56: 0.001651581302 | JS56: 0.001651581302 | JT56: 0.001651581302 | JU56: 0.001651581302 | JV56: 0.001651581302 | JW56: 0.001651581302 | JX56: 0.001651581302 | JY56: 0.001651581302 | JZ56: 0.001651581302 | KA56: 0.001651581302 | KB56: 0.001651581302 | KC56: 0.001651581302 | KD56: 0.001651581302 | KE56: 0.001651581302 | KF56: 0.001651581302 | KG56: 0.001651581302 | KH56: 0.001651581302 | KI56: 0.001651581302 | KJ56: 0.001651581302 | KK56: 0.001651581302 | KL56: 0.001651581302 | KM56: 0.001651581302 | KN56: 0.001651581302 | KO56: 0.001651581302 | KP56: 0.001651581302 | KQ56: 0.001651581302 | KR56: 0.001651581302 | KS56: 0.001651581302 | KT56: 0.001651581302 | KU56: 0.001651581302 | KV56: 0.001651581302
C57: Inflation Index | E57: Index | H57: 1 | I57: =H57*(1+I56) -> 1.001651581 | J57: =I57*(1+J56) -> 1.00330589 | K57: 1.004962932 | L57: 1.00662271 | M57: 1.008285229 | N57: 1.009950494 | O57: 1.011618509 | P57: 1.013289279 | Q57: 1.014962809 | R57: 1.016639103 | S57: 1.018318165 | T57: 1.02 | U57: 1.021684613 | V57: 1.023372008 | W57: 1.02506219 | X57: 1.026755164 | Y57: 1.028450933 | Z57: 1.030149504 | AA57: 1.031850879 | AB57: 1.033555065 | AC57: 1.035262065 | AD57: 1.036971885 | AE57: 1.038684528 | AF57: 1.0404 | AG57: 1.042118305 | AH57: 1.043839448 | AI57: 1.045563434 | AJ57: 1.047290267 | AK57: 1.049019952 | AL57: 1.050752494 | AM57: 1.052487897 | AN57: 1.054226166 | AO57: 1.055967307 | AP57: 1.057711322 | AQ57: 1.059458219 | AR57: 1.061208 | AS57: 1.062960671 | AT57: 1.064716237 | AU57: 1.066474703 | AV57: 1.068236072 | AW57: 1.070000351 | AX57: 1.071767544 | AY57: 1.073537655 | AZ57: 1.07531069 | BA57: 1.077086653 | BB57: 1.078865549 | BC57: 1.080647383 | BD57: 1.08243216 | BE57: 1.084219885 | BF57: 1.086010562 | BG57: 1.087804197 | BH57: 1.089600794 | BI57: 1.091400358 | BJ57: 1.093202895 | BK57: 1.095008408 | BL57: 1.096816903 | BM57: 1.098628386 | BN57: 1.10044286 | BO57: 1.102260331 | BP57: 1.104080803 | BQ57: 1.105904282 | BR57: 1.107730773 | BS57: 1.109560281 | BT57: 1.11139281 | BU57: 1.113228365 | BV57: =BU57*(1+BV56) -> 1.115066952 | BW57: 1.116908576 | BX57: 1.118753241 | BY57: 1.120600953 | BZ57: 1.122451717 | CA57: 1.124305537 | CB57: 1.126162419 | CC57: 1.128022368 | CD57: 1.129885389 | CE57: 1.131751486 | CF57: 1.133620666 | CG57: 1.135492933 | CH57: 1.137368291 | CI57: 1.139246748 | CJ57: 1.141128306 | CK57: 1.143012972 | CL57: 1.144900751 | CM57: 1.146791648 | CN57: 1.148685668 | CO57: 1.150582815 | CP57: 1.152483096 | CQ57: 1.154386516 | CR57: 1.156293079 | CS57: 1.158202791 | CT57: 1.160115657 | CU57: 1.162031683 | CV57: 1.163950872 | CW57: 1.165873232 | CX57: 1.167798766 | CY57: 1.169727481 | CZ57: 1.171659381 | DA57: 1.173594472 | DB57: 1.175532758 | DC57: 1.177474246 | DD57: 1.179418941 | DE57: 1.181366847 | DF57: 1.18331797 | DG57: 1.185272316 | DH57: 1.18722989 | DI57: 1.189190697 | DJ57: 1.191154742 | DK57: 1.193122031 | DL57: 1.195092569 | DM57: 1.197066361 | DN57: 1.199043414 | DO57: 1.201023731 | DP57: 1.20300732 | DQ57: 1.204994184 | DR57: 1.20698433 | DS57: 1.208977763 | DT57: 1.210974488 | DU57: 1.21297451 | DV57: 1.214977837 | DW57: 1.216984471 | DX57: 1.21899442 | DY57: 1.221007688 | DZ57: 1.223024282 | EA57: 1.225044206 | EB57: 1.227067466 | EC57: 1.229094068 | ED57: 1.231124016 | EE57: 1.233157318 | EF57: 1.235193977 | EG57: 1.237234001 | EH57: =EG57*(1+EH56) -> 1.239277393 | EI57: 1.241324161 | EJ57: 1.243374308 | EK57: 1.245427842 | EL57: 1.247484767 | EM57: 1.24954509 | EN57: 1.251608815 | EO57: 1.253675949 | EP57: 1.255746497 | EQ57: 1.257820464 | ER57: 1.259897857 | ES57: 1.261978681 | ET57: 1.264062941 | EU57: 1.266150644 | EV57: 1.268241795 | EW57: 1.270336399 | EX57: 1.272434463 | EY57: 1.274535992 | EZ57: 1.276640992 | FA57: 1.278749468 | FB57: 1.280861427 | FC57: 1.282976874 | FD57: 1.285095814 | FE57: 1.287218254 | FF57: 1.2893442 | FG57: 1.291473657 | FH57: 1.29360663 | FI57: 1.295743127 | FJ57: 1.297883152 | FK57: 1.300026712 | FL57: 1.302173811 | FM57: 1.304324457 | FN57: 1.306478655 | FO57: 1.308636411 | FP57: 1.31079773 | FQ57: 1.312962619 | FR57: 1.315131084 | FS57: 1.31730313 | FT57: 1.319478763 | FU57: 1.32165799 | FV57: 1.323840815 | FW57: 1.326027246 | FX57: 1.328217288 | FY57: 1.330410947 | FZ57: 1.332608228 | GA57: 1.334809139 | GB57: 1.337013685 | GC57: 1.339221872 | GD57: 1.341433706 | GE57: 1.343649192 | GF57: 1.345868338 | GG57: 1.348091149 | GH57: 1.350317631 | GI57: 1.352547791 | GJ57: 1.354781633 | GK57: 1.357019165 | GL57: 1.359260393 | GM57: 1.361505322 | GN57: 1.363753959 | GO57: 1.366006309 | GP57: 1.36826238 | GQ57: 1.370522176 | GR57: 1.372785705 | GS57: 1.375052972 | GT57: =GS57*(1+GT56) -> 1.377323984 | GU57: 1.379598747 | GV57: 1.381877266 | GW57: 1.384159549 | GX57: 1.386445601 | GY57: 1.388735428 | GZ57: 1.391029038 | HA57: 1.393326435 | HB57: 1.395627627 | HC57: 1.39793262 | HD57: 1.400241419 | HE57: 1.402554032 | HF57: 1.404870464 | HG57: 1.407190722 | HH57: 1.409514811 | HI57: 1.41184274 | HJ57: 1.414174513 | HK57: 1.416510137 | HL57: 1.418849619 | HM57: 1.421192964 | HN57: 1.42354018 | HO57: 1.425891272 | HP57: 1.428246248 | HQ57: 1.430605112 | HR57: 1.432967873 | HS57: 1.435334536 | HT57: 1.437705108 | HU57: 1.440079595 | HV57: 1.442458003 | HW57: 1.44484034 | HX57: 1.447226611 | HY57: 1.449616823 | HZ57: 1.452010983 | IA57: 1.454409098 | IB57: 1.456811173 | IC57: 1.459217215 | ID57: 1.46162723 | IE57: 1.464041227 | IF57: 1.46645921 | IG57: 1.468881186 | IH57: 1.471307163 | II57: 1.473737147 | IJ57: 1.476171143 | IK57: 1.47860916 | IL57: 1.481051203 | IM57: 1.48349728 | IN57: 1.485947396 | IO57: 1.488401559 | IP57: 1.490859775 | IQ57: 1.493322051 | IR57: 1.495788394 | IS57: 1.49825881 | IT57: 1.500733306 | IU57: 1.503211889 | IV57: 1.505694566 | IW57: 1.508181343 | IX57: 1.510672227 | IY57: 1.513167225 | IZ57: 1.515666344 | JA57: 1.51816959 | JB57: 1.520676971 | JC57: 1.523188492 | JD57: 1.525704162 | JE57: 1.528223986 | JF57: =JE57*(1+JF56) -> 1.530747973 | JG57: 1.533276127 | JH57: 1.535808457 | JI57: 1.53834497 | JJ57: 1.540885672 | JK57: 1.54343057 | JL57: 1.545979671 | JM57: 1.548532982 | JN57: 1.55109051 | JO57: 1.553652262 | JP57: 1.556218245 | JQ57: 1.558788466 | JR57: 1.561362932 | JS57: 1.56394165 | JT57: 1.566524627 | JU57: 1.569111869 | JV57: 1.571703385 | JW57: 1.574299181 | JX57: 1.576899264 | JY57: 1.579503642 | JZ57: 1.58211232 | KA57: 1.584725307 | KB57: 1.58734261 | KC57: 1.589964235 | KD57: 1.592590191 | KE57: 1.595220483 | KF57: 1.597855119 | KG57: 1.600494107 | KH57: 1.603137453 | KI57: 1.605785165 | KJ57: 1.608437249 | KK57: 1.611093714 | KL57: 1.613754567 | KM57: 1.616419813 | KN57: 1.619089462 | KO57: 1.62176352 | KP57: 1.624441994 | KQ57: 1.627124892 | KR57: 1.629812221 | KS57: 1.632503989 | KT57: 1.635200202 | KU57: 1.637900868 | KV57: 1.640605994
C59: Annual Inflation in Electricity Price | E59: % p.a. | F59: =InputC!G69 -> 0.02 | I59: =$F$59 -> 0.02 | J59: =$F$59 -> 0.02 | K59: 0.02 | L59: 0.02 | M59: 0.02 | N59: 0.02 | O59: 0.02 | P59: 0.02 | Q59: 0.02 | R59: 0.02 | S59: 0.02 | T59: 0.02 | U59: 0.02 | V59: 0.02 | W59: 0.02 | X59: 0.02 | Y59: 0.02 | Z59: 0.02 | AA59: 0.02 | AB59: 0.02 | AC59: 0.02 | AD59: 0.02 | AE59: 0.02 | AF59: 0.02 | AG59: 0.02 | AH59: 0.02 | AI59: 0.02 | AJ59: 0.02 | AK59: 0.02 | AL59: 0.02 | AM59: 0.02 | AN59: 0.02 | AO59: 0.02 | AP59: 0.02 | AQ59: 0.02 | AR59: 0.02 | AS59: 0.02 | AT59: 0.02 | AU59: 0.02 | AV59: 0.02 | AW59: 0.02 | AX59: 0.02 | AY59: 0.02 | AZ59: 0.02 | BA59: 0.02 | BB59: 0.02 | BC59: 0.02 | BD59: 0.02 | BE59: 0.02 | BF59: 0.02 | BG59: 0.02 | BH59: 0.02 | BI59: 0.02 | BJ59: 0.02 | BK59: 0.02 | BL59: 0.02 | BM59: 0.02 | BN59: 0.02 | BO59: 0.02 | BP59: 0.02 | BQ59: 0.02 | BR59: 0.02 | BS59: 0.02 | BT59: 0.02 | BU59: 0.02 | BV59: =$F$59 -> 0.02 | BW59: 0.02 | BX59: 0.02 | BY59: 0.02 | BZ59: 0.02 | CA59: 0.02 | CB59: 0.02 | CC59: 0.02 | CD59: 0.02 | CE59: 0.02 | CF59: 0.02 | CG59: 0.02 | CH59: 0.02 | CI59: 0.02 | CJ59: 0.02 | CK59: 0.02 | CL59: 0.02 | CM59: 0.02 | CN59: 0.02 | CO59: 0.02 | CP59: 0.02 | CQ59: 0.02 | CR59: 0.02 | CS59: 0.02 | CT59: 0.02 | CU59: 0.02 | CV59: 0.02 | CW59: 0.02 | CX59: 0.02 | CY59: 0.02 | CZ59: 0.02 | DA59: 0.02 | DB59: 0.02 | DC59: 0.02 | DD59: 0.02 | DE59: 0.02 | DF59: 0.02 | DG59: 0.02 | DH59: 0.02 | DI59: 0.02 | DJ59: 0.02 | DK59: 0.02 | DL59: 0.02 | DM59: 0.02 | DN59: 0.02 | DO59: 0.02 | DP59: 0.02 | DQ59: 0.02 | DR59: 0.02 | DS59: 0.02 | DT59: 0.02 | DU59: 0.02 | DV59: 0.02 | DW59: 0.02 | DX59: 0.02 | DY59: 0.02 | DZ59: 0.02 | EA59: 0.02 | EB59: 0.02 | EC59: 0.02 | ED59: 0.02 | EE59: 0.02 | EF59: 0.02 | EG59: 0.02 | EH59: =$F$59 -> 0.02 | EI59: 0.02 | EJ59: 0.02 | EK59: 0.02 | EL59: 0.02 | EM59: 0.02 | EN59: 0.02 | EO59: 0.02 | EP59: 0.02 | EQ59: 0.02 | ER59: 0.02 | ES59: 0.02 | ET59: 0.02 | EU59: 0.02 | EV59: 0.02 | EW59: 0.02 | EX59: 0.02 | EY59: 0.02 | EZ59: 0.02 | FA59: 0.02 | FB59: 0.02 | FC59: 0.02 | FD59: 0.02 | FE59: 0.02 | FF59: 0.02 | FG59: 0.02 | FH59: 0.02 | FI59: 0.02 | FJ59: 0.02 | FK59: 0.02 | FL59: 0.02 | FM59: 0.02 | FN59: 0.02 | FO59: 0.02 | FP59: 0.02 | FQ59: 0.02 | FR59: 0.02 | FS59: 0.02 | FT59: 0.02 | FU59: 0.02 | FV59: 0.02 | FW59: 0.02 | FX59: 0.02 | FY59: 0.02 | FZ59: 0.02 | GA59: 0.02 | GB59: 0.02 | GC59: 0.02 | GD59: 0.02 | GE59: 0.02 | GF59: 0.02 | GG59: 0.02 | GH59: 0.02 | GI59: 0.02 | GJ59: 0.02 | GK59: 0.02 | GL59: 0.02 | GM59: 0.02 | GN59: 0.02 | GO59: 0.02 | GP59: 0.02 | GQ59: 0.02 | GR59: 0.02 | GS59: 0.02 | GT59: =$F$59 -> 0.02 | GU59: 0.02 | GV59: 0.02 | GW59: 0.02 | GX59: 0.02 | GY59: 0.02 | GZ59: 0.02 | HA59: 0.02 | HB59: 0.02 | HC59: 0.02 | HD59: 0.02 | HE59: 0.02 | HF59: 0.02 | HG59: 0.02 | HH59: 0.02 | HI59: 0.02 | HJ59: 0.02 | HK59: 0.02 | HL59: 0.02 | HM59: 0.02 | HN59: 0.02 | HO59: 0.02 | HP59: 0.02 | HQ59: 0.02 | HR59: 0.02 | HS59: 0.02 | HT59: 0.02 | HU59: 0.02 | HV59: 0.02 | HW59: 0.02 | HX59: 0.02 | HY59: 0.02 | HZ59: 0.02 | IA59: 0.02 | IB59: 0.02 | IC59: 0.02 | ID59: 0.02 | IE59: 0.02 | IF59: 0.02 | IG59: 0.02 | IH59: 0.02 | II59: 0.02 | IJ59: 0.02 | IK59: 0.02 | IL59: 0.02 | IM59: 0.02 | IN59: 0.02 | IO59: 0.02 | IP59: 0.02 | IQ59: 0.02 | IR59: 0.02 | IS59: 0.02 | IT59: 0.02 | IU59: 0.02 | IV59: 0.02 | IW59: 0.02 | IX59: 0.02 | IY59: 0.02 | IZ59: 0.02 | JA59: 0.02 | JB59: 0.02 | JC59: 0.02 | JD59: 0.02 | JE59: 0.02 | JF59: =$F$59 -> 0.02 | JG59: 0.02 | JH59: 0.02 | JI59: 0.02 | JJ59: 0.02 | JK59: 0.02 | JL59: 0.02 | JM59: 0.02 | JN59: 0.02 | JO59: 0.02 | JP59: 0.02 | JQ59: 0.02 | JR59: 0.02 | JS59: 0.02 | JT59: 0.02 | JU59: 0.02 | JV59: 0.02 | JW59: 0.02 | JX59: 0.02 | JY59: 0.02 | JZ59: 0.02 | KA59: 0.02 | KB59: 0.02 | KC59: 0.02 | KD59: 0.02 | KE59: 0.02 | KF59: 0.02 | KG59: 0.02 | KH59: 0.02 | KI59: 0.02 | KJ59: 0.02 | KK59: 0.02 | KL59: 0.02 | KM59: 0.02 | KN59: 0.02 | KO59: 0.02 | KP59: 0.02 | KQ59: 0.02 | KR59: 0.02 | KS59: 0.02 | KT59: 0.02 | KU59: 0.02 | KV59: 0.02
C60: Monthly Electricity Inflation Rate | E60: % p.m | F60: =(1+F59)^(1/12)-1 -> 0.001651581302 | I60: =$F$60 -> 0.001651581302 | J60: =$F$60 -> 0.001651581302 | K60: 0.001651581302 | L60: 0.001651581302 | M60: 0.001651581302 | N60: 0.001651581302 | O60: 0.001651581302 | P60: 0.001651581302 | Q60: 0.001651581302 | R60: 0.001651581302 | S60: 0.001651581302 | T60: 0.001651581302 | U60: 0.001651581302 | V60: 0.001651581302 | W60: 0.001651581302 | X60: 0.001651581302 | Y60: 0.001651581302 | Z60: 0.001651581302 | AA60: 0.001651581302 | AB60: 0.001651581302 | AC60: 0.001651581302 | AD60: 0.001651581302 | AE60: 0.001651581302 | AF60: 0.001651581302 | AG60: 0.001651581302 | AH60: 0.001651581302 | AI60: 0.001651581302 | AJ60: 0.001651581302 | AK60: 0.001651581302 | AL60: 0.001651581302 | AM60: 0.001651581302 | AN60: 0.001651581302 | AO60: 0.001651581302 | AP60: 0.001651581302 | AQ60: 0.001651581302 | AR60: 0.001651581302 | AS60: 0.001651581302 | AT60: 0.001651581302 | AU60: 0.001651581302 | AV60: 0.001651581302 | AW60: 0.001651581302 | AX60: 0.001651581302 | AY60: 0.001651581302 | AZ60: 0.001651581302 | BA60: 0.001651581302 | BB60: 0.001651581302 | BC60: 0.001651581302 | BD60: 0.001651581302 | BE60: 0.001651581302 | BF60: 0.001651581302 | BG60: 0.001651581302 | BH60: 0.001651581302 | BI60: 0.001651581302 | BJ60: 0.001651581302 | BK60: 0.001651581302 | BL60: 0.001651581302 | BM60: 0.001651581302 | BN60: 0.001651581302 | BO60: 0.001651581302 | BP60: 0.001651581302 | BQ60: 0.001651581302 | BR60: 0.001651581302 | BS60: 0.001651581302 | BT60: 0.001651581302 | BU60: 0.001651581302 | BV60: =$F$60 -> 0.001651581302 | BW60: 0.001651581302 | BX60: 0.001651581302 | BY60: 0.001651581302 | BZ60: 0.001651581302 | CA60: 0.001651581302 | CB60: 0.001651581302 | CC60: 0.001651581302 | CD60: 0.001651581302 | CE60: 0.001651581302 | CF60: 0.001651581302 | CG60: 0.001651581302 | CH60: 0.001651581302 | CI60: 0.001651581302 | CJ60: 0.001651581302 | CK60: 0.001651581302 | CL60: 0.001651581302 | CM60: 0.001651581302 | CN60: 0.001651581302 | CO60: 0.001651581302 | CP60: 0.001651581302 | CQ60: 0.001651581302 | CR60: 0.001651581302 | CS60: 0.001651581302 | CT60: 0.001651581302 | CU60: 0.001651581302 | CV60: 0.001651581302 | CW60: 0.001651581302 | CX60: 0.001651581302 | CY60: 0.001651581302 | CZ60: 0.001651581302 | DA60: 0.001651581302 | DB60: 0.001651581302 | DC60: 0.001651581302 | DD60: 0.001651581302 | DE60: 0.001651581302 | DF60: 0.001651581302 | DG60: 0.001651581302 | DH60: 0.001651581302 | DI60: 0.001651581302 | DJ60: 0.001651581302 | DK60: 0.001651581302 | DL60: 0.001651581302 | DM60: 0.001651581302 | DN60: 0.001651581302 | DO60: 0.001651581302 | DP60: 0.001651581302 | DQ60: 0.001651581302 | DR60: 0.001651581302 | DS60: 0.001651581302 | DT60: 0.001651581302 | DU60: 0.001651581302 | DV60: 0.001651581302 | DW60: 0.001651581302 | DX60: 0.001651581302 | DY60: 0.001651581302 | DZ60: 0.001651581302 | EA60: 0.001651581302 | EB60: 0.001651581302 | EC60: 0.001651581302 | ED60: 0.001651581302 | EE60: 0.001651581302 | EF60: 0.001651581302 | EG60: 0.001651581302 | EH60: =$F$60 -> 0.001651581302 | EI60: 0.001651581302 | EJ60: 0.001651581302 | EK60: 0.001651581302 | EL60: 0.001651581302 | EM60: 0.001651581302 | EN60: 0.001651581302 | EO60: 0.001651581302 | EP60: 0.001651581302 | EQ60: 0.001651581302 | ER60: 0.001651581302 | ES60: 0.001651581302 | ET60: 0.001651581302 | EU60: 0.001651581302 | EV60: 0.001651581302 | EW60: 0.001651581302 | EX60: 0.001651581302 | EY60: 0.001651581302 | EZ60: 0.001651581302 | FA60: 0.001651581302 | FB60: 0.001651581302 | FC60: 0.001651581302 | FD60: 0.001651581302 | FE60: 0.001651581302 | FF60: 0.001651581302 | FG60: 0.001651581302 | FH60: 0.001651581302 | FI60: 0.001651581302 | FJ60: 0.001651581302 | FK60: 0.001651581302 | FL60: 0.001651581302 | FM60: 0.001651581302 | FN60: 0.001651581302 | FO60: 0.001651581302 | FP60: 0.001651581302 | FQ60: 0.001651581302 | FR60: 0.001651581302 | FS60: 0.001651581302 | FT60: 0.001651581302 | FU60: 0.001651581302 | FV60: 0.001651581302 | FW60: 0.001651581302 | FX60: 0.001651581302 | FY60: 0.001651581302 | FZ60: 0.001651581302 | GA60: 0.001651581302 | GB60: 0.001651581302 | GC60: 0.001651581302 | GD60: 0.001651581302 | GE60: 0.001651581302 | GF60: 0.001651581302 | GG60: 0.001651581302 | GH60: 0.001651581302 | GI60: 0.001651581302 | GJ60: 0.001651581302 | GK60: 0.001651581302 | GL60: 0.001651581302 | GM60: 0.001651581302 | GN60: 0.001651581302 | GO60: 0.001651581302 | GP60: 0.001651581302 | GQ60: 0.001651581302 | GR60: 0.001651581302 | GS60: 0.001651581302 | GT60: =$F$60 -> 0.001651581302 | GU60: 0.001651581302 | GV60: 0.001651581302 | GW60: 0.001651581302 | GX60: 0.001651581302 | GY60: 0.001651581302 | GZ60: 0.001651581302 | HA60: 0.001651581302 | HB60: 0.001651581302 | HC60: 0.001651581302 | HD60: 0.001651581302 | HE60: 0.001651581302 | HF60: 0.001651581302 | HG60: 0.001651581302 | HH60: 0.001651581302 | HI60: 0.001651581302 | HJ60: 0.001651581302 | HK60: 0.001651581302 | HL60: 0.001651581302 | HM60: 0.001651581302 | HN60: 0.001651581302 | HO60: 0.001651581302 | HP60: 0.001651581302 | HQ60: 0.001651581302 | HR60: 0.001651581302 | HS60: 0.001651581302 | HT60: 0.001651581302 | HU60: 0.001651581302 | HV60: 0.001651581302 | HW60: 0.001651581302 | HX60: 0.001651581302 | HY60: 0.001651581302 | HZ60: 0.001651581302 | IA60: 0.001651581302 | IB60: 0.001651581302 | IC60: 0.001651581302 | ID60: 0.001651581302 | IE60: 0.001651581302 | IF60: 0.001651581302 | IG60: 0.001651581302 | IH60: 0.001651581302 | II60: 0.001651581302 | IJ60: 0.001651581302 | IK60: 0.001651581302 | IL60: 0.001651581302 | IM60: 0.001651581302 | IN60: 0.001651581302 | IO60: 0.001651581302 | IP60: 0.001651581302 | IQ60: 0.001651581302 | IR60: 0.001651581302 | IS60: 0.001651581302 | IT60: 0.001651581302 | IU60: 0.001651581302 | IV60: 0.001651581302 | IW60: 0.001651581302 | IX60: 0.001651581302 | IY60: 0.001651581302 | IZ60: 0.001651581302 | JA60: 0.001651581302 | JB60: 0.001651581302 | JC60: 0.001651581302 | JD60: 0.001651581302 | JE60: 0.001651581302 | JF60: =$F$60 -> 0.001651581302 | JG60: 0.001651581302 | JH60: 0.001651581302 | JI60: 0.001651581302 | JJ60: 0.001651581302 | JK60: 0.001651581302 | JL60: 0.001651581302 | JM60: 0.001651581302 | JN60: 0.001651581302 | JO60: 0.001651581302 | JP60: 0.001651581302 | JQ60: 0.001651581302 | JR60: 0.001651581302 | JS60: 0.001651581302 | JT60: 0.001651581302 | JU60: 0.001651581302 | JV60: 0.001651581302 | JW60: 0.001651581302 | JX60: 0.001651581302 | JY60: 0.001651581302 | JZ60: 0.001651581302 | KA60: 0.001651581302 | KB60: 0.001651581302 | KC60: 0.001651581302 | KD60: 0.001651581302 | KE60: 0.001651581302 | KF60: 0.001651581302 | KG60: 0.001651581302 | KH60: 0.001651581302 | KI60: 0.001651581302 | KJ60: 0.001651581302 | KK60: 0.001651581302 | KL60: 0.001651581302 | KM60: 0.001651581302 | KN60: 0.001651581302 | KO60: 0.001651581302 | KP60: 0.001651581302 | KQ60: 0.001651581302 | KR60: 0.001651581302 | KS60: 0.001651581302 | KT60: 0.001651581302 | KU60: 0.001651581302 | KV60: 0.001651581302
C61: Inflation Index | E61: Index | H61: 1 | I61: =H61*(1+I60) -> 1.001651581 | J61: =I61*(1+J60) -> 1.00330589 | K61: 1.004962932 | L61: 1.00662271 | M61: 1.008285229 | N61: 1.009950494 | O61: 1.011618509 | P61: 1.013289279 | Q61: 1.014962809 | R61: 1.016639103 | S61: 1.018318165 | T61: 1.02 | U61: 1.021684613 | V61: 1.023372008 | W61: 1.02506219 | X61: 1.026755164 | Y61: 1.028450933 | Z61: 1.030149504 | AA61: 1.031850879 | AB61: 1.033555065 | AC61: 1.035262065 | AD61: 1.036971885 | AE61: 1.038684528 | AF61: 1.0404 | AG61: 1.042118305 | AH61: 1.043839448 | AI61: 1.045563434 | AJ61: 1.047290267 | AK61: 1.049019952 | AL61: 1.050752494 | AM61: 1.052487897 | AN61: 1.054226166 | AO61: 1.055967307 | AP61: 1.057711322 | AQ61: 1.059458219 | AR61: 1.061208 | AS61: 1.062960671 | AT61: 1.064716237 | AU61: 1.066474703 | AV61: 1.068236072 | AW61: 1.070000351 | AX61: 1.071767544 | AY61: 1.073537655 | AZ61: 1.07531069 | BA61: 1.077086653 | BB61: 1.078865549 | BC61: 1.080647383 | BD61: 1.08243216 | BE61: 1.084219885 | BF61: 1.086010562 | BG61: 1.087804197 | BH61: 1.089600794 | BI61: 1.091400358 | BJ61: 1.093202895 | BK61: 1.095008408 | BL61: 1.096816903 | BM61: 1.098628386 | BN61: 1.10044286 | BO61: 1.102260331 | BP61: 1.104080803 | BQ61: 1.105904282 | BR61: 1.107730773 | BS61: 1.109560281 | BT61: 1.11139281 | BU61: 1.113228365 | BV61: =BU61*(1+BV60) -> 1.115066952 | BW61: 1.116908576 | BX61: 1.118753241 | BY61: 1.120600953 | BZ61: 1.122451717 | CA61: 1.124305537 | CB61: 1.126162419 | CC61: 1.128022368 | CD61: 1.129885389 | CE61: 1.131751486 | CF61: 1.133620666 | CG61: 1.135492933 | CH61: 1.137368291 | CI61: 1.139246748 | CJ61: 1.141128306 | CK61: 1.143012972 | CL61: 1.144900751 | CM61: 1.146791648 | CN61: 1.148685668 | CO61: 1.150582815 | CP61: 1.152483096 | CQ61: 1.154386516 | CR61: 1.156293079 | CS61: 1.158202791 | CT61: 1.160115657 | CU61: 1.162031683 | CV61: 1.163950872 | CW61: 1.165873232 | CX61: 1.167798766 | CY61: 1.169727481 | CZ61: 1.171659381 | DA61: 1.173594472 | DB61: 1.175532758 | DC61: 1.177474246 | DD61: 1.179418941 | DE61: 1.181366847 | DF61: 1.18331797 | DG61: 1.185272316 | DH61: 1.18722989 | DI61: 1.189190697 | DJ61: 1.191154742 | DK61: 1.193122031 | DL61: 1.195092569 | DM61: 1.197066361 | DN61: 1.199043414 | DO61: 1.201023731 | DP61: 1.20300732 | DQ61: 1.204994184 | DR61: 1.20698433 | DS61: 1.208977763 | DT61: 1.210974488 | DU61: 1.21297451 | DV61: 1.214977837 | DW61: 1.216984471 | DX61: 1.21899442 | DY61: 1.221007688 | DZ61: 1.223024282 | EA61: 1.225044206 | EB61: 1.227067466 | EC61: 1.229094068 | ED61: 1.231124016 | EE61: 1.233157318 | EF61: 1.235193977 | EG61: 1.237234001 | EH61: =EG61*(1+EH60) -> 1.239277393 | EI61: 1.241324161 | EJ61: 1.243374308 | EK61: 1.245427842 | EL61: 1.247484767 | EM61: 1.24954509 | EN61: 1.251608815 | EO61: 1.253675949 | EP61: 1.255746497 | EQ61: 1.257820464 | ER61: 1.259897857 | ES61: 1.261978681 | ET61: 1.264062941 | EU61: 1.266150644 | EV61: 1.268241795 | EW61: 1.270336399 | EX61: 1.272434463 | EY61: 1.274535992 | EZ61: 1.276640992 | FA61: 1.278749468 | FB61: 1.280861427 | FC61: 1.282976874 | FD61: 1.285095814 | FE61: 1.287218254 | FF61: 1.2893442 | FG61: 1.291473657 | FH61: 1.29360663 | FI61: 1.295743127 | FJ61: 1.297883152 | FK61: 1.300026712 | FL61: 1.302173811 | FM61: 1.304324457 | FN61: 1.306478655 | FO61: 1.308636411 | FP61: 1.31079773 | FQ61: 1.312962619 | FR61: 1.315131084 | FS61: 1.31730313 | FT61: 1.319478763 | FU61: 1.32165799 | FV61: 1.323840815 | FW61: 1.326027246 | FX61: 1.328217288 | FY61: 1.330410947 | FZ61: 1.332608228 | GA61: 1.334809139 | GB61: 1.337013685 | GC61: 1.339221872 | GD61: 1.341433706 | GE61: 1.343649192 | GF61: 1.345868338 | GG61: 1.348091149 | GH61: 1.350317631 | GI61: 1.352547791 | GJ61: 1.354781633 | GK61: 1.357019165 | GL61: 1.359260393 | GM61: 1.361505322 | GN61: 1.363753959 | GO61: 1.366006309 | GP61: 1.36826238 | GQ61: 1.370522176 | GR61: 1.372785705 | GS61: 1.375052972 | GT61: =GS61*(1+GT60) -> 1.377323984 | GU61: 1.379598747 | GV61: 1.381877266 | GW61: 1.384159549 | GX61: 1.386445601 | GY61: 1.388735428 | GZ61: 1.391029038 | HA61: 1.393326435 | HB61: 1.395627627 | HC61: 1.39793262 | HD61: 1.400241419 | HE61: 1.402554032 | HF61: 1.404870464 | HG61: 1.407190722 | HH61: 1.409514811 | HI61: 1.41184274 | HJ61: 1.414174513 | HK61: 1.416510137 | HL61: 1.418849619 | HM61: 1.421192964 | HN61: 1.42354018 | HO61: 1.425891272 | HP61: 1.428246248 | HQ61: 1.430605112 | HR61: 1.432967873 | HS61: 1.435334536 | HT61: 1.437705108 | HU61: 1.440079595 | HV61: 1.442458003 | HW61: 1.44484034 | HX61: 1.447226611 | HY61: 1.449616823 | HZ61: 1.452010983 | IA61: 1.454409098 | IB61: 1.456811173 | IC61: 1.459217215 | ID61: 1.46162723 | IE61: 1.464041227 | IF61: 1.46645921 | IG61: 1.468881186 | IH61: 1.471307163 | II61: 1.473737147 | IJ61: 1.476171143 | IK61: 1.47860916 | IL61: 1.481051203 | IM61: 1.48349728 | IN61: 1.485947396 | IO61: 1.488401559 | IP61: 1.490859775 | IQ61: 1.493322051 | IR61: 1.495788394 | IS61: 1.49825881 | IT61: 1.500733306 | IU61: 1.503211889 | IV61: 1.505694566 | IW61: 1.508181343 | IX61: 1.510672227 | IY61: 1.513167225 | IZ61: 1.515666344 | JA61: 1.51816959 | JB61: 1.520676971 | JC61: 1.523188492 | JD61: 1.525704162 | JE61: 1.528223986 | JF61: =JE61*(1+JF60) -> 1.530747973 | JG61: 1.533276127 | JH61: 1.535808457 | JI61: 1.53834497 | JJ61: 1.540885672 | JK61: 1.54343057 | JL61: 1.545979671 | JM61: 1.548532982 | JN61: 1.55109051 | JO61: 1.553652262 | JP61: 1.556218245 | JQ61: 1.558788466 | JR61: 1.561362932 | JS61: 1.56394165 | JT61: 1.566524627 | JU61: 1.569111869 | JV61: 1.571703385 | JW61: 1.574299181 | JX61: 1.576899264 | JY61: 1.579503642 | JZ61: 1.58211232 | KA61: 1.584725307 | KB61: 1.58734261 | KC61: 1.589964235 | KD61: 1.592590191 | KE61: 1.595220483 | KF61: 1.597855119 | KG61: 1.600494107 | KH61: 1.603137453 | KI61: 1.605785165 | KJ61: 1.608437249 | KK61: 1.611093714 | KL61: 1.613754567 | KM61: 1.616419813 | KN61: 1.619089462 | KO61: 1.62176352 | KP61: 1.624441994 | KQ61: 1.627124892 | KR61: 1.629812221 | KS61: 1.632503989 | KT61: 1.635200202 | KU61: 1.637900868 | KV61: 1.640605994
C63: Annual Inflation in IT Equipment | E63: % p.a. | F63: =InputC!G70 -> -0.01 | I63: =$F$63 -> -0.01 | J63: =$F$63 -> -0.01 | K63: -0.01 | L63: -0.01 | M63: -0.01 | N63: -0.01 | O63: -0.01 | P63: -0.01 | Q63: -0.01 | R63: -0.01 | S63: -0.01 | T63: -0.01 | U63: -0.01 | V63: -0.01 | W63: -0.01 | X63: -0.01 | Y63: -0.01 | Z63: -0.01 | AA63: -0.01 | AB63: -0.01 | AC63: -0.01 | AD63: -0.01 | AE63: -0.01 | AF63: -0.01 | AG63: -0.01 | AH63: -0.01 | AI63: -0.01 | AJ63: -0.01 | AK63: -0.01 | AL63: -0.01 | AM63: -0.01 | AN63: -0.01 | AO63: -0.01 | AP63: -0.01 | AQ63: -0.01 | AR63: -0.01 | AS63: -0.01 | AT63: -0.01 | AU63: -0.01 | AV63: -0.01 | AW63: -0.01 | AX63: -0.01 | AY63: -0.01 | AZ63: -0.01 | BA63: -0.01 | BB63: -0.01 | BC63: -0.01 | BD63: -0.01 | BE63: -0.01 | BF63: -0.01 | BG63: -0.01 | BH63: -0.01 | BI63: -0.01 | BJ63: -0.01 | BK63: -0.01 | BL63: -0.01 | BM63: -0.01 | BN63: -0.01 | BO63: -0.01 | BP63: -0.01 | BQ63: -0.01 | BR63: -0.01 | BS63: -0.01 | BT63: -0.01 | BU63: -0.01 | BV63: =$F$63 -> -0.01 | BW63: -0.01 | BX63: -0.01 | BY63: -0.01 | BZ63: -0.01 | CA63: -0.01 | CB63: -0.01 | CC63: -0.01 | CD63: -0.01 | CE63: -0.01 | CF63: -0.01 | CG63: -0.01 | CH63: -0.01 | CI63: -0.01 | CJ63: -0.01 | CK63: -0.01 | CL63: -0.01 | CM63: -0.01 | CN63: -0.01 | CO63: -0.01 | CP63: -0.01 | CQ63: -0.01 | CR63: -0.01 | CS63: -0.01 | CT63: -0.01 | CU63: -0.01 | CV63: -0.01 | CW63: -0.01 | CX63: -0.01 | CY63: -0.01 | CZ63: -0.01 | DA63: -0.01 | DB63: -0.01 | DC63: -0.01 | DD63: -0.01 | DE63: -0.01 | DF63: -0.01 | DG63: -0.01 | DH63: -0.01 | DI63: -0.01 | DJ63: -0.01 | DK63: -0.01 | DL63: -0.01 | DM63: -0.01 | DN63: -0.01 | DO63: -0.01 | DP63: -0.01 | DQ63: -0.01 | DR63: -0.01 | DS63: -0.01 | DT63: -0.01 | DU63: -0.01 | DV63: -0.01 | DW63: -0.01 | DX63: -0.01 | DY63: -0.01 | DZ63: -0.01 | EA63: -0.01 | EB63: -0.01 | EC63: -0.01 | ED63: -0.01 | EE63: -0.01 | EF63: -0.01 | EG63: -0.01 | EH63: =$F$63 -> -0.01 | EI63: -0.01 | EJ63: -0.01 | EK63: -0.01 | EL63: -0.01 | EM63: -0.01 | EN63: -0.01 | EO63: -0.01 | EP63: -0.01 | EQ63: -0.01 | ER63: -0.01 | ES63: -0.01 | ET63: -0.01 | EU63: -0.01 | EV63: -0.01 | EW63: -0.01 | EX63: -0.01 | EY63: -0.01 | EZ63: -0.01 | FA63: -0.01 | FB63: -0.01 | FC63: -0.01 | FD63: -0.01 | FE63: -0.01 | FF63: -0.01 | FG63: -0.01 | FH63: -0.01 | FI63: -0.01 | FJ63: -0.01 | FK63: -0.01 | FL63: -0.01 | FM63: -0.01 | FN63: -0.01 | FO63: -0.01 | FP63: -0.01 | FQ63: -0.01 | FR63: -0.01 | FS63: -0.01 | FT63: -0.01 | FU63: -0.01 | FV63: -0.01 | FW63: -0.01 | FX63: -0.01 | FY63: -0.01 | FZ63: -0.01 | GA63: -0.01 | GB63: -0.01 | GC63: -0.01 | GD63: -0.01 | GE63: -0.01 | GF63: -0.01 | GG63: -0.01 | GH63: -0.01 | GI63: -0.01 | GJ63: -0.01 | GK63: -0.01 | GL63: -0.01 | GM63: -0.01 | GN63: -0.01 | GO63: -0.01 | GP63: -0.01 | GQ63: -0.01 | GR63: -0.01 | GS63: -0.01 | GT63: =$F$63 -> -0.01 | GU63: -0.01 | GV63: -0.01 | GW63: -0.01 | GX63: -0.01 | GY63: -0.01 | GZ63: -0.01 | HA63: -0.01 | HB63: -0.01 | HC63: -0.01 | HD63: -0.01 | HE63: -0.01 | HF63: -0.01 | HG63: -0.01 | HH63: -0.01 | HI63: -0.01 | HJ63: -0.01 | HK63: -0.01 | HL63: -0.01 | HM63: -0.01 | HN63: -0.01 | HO63: -0.01 | HP63: -0.01 | HQ63: -0.01 | HR63: -0.01 | HS63: -0.01 | HT63: -0.01 | HU63: -0.01 | HV63: -0.01 | HW63: -0.01 | HX63: -0.01 | HY63: -0.01 | HZ63: -0.01 | IA63: -0.01 | IB63: -0.01 | IC63: -0.01 | ID63: -0.01 | IE63: -0.01 | IF63: -0.01 | IG63: -0.01 | IH63: -0.01 | II63: -0.01 | IJ63: -0.01 | IK63: -0.01 | IL63: -0.01 | IM63: -0.01 | IN63: -0.01 | IO63: -0.01 | IP63: -0.01 | IQ63: -0.01 | IR63: -0.01 | IS63: -0.01 | IT63: -0.01 | IU63: -0.01 | IV63: -0.01 | IW63: -0.01 | IX63: -0.01 | IY63: -0.01 | IZ63: -0.01 | JA63: -0.01 | JB63: -0.01 | JC63: -0.01 | JD63: -0.01 | JE63: -0.01 | JF63: =$F$63 -> -0.01 | JG63: -0.01 | JH63: -0.01 | JI63: -0.01 | JJ63: -0.01 | JK63: -0.01 | JL63: -0.01 | JM63: -0.01 | JN63: -0.01 | JO63: -0.01 | JP63: -0.01 | JQ63: -0.01 | JR63: -0.01 | JS63: -0.01 | JT63: -0.01 | JU63: -0.01 | JV63: -0.01 | JW63: -0.01 | JX63: -0.01 | JY63: -0.01 | JZ63: -0.01 | KA63: -0.01 | KB63: -0.01 | KC63: -0.01 | KD63: -0.01 | KE63: -0.01 | KF63: -0.01 | KG63: -0.01 | KH63: -0.01 | KI63: -0.01 | KJ63: -0.01 | KK63: -0.01 | KL63: -0.01 | KM63: -0.01 | KN63: -0.01 | KO63: -0.01 | KP63: -0.01 | KQ63: -0.01 | KR63: -0.01 | KS63: -0.01 | KT63: -0.01 | KU63: -0.01 | KV63: -0.01
